Workbook

Sheet Indexacion gasóleo
B2: CALCULADORA DEL PRECIO DEL TRANSPORTE DE MERCANCÍAS POR CARRETERA EN FUNCIÓN DE LA VARIACIÓN DEL PRECIO DEL GASÓLEO.
D3: Periodo de comprobación: | E3: Entre el 07/01/2020 y el 06/09/2022
C4: Cumplimenta las casillas de color azul
C5: Fecha de celebración del contrato:
C6: Fecha de realización del transporte: | F6: 2022-07-01
C8: PORCENTAJE DE VARIACIÓN DEL PRECIO MEDIO DEL GASÓLEO EN EL TRAMO SELECCIONADO: | E8: =IFERROR(HLOOKUP(E5,Hoja2!D6:EH141,(MATCH(E6,Hoja2!C7:C141,1)+1),TRUE),0) -> 0
C10: Tu tipo de vehículo: | E10: Introduce aquí el tipo de vehículo | F10: =IF(E6>=F6,(IF(E10="Más de 20 Tm de MMA",0.4,IF(E10="Entre 3,5 y 20 Tm",0.3,IF(E10="Menos de 3,5 Tm",0.2,0)))),IF(E6="",0,IF(E10="Más de 20 Tm de MMA",0.3,IF(E10="Entre 3,5 y 20 Tm",0.2,IF(E10="Menos de 3,5 Tm",0.1,0))))) -> 0
C11: Tu precio actual del transporte | D11: por Kilómetro: | E11: 0
D12: por servicio prestado: | E12: 0
C14: PORCENTAJE DE INDEXACIÓN A REFLEJAR POR FACTURA: | E14: =IFERROR(E8*F10,0) -> 0
C15: IMPORTE A INDEXAR EN FACTURA: | D15: POR KILÓMETRO: | E15: =IFERROR(IF(E11="Introduce aquí tu precio por Km",0,E8*E11*F10),0) -> 0
D16: POR SERVICIO PRESTADO: | E16: =IFERROR(IF(E12="Introduce aquí tu precio por Km",0,E8*E12*F10),0) -> 0
C22: Los resultados obtenidos en la simulación son orientativos y han sido obtenidos por los datos facilitados por usted, no asumiendo esta parte ninguna responsabilidad sobre las decisiones que tome a partir del resultado obtenido en la simulación. El cálculo se realiza utilizando las fórmulas incluidas en la Orden FOM/1882/2012, de 1 de atosto por la que se aprueban las condiciones generales de contratación de los transportes de mercancías por carretera y la tabla del índice de variación semanal de los precios medios del gasóleo en España, publicado en Https://www.mitma.gob.es/. ATENCIÓN: No aplicar la revisión del precio del transporte si no se supera el 5%, a no ser que se haya pactado un porcentaje inferior al 5%.

Sheet Ejemplo factura por km
C2: EJEMPLO DE FACTURA POR KILÓMETROS RECORRIDOS
C5: DATOS DE LA EMPRESA
C6: DIRECCIÓN
C7: POBLACIÓN
C8: TLF
C10: DATOS DEL CLIENTE
C11: Nombre | G11: Fecha | H11: 22/3/2022
C12: CIF
C13: Dirección
C14: Teléfono
C16: Descripción | E16: Kilómetros | F16: Precio por Kilómetro | H16: Precio
C18: Servicio prestado | E18: 100 | F18: ='Indexacion gasóleo'!$E$11 -> 0 | H18: =E18*F18 -> 0
C21: ="Indexación por el incremento del predio del combustible según Decreto Ley 3/2022 de 1 de marzo ( " & ROUND(100 * 'Indexacion gasóleo'!$E$14,2) & " % )" -> Indexación por el incremento del predio del combustible según Decreto Ley 3/2022 de 1 de marzo ( 0 % ) | E21: =E18 -> 100 | F21: =F18*'Indexacion gasóleo'!$E$14 -> 0 | H21: =H18*'Indexacion gasóleo'!$E$14 -> 0
G24: Base imponible: | H24: =SUM(H17:H22) -> 0
G25: IVA (21 %) | H25: =H24*0.21 -> 0
G27: TOTAL FACTURA | H27: =SUM(H24:H25) -> 0
B30: Los resultados obtenidos en la simulación son orientativos y han sido obtenidos por los datos facilitados por usted, no asumiendo esta parte ninguna responsabilidad sobre las decisiones que tome a partir del resultado obtenido en la simulación. El cálculo se realiza utilizando las fórmulas incluidas en la Orden FOM/1882/2012, de 1 de atosto por la que se aprueban las condiciones generales de contratación de los transportes de mercancías por carretera y la tabla del índice de variación semanal de los precios medios del gasóleo en España, publicado en Https://www.mitma.gob.es/. ATENCIÓN: No aplicar la revisión del precio del transporte si no se supera el 5%, a no ser que se haya pactado un porcentaje inferior al 5%.

Sheet Ejemplo factura por viajes
C2: EJEMPLO DE FACTURA POR VIAJES
C5: DATOS DE LA EMPRESA
C6: DIRECCIÓN
C7: POBLACIÓN
C8: TLF
C10: DATOS DEL CLIENTE
C11: Nombre | G11: Fecha | H11: 22/3/2022
C12: CIF
C13: Dirección
C14: Teléfono
C16: Descripción | F16: Precio por servicio
C18: Servicio prestado | H18: ='Indexacion gasóleo'!E12 -> 0
C21: ="Indexación por el incremento del predio del combustible según Decreto Ley 3/2022 de 1 de marzo ( " & ROUND(100 * 'Indexacion gasóleo'!$E$14,2) & " % )" -> Indexación por el incremento del predio del combustible según Decreto Ley 3/2022 de 1 de marzo ( 0 % ) | H21: =SUM(H18:H19)*'Indexacion gasóleo'!$E$14 -> 0
G24: Base imponible: | H24: =SUM(H17:H22) -> 0
G25: IVA (21 %) | H25: =H24*0.21 -> 0
G27: TOTAL FACTURA | H27: =SUM(H24:H25) -> 0
B30: Los resultados obtenidos en la simulación son orientativos y han sido obtenidos por los datos facilitados por usted, no asumiendo esta parte ninguna responsabilidad sobre las decisiones que tome a partir del resultado obtenido en la simulación. El cálculo se realiza utilizando las fórmulas incluidas en la Orden FOM/1882/2012, de 1 de atosto por la que se aprueban las condiciones generales de contratación de los transportes de mercancías por carretera y la tabla del índice de variación semanal de los precios medios del gasóleo en España, publicado en Https://www.mitma.gob.es/. ATENCIÓN: No aplicar la revisión del precio del transporte si no se supera el 5%, a no ser que se haya pactado un porcentaje inferior al 5%.

Sheet Hoja2 (hidden)
B3: Variación del precio medio del gasóleo (PVP) entre el momento en que se contrató y realizó el transporte
D5: Semana de celebración del contrato de transporte
D6: 2020-01-07 | E6: 2020-01-14 | F6: 2020-01-21 | G6: 2020-01-28 | H6: 2020-02-04 | I6: 2020-02-11 | J6: 2020-02-18 | K6: 2020-02-25 | L6: 2020-03-03 | M6: 2020-03-10 | N6: 2020-03-17 | O6: 2020-03-24 | P6: 2020-03-31 | Q6: 2020-04-07 | R6: 2020-04-21 | S6: 2020-04-28 | T6: 2020-05-05 | U6: 2020-05-12 | V6: 2020-05-19 | W6: 2020-05-26 | X6: 2020-06-02 | Y6: 2020-06-09 | Z6: 2020-06-16 | AA6: 2020-06-23 | AB6: 2020-06-30 | AC6: 2020-07-07 | AD6: 2020-07-14 | AE6: 2020-07-21 | AF6: 2020-07-28 | AG6: 2020-08-04 | AH6: 2020-08-11 | AI6: 2020-08-18 | AJ6: 2020-08-25 | AK6: 2020-09-01 | AL6: 2020-09-08 | AM6: 2020-09-15 | AN6: 2020-09-22 | AO6: 2020-09-29 | AP6: 2020-10-06 | AQ6: 2020-10-13 | AR6: 2020-10-20 | AS6: 2020-10-27 | AT6: 2020-11-03 | AU6: 2020-11-10 | AV6: 2020-11-17 | AW6: 2020-11-24 | AX6: 2020-12-01 | AY6: 2020-12-08 | AZ6: 2020-12-15 | BA6: 2020-12-22 | BB6: 2021-01-12 | BC6: 2021-01-19 | BD6: 2021-01-26 | BE6: 2021-02-02 | BF6: 2021-02-09 | BG6: 2021-02-16 | BH6: 2021-02-23 | BI6: 2021-03-02 | BJ6: 2021-03-09 | BK6: 2021-03-16 | BL6: 2021-03-23 | BM6: 2021-03-30 | BN6: 2021-04-13 | BO6: 2021-04-20 | BP6: 2021-04-27 | BQ6: 2021-05-04 | BR6: 2021-05-11 | BS6: 2021-05-18 | BT6: 2021-05-25 | BU6: 2021-06-01 | BV6: 2021-06-08 | BW6: 2021-06-15 | BX6: 2021-06-22 | BY6: 2021-06-29 | BZ6: 2021-07-06 | CA6: 2021-07-13 | CB6: 2021-07-20 | CC6: 2021-07-27 | CD6: 2021-08-03 | CE6: 2021-08-10 | CF6: 2021-08-17 | CG6: 2021-08-24 | CH6: 2021-08-31 | CI6: 2021-09-07 | CJ6: 2021-09-14 | CK6: 2021-09-21 | CL6: 2021-09-28 | CM6: 2021-10-05 | CN6: 2021-10-12 | CO6: 2021-10-19 | CP6: 2021-10-26 | CQ6: 2021-11-02 | CR6: 2021-11-09 | CS6: 2021-11-16 | CT6: 2021-11-23 | CU6: 2021-11-30 | CV6: 2021-12-07 | CW6: 2021-12-14 | CX6: 2021-12-21 | CY6: 2022-01-04 | CZ6: 2022-01-11 | DA6: 2022-01-18 | DB6: 2022-01-25 | DC6: 2022-02-01 | DD6: 2022-02-08 | DE6: 2022-02-15 | DF6: 2022-02-22 | DG6: 2022-03-01 | DH6: 2022-03-08 | DI6: 2022-03-15 | DJ6: 2022-03-22 | DK6: 2022-03-29 | DL6: 2022-04-05 | DM6: 2022-04-12 | DN6: 2022-04-19 | DO6: 2022-04-26 | DP6: 2022-05-03 | DQ6: 2022-05-10 | DR6: 2022-05-17 | DS6: 2022-05-24 | DT6: 2022-05-31 | DU6: 2022-06-07 | DV6: 2022-06-14 | DW6: 2022-06-21 | DX6: 2022-06-28 | DY6: 2022-07-05 | DZ6: 2022-07-12 | EA6: 2022-07-19 | EB6: 2022-07-26 | EC6: 2022-08-02 | ED6: 2022-08-09 | EE6: 2022-08-16 | EF6: 2022-08-23 | EG6: 2022-08-30
B7: Semana de realización del transporte | C7: 2020-01-14 | D7: =IF($C7<=D$6,"",VLOOKUP($C7,'[1]Precios gasóleo'!$D:$F,3,FALSE)/VLOOKUP(D$6,'[1]Precios gasóleo'!$D:$F,3,FALSE)-1) -> -0.00587742733 | E7: =IF($C7<=E$6,"",VLOOKUP($C7,'[1]Precios gasóleo'!$D:$F,3,FALSE)/VLOOKUP(E$6,'[1]Precios gasóleo'!$D:$F,3,FALSE)-1) ->  | F7: =IF($C7<=F$6,"",VLOOKUP($C7,'[1]Precios gasóleo'!$D:$F,3,FALSE)/VLOOKUP(F$6,'[1]Precios gasóleo'!$D:$F,3,FALSE)-1) ->  | G7: =IF($C7<=G$6,"",VLOOKUP($C7,'[1]Precios gasóleo'!$D:$F,3,FALSE)/VLOOKUP(G$6,'[1]Precios gasóleo'!$D:$F,3,FALSE)-1) ->  | H7: =IF($C7<=H$6,"",VLOOKUP($C7,'[1]Precios gasóleo'!$D:$F,3,FALSE)/VLOOKUP(H$6,'[1]Precios gasóleo'!$D:$F,3,FALSE)-1) ->  | I7: =IF($C7<=I$6,"",VLOOKUP($C7,'[1]Precios gasóleo'!$D:$F,3,FALSE)/VLOOKUP(I$6,'[1]Precios gasóleo'!$D:$F,3,FALSE)-1) ->  | J7: =IF($C7<=J$6,"",VLOOKUP($C7,'[1]Precios gasóleo'!$D:$F,3,FALSE)/VLOOKUP(J$6,'[1]Precios gasóleo'!$D:$F,3,FALSE)-1) ->  | K7: =IF($C7<=K$6,"",VLOOKUP($C7,'[1]Precios gasóleo'!$D:$F,3,FALSE)/VLOOKUP(K$6,'[1]Precios gasóleo'!$D:$F,3,FALSE)-1) ->  | L7: =IF($C7<=L$6,"",VLOOKUP($C7,'[1]Precios gasóleo'!$D:$F,3,FALSE)/VLOOKUP(L$6,'[1]Precios gasóleo'!$D:$F,3,FALSE)-1) ->  | M7: =IF($C7<=M$6,"",VLOOKUP($C7,'[1]Precios gasóleo'!$D:$F,3,FALSE)/VLOOKUP(M$6,'[1]Precios gasóleo'!$D:$F,3,FALSE)-1) ->  | N7: =IF($C7<=N$6,"",VLOOKUP($C7,'[1]Precios gasóleo'!$D:$F,3,FALSE)/VLOOKUP(N$6,'[1]Precios gasóleo'!$D:$F,3,FALSE)-1) ->  | O7: =IF($C7<=O$6,"",VLOOKUP($C7,'[1]Precios gasóleo'!$D:$F,3,FALSE)/VLOOKUP(O$6,'[1]Precios gasóleo'!$D:$F,3,FALSE)-1) ->  | P7: =IF($C7<=P$6,"",VLOOKUP($C7,'[1]Precios gasóleo'!$D:$F,3,FALSE)/VLOOKUP(P$6,'[1]Precios gasóleo'!$D:$F,3,FALSE)-1) ->  | Q7: =IF($C7<=Q$6,"",VLOOKUP($C7,'[1]Precios gasóleo'!$D:$F,3,FALSE)/VLOOKUP(Q$6,'[1]Precios gasóleo'!$D:$F,3,FALSE)-1) ->  | R7: =IF($C7<=R$6,"",VLOOKUP($C7,'[1]Precios gasóleo'!$D:$F,3,FALSE)/VLOOKUP(R$6,'[1]Precios gasóleo'!$D:$F,3,FALSE)-1) ->  | S7: =IF($C7<=S$6,"",VLOOKUP($C7,'[1]Precios gasóleo'!$D:$F,3,FALSE)/VLOOKUP(S$6,'[1]Precios gasóleo'!$D:$F,3,FALSE)-1) ->  | T7: =IF($C7<=T$6,"",VLOOKUP($C7,'[1]Precios gasóleo'!$D:$F,3,FALSE)/VLOOKUP(T$6,'[1]Precios gasóleo'!$D:$F,3,FALSE)-1) ->  | U7: =IF($C7<=U$6,"",VLOOKUP($C7,'[1]Precios gasóleo'!$D:$F,3,FALSE)/VLOOKUP(U$6,'[1]Precios gasóleo'!$D:$F,3,FALSE)-1) ->  | V7: =IF($C7<=V$6,"",VLOOKUP($C7,'[1]Precios gasóleo'!$D:$F,3,FALSE)/VLOOKUP(V$6,'[1]Precios gasóleo'!$D:$F,3,FALSE)-1) ->  | W7: =IF($C7<=W$6,"",VLOOKUP($C7,'[1]Precios gasóleo'!$D:$F,3,FALSE)/VLOOKUP(W$6,'[1]Precios gasóleo'!$D:$F,3,FALSE)-1) ->  | X7: =IF($C7<=X$6,"",VLOOKUP($C7,'[1]Precios gasóleo'!$D:$F,3,FALSE)/VLOOKUP(X$6,'[1]Precios gasóleo'!$D:$F,3,FALSE)-1) ->  | Y7: =IF($C7<=Y$6,"",VLOOKUP($C7,'[1]Precios gasóleo'!$D:$F,3,FALSE)/VLOOKUP(Y$6,'[1]Precios gasóleo'!$D:$F,3,FALSE)-1) ->  | Z7: =IF($C7<=Z$6,"",VLOOKUP($C7,'[1]Precios gasóleo'!$D:$F,3,FALSE)/VLOOKUP(Z$6,'[1]Precios gasóleo'!$D:$F,3,FALSE)-1) ->  | AA7: =IF($C7<=AA$6,"",VLOOKUP($C7,'[1]Precios gasóleo'!$D:$F,3,FALSE)/VLOOKUP(AA$6,'[1]Precios gasóleo'!$D:$F,3,FALSE)-1) ->  | AB7: =IF($C7<=AB$6,"",VLOOKUP($C7,'[1]Precios gasóleo'!$D:$F,3,FALSE)/VLOOKUP(AB$6,'[1]Precios gasóleo'!$D:$F,3,FALSE)-1) ->  | AC7: =IF($C7<=AC$6,"",VLOOKUP($C7,'[1]Precios gasóleo'!$D:$F,3,FALSE)/VLOOKUP(AC$6,'[1]Precios gasóleo'!$D:$F,3,FALSE)-1) ->  | AD7: =IF($C7<=AD$6,"",VLOOKUP($C7,'[1]Precios gasóleo'!$D:$F,3,FALSE)/VLOOKUP(AD$6,'[1]Precios gasóleo'!$D:$F,3,FALSE)-1) ->  | AE7: =IF($C7<=AE$6,"",VLOOKUP($C7,'[1]Precios gasóleo'!$D:$F,3,FALSE)/VLOOKUP(AE$6,'[1]Precios gasóleo'!$D:$F,3,FALSE)-1) ->  | AF7: =IF($C7<=AF$6,"",VLOOKUP($C7,'[1]Precios gasóleo'!$D:$F,3,FALSE)/VLOOKUP(AF$6,'[1]Precios gasóleo'!$D:$F,3,FALSE)-1) ->  | AG7: =IF($C7<=AG$6,"",VLOOKUP($C7,'[1]Precios gasóleo'!$D:$F,3,FALSE)/VLOOKUP(AG$6,'[1]Precios gasóleo'!$D:$F,3,FALSE)-1) ->  | AH7: =IF($C7<=AH$6,"",VLOOKUP($C7,'[1]Precios gasóleo'!$D:$F,3,FALSE)/VLOOKUP(AH$6,'[1]Precios gasóleo'!$D:$F,3,FALSE)-1) ->  | AI7: =IF($C7<=AI$6,"",VLOOKUP($C7,'[1]Precios gasóleo'!$D:$F,3,FALSE)/VLOOKUP(AI$6,'[1]Precios gasóleo'!$D:$F,3,FALSE)-1) ->  | AJ7: =IF($C7<=AJ$6,"",VLOOKUP($C7,'[1]Precios gasóleo'!$D:$F,3,FALSE)/VLOOKUP(AJ$6,'[1]Precios gasóleo'!$D:$F,3,FALSE)-1) ->  | AK7: =IF($C7<=AK$6,"",VLOOKUP($C7,'[1]Precios gasóleo'!$D:$F,3,FALSE)/VLOOKUP(AK$6,'[1]Precios gasóleo'!$D:$F,3,FALSE)-1) ->  | AL7: =IF($C7<=AL$6,"",VLOOKUP($C7,'[1]Precios gasóleo'!$D:$F,3,FALSE)/VLOOKUP(AL$6,'[1]Precios gasóleo'!$D:$F,3,FALSE)-1) ->  | AM7: =IF($C7<=AM$6,"",VLOOKUP($C7,'[1]Precios gasóleo'!$D:$F,3,FALSE)/VLOOKUP(AM$6,'[1]Precios gasóleo'!$D:$F,3,FALSE)-1) ->  | AN7: =IF($C7<=AN$6,"",VLOOKUP($C7,'[1]Precios gasóleo'!$D:$F,3,FALSE)/VLOOKUP(AN$6,'[1]Precios gasóleo'!$D:$F,3,FALSE)-1) ->  | AO7: =IF($C7<=AO$6,"",VLOOKUP($C7,'[1]Precios gasóleo'!$D:$F,3,FALSE)/VLOOKUP(AO$6,'[1]Precios gasóleo'!$D:$F,3,FALSE)-1) ->  | AP7: =IF($C7<=AP$6,"",VLOOKUP($C7,'[1]Precios gasóleo'!$D:$F,3,FALSE)/VLOOKUP(AP$6,'[1]Precios gasóleo'!$D:$F,3,FALSE)-1) ->  | AQ7: =IF($C7<=AQ$6,"",VLOOKUP($C7,'[1]Precios gasóleo'!$D:$F,3,FALSE)/VLOOKUP(AQ$6,'[1]Precios gasóleo'!$D:$F,3,FALSE)-1) ->  | AR7: =IF($C7<=AR$6,"",VLOOKUP($C7,'[1]Precios gasóleo'!$D:$F,3,FALSE)/VLOOKUP(AR$6,'[1]Precios gasóleo'!$D:$F,3,FALSE)-1) ->  | AS7: =IF($C7<=AS$6,"",VLOOKUP($C7,'[1]Precios gasóleo'!$D:$F,3,FALSE)/VLOOKUP(AS$6,'[1]Precios gasóleo'!$D:$F,3,FALSE)-1) ->  | AT7: =IF($C7<=AT$6,"",VLOOKUP($C7,'[1]Precios gasóleo'!$D:$F,3,FALSE)/VLOOKUP(AT$6,'[1]Precios gasóleo'!$D:$F,3,FALSE)-1) ->  | AU7: =IF($C7<=AU$6,"",VLOOKUP($C7,'[1]Precios gasóleo'!$D:$F,3,FALSE)/VLOOKUP(AU$6,'[1]Precios gasóleo'!$D:$F,3,FALSE)-1) ->  | AV7: =IF($C7<=AV$6,"",VLOOKUP($C7,'[1]Precios gasóleo'!$D:$F,3,FALSE)/VLOOKUP(AV$6,'[1]Precios gasóleo'!$D:$F,3,FALSE)-1) ->  | AW7: =IF($C7<=AW$6,"",VLOOKUP($C7,'[1]Precios gasóleo'!$D:$F,3,FALSE)/VLOOKUP(AW$6,'[1]Precios gasóleo'!$D:$F,3,FALSE)-1) ->  | AX7: =IF($C7<=AX$6,"",VLOOKUP($C7,'[1]Precios gasóleo'!$D:$F,3,FALSE)/VLOOKUP(AX$6,'[1]Precios gasóleo'!$D:$F,3,FALSE)-1) ->  | AY7: =IF($C7<=AY$6,"",VLOOKUP($C7,'[1]Precios gasóleo'!$D:$F,3,FALSE)/VLOOKUP(AY$6,'[1]Precios gasóleo'!$D:$F,3,FALSE)-1) ->  | AZ7: =IF($C7<=AZ$6,"",VLOOKUP($C7,'[1]Precios gasóleo'!$D:$F,3,FALSE)/VLOOKUP(AZ$6,'[1]Precios gasóleo'!$D:$F,3,FALSE)-1) ->  | BA7: =IF($C7<=BA$6,"",VLOOKUP($C7,'[1]Precios gasóleo'!$D:$F,3,FALSE)/VLOOKUP(BA$6,'[1]Precios gasóleo'!$D:$F,3,FALSE)-1) ->  | BB7: =IF($C7<=BB$6,"",VLOOKUP($C7,'[1]Precios gasóleo'!$D:$F,3,FALSE)/VLOOKUP(BB$6,'[1]Precios gasóleo'!$D:$F,3,FALSE)-1) ->  | BC7: =IF($C7<=BC$6,"",VLOOKUP($C7,'[1]Precios gasóleo'!$D:$F,3,FALSE)/VLOOKUP(BC$6,'[1]Precios gasóleo'!$D:$F,3,FALSE)-1) ->  | BD7: =IF($C7<=BD$6,"",VLOOKUP($C7,'[1]Precios gasóleo'!$D:$F,3,FALSE)/VLOOKUP(BD$6,'[1]Precios gasóleo'!$D:$F,3,FALSE)-1) ->  | BE7: =IF($C7<=BE$6,"",VLOOKUP($C7,'[1]Precios gasóleo'!$D:$F,3,FALSE)/VLOOKUP(BE$6,'[1]Precios gasóleo'!$D:$F,3,FALSE)-1) ->  | BF7: =IF($C7<=BF$6,"",VLOOKUP($C7,'[1]Precios gasóleo'!$D:$F,3,FALSE)/VLOOKUP(BF$6,'[1]Precios gasóleo'!$D:$F,3,FALSE)-1) ->  | BG7: =IF($C7<=BG$6,"",VLOOKUP($C7,'[1]Precios gasóleo'!$D:$F,3,FALSE)/VLOOKUP(BG$6,'[1]Precios gasóleo'!$D:$F,3,FALSE)-1) ->  | BH7: =IF($C7<=BH$6,"",VLOOKUP($C7,'[1]Precios gasóleo'!$D:$F,3,FALSE)/VLOOKUP(BH$6,'[1]Precios gasóleo'!$D:$F,3,FALSE)-1) ->  | BI7: =IF($C7<=BI$6,"",VLOOKUP($C7,'[1]Precios gasóleo'!$D:$F,3,FALSE)/VLOOKUP(BI$6,'[1]Precios gasóleo'!$D:$F,3,FALSE)-1) ->  | BJ7: =IF($C7<=BJ$6,"",VLOOKUP($C7,'[1]Precios gasóleo'!$D:$F,3,FALSE)/VLOOKUP(BJ$6,'[1]Precios gasóleo'!$D:$F,3,FALSE)-1) ->  | BK7: =IF($C7<=BK$6,"",VLOOKUP($C7,'[1]Precios gasóleo'!$D:$F,3,FALSE)/VLOOKUP(BK$6,'[1]Precios gasóleo'!$D:$F,3,FALSE)-1) ->  | BL7: =IF($C7<=BL$6,"",VLOOKUP($C7,'[1]Precios gasóleo'!$D:$F,3,FALSE)/VLOOKUP(BL$6,'[1]Precios gasóleo'!$D:$F,3,FALSE)-1) ->  | BM7: =IF($C7<=BM$6,"",VLOOKUP($C7,'[1]Precios gasóleo'!$D:$F,3,FALSE)/VLOOKUP(BM$6,'[1]Precios gasóleo'!$D:$F,3,FALSE)-1) ->  | BN7: =IF($C7<=BN$6,"",VLOOKUP($C7,'[1]Precios gasóleo'!$D:$F,3,FALSE)/VLOOKUP(BN$6,'[1]Precios gasóleo'!$D:$F,3,FALSE)-1) ->  | BO7: =IF($C7<=BO$6,"",VLOOKUP($C7,'[1]Precios gasóleo'!$D:$F,3,FALSE)/VLOOKUP(BO$6,'[1]Precios gasóleo'!$D:$F,3,FALSE)-1) ->  | BP7: =IF($C7<=BP$6,"",VLOOKUP($C7,'[1]Precios gasóleo'!$D:$F,3,FALSE)/VLOOKUP(BP$6,'[1]Precios gasóleo'!$D:$F,3,FALSE)-1) ->  | BQ7: =IF($C7<=BQ$6,"",VLOOKUP($C7,'[1]Precios gasóleo'!$D:$F,3,FALSE)/VLOOKUP(BQ$6,'[1]Precios gasóleo'!$D:$F,3,FALSE)-1) ->  | BR7: =IF($C7<=BR$6,"",VLOOKUP($C7,'[1]Precios gasóleo'!$D:$F,3,FALSE)/VLOOKUP(BR$6,'[1]Precios gasóleo'!$D:$F,3,FALSE)-1) ->  | BS7: =IF($C7<=BS$6,"",VLOOKUP($C7,'[1]Precios gasóleo'!$D:$F,3,FALSE)/VLOOKUP(BS$6,'[1]Precios gasóleo'!$D:$F,3,FALSE)-1) ->  | BT7: =IF($C7<=BT$6,"",VLOOKUP($C7,'[1]Precios gasóleo'!$D:$F,3,FALSE)/VLOOKUP(BT$6,'[1]Precios gasóleo'!$D:$F,3,FALSE)-1) ->  | BU7: =IF($C7<=BU$6,"",VLOOKUP($C7,'[1]Precios gasóleo'!$D:$F,3,FALSE)/VLOOKUP(BU$6,'[1]Precios gasóleo'!$D:$F,3,FALSE)-1) ->  | BV7: =IF($C7<=BV$6,"",VLOOKUP($C7,'[1]Precios gasóleo'!$D:$F,3,FALSE)/VLOOKUP(BV$6,'[1]Precios gasóleo'!$D:$F,3,FALSE)-1) ->  | BW7: =IF($C7<=BW$6,"",VLOOKUP($C7,'[1]Precios gasóleo'!$D:$F,3,FALSE)/VLOOKUP(BW$6,'[1]Precios gasóleo'!$D:$F,3,FALSE)-1) ->  | BX7: =IF($C7<=BX$6,"",VLOOKUP($C7,'[1]Precios gasóleo'!$D:$F,3,FALSE)/VLOOKUP(BX$6,'[1]Precios gasóleo'!$D:$F,3,FALSE)-1) ->  | BY7: =IF($C7<=BY$6,"",VLOOKUP($C7,'[1]Precios gasóleo'!$D:$F,3,FALSE)/VLOOKUP(BY$6,'[1]Precios gasóleo'!$D:$F,3,FALSE)-1) ->  | BZ7: =IF($C7<=BZ$6,"",VLOOKUP($C7,'[1]Precios gasóleo'!$D:$F,3,FALSE)/VLOOKUP(BZ$6,'[1]Precios gasóleo'!$D:$F,3,FALSE)-1) ->  | CA7: =IF($C7<=CA$6,"",VLOOKUP($C7,'[1]Precios gasóleo'!$D:$F,3,FALSE)/VLOOKUP(CA$6,'[1]Precios gasóleo'!$D:$F,3,FALSE)-1) ->  | CB7: =IF($C7<=CB$6,"",VLOOKUP($C7,'[1]Precios gasóleo'!$D:$F,3,FALSE)/VLOOKUP(CB$6,'[1]Precios gasóleo'!$D:$F,3,FALSE)-1) ->  | CC7: =IF($C7<=CC$6,"",VLOOKUP($C7,'[1]Precios gasóleo'!$D:$F,3,FALSE)/VLOOKUP(CC$6,'[1]Precios gasóleo'!$D:$F,3,FALSE)-1) ->  | CD7: =IF($C7<=CD$6,"",VLOOKUP($C7,'[1]Precios gasóleo'!$D:$F,3,FALSE)/VLOOKUP(CD$6,'[1]Precios gasóleo'!$D:$F,3,FALSE)-1) ->  | CE7: =IF($C7<=CE$6,"",VLOOKUP($C7,'[1]Precios gasóleo'!$D:$F,3,FALSE)/VLOOKUP(CE$6,'[1]Precios gasóleo'!$D:$F,3,FALSE)-1) ->  | CF7: =IF($C7<=CF$6,"",VLOOKUP($C7,'[1]Precios gasóleo'!$D:$F,3,FALSE)/VLOOKUP(CF$6,'[1]Precios gasóleo'!$D:$F,3,FALSE)-1) ->  | CG7: =IF($C7<=CG$6,"",VLOOKUP($C7,'[1]Precios gasóleo'!$D:$F,3,FALSE)/VLOOKUP(CG$6,'[1]Precios gasóleo'!$D:$F,3,FALSE)-1) ->  | CH7: =IF($C7<=CH$6,"",VLOOKUP($C7,'[1]Precios gasóleo'!$D:$F,3,FALSE)/VLOOKUP(CH$6,'[1]Precios gasóleo'!$D:$F,3,FALSE)-1) ->  | CI7: =IF($C7<=CI$6,"",VLOOKUP($C7,'[1]Precios gasóleo'!$D:$F,3,FALSE)/VLOOKUP(CI$6,'[1]Precios gasóleo'!$D:$F,3,FALSE)-1) ->  | CJ7: =IF($C7<=CJ$6,"",VLOOKUP($C7,'[1]Precios gasóleo'!$D:$F,3,FALSE)/VLOOKUP(CJ$6,'[1]Precios gasóleo'!$D:$F,3,FALSE)-1) ->  | CK7: =IF($C7<=CK$6,"",VLOOKUP($C7,'[1]Precios gasóleo'!$D:$F,3,FALSE)/VLOOKUP(CK$6,'[1]Precios gasóleo'!$D:$F,3,FALSE)-1) ->  | CL7: =IF($C7<=CL$6,"",VLOOKUP($C7,'[1]Precios gasóleo'!$D:$F,3,FALSE)/VLOOKUP(CL$6,'[1]Precios gasóleo'!$D:$F,3,FALSE)-1) ->  | CM7: =IF($C7<=CM$6,"",VLOOKUP($C7,'[1]Precios gasóleo'!$D:$F,3,FALSE)/VLOOKUP(CM$6,'[1]Precios gasóleo'!$D:$F,3,FALSE)-1) ->  | CN7: =IF($C7<=CN$6,"",VLOOKUP($C7,'[1]Precios gasóleo'!$D:$F,3,FALSE)/VLOOKUP(CN$6,'[1]Precios gasóleo'!$D:$F,3,FALSE)-1) ->  | CO7: =IF($C7<=CO$6,"",VLOOKUP($C7,'[1]Precios gasóleo'!$D:$F,3,FALSE)/VLOOKUP(CO$6,'[1]Precios gasóleo'!$D:$F,3,FALSE)-1) ->  | CP7: =IF($C7<=CP$6,"",VLOOKUP($C7,'[1]Precios gasóleo'!$D:$F,3,FALSE)/VLOOKUP(CP$6,'[1]Precios gasóleo'!$D:$F,3,FALSE)-1) ->  | CQ7: =IF($C7<=CQ$6,"",VLOOKUP($C7,'[1]Precios gasóleo'!$D:$F,3,FALSE)/VLOOKUP(CQ$6,'[1]Precios gasóleo'!$D:$F,3,FALSE)-1) ->  | CR7: =IF($C7<=CR$6,"",VLOOKUP($C7,'[1]Precios gasóleo'!$D:$F,3,FALSE)/VLOOKUP(CR$6,'[1]Precios gasóleo'!$D:$F,3,FALSE)-1) ->  | CS7: =IF($C7<=CS$6,"",VLOOKUP($C7,'[1]Precios gasóleo'!$D:$F,3,FALSE)/VLOOKUP(CS$6,'[1]Precios gasóleo'!$D:$F,3,FALSE)-1) ->  | CT7: =IF($C7<=CT$6,"",VLOOKUP($C7,'[1]Precios gasóleo'!$D:$F,3,FALSE)/VLOOKUP(CT$6,'[1]Precios gasóleo'!$D:$F,3,FALSE)-1) ->  | CU7: =IF($C7<=CU$6,"",VLOOKUP($C7,'[1]Precios gasóleo'!$D:$F,3,FALSE)/VLOOKUP(CU$6,'[1]Precios gasóleo'!$D:$F,3,FALSE)-1) ->  | CV7: =IF($C7<=CV$6,"",VLOOKUP($C7,'[1]Precios gasóleo'!$D:$F,3,FALSE)/VLOOKUP(CV$6,'[1]Precios gasóleo'!$D:$F,3,FALSE)-1) ->  | CW7: =IF($C7<=CW$6,"",VLOOKUP($C7,'[1]Precios gasóleo'!$D:$F,3,FALSE)/VLOOKUP(CW$6,'[1]Precios gasóleo'!$D:$F,3,FALSE)-1) ->  | CX7: =IF($C7<=CX$6,"",VLOOKUP($C7,'[1]Precios gasóleo'!$D:$F,3,FALSE)/VLOOKUP(CX$6,'[1]Precios gasóleo'!$D:$F,3,FALSE)-1) ->  | CY7: =IF($C7<=CY$6,"",VLOOKUP($C7,'[1]Precios gasóleo'!$D:$F,3,FALSE)/VLOOKUP(CY$6,'[1]Precios gasóleo'!$D:$F,3,FALSE)-1) ->  | CZ7: =IF($C7<=CZ$6,"",VLOOKUP($C7,'[1]Precios gasóleo'!$D:$F,3,FALSE)/VLOOKUP(CZ$6,'[1]Precios gasóleo'!$D:$F,3,FALSE)-1) ->  | DA7: =IF($C7<=DA$6,"",VLOOKUP($C7,'[1]Precios gasóleo'!$D:$F,3,FALSE)/VLOOKUP(DA$6,'[1]Precios gasóleo'!$D:$F,3,FALSE)-1) ->  | DB7: =IF($C7<=DB$6,"",VLOOKUP($C7,'[1]Precios gasóleo'!$D:$F,3,FALSE)/VLOOKUP(DB$6,'[1]Precios gasóleo'!$D:$F,3,FALSE)-1) ->  | DC7: =IF($C7<=DC$6,"",VLOOKUP($C7,'[1]Precios gasóleo'!$D:$F,3,FALSE)/VLOOKUP(DC$6,'[1]Precios gasóleo'!$D:$F,3,FALSE)-1) ->  | DD7: =IF($C7<=DD$6,"",VLOOKUP($C7,'[1]Precios gasóleo'!$D:$F,3,FALSE)/VLOOKUP(DD$6,'[1]Precios gasóleo'!$D:$F,3,FALSE)-1) ->  | DE7: =IF($C7<=DE$6,"",VLOOKUP($C7,'[1]Precios gasóleo'!$D:$F,3,FALSE)/VLOOKUP(DE$6,'[1]Precios gasóleo'!$D:$F,3,FALSE)-1) ->  | DF7: =IF($C7<=DF$6,"",VLOOKUP($C7,'[1]Precios gasóleo'!$D:$F,3,FALSE)/VLOOKUP(DF$6,'[1]Precios gasóleo'!$D:$F,3,FALSE)-1) ->  | DG7: =IF($C7<=DG$6,"",VLOOKUP($C7,'[1]Precios gasóleo'!$D:$F,3,FALSE)/VLOOKUP(DG$6,'[1]Precios gasóleo'!$D:$F,3,FALSE)-1) ->  | DH7: =IF($C7<=DH$6,"",VLOOKUP($C7,'[1]Precios gasóleo'!$D:$F,3,FALSE)/VLOOKUP(DH$6,'[1]Precios gasóleo'!$D:$F,3,FALSE)-1) ->  | DI7: =IF($C7<=DI$6,"",VLOOKUP($C7,'[1]Precios gasóleo'!$D:$F,3,FALSE)/VLOOKUP(DI$6,'[1]Precios gasóleo'!$D:$F,3,FALSE)-1) ->  | DJ7: =IF($C7<=DJ$6,"",VLOOKUP($C7,'[1]Precios gasóleo'!$D:$F,3,FALSE)/VLOOKUP(DJ$6,'[1]Precios gasóleo'!$D:$F,3,FALSE)-1) ->  | DK7: =IF($C7<=DK$6,"",VLOOKUP($C7,'[1]Precios gasóleo'!$D:$F,3,FALSE)/VLOOKUP(DK$6,'[1]Precios gasóleo'!$D:$F,3,FALSE)-1) ->  | DL7: =IF($C7<=DL$6,"",VLOOKUP($C7,'[1]Precios gasóleo'!$D:$F,3,FALSE)/VLOOKUP(DL$6,'[1]Precios gasóleo'!$D:$F,3,FALSE)-1) ->  | DM7: =IF($C7<=DM$6,"",VLOOKUP($C7,'[1]Precios gasóleo'!$D:$F,3,FALSE)/VLOOKUP(DM$6,'[1]Precios gasóleo'!$D:$F,3,FALSE)-1) ->  | DN7: =IF($C7<=DN$6,"",VLOOKUP($C7,'[1]Precios gasóleo'!$D:$F,3,FALSE)/VLOOKUP(DN$6,'[1]Precios gasóleo'!$D:$F,3,FALSE)-1) ->  | DO7: =IF($C7<=DO$6,"",VLOOKUP($C7,'[1]Precios gasóleo'!$D:$F,3,FALSE)/VLOOKUP(DO$6,'[1]Precios gasóleo'!$D:$F,3,FALSE)-1) ->  | DP7: =IF($C7<=DP$6,"",VLOOKUP($C7,'[1]Precios gasóleo'!$D:$F,3,FALSE)/VLOOKUP(DP$6,'[1]Precios gasóleo'!$D:$F,3,FALSE)-1) ->  | DQ7: =IF($C7<=DQ$6,"",VLOOKUP($C7,'[1]Precios gasóleo'!$D:$F,3,FALSE)/VLOOKUP(DQ$6,'[1]Precios gasóleo'!$D:$F,3,FALSE)-1) ->  | DR7: =IF($C7<=DR$6,"",VLOOKUP($C7,'[1]Precios gasóleo'!$D:$F,3,FALSE)/VLOOKUP(DR$6,'[1]Precios gasóleo'!$D:$F,3,FALSE)-1) ->  | DS7: =IF($C7<=DS$6,"",VLOOKUP($C7,'[1]Precios gasóleo'!$D:$F,3,FALSE)/VLOOKUP(DS$6,'[1]Precios gasóleo'!$D:$F,3,FALSE)-1) ->  | DT7: =IF($C7<=DT$6,"",VLOOKUP($C7,'[1]Precios gasóleo'!$D:$F,3,FALSE)/VLOOKUP(DT$6,'[1]Precios gasóleo'!$D:$F,3,FALSE)-1) ->  | DU7: =IF($C7<=DU$6,"",VLOOKUP($C7,'[1]Precios gasóleo'!$D:$F,3,FALSE)/VLOOKUP(DU$6,'[1]Precios gasóleo'!$D:$F,3,FALSE)-1) ->  | DV7: =IF($C7<=DV$6,"",VLOOKUP($C7,'[1]Precios gasóleo'!$D:$F,3,FALSE)/VLOOKUP(DV$6,'[1]Precios gasóleo'!$D:$F,3,FALSE)-1) ->  | DW7: =IF($C7<=DW$6,"",VLOOKUP($C7,'[1]Precios gasóleo'!$D:$F,3,FALSE)/VLOOKUP(DW$6,'[1]Precios gasóleo'!$D:$F,3,FALSE)-1) ->  | DX7: =IF($C7<=DX$6,"",VLOOKUP($C7,'[1]Precios gasóleo'!$D:$F,3,FALSE)/VLOOKUP(DX$6,'[1]Precios gasóleo'!$D:$F,3,FALSE)-1) ->  | DY7: =IF($C7<=DY$6,"",VLOOKUP($C7,'[1]Precios gasóleo'!$D:$F,3,FALSE)/VLOOKUP(DY$6,'[1]Precios gasóleo'!$D:$F,3,FALSE)-1) ->  | DZ7: =IF($C7<=DZ$6,"",VLOOKUP($C7,'[1]Precios gasóleo'!$D:$F,3,FALSE)/VLOOKUP(DZ$6,'[1]Precios gasóleo'!$D:$F,3,FALSE)-1) ->  | EA7: =IF($C7<=EA$6,"",VLOOKUP($C7,'[1]Precios gasóleo'!$D:$F,3,FALSE)/VLOOKUP(EA$6,'[1]Precios gasóleo'!$D:$F,3,FALSE)-1) ->  | EB7: =IF($C7<=EB$6,"",VLOOKUP($C7,'[1]Precios gasóleo'!$D:$F,3,FALSE)/VLOOKUP(EB$6,'[1]Precios gasóleo'!$D:$F,3,FALSE)-1) ->  | EC7: =IF($C7<=EC$6,"",VLOOKUP($C7,'[1]Precios gasóleo'!$D:$F,3,FALSE)/VLOOKUP(EC$6,'[1]Precios gasóleo'!$D:$F,3,FALSE)-1) ->  | ED7: =IF($C7<=ED$6,"",VLOOKUP($C7,'[1]Precios gasóleo'!$D:$F,3,FALSE)/VLOOKUP(ED$6,'[1]Precios gasóleo'!$D:$F,3,FALSE)-1) ->  | EE7: =IF($C7<=EE$6,"",VLOOKUP($C7,'[1]Precios gasóleo'!$D:$F,3,FALSE)/VLOOKUP(EE$6,'[1]Precios gasóleo'!$D:$F,3,FALSE)-1) ->  | EF7: =IF($C7<=EF$6,"",VLOOKUP($C7,'[1]Precios gasóleo'!$D:$F,3,FALSE)/VLOOKUP(EF$6,'[1]Precios gasóleo'!$D:$F,3,FALSE)-1) ->  | EG7: =IF($C7<=EG$6,"",VLOOKUP($C7,'[1]Precios gasóleo'!$D:$F,3,FALSE)/VLOOKUP(EG$6,'[1]Precios gasóleo'!$D:$F,3,FALSE)-1) ->  | EH7: =C7 -> 2020-01-14
C8: 2020-01-21 | D8: =IF($C8<=D$6,"",VLOOKUP($C8,'[1]Precios gasóleo'!$D:$F,3,FALSE)/VLOOKUP(D$6,'[1]Precios gasóleo'!$D:$F,3,FALSE)-1) -> -0.01433868974 | E8: =IF($C8<=E$6,"",VLOOKUP($C8,'[1]Precios gasóleo'!$D:$F,3,FALSE)/VLOOKUP(E$6,'[1]Precios gasóleo'!$D:$F,3,FALSE)-1) -> -0.008511286881 | F8: =IF($C8<=F$6,"",VLOOKUP($C8,'[1]Precios gasóleo'!$D:$F,3,FALSE)/VLOOKUP(F$6,'[1]Precios gasóleo'!$D:$F,3,FALSE)-1) ->  | G8: =IF($C8<=G$6,"",VLOOKUP($C8,'[1]Precios gasóleo'!$D:$F,3,FALSE)/VLOOKUP(G$6,'[1]Precios gasóleo'!$D:$F,3,FALSE)-1) ->  | H8: =IF($C8<=H$6,"",VLOOKUP($C8,'[1]Precios gasóleo'!$D:$F,3,FALSE)/VLOOKUP(H$6,'[1]Precios gasóleo'!$D:$F,3,FALSE)-1) ->  | I8: =IF($C8<=I$6,"",VLOOKUP($C8,'[1]Precios gasóleo'!$D:$F,3,FALSE)/VLOOKUP(I$6,'[1]Precios gasóleo'!$D:$F,3,FALSE)-1) ->  | J8: =IF($C8<=J$6,"",VLOOKUP($C8,'[1]Precios gasóleo'!$D:$F,3,FALSE)/VLOOKUP(J$6,'[1]Precios gasóleo'!$D:$F,3,FALSE)-1) ->  | K8: =IF($C8<=K$6,"",VLOOKUP($C8,'[1]Precios gasóleo'!$D:$F,3,FALSE)/VLOOKUP(K$6,'[1]Precios gasóleo'!$D:$F,3,FALSE)-1) ->  | L8: =IF($C8<=L$6,"",VLOOKUP($C8,'[1]Precios gasóleo'!$D:$F,3,FALSE)/VLOOKUP(L$6,'[1]Precios gasóleo'!$D:$F,3,FALSE)-1) ->  | M8: =IF($C8<=M$6,"",VLOOKUP($C8,'[1]Precios gasóleo'!$D:$F,3,FALSE)/VLOOKUP(M$6,'[1]Precios gasóleo'!$D:$F,3,FALSE)-1) ->  | N8: =IF($C8<=N$6,"",VLOOKUP($C8,'[1]Precios gasóleo'!$D:$F,3,FALSE)/VLOOKUP(N$6,'[1]Precios gasóleo'!$D:$F,3,FALSE)-1) ->  | O8: =IF($C8<=O$6,"",VLOOKUP($C8,'[1]Precios gasóleo'!$D:$F,3,FALSE)/VLOOKUP(O$6,'[1]Precios gasóleo'!$D:$F,3,FALSE)-1) ->  | P8: =IF($C8<=P$6,"",VLOOKUP($C8,'[1]Precios gasóleo'!$D:$F,3,FALSE)/VLOOKUP(P$6,'[1]Precios gasóleo'!$D:$F,3,FALSE)-1) ->  | Q8: =IF($C8<=Q$6,"",VLOOKUP($C8,'[1]Precios gasóleo'!$D:$F,3,FALSE)/VLOOKUP(Q$6,'[1]Precios gasóleo'!$D:$F,3,FALSE)-1) ->  | R8: =IF($C8<=R$6,"",VLOOKUP($C8,'[1]Precios gasóleo'!$D:$F,3,FALSE)/VLOOKUP(R$6,'[1]Precios gasóleo'!$D:$F,3,FALSE)-1) ->  | S8: =IF($C8<=S$6,"",VLOOKUP($C8,'[1]Precios gasóleo'!$D:$F,3,FALSE)/VLOOKUP(S$6,'[1]Precios gasóleo'!$D:$F,3,FALSE)-1) ->  | T8: =IF($C8<=T$6,"",VLOOKUP($C8,'[1]Precios gasóleo'!$D:$F,3,FALSE)/VLOOKUP(T$6,'[1]Precios gasóleo'!$D:$F,3,FALSE)-1) ->  | U8: =IF($C8<=U$6,"",VLOOKUP($C8,'[1]Precios gasóleo'!$D:$F,3,FALSE)/VLOOKUP(U$6,'[1]Precios gasóleo'!$D:$F,3,FALSE)-1) ->  | V8: =IF($C8<=V$6,"",VLOOKUP($C8,'[1]Precios gasóleo'!$D:$F,3,FALSE)/VLOOKUP(V$6,'[1]Precios gasóleo'!$D:$F,3,FALSE)-1) ->  | W8: =IF($C8<=W$6,"",VLOOKUP($C8,'[1]Precios gasóleo'!$D:$F,3,FALSE)/VLOOKUP(W$6,'[1]Precios gasóleo'!$D:$F,3,FALSE)-1) ->  | X8: =IF($C8<=X$6,"",VLOOKUP($C8,'[1]Precios gasóleo'!$D:$F,3,FALSE)/VLOOKUP(X$6,'[1]Precios gasóleo'!$D:$F,3,FALSE)-1) ->  | Y8: =IF($C8<=Y$6,"",VLOOKUP($C8,'[1]Precios gasóleo'!$D:$F,3,FALSE)/VLOOKUP(Y$6,'[1]Precios gasóleo'!$D:$F,3,FALSE)-1) ->  | Z8: =IF($C8<=Z$6,"",VLOOKUP($C8,'[1]Precios gasóleo'!$D:$F,3,FALSE)/VLOOKUP(Z$6,'[1]Precios gasóleo'!$D:$F,3,FALSE)-1) ->  | AA8: =IF($C8<=AA$6,"",VLOOKUP($C8,'[1]Precios gasóleo'!$D:$F,3,FALSE)/VLOOKUP(AA$6,'[1]Precios gasóleo'!$D:$F,3,FALSE)-1) ->  | AB8: =IF($C8<=AB$6,"",VLOOKUP($C8,'[1]Precios gasóleo'!$D:$F,3,FALSE)/VLOOKUP(AB$6,'[1]Precios gasóleo'!$D:$F,3,FALSE)-1) ->  | AC8: =IF($C8<=AC$6,"",VLOOKUP($C8,'[1]Precios gasóleo'!$D:$F,3,FALSE)/VLOOKUP(AC$6,'[1]Precios gasóleo'!$D:$F,3,FALSE)-1) ->  | AD8: =IF($C8<=AD$6,"",VLOOKUP($C8,'[1]Precios gasóleo'!$D:$F,3,FALSE)/VLOOKUP(AD$6,'[1]Precios gasóleo'!$D:$F,3,FALSE)-1) ->  | AE8: =IF($C8<=AE$6,"",VLOOKUP($C8,'[1]Precios gasóleo'!$D:$F,3,FALSE)/VLOOKUP(AE$6,'[1]Precios gasóleo'!$D:$F,3,FALSE)-1) ->  | AF8: =IF($C8<=AF$6,"",VLOOKUP($C8,'[1]Precios gasóleo'!$D:$F,3,FALSE)/VLOOKUP(AF$6,'[1]Precios gasóleo'!$D:$F,3,FALSE)-1) ->  | AG8: =IF($C8<=AG$6,"",VLOOKUP($C8,'[1]Precios gasóleo'!$D:$F,3,FALSE)/VLOOKUP(AG$6,'[1]Precios gasóleo'!$D:$F,3,FALSE)-1) ->  | AH8: =IF($C8<=AH$6,"",VLOOKUP($C8,'[1]Precios gasóleo'!$D:$F,3,FALSE)/VLOOKUP(AH$6,'[1]Precios gasóleo'!$D:$F,3,FALSE)-1) ->  | AI8: =IF($C8<=AI$6,"",VLOOKUP($C8,'[1]Precios gasóleo'!$D:$F,3,FALSE)/VLOOKUP(AI$6,'[1]Precios gasóleo'!$D:$F,3,FALSE)-1) ->  | AJ8: =IF($C8<=AJ$6,"",VLOOKUP($C8,'[1]Precios gasóleo'!$D:$F,3,FALSE)/VLOOKUP(AJ$6,'[1]Precios gasóleo'!$D:$F,3,FALSE)-1) ->  | AK8: =IF($C8<=AK$6,"",VLOOKUP($C8,'[1]Precios gasóleo'!$D:$F,3,FALSE)/VLOOKUP(AK$6,'[1]Precios gasóleo'!$D:$F,3,FALSE)-1) ->  | AL8: =IF($C8<=AL$6,"",VLOOKUP($C8,'[1]Precios gasóleo'!$D:$F,3,FALSE)/VLOOKUP(AL$6,'[1]Precios gasóleo'!$D:$F,3,FALSE)-1) ->  | AM8: =IF($C8<=AM$6,"",VLOOKUP($C8,'[1]Precios gasóleo'!$D:$F,3,FALSE)/VLOOKUP(AM$6,'[1]Precios gasóleo'!$D:$F,3,FALSE)-1) ->  | AN8: =IF($C8<=AN$6,"",VLOOKUP($C8,'[1]Precios gasóleo'!$D:$F,3,FALSE)/VLOOKUP(AN$6,'[1]Precios gasóleo'!$D:$F,3,FALSE)-1) ->  | AO8: =IF($C8<=AO$6,"",VLOOKUP($C8,'[1]Precios gasóleo'!$D:$F,3,FALSE)/VLOOKUP(AO$6,'[1]Precios gasóleo'!$D:$F,3,FALSE)-1) ->  | AP8: =IF($C8<=AP$6,"",VLOOKUP($C8,'[1]Precios gasóleo'!$D:$F,3,FALSE)/VLOOKUP(AP$6,'[1]Precios gasóleo'!$D:$F,3,FALSE)-1) ->  | AQ8: =IF($C8<=AQ$6,"",VLOOKUP($C8,'[1]Precios gasóleo'!$D:$F,3,FALSE)/VLOOKUP(AQ$6,'[1]Precios gasóleo'!$D:$F,3,FALSE)-1) ->  | AR8: =IF($C8<=AR$6,"",VLOOKUP($C8,'[1]Precios gasóleo'!$D:$F,3,FALSE)/VLOOKUP(AR$6,'[1]Precios gasóleo'!$D:$F,3,FALSE)-1) ->  | AS8: =IF($C8<=AS$6,"",VLOOKUP($C8,'[1]Precios gasóleo'!$D:$F,3,FALSE)/VLOOKUP(AS$6,'[1]Precios gasóleo'!$D:$F,3,FALSE)-1) ->  | AT8: =IF($C8<=AT$6,"",VLOOKUP($C8,'[1]Precios gasóleo'!$D:$F,3,FALSE)/VLOOKUP(AT$6,'[1]Precios gasóleo'!$D:$F,3,FALSE)-1) ->  | AU8: =IF($C8<=AU$6,"",VLOOKUP($C8,'[1]Precios gasóleo'!$D:$F,3,FALSE)/VLOOKUP(AU$6,'[1]Precios gasóleo'!$D:$F,3,FALSE)-1) ->  | AV8: =IF($C8<=AV$6,"",VLOOKUP($C8,'[1]Precios gasóleo'!$D:$F,3,FALSE)/VLOOKUP(AV$6,'[1]Precios gasóleo'!$D:$F,3,FALSE)-1) ->  | AW8: =IF($C8<=AW$6,"",VLOOKUP($C8,'[1]Precios gasóleo'!$D:$F,3,FALSE)/VLOOKUP(AW$6,'[1]Precios gasóleo'!$D:$F,3,FALSE)-1) ->  | AX8: =IF($C8<=AX$6,"",VLOOKUP($C8,'[1]Precios gasóleo'!$D:$F,3,FALSE)/VLOOKUP(AX$6,'[1]Precios gasóleo'!$D:$F,3,FALSE)-1) ->  | AY8: =IF($C8<=AY$6,"",VLOOKUP($C8,'[1]Precios gasóleo'!$D:$F,3,FALSE)/VLOOKUP(AY$6,'[1]Precios gasóleo'!$D:$F,3,FALSE)-1) ->  | AZ8: =IF($C8<=AZ$6,"",VLOOKUP($C8,'[1]Precios gasóleo'!$D:$F,3,FALSE)/VLOOKUP(AZ$6,'[1]Precios gasóleo'!$D:$F,3,FALSE)-1) ->  | BA8: =IF($C8<=BA$6,"",VLOOKUP($C8,'[1]Precios gasóleo'!$D:$F,3,FALSE)/VLOOKUP(BA$6,'[1]Precios gasóleo'!$D:$F,3,FALSE)-1) ->  | BB8: =IF($C8<=BB$6,"",VLOOKUP($C8,'[1]Precios gasóleo'!$D:$F,3,FALSE)/VLOOKUP(BB$6,'[1]Precios gasóleo'!$D:$F,3,FALSE)-1) ->  | BC8: =IF($C8<=BC$6,"",VLOOKUP($C8,'[1]Precios gasóleo'!$D:$F,3,FALSE)/VLOOKUP(BC$6,'[1]Precios gasóleo'!$D:$F,3,FALSE)-1) ->  | BD8: =IF($C8<=BD$6,"",VLOOKUP($C8,'[1]Precios gasóleo'!$D:$F,3,FALSE)/VLOOKUP(BD$6,'[1]Precios gasóleo'!$D:$F,3,FALSE)-1) ->  | BE8: =IF($C8<=BE$6,"",VLOOKUP($C8,'[1]Precios gasóleo'!$D:$F,3,FALSE)/VLOOKUP(BE$6,'[1]Precios gasóleo'!$D:$F,3,FALSE)-1) ->  | BF8: =IF($C8<=BF$6,"",VLOOKUP($C8,'[1]Precios gasóleo'!$D:$F,3,FALSE)/VLOOKUP(BF$6,'[1]Precios gasóleo'!$D:$F,3,FALSE)-1) ->  | BG8: =IF($C8<=BG$6,"",VLOOKUP($C8,'[1]Precios gasóleo'!$D:$F,3,FALSE)/VLOOKUP(BG$6,'[1]Precios gasóleo'!$D:$F,3,FALSE)-1) ->  | BH8: =IF($C8<=BH$6,"",VLOOKUP($C8,'[1]Precios gasóleo'!$D:$F,3,FALSE)/VLOOKUP(BH$6,'[1]Precios gasóleo'!$D:$F,3,FALSE)-1) ->  | BI8: =IF($C8<=BI$6,"",VLOOKUP($C8,'[1]Precios gasóleo'!$D:$F,3,FALSE)/VLOOKUP(BI$6,'[1]Precios gasóleo'!$D:$F,3,FALSE)-1) ->  | BJ8: =IF($C8<=BJ$6,"",VLOOKUP($C8,'[1]Precios gasóleo'!$D:$F,3,FALSE)/VLOOKUP(BJ$6,'[1]Precios gasóleo'!$D:$F,3,FALSE)-1) ->  | BK8: =IF($C8<=BK$6,"",VLOOKUP($C8,'[1]Precios gasóleo'!$D:$F,3,FALSE)/VLOOKUP(BK$6,'[1]Precios gasóleo'!$D:$F,3,FALSE)-1) ->  | BL8: =IF($C8<=BL$6,"",VLOOKUP($C8,'[1]Precios gasóleo'!$D:$F,3,FALSE)/VLOOKUP(BL$6,'[1]Precios gasóleo'!$D:$F,3,FALSE)-1) ->  | BM8: =IF($C8<=BM$6,"",VLOOKUP($C8,'[1]Precios gasóleo'!$D:$F,3,FALSE)/VLOOKUP(BM$6,'[1]Precios gasóleo'!$D:$F,3,FALSE)-1) ->  | BN8: =IF($C8<=BN$6,"",VLOOKUP($C8,'[1]Precios gasóleo'!$D:$F,3,FALSE)/VLOOKUP(BN$6,'[1]Precios gasóleo'!$D:$F,3,FALSE)-1) ->  | BO8: =IF($C8<=BO$6,"",VLOOKUP($C8,'[1]Precios gasóleo'!$D:$F,3,FALSE)/VLOOKUP(BO$6,'[1]Precios gasóleo'!$D:$F,3,FALSE)-1) ->  | BP8: =IF($C8<=BP$6,"",VLOOKUP($C8,'[1]Precios gasóleo'!$D:$F,3,FALSE)/VLOOKUP(BP$6,'[1]Precios gasóleo'!$D:$F,3,FALSE)-1) ->  | BQ8: =IF($C8<=BQ$6,"",VLOOKUP($C8,'[1]Precios gasóleo'!$D:$F,3,FALSE)/VLOOKUP(BQ$6,'[1]Precios gasóleo'!$D:$F,3,FALSE)-1) ->  | BR8: =IF($C8<=BR$6,"",VLOOKUP($C8,'[1]Precios gasóleo'!$D:$F,3,FALSE)/VLOOKUP(BR$6,'[1]Precios gasóleo'!$D:$F,3,FALSE)-1) ->  | BS8: =IF($C8<=BS$6,"",VLOOKUP($C8,'[1]Precios gasóleo'!$D:$F,3,FALSE)/VLOOKUP(BS$6,'[1]Precios gasóleo'!$D:$F,3,FALSE)-1) ->  | BT8: =IF($C8<=BT$6,"",VLOOKUP($C8,'[1]Precios gasóleo'!$D:$F,3,FALSE)/VLOOKUP(BT$6,'[1]Precios gasóleo'!$D:$F,3,FALSE)-1) ->  | BU8: =IF($C8<=BU$6,"",VLOOKUP($C8,'[1]Precios gasóleo'!$D:$F,3,FALSE)/VLOOKUP(BU$6,'[1]Precios gasóleo'!$D:$F,3,FALSE)-1) ->  | BV8: =IF($C8<=BV$6,"",VLOOKUP($C8,'[1]Precios gasóleo'!$D:$F,3,FALSE)/VLOOKUP(BV$6,'[1]Precios gasóleo'!$D:$F,3,FALSE)-1) ->  | BW8: =IF($C8<=BW$6,"",VLOOKUP($C8,'[1]Precios gasóleo'!$D:$F,3,FALSE)/VLOOKUP(BW$6,'[1]Precios gasóleo'!$D:$F,3,FALSE)-1) ->  | BX8: =IF($C8<=BX$6,"",VLOOKUP($C8,'[1]Precios gasóleo'!$D:$F,3,FALSE)/VLOOKUP(BX$6,'[1]Precios gasóleo'!$D:$F,3,FALSE)-1) ->  | BY8: =IF($C8<=BY$6,"",VLOOKUP($C8,'[1]Precios gasóleo'!$D:$F,3,FALSE)/VLOOKUP(BY$6,'[1]Precios gasóleo'!$D:$F,3,FALSE)-1) ->  | BZ8: =IF($C8<=BZ$6,"",VLOOKUP($C8,'[1]Precios gasóleo'!$D:$F,3,FALSE)/VLOOKUP(BZ$6,'[1]Precios gasóleo'!$D:$F,3,FALSE)-1) ->  | CA8: =IF($C8<=CA$6,"",VLOOKUP($C8,'[1]Precios gasóleo'!$D:$F,3,FALSE)/VLOOKUP(CA$6,'[1]Precios gasóleo'!$D:$F,3,FALSE)-1) ->  | CB8: =IF($C8<=CB$6,"",VLOOKUP($C8,'[1]Precios gasóleo'!$D:$F,3,FALSE)/VLOOKUP(CB$6,'[1]Precios gasóleo'!$D:$F,3,FALSE)-1) ->  | CC8: =IF($C8<=CC$6,"",VLOOKUP($C8,'[1]Precios gasóleo'!$D:$F,3,FALSE)/VLOOKUP(CC$6,'[1]Precios gasóleo'!$D:$F,3,FALSE)-1) ->  | CD8: =IF($C8<=CD$6,"",VLOOKUP($C8,'[1]Precios gasóleo'!$D:$F,3,FALSE)/VLOOKUP(CD$6,'[1]Precios gasóleo'!$D:$F,3,FALSE)-1) ->  | CE8: =IF($C8<=CE$6,"",VLOOKUP($C8,'[1]Precios gasóleo'!$D:$F,3,FALSE)/VLOOKUP(CE$6,'[1]Precios gasóleo'!$D:$F,3,FALSE)-1) ->  | CF8: =IF($C8<=CF$6,"",VLOOKUP($C8,'[1]Precios gasóleo'!$D:$F,3,FALSE)/VLOOKUP(CF$6,'[1]Precios gasóleo'!$D:$F,3,FALSE)-1) ->  | CG8: =IF($C8<=CG$6,"",VLOOKUP($C8,'[1]Precios gasóleo'!$D:$F,3,FALSE)/VLOOKUP(CG$6,'[1]Precios gasóleo'!$D:$F,3,FALSE)-1) ->  | CH8: =IF($C8<=CH$6,"",VLOOKUP($C8,'[1]Precios gasóleo'!$D:$F,3,FALSE)/VLOOKUP(CH$6,'[1]Precios gasóleo'!$D:$F,3,FALSE)-1) ->  | CI8: =IF($C8<=CI$6,"",VLOOKUP($C8,'[1]Precios gasóleo'!$D:$F,3,FALSE)/VLOOKUP(CI$6,'[1]Precios gasóleo'!$D:$F,3,FALSE)-1) ->  | CJ8: =IF($C8<=CJ$6,"",VLOOKUP($C8,'[1]Precios gasóleo'!$D:$F,3,FALSE)/VLOOKUP(CJ$6,'[1]Precios gasóleo'!$D:$F,3,FALSE)-1) ->  | CK8: =IF($C8<=CK$6,"",VLOOKUP($C8,'[1]Precios gasóleo'!$D:$F,3,FALSE)/VLOOKUP(CK$6,'[1]Precios gasóleo'!$D:$F,3,FALSE)-1) ->  | CL8: =IF($C8<=CL$6,"",VLOOKUP($C8,'[1]Precios gasóleo'!$D:$F,3,FALSE)/VLOOKUP(CL$6,'[1]Precios gasóleo'!$D:$F,3,FALSE)-1) ->  | CM8: =IF($C8<=CM$6,"",VLOOKUP($C8,'[1]Precios gasóleo'!$D:$F,3,FALSE)/VLOOKUP(CM$6,'[1]Precios gasóleo'!$D:$F,3,FALSE)-1) ->  | CN8: =IF($C8<=CN$6,"",VLOOKUP($C8,'[1]Precios gasóleo'!$D:$F,3,FALSE)/VLOOKUP(CN$6,'[1]Precios gasóleo'!$D:$F,3,FALSE)-1) ->  | CO8: =IF($C8<=CO$6,"",VLOOKUP($C8,'[1]Precios gasóleo'!$D:$F,3,FALSE)/VLOOKUP(CO$6,'[1]Precios gasóleo'!$D:$F,3,FALSE)-1) ->  | CP8: =IF($C8<=CP$6,"",VLOOKUP($C8,'[1]Precios gasóleo'!$D:$F,3,FALSE)/VLOOKUP(CP$6,'[1]Precios gasóleo'!$D:$F,3,FALSE)-1) ->  | CQ8: =IF($C8<=CQ$6,"",VLOOKUP($C8,'[1]Precios gasóleo'!$D:$F,3,FALSE)/VLOOKUP(CQ$6,'[1]Precios gasóleo'!$D:$F,3,FALSE)-1) ->  | CR8: =IF($C8<=CR$6,"",VLOOKUP($C8,'[1]Precios gasóleo'!$D:$F,3,FALSE)/VLOOKUP(CR$6,'[1]Precios gasóleo'!$D:$F,3,FALSE)-1) ->  | CS8: =IF($C8<=CS$6,"",VLOOKUP($C8,'[1]Precios gasóleo'!$D:$F,3,FALSE)/VLOOKUP(CS$6,'[1]Precios gasóleo'!$D:$F,3,FALSE)-1) ->  | CT8: =IF($C8<=CT$6,"",VLOOKUP($C8,'[1]Precios gasóleo'!$D:$F,3,FALSE)/VLOOKUP(CT$6,'[1]Precios gasóleo'!$D:$F,3,FALSE)-1) ->  | CU8: =IF($C8<=CU$6,"",VLOOKUP($C8,'[1]Precios gasóleo'!$D:$F,3,FALSE)/VLOOKUP(CU$6,'[1]Precios gasóleo'!$D:$F,3,FALSE)-1) ->  | CV8: =IF($C8<=CV$6,"",VLOOKUP($C8,'[1]Precios gasóleo'!$D:$F,3,FALSE)/VLOOKUP(CV$6,'[1]Precios gasóleo'!$D:$F,3,FALSE)-1) ->  | CW8: =IF($C8<=CW$6,"",VLOOKUP($C8,'[1]Precios gasóleo'!$D:$F,3,FALSE)/VLOOKUP(CW$6,'[1]Precios gasóleo'!$D:$F,3,FALSE)-1) ->  | CX8: =IF($C8<=CX$6,"",VLOOKUP($C8,'[1]Precios gasóleo'!$D:$F,3,FALSE)/VLOOKUP(CX$6,'[1]Precios gasóleo'!$D:$F,3,FALSE)-1) ->  | CY8: =IF($C8<=CY$6,"",VLOOKUP($C8,'[1]Precios gasóleo'!$D:$F,3,FALSE)/VLOOKUP(CY$6,'[1]Precios gasóleo'!$D:$F,3,FALSE)-1) ->  | CZ8: =IF($C8<=CZ$6,"",VLOOKUP($C8,'[1]Precios gasóleo'!$D:$F,3,FALSE)/VLOOKUP(CZ$6,'[1]Precios gasóleo'!$D:$F,3,FALSE)-1) ->  | DA8: =IF($C8<=DA$6,"",VLOOKUP($C8,'[1]Precios gasóleo'!$D:$F,3,FALSE)/VLOOKUP(DA$6,'[1]Precios gasóleo'!$D:$F,3,FALSE)-1) ->  | DB8: =IF($C8<=DB$6,"",VLOOKUP($C8,'[1]Precios gasóleo'!$D:$F,3,FALSE)/VLOOKUP(DB$6,'[1]Precios gasóleo'!$D:$F,3,FALSE)-1) ->  | DC8: =IF($C8<=DC$6,"",VLOOKUP($C8,'[1]Precios gasóleo'!$D:$F,3,FALSE)/VLOOKUP(DC$6,'[1]Precios gasóleo'!$D:$F,3,FALSE)-1) ->  | DD8: =IF($C8<=DD$6,"",VLOOKUP($C8,'[1]Precios gasóleo'!$D:$F,3,FALSE)/VLOOKUP(DD$6,'[1]Precios gasóleo'!$D:$F,3,FALSE)-1) ->  | DE8: =IF($C8<=DE$6,"",VLOOKUP($C8,'[1]Precios gasóleo'!$D:$F,3,FALSE)/VLOOKUP(DE$6,'[1]Precios gasóleo'!$D:$F,3,FALSE)-1) ->  | DF8: =IF($C8<=DF$6,"",VLOOKUP($C8,'[1]Precios gasóleo'!$D:$F,3,FALSE)/VLOOKUP(DF$6,'[1]Precios gasóleo'!$D:$F,3,FALSE)-1) ->  | DG8: =IF($C8<=DG$6,"",VLOOKUP($C8,'[1]Precios gasóleo'!$D:$F,3,FALSE)/VLOOKUP(DG$6,'[1]Precios gasóleo'!$D:$F,3,FALSE)-1) ->  | DH8: =IF($C8<=DH$6,"",VLOOKUP($C8,'[1]Precios gasóleo'!$D:$F,3,FALSE)/VLOOKUP(DH$6,'[1]Precios gasóleo'!$D:$F,3,FALSE)-1) ->  | DI8: =IF($C8<=DI$6,"",VLOOKUP($C8,'[1]Precios gasóleo'!$D:$F,3,FALSE)/VLOOKUP(DI$6,'[1]Precios gasóleo'!$D:$F,3,FALSE)-1) ->  | DJ8: =IF($C8<=DJ$6,"",VLOOKUP($C8,'[1]Precios gasóleo'!$D:$F,3,FALSE)/VLOOKUP(DJ$6,'[1]Precios gasóleo'!$D:$F,3,FALSE)-1) ->  | DK8: =IF($C8<=DK$6,"",VLOOKUP($C8,'[1]Precios gasóleo'!$D:$F,3,FALSE)/VLOOKUP(DK$6,'[1]Precios gasóleo'!$D:$F,3,FALSE)-1) ->  | DL8: =IF($C8<=DL$6,"",VLOOKUP($C8,'[1]Precios gasóleo'!$D:$F,3,FALSE)/VLOOKUP(DL$6,'[1]Precios gasóleo'!$D:$F,3,FALSE)-1) ->  | DM8: =IF($C8<=DM$6,"",VLOOKUP($C8,'[1]Precios gasóleo'!$D:$F,3,FALSE)/VLOOKUP(DM$6,'[1]Precios gasóleo'!$D:$F,3,FALSE)-1) ->  | DN8: =IF($C8<=DN$6,"",VLOOKUP($C8,'[1]Precios gasóleo'!$D:$F,3,FALSE)/VLOOKUP(DN$6,'[1]Precios gasóleo'!$D:$F,3,FALSE)-1) ->  | DO8: =IF($C8<=DO$6,"",VLOOKUP($C8,'[1]Precios gasóleo'!$D:$F,3,FALSE)/VLOOKUP(DO$6,'[1]Precios gasóleo'!$D:$F,3,FALSE)-1) ->  | DP8: =IF($C8<=DP$6,"",VLOOKUP($C8,'[1]Precios gasóleo'!$D:$F,3,FALSE)/VLOOKUP(DP$6,'[1]Precios gasóleo'!$D:$F,3,FALSE)-1) ->  | DQ8: =IF($C8<=DQ$6,"",VLOOKUP($C8,'[1]Precios gasóleo'!$D:$F,3,FALSE)/VLOOKUP(DQ$6,'[1]Precios gasóleo'!$D:$F,3,FALSE)-1) ->  | DR8: =IF($C8<=DR$6,"",VLOOKUP($C8,'[1]Precios gasóleo'!$D:$F,3,FALSE)/VLOOKUP(DR$6,'[1]Precios gasóleo'!$D:$F,3,FALSE)-1) ->  | DS8: =IF($C8<=DS$6,"",VLOOKUP($C8,'[1]Precios gasóleo'!$D:$F,3,FALSE)/VLOOKUP(DS$6,'[1]Precios gasóleo'!$D:$F,3,FALSE)-1) ->  | DT8: =IF($C8<=DT$6,"",VLOOKUP($C8,'[1]Precios gasóleo'!$D:$F,3,FALSE)/VLOOKUP(DT$6,'[1]Precios gasóleo'!$D:$F,3,FALSE)-1) ->  | DU8: =IF($C8<=DU$6,"",VLOOKUP($C8,'[1]Precios gasóleo'!$D:$F,3,FALSE)/VLOOKUP(DU$6,'[1]Precios gasóleo'!$D:$F,3,FALSE)-1) ->  | DV8: =IF($C8<=DV$6,"",VLOOKUP($C8,'[1]Precios gasóleo'!$D:$F,3,FALSE)/VLOOKUP(DV$6,'[1]Precios gasóleo'!$D:$F,3,FALSE)-1) ->  | DW8: =IF($C8<=DW$6,"",VLOOKUP($C8,'[1]Precios gasóleo'!$D:$F,3,FALSE)/VLOOKUP(DW$6,'[1]Precios gasóleo'!$D:$F,3,FALSE)-1) ->  | DX8: =IF($C8<=DX$6,"",VLOOKUP($C8,'[1]Precios gasóleo'!$D:$F,3,FALSE)/VLOOKUP(DX$6,'[1]Precios gasóleo'!$D:$F,3,FALSE)-1) ->  | DY8: =IF($C8<=DY$6,"",VLOOKUP($C8,'[1]Precios gasóleo'!$D:$F,3,FALSE)/VLOOKUP(DY$6,'[1]Precios gasóleo'!$D:$F,3,FALSE)-1) ->  | DZ8: =IF($C8<=DZ$6,"",VLOOKUP($C8,'[1]Precios gasóleo'!$D:$F,3,FALSE)/VLOOKUP(DZ$6,'[1]Precios gasóleo'!$D:$F,3,FALSE)-1) ->  | EA8: =IF($C8<=EA$6,"",VLOOKUP($C8,'[1]Precios gasóleo'!$D:$F,3,FALSE)/VLOOKUP(EA$6,'[1]Precios gasóleo'!$D:$F,3,FALSE)-1) ->  | EB8: =IF($C8<=EB$6,"",VLOOKUP($C8,'[1]Precios gasóleo'!$D:$F,3,FALSE)/VLOOKUP(EB$6,'[1]Precios gasóleo'!$D:$F,3,FALSE)-1) ->  | EC8: =IF($C8<=EC$6,"",VLOOKUP($C8,'[1]Precios gasóleo'!$D:$F,3,FALSE)/VLOOKUP(EC$6,'[1]Precios gasóleo'!$D:$F,3,FALSE)-1) ->  | ED8: =IF($C8<=ED$6,"",VLOOKUP($C8,'[1]Precios gasóleo'!$D:$F,3,FALSE)/VLOOKUP(ED$6,'[1]Precios gasóleo'!$D:$F,3,FALSE)-1) ->  | EE8: =IF($C8<=EE$6,"",VLOOKUP($C8,'[1]Precios gasóleo'!$D:$F,3,FALSE)/VLOOKUP(EE$6,'[1]Precios gasóleo'!$D:$F,3,FALSE)-1) ->  | EF8: =IF($C8<=EF$6,"",VLOOKUP($C8,'[1]Precios gasóleo'!$D:$F,3,FALSE)/VLOOKUP(EF$6,'[1]Precios gasóleo'!$D:$F,3,FALSE)-1) ->  | EG8: =IF($C8<=EG$6,"",VLOOKUP($C8,'[1]Precios gasóleo'!$D:$F,3,FALSE)/VLOOKUP(EG$6,'[1]Precios gasóleo'!$D:$F,3,FALSE)-1) ->  | EH8: 2020-01-21
C9: 2020-01-28 | D9: =IF($C9<=D$6,"",VLOOKUP($C9,'[1]Precios gasóleo'!$D:$F,3,FALSE)/VLOOKUP(D$6,'[1]Precios gasóleo'!$D:$F,3,FALSE)-1) -> -0.02595797281 | E9: =IF($C9<=E$6,"",VLOOKUP($C9,'[1]Precios gasóleo'!$D:$F,3,FALSE)/VLOOKUP(E$6,'[1]Precios gasóleo'!$D:$F,3,FALSE)-1) -> -0.02019926519 | F9: =IF($C9<=F$6,"",VLOOKUP($C9,'[1]Precios gasóleo'!$D:$F,3,FALSE)/VLOOKUP(F$6,'[1]Precios gasóleo'!$D:$F,3,FALSE)-1) -> -0.01178831201 | G9: =IF($C9<=G$6,"",VLOOKUP($C9,'[1]Precios gasóleo'!$D:$F,3,FALSE)/VLOOKUP(G$6,'[1]Precios gasóleo'!$D:$F,3,FALSE)-1) ->  | H9: =IF($C9<=H$6,"",VLOOKUP($C9,'[1]Precios gasóleo'!$D:$F,3,FALSE)/VLOOKUP(H$6,'[1]Precios gasóleo'!$D:$F,3,FALSE)-1) ->  | I9: =IF($C9<=I$6,"",VLOOKUP($C9,'[1]Precios gasóleo'!$D:$F,3,FALSE)/VLOOKUP(I$6,'[1]Precios gasóleo'!$D:$F,3,FALSE)-1) ->  | J9: =IF($C9<=J$6,"",VLOOKUP($C9,'[1]Precios gasóleo'!$D:$F,3,FALSE)/VLOOKUP(J$6,'[1]Precios gasóleo'!$D:$F,3,FALSE)-1) ->  | K9: =IF($C9<=K$6,"",VLOOKUP($C9,'[1]Precios gasóleo'!$D:$F,3,FALSE)/VLOOKUP(K$6,'[1]Precios gasóleo'!$D:$F,3,FALSE)-1) ->  | L9: =IF($C9<=L$6,"",VLOOKUP($C9,'[1]Precios gasóleo'!$D:$F,3,FALSE)/VLOOKUP(L$6,'[1]Precios gasóleo'!$D:$F,3,FALSE)-1) ->  | M9: =IF($C9<=M$6,"",VLOOKUP($C9,'[1]Precios gasóleo'!$D:$F,3,FALSE)/VLOOKUP(M$6,'[1]Precios gasóleo'!$D:$F,3,FALSE)-1) ->  | N9: =IF($C9<=N$6,"",VLOOKUP($C9,'[1]Precios gasóleo'!$D:$F,3,FALSE)/VLOOKUP(N$6,'[1]Precios gasóleo'!$D:$F,3,FALSE)-1) ->  | O9: =IF($C9<=O$6,"",VLOOKUP($C9,'[1]Precios gasóleo'!$D:$F,3,FALSE)/VLOOKUP(O$6,'[1]Precios gasóleo'!$D:$F,3,FALSE)-1) ->  | P9: =IF($C9<=P$6,"",VLOOKUP($C9,'[1]Precios gasóleo'!$D:$F,3,FALSE)/VLOOKUP(P$6,'[1]Precios gasóleo'!$D:$F,3,FALSE)-1) ->  | Q9: =IF($C9<=Q$6,"",VLOOKUP($C9,'[1]Precios gasóleo'!$D:$F,3,FALSE)/VLOOKUP(Q$6,'[1]Precios gasóleo'!$D:$F,3,FALSE)-1) ->  | R9: =IF($C9<=R$6,"",VLOOKUP($C9,'[1]Precios gasóleo'!$D:$F,3,FALSE)/VLOOKUP(R$6,'[1]Precios gasóleo'!$D:$F,3,FALSE)-1) ->  | S9: =IF($C9<=S$6,"",VLOOKUP($C9,'[1]Precios gasóleo'!$D:$F,3,FALSE)/VLOOKUP(S$6,'[1]Precios gasóleo'!$D:$F,3,FALSE)-1) ->  | T9: =IF($C9<=T$6,"",VLOOKUP($C9,'[1]Precios gasóleo'!$D:$F,3,FALSE)/VLOOKUP(T$6,'[1]Precios gasóleo'!$D:$F,3,FALSE)-1) ->  | U9: =IF($C9<=U$6,"",VLOOKUP($C9,'[1]Precios gasóleo'!$D:$F,3,FALSE)/VLOOKUP(U$6,'[1]Precios gasóleo'!$D:$F,3,FALSE)-1) ->  | V9: =IF($C9<=V$6,"",VLOOKUP($C9,'[1]Precios gasóleo'!$D:$F,3,FALSE)/VLOOKUP(V$6,'[1]Precios gasóleo'!$D:$F,3,FALSE)-1) ->  | W9: =IF($C9<=W$6,"",VLOOKUP($C9,'[1]Precios gasóleo'!$D:$F,3,FALSE)/VLOOKUP(W$6,'[1]Precios gasóleo'!$D:$F,3,FALSE)-1) ->  | X9: =IF($C9<=X$6,"",VLOOKUP($C9,'[1]Precios gasóleo'!$D:$F,3,FALSE)/VLOOKUP(X$6,'[1]Precios gasóleo'!$D:$F,3,FALSE)-1) ->  | Y9: =IF($C9<=Y$6,"",VLOOKUP($C9,'[1]Precios gasóleo'!$D:$F,3,FALSE)/VLOOKUP(Y$6,'[1]Precios gasóleo'!$D:$F,3,FALSE)-1) ->  | Z9: =IF($C9<=Z$6,"",VLOOKUP($C9,'[1]Precios gasóleo'!$D:$F,3,FALSE)/VLOOKUP(Z$6,'[1]Precios gasóleo'!$D:$F,3,FALSE)-1) ->  | AA9: =IF($C9<=AA$6,"",VLOOKUP($C9,'[1]Precios gasóleo'!$D:$F,3,FALSE)/VLOOKUP(AA$6,'[1]Precios gasóleo'!$D:$F,3,FALSE)-1) ->  | AB9: =IF($C9<=AB$6,"",VLOOKUP($C9,'[1]Precios gasóleo'!$D:$F,3,FALSE)/VLOOKUP(AB$6,'[1]Precios gasóleo'!$D:$F,3,FALSE)-1) ->  | AC9: =IF($C9<=AC$6,"",VLOOKUP($C9,'[1]Precios gasóleo'!$D:$F,3,FALSE)/VLOOKUP(AC$6,'[1]Precios gasóleo'!$D:$F,3,FALSE)-1) ->  | AD9: =IF($C9<=AD$6,"",VLOOKUP($C9,'[1]Precios gasóleo'!$D:$F,3,FALSE)/VLOOKUP(AD$6,'[1]Precios gasóleo'!$D:$F,3,FALSE)-1) ->  | AE9: =IF($C9<=AE$6,"",VLOOKUP($C9,'[1]Precios gasóleo'!$D:$F,3,FALSE)/VLOOKUP(AE$6,'[1]Precios gasóleo'!$D:$F,3,FALSE)-1) ->  | AF9: =IF($C9<=AF$6,"",VLOOKUP($C9,'[1]Precios gasóleo'!$D:$F,3,FALSE)/VLOOKUP(AF$6,'[1]Precios gasóleo'!$D:$F,3,FALSE)-1) ->  | AG9: =IF($C9<=AG$6,"",VLOOKUP($C9,'[1]Precios gasóleo'!$D:$F,3,FALSE)/VLOOKUP(AG$6,'[1]Precios gasóleo'!$D:$F,3,FALSE)-1) ->  | AH9: =IF($C9<=AH$6,"",VLOOKUP($C9,'[1]Precios gasóleo'!$D:$F,3,FALSE)/VLOOKUP(AH$6,'[1]Precios gasóleo'!$D:$F,3,FALSE)-1) ->  | AI9: =IF($C9<=AI$6,"",VLOOKUP($C9,'[1]Precios gasóleo'!$D:$F,3,FALSE)/VLOOKUP(AI$6,'[1]Precios gasóleo'!$D:$F,3,FALSE)-1) ->  | AJ9: =IF($C9<=AJ$6,"",VLOOKUP($C9,'[1]Precios gasóleo'!$D:$F,3,FALSE)/VLOOKUP(AJ$6,'[1]Precios gasóleo'!$D:$F,3,FALSE)-1) ->  | AK9: =IF($C9<=AK$6,"",VLOOKUP($C9,'[1]Precios gasóleo'!$D:$F,3,FALSE)/VLOOKUP(AK$6,'[1]Precios gasóleo'!$D:$F,3,FALSE)-1) ->  | AL9: =IF($C9<=AL$6,"",VLOOKUP($C9,'[1]Precios gasóleo'!$D:$F,3,FALSE)/VLOOKUP(AL$6,'[1]Precios gasóleo'!$D:$F,3,FALSE)-1) ->  | AM9: =IF($C9<=AM$6,"",VLOOKUP($C9,'[1]Precios gasóleo'!$D:$F,3,FALSE)/VLOOKUP(AM$6,'[1]Precios gasóleo'!$D:$F,3,FALSE)-1) ->  | AN9: =IF($C9<=AN$6,"",VLOOKUP($C9,'[1]Precios gasóleo'!$D:$F,3,FALSE)/VLOOKUP(AN$6,'[1]Precios gasóleo'!$D:$F,3,FALSE)-1) ->  | AO9: =IF($C9<=AO$6,"",VLOOKUP($C9,'[1]Precios gasóleo'!$D:$F,3,FALSE)/VLOOKUP(AO$6,'[1]Precios gasóleo'!$D:$F,3,FALSE)-1) ->  | AP9: =IF($C9<=AP$6,"",VLOOKUP($C9,'[1]Precios gasóleo'!$D:$F,3,FALSE)/VLOOKUP(AP$6,'[1]Precios gasóleo'!$D:$F,3,FALSE)-1) ->  | AQ9: =IF($C9<=AQ$6,"",VLOOKUP($C9,'[1]Precios gasóleo'!$D:$F,3,FALSE)/VLOOKUP(AQ$6,'[1]Precios gasóleo'!$D:$F,3,FALSE)-1) ->  | AR9: =IF($C9<=AR$6,"",VLOOKUP($C9,'[1]Precios gasóleo'!$D:$F,3,FALSE)/VLOOKUP(AR$6,'[1]Precios gasóleo'!$D:$F,3,FALSE)-1) ->  | AS9: =IF($C9<=AS$6,"",VLOOKUP($C9,'[1]Precios gasóleo'!$D:$F,3,FALSE)/VLOOKUP(AS$6,'[1]Precios gasóleo'!$D:$F,3,FALSE)-1) ->  | AT9: =IF($C9<=AT$6,"",VLOOKUP($C9,'[1]Precios gasóleo'!$D:$F,3,FALSE)/VLOOKUP(AT$6,'[1]Precios gasóleo'!$D:$F,3,FALSE)-1) ->  | AU9: =IF($C9<=AU$6,"",VLOOKUP($C9,'[1]Precios gasóleo'!$D:$F,3,FALSE)/VLOOKUP(AU$6,'[1]Precios gasóleo'!$D:$F,3,FALSE)-1) ->  | AV9: =IF($C9<=AV$6,"",VLOOKUP($C9,'[1]Precios gasóleo'!$D:$F,3,FALSE)/VLOOKUP(AV$6,'[1]Precios gasóleo'!$D:$F,3,FALSE)-1) ->  | AW9: =IF($C9<=AW$6,"",VLOOKUP($C9,'[1]Precios gasóleo'!$D:$F,3,FALSE)/VLOOKUP(AW$6,'[1]Precios gasóleo'!$D:$F,3,FALSE)-1) ->  | AX9: =IF($C9<=AX$6,"",VLOOKUP($C9,'[1]Precios gasóleo'!$D:$F,3,FALSE)/VLOOKUP(AX$6,'[1]Precios gasóleo'!$D:$F,3,FALSE)-1) ->  | AY9: =IF($C9<=AY$6,"",VLOOKUP($C9,'[1]Precios gasóleo'!$D:$F,3,FALSE)/VLOOKUP(AY$6,'[1]Precios gasóleo'!$D:$F,3,FALSE)-1) ->  | AZ9: =IF($C9<=AZ$6,"",VLOOKUP($C9,'[1]Precios gasóleo'!$D:$F,3,FALSE)/VLOOKUP(AZ$6,'[1]Precios gasóleo'!$D:$F,3,FALSE)-1) ->  | BA9: =IF($C9<=BA$6,"",VLOOKUP($C9,'[1]Precios gasóleo'!$D:$F,3,FALSE)/VLOOKUP(BA$6,'[1]Precios gasóleo'!$D:$F,3,FALSE)-1) ->  | BB9: =IF($C9<=BB$6,"",VLOOKUP($C9,'[1]Precios gasóleo'!$D:$F,3,FALSE)/VLOOKUP(BB$6,'[1]Precios gasóleo'!$D:$F,3,FALSE)-1) ->  | BC9: =IF($C9<=BC$6,"",VLOOKUP($C9,'[1]Precios gasóleo'!$D:$F,3,FALSE)/VLOOKUP(BC$6,'[1]Precios gasóleo'!$D:$F,3,FALSE)-1) ->  | BD9: =IF($C9<=BD$6,"",VLOOKUP($C9,'[1]Precios gasóleo'!$D:$F,3,FALSE)/VLOOKUP(BD$6,'[1]Precios gasóleo'!$D:$F,3,FALSE)-1) ->  | BE9: =IF($C9<=BE$6,"",VLOOKUP($C9,'[1]Precios gasóleo'!$D:$F,3,FALSE)/VLOOKUP(BE$6,'[1]Precios gasóleo'!$D:$F,3,FALSE)-1) ->  | BF9: =IF($C9<=BF$6,"",VLOOKUP($C9,'[1]Precios gasóleo'!$D:$F,3,FALSE)/VLOOKUP(BF$6,'[1]Precios gasóleo'!$D:$F,3,FALSE)-1) ->  | BG9: =IF($C9<=BG$6,"",VLOOKUP($C9,'[1]Precios gasóleo'!$D:$F,3,FALSE)/VLOOKUP(BG$6,'[1]Precios gasóleo'!$D:$F,3,FALSE)-1) ->  | BH9: =IF($C9<=BH$6,"",VLOOKUP($C9,'[1]Precios gasóleo'!$D:$F,3,FALSE)/VLOOKUP(BH$6,'[1]Precios gasóleo'!$D:$F,3,FALSE)-1) ->  | BI9: =IF($C9<=BI$6,"",VLOOKUP($C9,'[1]Precios gasóleo'!$D:$F,3,FALSE)/VLOOKUP(BI$6,'[1]Precios gasóleo'!$D:$F,3,FALSE)-1) ->  | BJ9: =IF($C9<=BJ$6,"",VLOOKUP($C9,'[1]Precios gasóleo'!$D:$F,3,FALSE)/VLOOKUP(BJ$6,'[1]Precios gasóleo'!$D:$F,3,FALSE)-1) ->  | BK9: =IF($C9<=BK$6,"",VLOOKUP($C9,'[1]Precios gasóleo'!$D:$F,3,FALSE)/VLOOKUP(BK$6,'[1]Precios gasóleo'!$D:$F,3,FALSE)-1) ->  | BL9: =IF($C9<=BL$6,"",VLOOKUP($C9,'[1]Precios gasóleo'!$D:$F,3,FALSE)/VLOOKUP(BL$6,'[1]Precios gasóleo'!$D:$F,3,FALSE)-1) ->  | BM9: =IF($C9<=BM$6,"",VLOOKUP($C9,'[1]Precios gasóleo'!$D:$F,3,FALSE)/VLOOKUP(BM$6,'[1]Precios gasóleo'!$D:$F,3,FALSE)-1) ->  | BN9: =IF($C9<=BN$6,"",VLOOKUP($C9,'[1]Precios gasóleo'!$D:$F,3,FALSE)/VLOOKUP(BN$6,'[1]Precios gasóleo'!$D:$F,3,FALSE)-1) ->  | BO9: =IF($C9<=BO$6,"",VLOOKUP($C9,'[1]Precios gasóleo'!$D:$F,3,FALSE)/VLOOKUP(BO$6,'[1]Precios gasóleo'!$D:$F,3,FALSE)-1) ->  | BP9: =IF($C9<=BP$6,"",VLOOKUP($C9,'[1]Precios gasóleo'!$D:$F,3,FALSE)/VLOOKUP(BP$6,'[1]Precios gasóleo'!$D:$F,3,FALSE)-1) ->  | BQ9: =IF($C9<=BQ$6,"",VLOOKUP($C9,'[1]Precios gasóleo'!$D:$F,3,FALSE)/VLOOKUP(BQ$6,'[1]Precios gasóleo'!$D:$F,3,FALSE)-1) ->  | BR9: =IF($C9<=BR$6,"",VLOOKUP($C9,'[1]Precios gasóleo'!$D:$F,3,FALSE)/VLOOKUP(BR$6,'[1]Precios gasóleo'!$D:$F,3,FALSE)-1) ->  | BS9: =IF($C9<=BS$6,"",VLOOKUP($C9,'[1]Precios gasóleo'!$D:$F,3,FALSE)/VLOOKUP(BS$6,'[1]Precios gasóleo'!$D:$F,3,FALSE)-1) ->  | BT9: =IF($C9<=BT$6,"",VLOOKUP($C9,'[1]Precios gasóleo'!$D:$F,3,FALSE)/VLOOKUP(BT$6,'[1]Precios gasóleo'!$D:$F,3,FALSE)-1) ->  | BU9: =IF($C9<=BU$6,"",VLOOKUP($C9,'[1]Precios gasóleo'!$D:$F,3,FALSE)/VLOOKUP(BU$6,'[1]Precios gasóleo'!$D:$F,3,FALSE)-1) ->  | BV9: =IF($C9<=BV$6,"",VLOOKUP($C9,'[1]Precios gasóleo'!$D:$F,3,FALSE)/VLOOKUP(BV$6,'[1]Precios gasóleo'!$D:$F,3,FALSE)-1) ->  | BW9: =IF($C9<=BW$6,"",VLOOKUP($C9,'[1]Precios gasóleo'!$D:$F,3,FALSE)/VLOOKUP(BW$6,'[1]Precios gasóleo'!$D:$F,3,FALSE)-1) ->  | BX9: =IF($C9<=BX$6,"",VLOOKUP($C9,'[1]Precios gasóleo'!$D:$F,3,FALSE)/VLOOKUP(BX$6,'[1]Precios gasóleo'!$D:$F,3,FALSE)-1) ->  | BY9: =IF($C9<=BY$6,"",VLOOKUP($C9,'[1]Precios gasóleo'!$D:$F,3,FALSE)/VLOOKUP(BY$6,'[1]Precios gasóleo'!$D:$F,3,FALSE)-1) ->  | BZ9: =IF($C9<=BZ$6,"",VLOOKUP($C9,'[1]Precios gasóleo'!$D:$F,3,FALSE)/VLOOKUP(BZ$6,'[1]Precios gasóleo'!$D:$F,3,FALSE)-1) ->  | CA9: =IF($C9<=CA$6,"",VLOOKUP($C9,'[1]Precios gasóleo'!$D:$F,3,FALSE)/VLOOKUP(CA$6,'[1]Precios gasóleo'!$D:$F,3,FALSE)-1) ->  | CB9: =IF($C9<=CB$6,"",VLOOKUP($C9,'[1]Precios gasóleo'!$D:$F,3,FALSE)/VLOOKUP(CB$6,'[1]Precios gasóleo'!$D:$F,3,FALSE)-1) ->  | CC9: =IF($C9<=CC$6,"",VLOOKUP($C9,'[1]Precios gasóleo'!$D:$F,3,FALSE)/VLOOKUP(CC$6,'[1]Precios gasóleo'!$D:$F,3,FALSE)-1) ->  | CD9: =IF($C9<=CD$6,"",VLOOKUP($C9,'[1]Precios gasóleo'!$D:$F,3,FALSE)/VLOOKUP(CD$6,'[1]Precios gasóleo'!$D:$F,3,FALSE)-1) ->  | CE9: =IF($C9<=CE$6,"",VLOOKUP($C9,'[1]Precios gasóleo'!$D:$F,3,FALSE)/VLOOKUP(CE$6,'[1]Precios gasóleo'!$D:$F,3,FALSE)-1) ->  | CF9: =IF($C9<=CF$6,"",VLOOKUP($C9,'[1]Precios gasóleo'!$D:$F,3,FALSE)/VLOOKUP(CF$6,'[1]Precios gasóleo'!$D:$F,3,FALSE)-1) ->  | CG9: =IF($C9<=CG$6,"",VLOOKUP($C9,'[1]Precios gasóleo'!$D:$F,3,FALSE)/VLOOKUP(CG$6,'[1]Precios gasóleo'!$D:$F,3,FALSE)-1) ->  | CH9: =IF($C9<=CH$6,"",VLOOKUP($C9,'[1]Precios gasóleo'!$D:$F,3,FALSE)/VLOOKUP(CH$6,'[1]Precios gasóleo'!$D:$F,3,FALSE)-1) ->  | CI9: =IF($C9<=CI$6,"",VLOOKUP($C9,'[1]Precios gasóleo'!$D:$F,3,FALSE)/VLOOKUP(CI$6,'[1]Precios gasóleo'!$D:$F,3,FALSE)-1) ->  | CJ9: =IF($C9<=CJ$6,"",VLOOKUP($C9,'[1]Precios gasóleo'!$D:$F,3,FALSE)/VLOOKUP(CJ$6,'[1]Precios gasóleo'!$D:$F,3,FALSE)-1) ->  | CK9: =IF($C9<=CK$6,"",VLOOKUP($C9,'[1]Precios gasóleo'!$D:$F,3,FALSE)/VLOOKUP(CK$6,'[1]Precios gasóleo'!$D:$F,3,FALSE)-1) ->  | CL9: =IF($C9<=CL$6,"",VLOOKUP($C9,'[1]Precios gasóleo'!$D:$F,3,FALSE)/VLOOKUP(CL$6,'[1]Precios gasóleo'!$D:$F,3,FALSE)-1) ->  | CM9: =IF($C9<=CM$6,"",VLOOKUP($C9,'[1]Precios gasóleo'!$D:$F,3,FALSE)/VLOOKUP(CM$6,'[1]Precios gasóleo'!$D:$F,3,FALSE)-1) ->  | CN9: =IF($C9<=CN$6,"",VLOOKUP($C9,'[1]Precios gasóleo'!$D:$F,3,FALSE)/VLOOKUP(CN$6,'[1]Precios gasóleo'!$D:$F,3,FALSE)-1) ->  | CO9: =IF($C9<=CO$6,"",VLOOKUP($C9,'[1]Precios gasóleo'!$D:$F,3,FALSE)/VLOOKUP(CO$6,'[1]Precios gasóleo'!$D:$F,3,FALSE)-1) ->  | CP9: =IF($C9<=CP$6,"",VLOOKUP($C9,'[1]Precios gasóleo'!$D:$F,3,FALSE)/VLOOKUP(CP$6,'[1]Precios gasóleo'!$D:$F,3,FALSE)-1) ->  | CQ9: =IF($C9<=CQ$6,"",VLOOKUP($C9,'[1]Precios gasóleo'!$D:$F,3,FALSE)/VLOOKUP(CQ$6,'[1]Precios gasóleo'!$D:$F,3,FALSE)-1) ->  | CR9: =IF($C9<=CR$6,"",VLOOKUP($C9,'[1]Precios gasóleo'!$D:$F,3,FALSE)/VLOOKUP(CR$6,'[1]Precios gasóleo'!$D:$F,3,FALSE)-1) ->  | CS9: =IF($C9<=CS$6,"",VLOOKUP($C9,'[1]Precios gasóleo'!$D:$F,3,FALSE)/VLOOKUP(CS$6,'[1]Precios gasóleo'!$D:$F,3,FALSE)-1) ->  | CT9: =IF($C9<=CT$6,"",VLOOKUP($C9,'[1]Precios gasóleo'!$D:$F,3,FALSE)/VLOOKUP(CT$6,'[1]Precios gasóleo'!$D:$F,3,FALSE)-1) ->  | CU9: =IF($C9<=CU$6,"",VLOOKUP($C9,'[1]Precios gasóleo'!$D:$F,3,FALSE)/VLOOKUP(CU$6,'[1]Precios gasóleo'!$D:$F,3,FALSE)-1) ->  | CV9: =IF($C9<=CV$6,"",VLOOKUP($C9,'[1]Precios gasóleo'!$D:$F,3,FALSE)/VLOOKUP(CV$6,'[1]Precios gasóleo'!$D:$F,3,FALSE)-1) ->  | CW9: =IF($C9<=CW$6,"",VLOOKUP($C9,'[1]Precios gasóleo'!$D:$F,3,FALSE)/VLOOKUP(CW$6,'[1]Precios gasóleo'!$D:$F,3,FALSE)-1) ->  | CX9: =IF($C9<=CX$6,"",VLOOKUP($C9,'[1]Precios gasóleo'!$D:$F,3,FALSE)/VLOOKUP(CX$6,'[1]Precios gasóleo'!$D:$F,3,FALSE)-1) ->  | CY9: =IF($C9<=CY$6,"",VLOOKUP($C9,'[1]Precios gasóleo'!$D:$F,3,FALSE)/VLOOKUP(CY$6,'[1]Precios gasóleo'!$D:$F,3,FALSE)-1) ->  | CZ9: =IF($C9<=CZ$6,"",VLOOKUP($C9,'[1]Precios gasóleo'!$D:$F,3,FALSE)/VLOOKUP(CZ$6,'[1]Precios gasóleo'!$D:$F,3,FALSE)-1) ->  | DA9: =IF($C9<=DA$6,"",VLOOKUP($C9,'[1]Precios gasóleo'!$D:$F,3,FALSE)/VLOOKUP(DA$6,'[1]Precios gasóleo'!$D:$F,3,FALSE)-1) ->  | DB9: =IF($C9<=DB$6,"",VLOOKUP($C9,'[1]Precios gasóleo'!$D:$F,3,FALSE)/VLOOKUP(DB$6,'[1]Precios gasóleo'!$D:$F,3,FALSE)-1) ->  | DC9: =IF($C9<=DC$6,"",VLOOKUP($C9,'[1]Precios gasóleo'!$D:$F,3,FALSE)/VLOOKUP(DC$6,'[1]Precios gasóleo'!$D:$F,3,FALSE)-1) ->  | DD9: =IF($C9<=DD$6,"",VLOOKUP($C9,'[1]Precios gasóleo'!$D:$F,3,FALSE)/VLOOKUP(DD$6,'[1]Precios gasóleo'!$D:$F,3,FALSE)-1) ->  | DE9: =IF($C9<=DE$6,"",VLOOKUP($C9,'[1]Precios gasóleo'!$D:$F,3,FALSE)/VLOOKUP(DE$6,'[1]Precios gasóleo'!$D:$F,3,FALSE)-1) ->  | DF9: =IF($C9<=DF$6,"",VLOOKUP($C9,'[1]Precios gasóleo'!$D:$F,3,FALSE)/VLOOKUP(DF$6,'[1]Precios gasóleo'!$D:$F,3,FALSE)-1) ->  | DG9: =IF($C9<=DG$6,"",VLOOKUP($C9,'[1]Precios gasóleo'!$D:$F,3,FALSE)/VLOOKUP(DG$6,'[1]Precios gasóleo'!$D:$F,3,FALSE)-1) ->  | DH9: =IF($C9<=DH$6,"",VLOOKUP($C9,'[1]Precios gasóleo'!$D:$F,3,FALSE)/VLOOKUP(DH$6,'[1]Precios gasóleo'!$D:$F,3,FALSE)-1) ->  | DI9: =IF($C9<=DI$6,"",VLOOKUP($C9,'[1]Precios gasóleo'!$D:$F,3,FALSE)/VLOOKUP(DI$6,'[1]Precios gasóleo'!$D:$F,3,FALSE)-1) ->  | DJ9: =IF($C9<=DJ$6,"",VLOOKUP($C9,'[1]Precios gasóleo'!$D:$F,3,FALSE)/VLOOKUP(DJ$6,'[1]Precios gasóleo'!$D:$F,3,FALSE)-1) ->  | DK9: =IF($C9<=DK$6,"",VLOOKUP($C9,'[1]Precios gasóleo'!$D:$F,3,FALSE)/VLOOKUP(DK$6,'[1]Precios gasóleo'!$D:$F,3,FALSE)-1) ->  | DL9: =IF($C9<=DL$6,"",VLOOKUP($C9,'[1]Precios gasóleo'!$D:$F,3,FALSE)/VLOOKUP(DL$6,'[1]Precios gasóleo'!$D:$F,3,FALSE)-1) ->  | DM9: =IF($C9<=DM$6,"",VLOOKUP($C9,'[1]Precios gasóleo'!$D:$F,3,FALSE)/VLOOKUP(DM$6,'[1]Precios gasóleo'!$D:$F,3,FALSE)-1) ->  | DN9: =IF($C9<=DN$6,"",VLOOKUP($C9,'[1]Precios gasóleo'!$D:$F,3,FALSE)/VLOOKUP(DN$6,'[1]Precios gasóleo'!$D:$F,3,FALSE)-1) ->  | DO9: =IF($C9<=DO$6,"",VLOOKUP($C9,'[1]Precios gasóleo'!$D:$F,3,FALSE)/VLOOKUP(DO$6,'[1]Precios gasóleo'!$D:$F,3,FALSE)-1) ->  | DP9: =IF($C9<=DP$6,"",VLOOKUP($C9,'[1]Precios gasóleo'!$D:$F,3,FALSE)/VLOOKUP(DP$6,'[1]Precios gasóleo'!$D:$F,3,FALSE)-1) ->  | DQ9: =IF($C9<=DQ$6,"",VLOOKUP($C9,'[1]Precios gasóleo'!$D:$F,3,FALSE)/VLOOKUP(DQ$6,'[1]Precios gasóleo'!$D:$F,3,FALSE)-1) ->  | DR9: =IF($C9<=DR$6,"",VLOOKUP($C9,'[1]Precios gasóleo'!$D:$F,3,FALSE)/VLOOKUP(DR$6,'[1]Precios gasóleo'!$D:$F,3,FALSE)-1) ->  | DS9: =IF($C9<=DS$6,"",VLOOKUP($C9,'[1]Precios gasóleo'!$D:$F,3,FALSE)/VLOOKUP(DS$6,'[1]Precios gasóleo'!$D:$F,3,FALSE)-1) ->  | DT9: =IF($C9<=DT$6,"",VLOOKUP($C9,'[1]Precios gasóleo'!$D:$F,3,FALSE)/VLOOKUP(DT$6,'[1]Precios gasóleo'!$D:$F,3,FALSE)-1) ->  | DU9: =IF($C9<=DU$6,"",VLOOKUP($C9,'[1]Precios gasóleo'!$D:$F,3,FALSE)/VLOOKUP(DU$6,'[1]Precios gasóleo'!$D:$F,3,FALSE)-1) ->  | DV9: =IF($C9<=DV$6,"",VLOOKUP($C9,'[1]Precios gasóleo'!$D:$F,3,FALSE)/VLOOKUP(DV$6,'[1]Precios gasóleo'!$D:$F,3,FALSE)-1) ->  | DW9: =IF($C9<=DW$6,"",VLOOKUP($C9,'[1]Precios gasóleo'!$D:$F,3,FALSE)/VLOOKUP(DW$6,'[1]Precios gasóleo'!$D:$F,3,FALSE)-1) ->  | DX9: =IF($C9<=DX$6,"",VLOOKUP($C9,'[1]Precios gasóleo'!$D:$F,3,FALSE)/VLOOKUP(DX$6,'[1]Precios gasóleo'!$D:$F,3,FALSE)-1) ->  | DY9: =IF($C9<=DY$6,"",VLOOKUP($C9,'[1]Precios gasóleo'!$D:$F,3,FALSE)/VLOOKUP(DY$6,'[1]Precios gasóleo'!$D:$F,3,FALSE)-1) ->  | DZ9: =IF($C9<=DZ$6,"",VLOOKUP($C9,'[1]Precios gasóleo'!$D:$F,3,FALSE)/VLOOKUP(DZ$6,'[1]Precios gasóleo'!$D:$F,3,FALSE)-1) ->  | EA9: =IF($C9<=EA$6,"",VLOOKUP($C9,'[1]Precios gasóleo'!$D:$F,3,FALSE)/VLOOKUP(EA$6,'[1]Precios gasóleo'!$D:$F,3,FALSE)-1) ->  | EB9: =IF($C9<=EB$6,"",VLOOKUP($C9,'[1]Precios gasóleo'!$D:$F,3,FALSE)/VLOOKUP(EB$6,'[1]Precios gasóleo'!$D:$F,3,FALSE)-1) ->  | EC9: =IF($C9<=EC$6,"",VLOOKUP($C9,'[1]Precios gasóleo'!$D:$F,3,FALSE)/VLOOKUP(EC$6,'[1]Precios gasóleo'!$D:$F,3,FALSE)-1) ->  | ED9: =IF($C9<=ED$6,"",VLOOKUP($C9,'[1]Precios gasóleo'!$D:$F,3,FALSE)/VLOOKUP(ED$6,'[1]Precios gasóleo'!$D:$F,3,FALSE)-1) ->  | EE9: =IF($C9<=EE$6,"",VLOOKUP($C9,'[1]Precios gasóleo'!$D:$F,3,FALSE)/VLOOKUP(EE$6,'[1]Precios gasóleo'!$D:$F,3,FALSE)-1) ->  | EF9: =IF($C9<=EF$6,"",VLOOKUP($C9,'[1]Precios gasóleo'!$D:$F,3,FALSE)/VLOOKUP(EF$6,'[1]Precios gasóleo'!$D:$F,3,FALSE)-1) ->  | EG9: =IF($C9<=EG$6,"",VLOOKUP($C9,'[1]Precios gasóleo'!$D:$F,3,FALSE)/VLOOKUP(EG$6,'[1]Precios gasóleo'!$D:$F,3,FALSE)-1) ->  | EH9: 2020-01-28
C10: 2020-02-04 | D10: =IF($C10<=D$6,"",VLOOKUP($C10,'[1]Precios gasóleo'!$D:$F,3,FALSE)/VLOOKUP(D$6,'[1]Precios gasóleo'!$D:$F,3,FALSE)-1) -> -0.03804776905 | E10: =IF($C10<=E$6,"",VLOOKUP($C10,'[1]Precios gasóleo'!$D:$F,3,FALSE)/VLOOKUP(E$6,'[1]Precios gasóleo'!$D:$F,3,FALSE)-1) -> -0.03236053843 | F10: =IF($C10<=F$6,"",VLOOKUP($C10,'[1]Precios gasóleo'!$D:$F,3,FALSE)/VLOOKUP(F$6,'[1]Precios gasóleo'!$D:$F,3,FALSE)-1) -> -0.02405398189 | G10: =IF($C10<=G$6,"",VLOOKUP($C10,'[1]Precios gasóleo'!$D:$F,3,FALSE)/VLOOKUP(G$6,'[1]Precios gasóleo'!$D:$F,3,FALSE)-1) -> -0.01241198625 | H10: =IF($C10<=H$6,"",VLOOKUP($C10,'[1]Precios gasóleo'!$D:$F,3,FALSE)/VLOOKUP(H$6,'[1]Precios gasóleo'!$D:$F,3,FALSE)-1) ->  | I10: =IF($C10<=I$6,"",VLOOKUP($C10,'[1]Precios gasóleo'!$D:$F,3,FALSE)/VLOOKUP(I$6,'[1]Precios gasóleo'!$D:$F,3,FALSE)-1) ->  | J10: =IF($C10<=J$6,"",VLOOKUP($C10,'[1]Precios gasóleo'!$D:$F,3,FALSE)/VLOOKUP(J$6,'[1]Precios gasóleo'!$D:$F,3,FALSE)-1) ->  | K10: =IF($C10<=K$6,"",VLOOKUP($C10,'[1]Precios gasóleo'!$D:$F,3,FALSE)/VLOOKUP(K$6,'[1]Precios gasóleo'!$D:$F,3,FALSE)-1) ->  | L10: =IF($C10<=L$6,"",VLOOKUP($C10,'[1]Precios gasóleo'!$D:$F,3,FALSE)/VLOOKUP(L$6,'[1]Precios gasóleo'!$D:$F,3,FALSE)-1) ->  | M10: =IF($C10<=M$6,"",VLOOKUP($C10,'[1]Precios gasóleo'!$D:$F,3,FALSE)/VLOOKUP(M$6,'[1]Precios gasóleo'!$D:$F,3,FALSE)-1) ->  | N10: =IF($C10<=N$6,"",VLOOKUP($C10,'[1]Precios gasóleo'!$D:$F,3,FALSE)/VLOOKUP(N$6,'[1]Precios gasóleo'!$D:$F,3,FALSE)-1) ->  | O10: =IF($C10<=O$6,"",VLOOKUP($C10,'[1]Precios gasóleo'!$D:$F,3,FALSE)/VLOOKUP(O$6,'[1]Precios gasóleo'!$D:$F,3,FALSE)-1) ->  | P10: =IF($C10<=P$6,"",VLOOKUP($C10,'[1]Precios gasóleo'!$D:$F,3,FALSE)/VLOOKUP(P$6,'[1]Precios gasóleo'!$D:$F,3,FALSE)-1) ->  | Q10: =IF($C10<=Q$6,"",VLOOKUP($C10,'[1]Precios gasóleo'!$D:$F,3,FALSE)/VLOOKUP(Q$6,'[1]Precios gasóleo'!$D:$F,3,FALSE)-1) ->  | R10: =IF($C10<=R$6,"",VLOOKUP($C10,'[1]Precios gasóleo'!$D:$F,3,FALSE)/VLOOKUP(R$6,'[1]Precios gasóleo'!$D:$F,3,FALSE)-1) ->  | S10: =IF($C10<=S$6,"",VLOOKUP($C10,'[1]Precios gasóleo'!$D:$F,3,FALSE)/VLOOKUP(S$6,'[1]Precios gasóleo'!$D:$F,3,FALSE)-1) ->  | T10: =IF($C10<=T$6,"",VLOOKUP($C10,'[1]Precios gasóleo'!$D:$F,3,FALSE)/VLOOKUP(T$6,'[1]Precios gasóleo'!$D:$F,3,FALSE)-1) ->  | U10: =IF($C10<=U$6,"",VLOOKUP($C10,'[1]Precios gasóleo'!$D:$F,3,FALSE)/VLOOKUP(U$6,'[1]Precios gasóleo'!$D:$F,3,FALSE)-1) ->  | V10: =IF($C10<=V$6,"",VLOOKUP($C10,'[1]Precios gasóleo'!$D:$F,3,FALSE)/VLOOKUP(V$6,'[1]Precios gasóleo'!$D:$F,3,FALSE)-1) ->  | W10: =IF($C10<=W$6,"",VLOOKUP($C10,'[1]Precios gasóleo'!$D:$F,3,FALSE)/VLOOKUP(W$6,'[1]Precios gasóleo'!$D:$F,3,FALSE)-1) ->  | X10: =IF($C10<=X$6,"",VLOOKUP($C10,'[1]Precios gasóleo'!$D:$F,3,FALSE)/VLOOKUP(X$6,'[1]Precios gasóleo'!$D:$F,3,FALSE)-1) ->  | Y10: =IF($C10<=Y$6,"",VLOOKUP($C10,'[1]Precios gasóleo'!$D:$F,3,FALSE)/VLOOKUP(Y$6,'[1]Precios gasóleo'!$D:$F,3,FALSE)-1) ->  | Z10: =IF($C10<=Z$6,"",VLOOKUP($C10,'[1]Precios gasóleo'!$D:$F,3,FALSE)/VLOOKUP(Z$6,'[1]Precios gasóleo'!$D:$F,3,FALSE)-1) ->  | AA10: =IF($C10<=AA$6,"",VLOOKUP($C10,'[1]Precios gasóleo'!$D:$F,3,FALSE)/VLOOKUP(AA$6,'[1]Precios gasóleo'!$D:$F,3,FALSE)-1) ->  | AB10: =IF($C10<=AB$6,"",VLOOKUP($C10,'[1]Precios gasóleo'!$D:$F,3,FALSE)/VLOOKUP(AB$6,'[1]Precios gasóleo'!$D:$F,3,FALSE)-1) ->  | AC10: =IF($C10<=AC$6,"",VLOOKUP($C10,'[1]Precios gasóleo'!$D:$F,3,FALSE)/VLOOKUP(AC$6,'[1]Precios gasóleo'!$D:$F,3,FALSE)-1) ->  | AD10: =IF($C10<=AD$6,"",VLOOKUP($C10,'[1]Precios gasóleo'!$D:$F,3,FALSE)/VLOOKUP(AD$6,'[1]Precios gasóleo'!$D:$F,3,FALSE)-1) ->  | AE10: =IF($C10<=AE$6,"",VLOOKUP($C10,'[1]Precios gasóleo'!$D:$F,3,FALSE)/VLOOKUP(AE$6,'[1]Precios gasóleo'!$D:$F,3,FALSE)-1) ->  | AF10: =IF($C10<=AF$6,"",VLOOKUP($C10,'[1]Precios gasóleo'!$D:$F,3,FALSE)/VLOOKUP(AF$6,'[1]Precios gasóleo'!$D:$F,3,FALSE)-1) ->  | AG10: =IF($C10<=AG$6,"",VLOOKUP($C10,'[1]Precios gasóleo'!$D:$F,3,FALSE)/VLOOKUP(AG$6,'[1]Precios gasóleo'!$D:$F,3,FALSE)-1) ->  | AH10: =IF($C10<=AH$6,"",VLOOKUP($C10,'[1]Precios gasóleo'!$D:$F,3,FALSE)/VLOOKUP(AH$6,'[1]Precios gasóleo'!$D:$F,3,FALSE)-1) ->  | AI10: =IF($C10<=AI$6,"",VLOOKUP($C10,'[1]Precios gasóleo'!$D:$F,3,FALSE)/VLOOKUP(AI$6,'[1]Precios gasóleo'!$D:$F,3,FALSE)-1) ->  | AJ10: =IF($C10<=AJ$6,"",VLOOKUP($C10,'[1]Precios gasóleo'!$D:$F,3,FALSE)/VLOOKUP(AJ$6,'[1]Precios gasóleo'!$D:$F,3,FALSE)-1) ->  | AK10: =IF($C10<=AK$6,"",VLOOKUP($C10,'[1]Precios gasóleo'!$D:$F,3,FALSE)/VLOOKUP(AK$6,'[1]Precios gasóleo'!$D:$F,3,FALSE)-1) ->  | AL10: =IF($C10<=AL$6,"",VLOOKUP($C10,'[1]Precios gasóleo'!$D:$F,3,FALSE)/VLOOKUP(AL$6,'[1]Precios gasóleo'!$D:$F,3,FALSE)-1) ->  | AM10: =IF($C10<=AM$6,"",VLOOKUP($C10,'[1]Precios gasóleo'!$D:$F,3,FALSE)/VLOOKUP(AM$6,'[1]Precios gasóleo'!$D:$F,3,FALSE)-1) ->  | AN10: =IF($C10<=AN$6,"",VLOOKUP($C10,'[1]Precios gasóleo'!$D:$F,3,FALSE)/VLOOKUP(AN$6,'[1]Precios gasóleo'!$D:$F,3,FALSE)-1) ->  | AO10: =IF($C10<=AO$6,"",VLOOKUP($C10,'[1]Precios gasóleo'!$D:$F,3,FALSE)/VLOOKUP(AO$6,'[1]Precios gasóleo'!$D:$F,3,FALSE)-1) ->  | AP10: =IF($C10<=AP$6,"",VLOOKUP($C10,'[1]Precios gasóleo'!$D:$F,3,FALSE)/VLOOKUP(AP$6,'[1]Precios gasóleo'!$D:$F,3,FALSE)-1) ->  | AQ10: =IF($C10<=AQ$6,"",VLOOKUP($C10,'[1]Precios gasóleo'!$D:$F,3,FALSE)/VLOOKUP(AQ$6,'[1]Precios gasóleo'!$D:$F,3,FALSE)-1) ->  | AR10: =IF($C10<=AR$6,"",VLOOKUP($C10,'[1]Precios gasóleo'!$D:$F,3,FALSE)/VLOOKUP(AR$6,'[1]Precios gasóleo'!$D:$F,3,FALSE)-1) ->  | AS10: =IF($C10<=AS$6,"",VLOOKUP($C10,'[1]Precios gasóleo'!$D:$F,3,FALSE)/VLOOKUP(AS$6,'[1]Precios gasóleo'!$D:$F,3,FALSE)-1) ->  | AT10: =IF($C10<=AT$6,"",VLOOKUP($C10,'[1]Precios gasóleo'!$D:$F,3,FALSE)/VLOOKUP(AT$6,'[1]Precios gasóleo'!$D:$F,3,FALSE)-1) ->  | AU10: =IF($C10<=AU$6,"",VLOOKUP($C10,'[1]Precios gasóleo'!$D:$F,3,FALSE)/VLOOKUP(AU$6,'[1]Precios gasóleo'!$D:$F,3,FALSE)-1) ->  | AV10: =IF($C10<=AV$6,"",VLOOKUP($C10,'[1]Precios gasóleo'!$D:$F,3,FALSE)/VLOOKUP(AV$6,'[1]Precios gasóleo'!$D:$F,3,FALSE)-1) ->  | AW10: =IF($C10<=AW$6,"",VLOOKUP($C10,'[1]Precios gasóleo'!$D:$F,3,FALSE)/VLOOKUP(AW$6,'[1]Precios gasóleo'!$D:$F,3,FALSE)-1) ->  | AX10: =IF($C10<=AX$6,"",VLOOKUP($C10,'[1]Precios gasóleo'!$D:$F,3,FALSE)/VLOOKUP(AX$6,'[1]Precios gasóleo'!$D:$F,3,FALSE)-1) ->  | AY10: =IF($C10<=AY$6,"",VLOOKUP($C10,'[1]Precios gasóleo'!$D:$F,3,FALSE)/VLOOKUP(AY$6,'[1]Precios gasóleo'!$D:$F,3,FALSE)-1) ->  | AZ10: =IF($C10<=AZ$6,"",VLOOKUP($C10,'[1]Precios gasóleo'!$D:$F,3,FALSE)/VLOOKUP(AZ$6,'[1]Precios gasóleo'!$D:$F,3,FALSE)-1) ->  | BA10: =IF($C10<=BA$6,"",VLOOKUP($C10,'[1]Precios gasóleo'!$D:$F,3,FALSE)/VLOOKUP(BA$6,'[1]Precios gasóleo'!$D:$F,3,FALSE)-1) ->  | BB10: =IF($C10<=BB$6,"",VLOOKUP($C10,'[1]Precios gasóleo'!$D:$F,3,FALSE)/VLOOKUP(BB$6,'[1]Precios gasóleo'!$D:$F,3,FALSE)-1) ->  | BC10: =IF($C10<=BC$6,"",VLOOKUP($C10,'[1]Precios gasóleo'!$D:$F,3,FALSE)/VLOOKUP(BC$6,'[1]Precios gasóleo'!$D:$F,3,FALSE)-1) ->  | BD10: =IF($C10<=BD$6,"",VLOOKUP($C10,'[1]Precios gasóleo'!$D:$F,3,FALSE)/VLOOKUP(BD$6,'[1]Precios gasóleo'!$D:$F,3,FALSE)-1) ->  | BE10: =IF($C10<=BE$6,"",VLOOKUP($C10,'[1]Precios gasóleo'!$D:$F,3,FALSE)/VLOOKUP(BE$6,'[1]Precios gasóleo'!$D:$F,3,FALSE)-1) ->  | BF10: =IF($C10<=BF$6,"",VLOOKUP($C10,'[1]Precios gasóleo'!$D:$F,3,FALSE)/VLOOKUP(BF$6,'[1]Precios gasóleo'!$D:$F,3,FALSE)-1) ->  | BG10: =IF($C10<=BG$6,"",VLOOKUP($C10,'[1]Precios gasóleo'!$D:$F,3,FALSE)/VLOOKUP(BG$6,'[1]Precios gasóleo'!$D:$F,3,FALSE)-1) ->  | BH10: =IF($C10<=BH$6,"",VLOOKUP($C10,'[1]Precios gasóleo'!$D:$F,3,FALSE)/VLOOKUP(BH$6,'[1]Precios gasóleo'!$D:$F,3,FALSE)-1) ->  | BI10: =IF($C10<=BI$6,"",VLOOKUP($C10,'[1]Precios gasóleo'!$D:$F,3,FALSE)/VLOOKUP(BI$6,'[1]Precios gasóleo'!$D:$F,3,FALSE)-1) ->  | BJ10: =IF($C10<=BJ$6,"",VLOOKUP($C10,'[1]Precios gasóleo'!$D:$F,3,FALSE)/VLOOKUP(BJ$6,'[1]Precios gasóleo'!$D:$F,3,FALSE)-1) ->  | BK10: =IF($C10<=BK$6,"",VLOOKUP($C10,'[1]Precios gasóleo'!$D:$F,3,FALSE)/VLOOKUP(BK$6,'[1]Precios gasóleo'!$D:$F,3,FALSE)-1) ->  | BL10: =IF($C10<=BL$6,"",VLOOKUP($C10,'[1]Precios gasóleo'!$D:$F,3,FALSE)/VLOOKUP(BL$6,'[1]Precios gasóleo'!$D:$F,3,FALSE)-1) ->  | BM10: =IF($C10<=BM$6,"",VLOOKUP($C10,'[1]Precios gasóleo'!$D:$F,3,FALSE)/VLOOKUP(BM$6,'[1]Precios gasóleo'!$D:$F,3,FALSE)-1) ->  | BN10: =IF($C10<=BN$6,"",VLOOKUP($C10,'[1]Precios gasóleo'!$D:$F,3,FALSE)/VLOOKUP(BN$6,'[1]Precios gasóleo'!$D:$F,3,FALSE)-1) ->  | BO10: =IF($C10<=BO$6,"",VLOOKUP($C10,'[1]Precios gasóleo'!$D:$F,3,FALSE)/VLOOKUP(BO$6,'[1]Precios gasóleo'!$D:$F,3,FALSE)-1) ->  | BP10: =IF($C10<=BP$6,"",VLOOKUP($C10,'[1]Precios gasóleo'!$D:$F,3,FALSE)/VLOOKUP(BP$6,'[1]Precios gasóleo'!$D:$F,3,FALSE)-1) ->  | BQ10: =IF($C10<=BQ$6,"",VLOOKUP($C10,'[1]Precios gasóleo'!$D:$F,3,FALSE)/VLOOKUP(BQ$6,'[1]Precios gasóleo'!$D:$F,3,FALSE)-1) ->  | BR10: =IF($C10<=BR$6,"",VLOOKUP($C10,'[1]Precios gasóleo'!$D:$F,3,FALSE)/VLOOKUP(BR$6,'[1]Precios gasóleo'!$D:$F,3,FALSE)-1) ->  | BS10: =IF($C10<=BS$6,"",VLOOKUP($C10,'[1]Precios gasóleo'!$D:$F,3,FALSE)/VLOOKUP(BS$6,'[1]Precios gasóleo'!$D:$F,3,FALSE)-1) ->  | BT10: =IF($C10<=BT$6,"",VLOOKUP($C10,'[1]Precios gasóleo'!$D:$F,3,FALSE)/VLOOKUP(BT$6,'[1]Precios gasóleo'!$D:$F,3,FALSE)-1) ->  | BU10: =IF($C10<=BU$6,"",VLOOKUP($C10,'[1]Precios gasóleo'!$D:$F,3,FALSE)/VLOOKUP(BU$6,'[1]Precios gasóleo'!$D:$F,3,FALSE)-1) ->  | BV10: =IF($C10<=BV$6,"",VLOOKUP($C10,'[1]Precios gasóleo'!$D:$F,3,FALSE)/VLOOKUP(BV$6,'[1]Precios gasóleo'!$D:$F,3,FALSE)-1) ->  | BW10: =IF($C10<=BW$6,"",VLOOKUP($C10,'[1]Precios gasóleo'!$D:$F,3,FALSE)/VLOOKUP(BW$6,'[1]Precios gasóleo'!$D:$F,3,FALSE)-1) ->  | BX10: =IF($C10<=BX$6,"",VLOOKUP($C10,'[1]Precios gasóleo'!$D:$F,3,FALSE)/VLOOKUP(BX$6,'[1]Precios gasóleo'!$D:$F,3,FALSE)-1) ->  | BY10: =IF($C10<=BY$6,"",VLOOKUP($C10,'[1]Precios gasóleo'!$D:$F,3,FALSE)/VLOOKUP(BY$6,'[1]Precios gasóleo'!$D:$F,3,FALSE)-1) ->  | BZ10: =IF($C10<=BZ$6,"",VLOOKUP($C10,'[1]Precios gasóleo'!$D:$F,3,FALSE)/VLOOKUP(BZ$6,'[1]Precios gasóleo'!$D:$F,3,FALSE)-1) ->  | CA10: =IF($C10<=CA$6,"",VLOOKUP($C10,'[1]Precios gasóleo'!$D:$F,3,FALSE)/VLOOKUP(CA$6,'[1]Precios gasóleo'!$D:$F,3,FALSE)-1) ->  | CB10: =IF($C10<=CB$6,"",VLOOKUP($C10,'[1]Precios gasóleo'!$D:$F,3,FALSE)/VLOOKUP(CB$6,'[1]Precios gasóleo'!$D:$F,3,FALSE)-1) ->  | CC10: =IF($C10<=CC$6,"",VLOOKUP($C10,'[1]Precios gasóleo'!$D:$F,3,FALSE)/VLOOKUP(CC$6,'[1]Precios gasóleo'!$D:$F,3,FALSE)-1) ->  | CD10: =IF($C10<=CD$6,"",VLOOKUP($C10,'[1]Precios gasóleo'!$D:$F,3,FALSE)/VLOOKUP(CD$6,'[1]Precios gasóleo'!$D:$F,3,FALSE)-1) ->  | CE10: =IF($C10<=CE$6,"",VLOOKUP($C10,'[1]Precios gasóleo'!$D:$F,3,FALSE)/VLOOKUP(CE$6,'[1]Precios gasóleo'!$D:$F,3,FALSE)-1) ->  | CF10: =IF($C10<=CF$6,"",VLOOKUP($C10,'[1]Precios gasóleo'!$D:$F,3,FALSE)/VLOOKUP(CF$6,'[1]Precios gasóleo'!$D:$F,3,FALSE)-1) ->  | CG10: =IF($C10<=CG$6,"",VLOOKUP($C10,'[1]Precios gasóleo'!$D:$F,3,FALSE)/VLOOKUP(CG$6,'[1]Precios gasóleo'!$D:$F,3,FALSE)-1) ->  | CH10: =IF($C10<=CH$6,"",VLOOKUP($C10,'[1]Precios gasóleo'!$D:$F,3,FALSE)/VLOOKUP(CH$6,'[1]Precios gasóleo'!$D:$F,3,FALSE)-1) ->  | CI10: =IF($C10<=CI$6,"",VLOOKUP($C10,'[1]Precios gasóleo'!$D:$F,3,FALSE)/VLOOKUP(CI$6,'[1]Precios gasóleo'!$D:$F,3,FALSE)-1) ->  | CJ10: =IF($C10<=CJ$6,"",VLOOKUP($C10,'[1]Precios gasóleo'!$D:$F,3,FALSE)/VLOOKUP(CJ$6,'[1]Precios gasóleo'!$D:$F,3,FALSE)-1) ->  | CK10: =IF($C10<=CK$6,"",VLOOKUP($C10,'[1]Precios gasóleo'!$D:$F,3,FALSE)/VLOOKUP(CK$6,'[1]Precios gasóleo'!$D:$F,3,FALSE)-1) ->  | CL10: =IF($C10<=CL$6,"",VLOOKUP($C10,'[1]Precios gasóleo'!$D:$F,3,FALSE)/VLOOKUP(CL$6,'[1]Precios gasóleo'!$D:$F,3,FALSE)-1) ->  | CM10: =IF($C10<=CM$6,"",VLOOKUP($C10,'[1]Precios gasóleo'!$D:$F,3,FALSE)/VLOOKUP(CM$6,'[1]Precios gasóleo'!$D:$F,3,FALSE)-1) ->  | CN10: =IF($C10<=CN$6,"",VLOOKUP($C10,'[1]Precios gasóleo'!$D:$F,3,FALSE)/VLOOKUP(CN$6,'[1]Precios gasóleo'!$D:$F,3,FALSE)-1) ->  | CO10: =IF($C10<=CO$6,"",VLOOKUP($C10,'[1]Precios gasóleo'!$D:$F,3,FALSE)/VLOOKUP(CO$6,'[1]Precios gasóleo'!$D:$F,3,FALSE)-1) ->  | CP10: =IF($C10<=CP$6,"",VLOOKUP($C10,'[1]Precios gasóleo'!$D:$F,3,FALSE)/VLOOKUP(CP$6,'[1]Precios gasóleo'!$D:$F,3,FALSE)-1) ->  | CQ10: =IF($C10<=CQ$6,"",VLOOKUP($C10,'[1]Precios gasóleo'!$D:$F,3,FALSE)/VLOOKUP(CQ$6,'[1]Precios gasóleo'!$D:$F,3,FALSE)-1) ->  | CR10: =IF($C10<=CR$6,"",VLOOKUP($C10,'[1]Precios gasóleo'!$D:$F,3,FALSE)/VLOOKUP(CR$6,'[1]Precios gasóleo'!$D:$F,3,FALSE)-1) ->  | CS10: =IF($C10<=CS$6,"",VLOOKUP($C10,'[1]Precios gasóleo'!$D:$F,3,FALSE)/VLOOKUP(CS$6,'[1]Precios gasóleo'!$D:$F,3,FALSE)-1) ->  | CT10: =IF($C10<=CT$6,"",VLOOKUP($C10,'[1]Precios gasóleo'!$D:$F,3,FALSE)/VLOOKUP(CT$6,'[1]Precios gasóleo'!$D:$F,3,FALSE)-1) ->  | CU10: =IF($C10<=CU$6,"",VLOOKUP($C10,'[1]Precios gasóleo'!$D:$F,3,FALSE)/VLOOKUP(CU$6,'[1]Precios gasóleo'!$D:$F,3,FALSE)-1) ->  | CV10: =IF($C10<=CV$6,"",VLOOKUP($C10,'[1]Precios gasóleo'!$D:$F,3,FALSE)/VLOOKUP(CV$6,'[1]Precios gasóleo'!$D:$F,3,FALSE)-1) ->  | CW10: =IF($C10<=CW$6,"",VLOOKUP($C10,'[1]Precios gasóleo'!$D:$F,3,FALSE)/VLOOKUP(CW$6,'[1]Precios gasóleo'!$D:$F,3,FALSE)-1) ->  | CX10: =IF($C10<=CX$6,"",VLOOKUP($C10,'[1]Precios gasóleo'!$D:$F,3,FALSE)/VLOOKUP(CX$6,'[1]Precios gasóleo'!$D:$F,3,FALSE)-1) ->  | CY10: =IF($C10<=CY$6,"",VLOOKUP($C10,'[1]Precios gasóleo'!$D:$F,3,FALSE)/VLOOKUP(CY$6,'[1]Precios gasóleo'!$D:$F,3,FALSE)-1) ->  | CZ10: =IF($C10<=CZ$6,"",VLOOKUP($C10,'[1]Precios gasóleo'!$D:$F,3,FALSE)/VLOOKUP(CZ$6,'[1]Precios gasóleo'!$D:$F,3,FALSE)-1) ->  | DA10: =IF($C10<=DA$6,"",VLOOKUP($C10,'[1]Precios gasóleo'!$D:$F,3,FALSE)/VLOOKUP(DA$6,'[1]Precios gasóleo'!$D:$F,3,FALSE)-1) ->  | DB10: =IF($C10<=DB$6,"",VLOOKUP($C10,'[1]Precios gasóleo'!$D:$F,3,FALSE)/VLOOKUP(DB$6,'[1]Precios gasóleo'!$D:$F,3,FALSE)-1) ->  | DC10: =IF($C10<=DC$6,"",VLOOKUP($C10,'[1]Precios gasóleo'!$D:$F,3,FALSE)/VLOOKUP(DC$6,'[1]Precios gasóleo'!$D:$F,3,FALSE)-1) ->  | DD10: =IF($C10<=DD$6,"",VLOOKUP($C10,'[1]Precios gasóleo'!$D:$F,3,FALSE)/VLOOKUP(DD$6,'[1]Precios gasóleo'!$D:$F,3,FALSE)-1) ->  | DE10: =IF($C10<=DE$6,"",VLOOKUP($C10,'[1]Precios gasóleo'!$D:$F,3,FALSE)/VLOOKUP(DE$6,'[1]Precios gasóleo'!$D:$F,3,FALSE)-1) ->  | DF10: =IF($C10<=DF$6,"",VLOOKUP($C10,'[1]Precios gasóleo'!$D:$F,3,FALSE)/VLOOKUP(DF$6,'[1]Precios gasóleo'!$D:$F,3,FALSE)-1) ->  | DG10: =IF($C10<=DG$6,"",VLOOKUP($C10,'[1]Precios gasóleo'!$D:$F,3,FALSE)/VLOOKUP(DG$6,'[1]Precios gasóleo'!$D:$F,3,FALSE)-1) ->  | DH10: =IF($C10<=DH$6,"",VLOOKUP($C10,'[1]Precios gasóleo'!$D:$F,3,FALSE)/VLOOKUP(DH$6,'[1]Precios gasóleo'!$D:$F,3,FALSE)-1) ->  | DI10: =IF($C10<=DI$6,"",VLOOKUP($C10,'[1]Precios gasóleo'!$D:$F,3,FALSE)/VLOOKUP(DI$6,'[1]Precios gasóleo'!$D:$F,3,FALSE)-1) ->  | DJ10: =IF($C10<=DJ$6,"",VLOOKUP($C10,'[1]Precios gasóleo'!$D:$F,3,FALSE)/VLOOKUP(DJ$6,'[1]Precios gasóleo'!$D:$F,3,FALSE)-1) ->  | DK10: =IF($C10<=DK$6,"",VLOOKUP($C10,'[1]Precios gasóleo'!$D:$F,3,FALSE)/VLOOKUP(DK$6,'[1]Precios gasóleo'!$D:$F,3,FALSE)-1) ->  | DL10: =IF($C10<=DL$6,"",VLOOKUP($C10,'[1]Precios gasóleo'!$D:$F,3,FALSE)/VLOOKUP(DL$6,'[1]Precios gasóleo'!$D:$F,3,FALSE)-1) ->  | DM10: =IF($C10<=DM$6,"",VLOOKUP($C10,'[1]Precios gasóleo'!$D:$F,3,FALSE)/VLOOKUP(DM$6,'[1]Precios gasóleo'!$D:$F,3,FALSE)-1) ->  | DN10: =IF($C10<=DN$6,"",VLOOKUP($C10,'[1]Precios gasóleo'!$D:$F,3,FALSE)/VLOOKUP(DN$6,'[1]Precios gasóleo'!$D:$F,3,FALSE)-1) ->  | DO10: =IF($C10<=DO$6,"",VLOOKUP($C10,'[1]Precios gasóleo'!$D:$F,3,FALSE)/VLOOKUP(DO$6,'[1]Precios gasóleo'!$D:$F,3,FALSE)-1) ->  | DP10: =IF($C10<=DP$6,"",VLOOKUP($C10,'[1]Precios gasóleo'!$D:$F,3,FALSE)/VLOOKUP(DP$6,'[1]Precios gasóleo'!$D:$F,3,FALSE)-1) ->  | DQ10: =IF($C10<=DQ$6,"",VLOOKUP($C10,'[1]Precios gasóleo'!$D:$F,3,FALSE)/VLOOKUP(DQ$6,'[1]Precios gasóleo'!$D:$F,3,FALSE)-1) ->  | DR10: =IF($C10<=DR$6,"",VLOOKUP($C10,'[1]Precios gasóleo'!$D:$F,3,FALSE)/VLOOKUP(DR$6,'[1]Precios gasóleo'!$D:$F,3,FALSE)-1) ->  | DS10: =IF($C10<=DS$6,"",VLOOKUP($C10,'[1]Precios gasóleo'!$D:$F,3,FALSE)/VLOOKUP(DS$6,'[1]Precios gasóleo'!$D:$F,3,FALSE)-1) ->  | DT10: =IF($C10<=DT$6,"",VLOOKUP($C10,'[1]Precios gasóleo'!$D:$F,3,FALSE)/VLOOKUP(DT$6,'[1]Precios gasóleo'!$D:$F,3,FALSE)-1) ->  | DU10: =IF($C10<=DU$6,"",VLOOKUP($C10,'[1]Precios gasóleo'!$D:$F,3,FALSE)/VLOOKUP(DU$6,'[1]Precios gasóleo'!$D:$F,3,FALSE)-1) ->  | DV10: =IF($C10<=DV$6,"",VLOOKUP($C10,'[1]Precios gasóleo'!$D:$F,3,FALSE)/VLOOKUP(DV$6,'[1]Precios gasóleo'!$D:$F,3,FALSE)-1) ->  | DW10: =IF($C10<=DW$6,"",VLOOKUP($C10,'[1]Precios gasóleo'!$D:$F,3,FALSE)/VLOOKUP(DW$6,'[1]Precios gasóleo'!$D:$F,3,FALSE)-1) ->  | DX10: =IF($C10<=DX$6,"",VLOOKUP($C10,'[1]Precios gasóleo'!$D:$F,3,FALSE)/VLOOKUP(DX$6,'[1]Precios gasóleo'!$D:$F,3,FALSE)-1) ->  | DY10: =IF($C10<=DY$6,"",VLOOKUP($C10,'[1]Precios gasóleo'!$D:$F,3,FALSE)/VLOOKUP(DY$6,'[1]Precios gasóleo'!$D:$F,3,FALSE)-1) ->  | DZ10: =IF($C10<=DZ$6,"",VLOOKUP($C10,'[1]Precios gasóleo'!$D:$F,3,FALSE)/VLOOKUP(DZ$6,'[1]Precios gasóleo'!$D:$F,3,FALSE)-1) ->  | EA10: =IF($C10<=EA$6,"",VLOOKUP($C10,'[1]Precios gasóleo'!$D:$F,3,FALSE)/VLOOKUP(EA$6,'[1]Precios gasóleo'!$D:$F,3,FALSE)-1) ->  | EB10: =IF($C10<=EB$6,"",VLOOKUP($C10,'[1]Precios gasóleo'!$D:$F,3,FALSE)/VLOOKUP(EB$6,'[1]Precios gasóleo'!$D:$F,3,FALSE)-1) ->  | EC10: =IF($C10<=EC$6,"",VLOOKUP($C10,'[1]Precios gasóleo'!$D:$F,3,FALSE)/VLOOKUP(EC$6,'[1]Precios gasóleo'!$D:$F,3,FALSE)-1) ->  | ED10: =IF($C10<=ED$6,"",VLOOKUP($C10,'[1]Precios gasóleo'!$D:$F,3,FALSE)/VLOOKUP(ED$6,'[1]Precios gasóleo'!$D:$F,3,FALSE)-1) ->  | EE10: =IF($C10<=EE$6,"",VLOOKUP($C10,'[1]Precios gasóleo'!$D:$F,3,FALSE)/VLOOKUP(EE$6,'[1]Precios gasóleo'!$D:$F,3,FALSE)-1) ->  | EF10: =IF($C10<=EF$6,"",VLOOKUP($C10,'[1]Precios gasóleo'!$D:$F,3,FALSE)/VLOOKUP(EF$6,'[1]Precios gasóleo'!$D:$F,3,FALSE)-1) ->  | EG10: =IF($C10<=EG$6,"",VLOOKUP($C10,'[1]Precios gasóleo'!$D:$F,3,FALSE)/VLOOKUP(EG$6,'[1]Precios gasóleo'!$D:$F,3,FALSE)-1) ->  | EH10: 2020-02-04
C11: 2020-02-11 | D11: =IF($C11<=D$6,"",VLOOKUP($C11,'[1]Precios gasóleo'!$D:$F,3,FALSE)/VLOOKUP(D$6,'[1]Precios gasóleo'!$D:$F,3,FALSE)-1) -> -0.04274492603 | E11: =IF($C11<=E$6,"",VLOOKUP($C11,'[1]Precios gasóleo'!$D:$F,3,FALSE)/VLOOKUP(E$6,'[1]Precios gasóleo'!$D:$F,3,FALSE)-1) -> -0.03708546583 | F11: =IF($C11<=F$6,"",VLOOKUP($C11,'[1]Precios gasóleo'!$D:$F,3,FALSE)/VLOOKUP(F$6,'[1]Precios gasóleo'!$D:$F,3,FALSE)-1) -> -0.02881946973 | G11: =IF($C11<=G$6,"",VLOOKUP($C11,'[1]Precios gasóleo'!$D:$F,3,FALSE)/VLOOKUP(G$6,'[1]Precios gasóleo'!$D:$F,3,FALSE)-1) -> -0.01723432127 | H11: =IF($C11<=H$6,"",VLOOKUP($C11,'[1]Precios gasóleo'!$D:$F,3,FALSE)/VLOOKUP(H$6,'[1]Precios gasóleo'!$D:$F,3,FALSE)-1) -> -0.004882942035 | I11: =IF($C11<=I$6,"",VLOOKUP($C11,'[1]Precios gasóleo'!$D:$F,3,FALSE)/VLOOKUP(I$6,'[1]Precios gasóleo'!$D:$F,3,FALSE)-1) ->  | J11: =IF($C11<=J$6,"",VLOOKUP($C11,'[1]Precios gasóleo'!$D:$F,3,FALSE)/VLOOKUP(J$6,'[1]Precios gasóleo'!$D:$F,3,FALSE)-1) ->  | K11: =IF($C11<=K$6,"",VLOOKUP($C11,'[1]Precios gasóleo'!$D:$F,3,FALSE)/VLOOKUP(K$6,'[1]Precios gasóleo'!$D:$F,3,FALSE)-1) ->  | L11: =IF($C11<=L$6,"",VLOOKUP($C11,'[1]Precios gasóleo'!$D:$F,3,FALSE)/VLOOKUP(L$6,'[1]Precios gasóleo'!$D:$F,3,FALSE)-1) ->  | M11: =IF($C11<=M$6,"",VLOOKUP($C11,'[1]Precios gasóleo'!$D:$F,3,FALSE)/VLOOKUP(M$6,'[1]Precios gasóleo'!$D:$F,3,FALSE)-1) ->  | N11: =IF($C11<=N$6,"",VLOOKUP($C11,'[1]Precios gasóleo'!$D:$F,3,FALSE)/VLOOKUP(N$6,'[1]Precios gasóleo'!$D:$F,3,FALSE)-1) ->  | O11: =IF($C11<=O$6,"",VLOOKUP($C11,'[1]Precios gasóleo'!$D:$F,3,FALSE)/VLOOKUP(O$6,'[1]Precios gasóleo'!$D:$F,3,FALSE)-1) ->  | P11: =IF($C11<=P$6,"",VLOOKUP($C11,'[1]Precios gasóleo'!$D:$F,3,FALSE)/VLOOKUP(P$6,'[1]Precios gasóleo'!$D:$F,3,FALSE)-1) ->  | Q11: =IF($C11<=Q$6,"",VLOOKUP($C11,'[1]Precios gasóleo'!$D:$F,3,FALSE)/VLOOKUP(Q$6,'[1]Precios gasóleo'!$D:$F,3,FALSE)-1) ->  | R11: =IF($C11<=R$6,"",VLOOKUP($C11,'[1]Precios gasóleo'!$D:$F,3,FALSE)/VLOOKUP(R$6,'[1]Precios gasóleo'!$D:$F,3,FALSE)-1) ->  | S11: =IF($C11<=S$6,"",VLOOKUP($C11,'[1]Precios gasóleo'!$D:$F,3,FALSE)/VLOOKUP(S$6,'[1]Precios gasóleo'!$D:$F,3,FALSE)-1) ->  | T11: =IF($C11<=T$6,"",VLOOKUP($C11,'[1]Precios gasóleo'!$D:$F,3,FALSE)/VLOOKUP(T$6,'[1]Precios gasóleo'!$D:$F,3,FALSE)-1) ->  | U11: =IF($C11<=U$6,"",VLOOKUP($C11,'[1]Precios gasóleo'!$D:$F,3,FALSE)/VLOOKUP(U$6,'[1]Precios gasóleo'!$D:$F,3,FALSE)-1) ->  | V11: =IF($C11<=V$6,"",VLOOKUP($C11,'[1]Precios gasóleo'!$D:$F,3,FALSE)/VLOOKUP(V$6,'[1]Precios gasóleo'!$D:$F,3,FALSE)-1) ->  | W11: =IF($C11<=W$6,"",VLOOKUP($C11,'[1]Precios gasóleo'!$D:$F,3,FALSE)/VLOOKUP(W$6,'[1]Precios gasóleo'!$D:$F,3,FALSE)-1) ->  | X11: =IF($C11<=X$6,"",VLOOKUP($C11,'[1]Precios gasóleo'!$D:$F,3,FALSE)/VLOOKUP(X$6,'[1]Precios gasóleo'!$D:$F,3,FALSE)-1) ->  | Y11: =IF($C11<=Y$6,"",VLOOKUP($C11,'[1]Precios gasóleo'!$D:$F,3,FALSE)/VLOOKUP(Y$6,'[1]Precios gasóleo'!$D:$F,3,FALSE)-1) ->  | Z11: =IF($C11<=Z$6,"",VLOOKUP($C11,'[1]Precios gasóleo'!$D:$F,3,FALSE)/VLOOKUP(Z$6,'[1]Precios gasóleo'!$D:$F,3,FALSE)-1) ->  | AA11: =IF($C11<=AA$6,"",VLOOKUP($C11,'[1]Precios gasóleo'!$D:$F,3,FALSE)/VLOOKUP(AA$6,'[1]Precios gasóleo'!$D:$F,3,FALSE)-1) ->  | AB11: =IF($C11<=AB$6,"",VLOOKUP($C11,'[1]Precios gasóleo'!$D:$F,3,FALSE)/VLOOKUP(AB$6,'[1]Precios gasóleo'!$D:$F,3,FALSE)-1) ->  | AC11: =IF($C11<=AC$6,"",VLOOKUP($C11,'[1]Precios gasóleo'!$D:$F,3,FALSE)/VLOOKUP(AC$6,'[1]Precios gasóleo'!$D:$F,3,FALSE)-1) ->  | AD11: =IF($C11<=AD$6,"",VLOOKUP($C11,'[1]Precios gasóleo'!$D:$F,3,FALSE)/VLOOKUP(AD$6,'[1]Precios gasóleo'!$D:$F,3,FALSE)-1) ->  | AE11: =IF($C11<=AE$6,"",VLOOKUP($C11,'[1]Precios gasóleo'!$D:$F,3,FALSE)/VLOOKUP(AE$6,'[1]Precios gasóleo'!$D:$F,3,FALSE)-1) ->  | AF11: =IF($C11<=AF$6,"",VLOOKUP($C11,'[1]Precios gasóleo'!$D:$F,3,FALSE)/VLOOKUP(AF$6,'[1]Precios gasóleo'!$D:$F,3,FALSE)-1) ->  | AG11: =IF($C11<=AG$6,"",VLOOKUP($C11,'[1]Precios gasóleo'!$D:$F,3,FALSE)/VLOOKUP(AG$6,'[1]Precios gasóleo'!$D:$F,3,FALSE)-1) ->  | AH11: =IF($C11<=AH$6,"",VLOOKUP($C11,'[1]Precios gasóleo'!$D:$F,3,FALSE)/VLOOKUP(AH$6,'[1]Precios gasóleo'!$D:$F,3,FALSE)-1) ->  | AI11: =IF($C11<=AI$6,"",VLOOKUP($C11,'[1]Precios gasóleo'!$D:$F,3,FALSE)/VLOOKUP(AI$6,'[1]Precios gasóleo'!$D:$F,3,FALSE)-1) ->  | AJ11: =IF($C11<=AJ$6,"",VLOOKUP($C11,'[1]Precios gasóleo'!$D:$F,3,FALSE)/VLOOKUP(AJ$6,'[1]Precios gasóleo'!$D:$F,3,FALSE)-1) ->  | AK11: =IF($C11<=AK$6,"",VLOOKUP($C11,'[1]Precios gasóleo'!$D:$F,3,FALSE)/VLOOKUP(AK$6,'[1]Precios gasóleo'!$D:$F,3,FALSE)-1) ->  | AL11: =IF($C11<=AL$6,"",VLOOKUP($C11,'[1]Precios gasóleo'!$D:$F,3,FALSE)/VLOOKUP(AL$6,'[1]Precios gasóleo'!$D:$F,3,FALSE)-1) ->  | AM11: =IF($C11<=AM$6,"",VLOOKUP($C11,'[1]Precios gasóleo'!$D:$F,3,FALSE)/VLOOKUP(AM$6,'[1]Precios gasóleo'!$D:$F,3,FALSE)-1) ->  | AN11: =IF($C11<=AN$6,"",VLOOKUP($C11,'[1]Precios gasóleo'!$D:$F,3,FALSE)/VLOOKUP(AN$6,'[1]Precios gasóleo'!$D:$F,3,FALSE)-1) ->  | AO11: =IF($C11<=AO$6,"",VLOOKUP($C11,'[1]Precios gasóleo'!$D:$F,3,FALSE)/VLOOKUP(AO$6,'[1]Precios gasóleo'!$D:$F,3,FALSE)-1) ->  | AP11: =IF($C11<=AP$6,"",VLOOKUP($C11,'[1]Precios gasóleo'!$D:$F,3,FALSE)/VLOOKUP(AP$6,'[1]Precios gasóleo'!$D:$F,3,FALSE)-1) ->  | AQ11: =IF($C11<=AQ$6,"",VLOOKUP($C11,'[1]Precios gasóleo'!$D:$F,3,FALSE)/VLOOKUP(AQ$6,'[1]Precios gasóleo'!$D:$F,3,FALSE)-1) ->  | AR11: =IF($C11<=AR$6,"",VLOOKUP($C11,'[1]Precios gasóleo'!$D:$F,3,FALSE)/VLOOKUP(AR$6,'[1]Precios gasóleo'!$D:$F,3,FALSE)-1) ->  | AS11: =IF($C11<=AS$6,"",VLOOKUP($C11,'[1]Precios gasóleo'!$D:$F,3,FALSE)/VLOOKUP(AS$6,'[1]Precios gasóleo'!$D:$F,3,FALSE)-1) ->  | AT11: =IF($C11<=AT$6,"",VLOOKUP($C11,'[1]Precios gasóleo'!$D:$F,3,FALSE)/VLOOKUP(AT$6,'[1]Precios gasóleo'!$D:$F,3,FALSE)-1) ->  | AU11: =IF($C11<=AU$6,"",VLOOKUP($C11,'[1]Precios gasóleo'!$D:$F,3,FALSE)/VLOOKUP(AU$6,'[1]Precios gasóleo'!$D:$F,3,FALSE)-1) ->  | AV11: =IF($C11<=AV$6,"",VLOOKUP($C11,'[1]Precios gasóleo'!$D:$F,3,FALSE)/VLOOKUP(AV$6,'[1]Precios gasóleo'!$D:$F,3,FALSE)-1) ->  | AW11: =IF($C11<=AW$6,"",VLOOKUP($C11,'[1]Precios gasóleo'!$D:$F,3,FALSE)/VLOOKUP(AW$6,'[1]Precios gasóleo'!$D:$F,3,FALSE)-1) ->  | AX11: =IF($C11<=AX$6,"",VLOOKUP($C11,'[1]Precios gasóleo'!$D:$F,3,FALSE)/VLOOKUP(AX$6,'[1]Precios gasóleo'!$D:$F,3,FALSE)-1) ->  | AY11: =IF($C11<=AY$6,"",VLOOKUP($C11,'[1]Precios gasóleo'!$D:$F,3,FALSE)/VLOOKUP(AY$6,'[1]Precios gasóleo'!$D:$F,3,FALSE)-1) ->  | AZ11: =IF($C11<=AZ$6,"",VLOOKUP($C11,'[1]Precios gasóleo'!$D:$F,3,FALSE)/VLOOKUP(AZ$6,'[1]Precios gasóleo'!$D:$F,3,FALSE)-1) ->  | BA11: =IF($C11<=BA$6,"",VLOOKUP($C11,'[1]Precios gasóleo'!$D:$F,3,FALSE)/VLOOKUP(BA$6,'[1]Precios gasóleo'!$D:$F,3,FALSE)-1) ->  | BB11: =IF($C11<=BB$6,"",VLOOKUP($C11,'[1]Precios gasóleo'!$D:$F,3,FALSE)/VLOOKUP(BB$6,'[1]Precios gasóleo'!$D:$F,3,FALSE)-1) ->  | BC11: =IF($C11<=BC$6,"",VLOOKUP($C11,'[1]Precios gasóleo'!$D:$F,3,FALSE)/VLOOKUP(BC$6,'[1]Precios gasóleo'!$D:$F,3,FALSE)-1) ->  | BD11: =IF($C11<=BD$6,"",VLOOKUP($C11,'[1]Precios gasóleo'!$D:$F,3,FALSE)/VLOOKUP(BD$6,'[1]Precios gasóleo'!$D:$F,3,FALSE)-1) ->  | BE11: =IF($C11<=BE$6,"",VLOOKUP($C11,'[1]Precios gasóleo'!$D:$F,3,FALSE)/VLOOKUP(BE$6,'[1]Precios gasóleo'!$D:$F,3,FALSE)-1) ->  | BF11: =IF($C11<=BF$6,"",VLOOKUP($C11,'[1]Precios gasóleo'!$D:$F,3,FALSE)/VLOOKUP(BF$6,'[1]Precios gasóleo'!$D:$F,3,FALSE)-1) ->  | BG11: =IF($C11<=BG$6,"",VLOOKUP($C11,'[1]Precios gasóleo'!$D:$F,3,FALSE)/VLOOKUP(BG$6,'[1]Precios gasóleo'!$D:$F,3,FALSE)-1) ->  | BH11: =IF($C11<=BH$6,"",VLOOKUP($C11,'[1]Precios gasóleo'!$D:$F,3,FALSE)/VLOOKUP(BH$6,'[1]Precios gasóleo'!$D:$F,3,FALSE)-1) ->  | BI11: =IF($C11<=BI$6,"",VLOOKUP($C11,'[1]Precios gasóleo'!$D:$F,3,FALSE)/VLOOKUP(BI$6,'[1]Precios gasóleo'!$D:$F,3,FALSE)-1) ->  | BJ11: =IF($C11<=BJ$6,"",VLOOKUP($C11,'[1]Precios gasóleo'!$D:$F,3,FALSE)/VLOOKUP(BJ$6,'[1]Precios gasóleo'!$D:$F,3,FALSE)-1) ->  | BK11: =IF($C11<=BK$6,"",VLOOKUP($C11,'[1]Precios gasóleo'!$D:$F,3,FALSE)/VLOOKUP(BK$6,'[1]Precios gasóleo'!$D:$F,3,FALSE)-1) ->  | BL11: =IF($C11<=BL$6,"",VLOOKUP($C11,'[1]Precios gasóleo'!$D:$F,3,FALSE)/VLOOKUP(BL$6,'[1]Precios gasóleo'!$D:$F,3,FALSE)-1) ->  | BM11: =IF($C11<=BM$6,"",VLOOKUP($C11,'[1]Precios gasóleo'!$D:$F,3,FALSE)/VLOOKUP(BM$6,'[1]Precios gasóleo'!$D:$F,3,FALSE)-1) ->  | BN11: =IF($C11<=BN$6,"",VLOOKUP($C11,'[1]Precios gasóleo'!$D:$F,3,FALSE)/VLOOKUP(BN$6,'[1]Precios gasóleo'!$D:$F,3,FALSE)-1) ->  | BO11: =IF($C11<=BO$6,"",VLOOKUP($C11,'[1]Precios gasóleo'!$D:$F,3,FALSE)/VLOOKUP(BO$6,'[1]Precios gasóleo'!$D:$F,3,FALSE)-1) ->  | BP11: =IF($C11<=BP$6,"",VLOOKUP($C11,'[1]Precios gasóleo'!$D:$F,3,FALSE)/VLOOKUP(BP$6,'[1]Precios gasóleo'!$D:$F,3,FALSE)-1) ->  | BQ11: =IF($C11<=BQ$6,"",VLOOKUP($C11,'[1]Precios gasóleo'!$D:$F,3,FALSE)/VLOOKUP(BQ$6,'[1]Precios gasóleo'!$D:$F,3,FALSE)-1) ->  | BR11: =IF($C11<=BR$6,"",VLOOKUP($C11,'[1]Precios gasóleo'!$D:$F,3,FALSE)/VLOOKUP(BR$6,'[1]Precios gasóleo'!$D:$F,3,FALSE)-1) ->  | BS11: =IF($C11<=BS$6,"",VLOOKUP($C11,'[1]Precios gasóleo'!$D:$F,3,FALSE)/VLOOKUP(BS$6,'[1]Precios gasóleo'!$D:$F,3,FALSE)-1) ->  | BT11: =IF($C11<=BT$6,"",VLOOKUP($C11,'[1]Precios gasóleo'!$D:$F,3,FALSE)/VLOOKUP(BT$6,'[1]Precios gasóleo'!$D:$F,3,FALSE)-1) ->  | BU11: =IF($C11<=BU$6,"",VLOOKUP($C11,'[1]Precios gasóleo'!$D:$F,3,FALSE)/VLOOKUP(BU$6,'[1]Precios gasóleo'!$D:$F,3,FALSE)-1) ->  | BV11: =IF($C11<=BV$6,"",VLOOKUP($C11,'[1]Precios gasóleo'!$D:$F,3,FALSE)/VLOOKUP(BV$6,'[1]Precios gasóleo'!$D:$F,3,FALSE)-1) ->  | BW11: =IF($C11<=BW$6,"",VLOOKUP($C11,'[1]Precios gasóleo'!$D:$F,3,FALSE)/VLOOKUP(BW$6,'[1]Precios gasóleo'!$D:$F,3,FALSE)-1) ->  | BX11: =IF($C11<=BX$6,"",VLOOKUP($C11,'[1]Precios gasóleo'!$D:$F,3,FALSE)/VLOOKUP(BX$6,'[1]Precios gasóleo'!$D:$F,3,FALSE)-1) ->  | BY11: =IF($C11<=BY$6,"",VLOOKUP($C11,'[1]Precios gasóleo'!$D:$F,3,FALSE)/VLOOKUP(BY$6,'[1]Precios gasóleo'!$D:$F,3,FALSE)-1) ->  | BZ11: =IF($C11<=BZ$6,"",VLOOKUP($C11,'[1]Precios gasóleo'!$D:$F,3,FALSE)/VLOOKUP(BZ$6,'[1]Precios gasóleo'!$D:$F,3,FALSE)-1) ->  | CA11: =IF($C11<=CA$6,"",VLOOKUP($C11,'[1]Precios gasóleo'!$D:$F,3,FALSE)/VLOOKUP(CA$6,'[1]Precios gasóleo'!$D:$F,3,FALSE)-1) ->  | CB11: =IF($C11<=CB$6,"",VLOOKUP($C11,'[1]Precios gasóleo'!$D:$F,3,FALSE)/VLOOKUP(CB$6,'[1]Precios gasóleo'!$D:$F,3,FALSE)-1) ->  | CC11: =IF($C11<=CC$6,"",VLOOKUP($C11,'[1]Precios gasóleo'!$D:$F,3,FALSE)/VLOOKUP(CC$6,'[1]Precios gasóleo'!$D:$F,3,FALSE)-1) ->  | CD11: =IF($C11<=CD$6,"",VLOOKUP($C11,'[1]Precios gasóleo'!$D:$F,3,FALSE)/VLOOKUP(CD$6,'[1]Precios gasóleo'!$D:$F,3,FALSE)-1) ->  | CE11: =IF($C11<=CE$6,"",VLOOKUP($C11,'[1]Precios gasóleo'!$D:$F,3,FALSE)/VLOOKUP(CE$6,'[1]Precios gasóleo'!$D:$F,3,FALSE)-1) ->  | CF11: =IF($C11<=CF$6,"",VLOOKUP($C11,'[1]Precios gasóleo'!$D:$F,3,FALSE)/VLOOKUP(CF$6,'[1]Precios gasóleo'!$D:$F,3,FALSE)-1) ->  | CG11: =IF($C11<=CG$6,"",VLOOKUP($C11,'[1]Precios gasóleo'!$D:$F,3,FALSE)/VLOOKUP(CG$6,'[1]Precios gasóleo'!$D:$F,3,FALSE)-1) ->  | CH11: =IF($C11<=CH$6,"",VLOOKUP($C11,'[1]Precios gasóleo'!$D:$F,3,FALSE)/VLOOKUP(CH$6,'[1]Precios gasóleo'!$D:$F,3,FALSE)-1) ->  | CI11: =IF($C11<=CI$6,"",VLOOKUP($C11,'[1]Precios gasóleo'!$D:$F,3,FALSE)/VLOOKUP(CI$6,'[1]Precios gasóleo'!$D:$F,3,FALSE)-1) ->  | CJ11: =IF($C11<=CJ$6,"",VLOOKUP($C11,'[1]Precios gasóleo'!$D:$F,3,FALSE)/VLOOKUP(CJ$6,'[1]Precios gasóleo'!$D:$F,3,FALSE)-1) ->  | CK11: =IF($C11<=CK$6,"",VLOOKUP($C11,'[1]Precios gasóleo'!$D:$F,3,FALSE)/VLOOKUP(CK$6,'[1]Precios gasóleo'!$D:$F,3,FALSE)-1) ->  | CL11: =IF($C11<=CL$6,"",VLOOKUP($C11,'[1]Precios gasóleo'!$D:$F,3,FALSE)/VLOOKUP(CL$6,'[1]Precios gasóleo'!$D:$F,3,FALSE)-1) ->  | CM11: =IF($C11<=CM$6,"",VLOOKUP($C11,'[1]Precios gasóleo'!$D:$F,3,FALSE)/VLOOKUP(CM$6,'[1]Precios gasóleo'!$D:$F,3,FALSE)-1) ->  | CN11: =IF($C11<=CN$6,"",VLOOKUP($C11,'[1]Precios gasóleo'!$D:$F,3,FALSE)/VLOOKUP(CN$6,'[1]Precios gasóleo'!$D:$F,3,FALSE)-1) ->  | CO11: =IF($C11<=CO$6,"",VLOOKUP($C11,'[1]Precios gasóleo'!$D:$F,3,FALSE)/VLOOKUP(CO$6,'[1]Precios gasóleo'!$D:$F,3,FALSE)-1) ->  | CP11: =IF($C11<=CP$6,"",VLOOKUP($C11,'[1]Precios gasóleo'!$D:$F,3,FALSE)/VLOOKUP(CP$6,'[1]Precios gasóleo'!$D:$F,3,FALSE)-1) ->  | CQ11: =IF($C11<=CQ$6,"",VLOOKUP($C11,'[1]Precios gasóleo'!$D:$F,3,FALSE)/VLOOKUP(CQ$6,'[1]Precios gasóleo'!$D:$F,3,FALSE)-1) ->  | CR11: =IF($C11<=CR$6,"",VLOOKUP($C11,'[1]Precios gasóleo'!$D:$F,3,FALSE)/VLOOKUP(CR$6,'[1]Precios gasóleo'!$D:$F,3,FALSE)-1) ->  | CS11: =IF($C11<=CS$6,"",VLOOKUP($C11,'[1]Precios gasóleo'!$D:$F,3,FALSE)/VLOOKUP(CS$6,'[1]Precios gasóleo'!$D:$F,3,FALSE)-1) ->  | CT11: =IF($C11<=CT$6,"",VLOOKUP($C11,'[1]Precios gasóleo'!$D:$F,3,FALSE)/VLOOKUP(CT$6,'[1]Precios gasóleo'!$D:$F,3,FALSE)-1) ->  | CU11: =IF($C11<=CU$6,"",VLOOKUP($C11,'[1]Precios gasóleo'!$D:$F,3,FALSE)/VLOOKUP(CU$6,'[1]Precios gasóleo'!$D:$F,3,FALSE)-1) ->  | CV11: =IF($C11<=CV$6,"",VLOOKUP($C11,'[1]Precios gasóleo'!$D:$F,3,FALSE)/VLOOKUP(CV$6,'[1]Precios gasóleo'!$D:$F,3,FALSE)-1) ->  | CW11: =IF($C11<=CW$6,"",VLOOKUP($C11,'[1]Precios gasóleo'!$D:$F,3,FALSE)/VLOOKUP(CW$6,'[1]Precios gasóleo'!$D:$F,3,FALSE)-1) ->  | CX11: =IF($C11<=CX$6,"",VLOOKUP($C11,'[1]Precios gasóleo'!$D:$F,3,FALSE)/VLOOKUP(CX$6,'[1]Precios gasóleo'!$D:$F,3,FALSE)-1) ->  | CY11: =IF($C11<=CY$6,"",VLOOKUP($C11,'[1]Precios gasóleo'!$D:$F,3,FALSE)/VLOOKUP(CY$6,'[1]Precios gasóleo'!$D:$F,3,FALSE)-1) ->  | CZ11: =IF($C11<=CZ$6,"",VLOOKUP($C11,'[1]Precios gasóleo'!$D:$F,3,FALSE)/VLOOKUP(CZ$6,'[1]Precios gasóleo'!$D:$F,3,FALSE)-1) ->  | DA11: =IF($C11<=DA$6,"",VLOOKUP($C11,'[1]Precios gasóleo'!$D:$F,3,FALSE)/VLOOKUP(DA$6,'[1]Precios gasóleo'!$D:$F,3,FALSE)-1) ->  | DB11: =IF($C11<=DB$6,"",VLOOKUP($C11,'[1]Precios gasóleo'!$D:$F,3,FALSE)/VLOOKUP(DB$6,'[1]Precios gasóleo'!$D:$F,3,FALSE)-1) ->  | DC11: =IF($C11<=DC$6,"",VLOOKUP($C11,'[1]Precios gasóleo'!$D:$F,3,FALSE)/VLOOKUP(DC$6,'[1]Precios gasóleo'!$D:$F,3,FALSE)-1) ->  | DD11: =IF($C11<=DD$6,"",VLOOKUP($C11,'[1]Precios gasóleo'!$D:$F,3,FALSE)/VLOOKUP(DD$6,'[1]Precios gasóleo'!$D:$F,3,FALSE)-1) ->  | DE11: =IF($C11<=DE$6,"",VLOOKUP($C11,'[1]Precios gasóleo'!$D:$F,3,FALSE)/VLOOKUP(DE$6,'[1]Precios gasóleo'!$D:$F,3,FALSE)-1) ->  | DF11: =IF($C11<=DF$6,"",VLOOKUP($C11,'[1]Precios gasóleo'!$D:$F,3,FALSE)/VLOOKUP(DF$6,'[1]Precios gasóleo'!$D:$F,3,FALSE)-1) ->  | DG11: =IF($C11<=DG$6,"",VLOOKUP($C11,'[1]Precios gasóleo'!$D:$F,3,FALSE)/VLOOKUP(DG$6,'[1]Precios gasóleo'!$D:$F,3,FALSE)-1) ->  | DH11: =IF($C11<=DH$6,"",VLOOKUP($C11,'[1]Precios gasóleo'!$D:$F,3,FALSE)/VLOOKUP(DH$6,'[1]Precios gasóleo'!$D:$F,3,FALSE)-1) ->  | DI11: =IF($C11<=DI$6,"",VLOOKUP($C11,'[1]Precios gasóleo'!$D:$F,3,FALSE)/VLOOKUP(DI$6,'[1]Precios gasóleo'!$D:$F,3,FALSE)-1) ->  | DJ11: =IF($C11<=DJ$6,"",VLOOKUP($C11,'[1]Precios gasóleo'!$D:$F,3,FALSE)/VLOOKUP(DJ$6,'[1]Precios gasóleo'!$D:$F,3,FALSE)-1) ->  | DK11: =IF($C11<=DK$6,"",VLOOKUP($C11,'[1]Precios gasóleo'!$D:$F,3,FALSE)/VLOOKUP(DK$6,'[1]Precios gasóleo'!$D:$F,3,FALSE)-1) ->  | DL11: =IF($C11<=DL$6,"",VLOOKUP($C11,'[1]Precios gasóleo'!$D:$F,3,FALSE)/VLOOKUP(DL$6,'[1]Precios gasóleo'!$D:$F,3,FALSE)-1) ->  | DM11: =IF($C11<=DM$6,"",VLOOKUP($C11,'[1]Precios gasóleo'!$D:$F,3,FALSE)/VLOOKUP(DM$6,'[1]Precios gasóleo'!$D:$F,3,FALSE)-1) ->  | DN11: =IF($C11<=DN$6,"",VLOOKUP($C11,'[1]Precios gasóleo'!$D:$F,3,FALSE)/VLOOKUP(DN$6,'[1]Precios gasóleo'!$D:$F,3,FALSE)-1) ->  | DO11: =IF($C11<=DO$6,"",VLOOKUP($C11,'[1]Precios gasóleo'!$D:$F,3,FALSE)/VLOOKUP(DO$6,'[1]Precios gasóleo'!$D:$F,3,FALSE)-1) ->  | DP11: =IF($C11<=DP$6,"",VLOOKUP($C11,'[1]Precios gasóleo'!$D:$F,3,FALSE)/VLOOKUP(DP$6,'[1]Precios gasóleo'!$D:$F,3,FALSE)-1) ->  | DQ11: =IF($C11<=DQ$6,"",VLOOKUP($C11,'[1]Precios gasóleo'!$D:$F,3,FALSE)/VLOOKUP(DQ$6,'[1]Precios gasóleo'!$D:$F,3,FALSE)-1) ->  | DR11: =IF($C11<=DR$6,"",VLOOKUP($C11,'[1]Precios gasóleo'!$D:$F,3,FALSE)/VLOOKUP(DR$6,'[1]Precios gasóleo'!$D:$F,3,FALSE)-1) ->  | DS11: =IF($C11<=DS$6,"",VLOOKUP($C11,'[1]Precios gasóleo'!$D:$F,3,FALSE)/VLOOKUP(DS$6,'[1]Precios gasóleo'!$D:$F,3,FALSE)-1) ->  | DT11: =IF($C11<=DT$6,"",VLOOKUP($C11,'[1]Precios gasóleo'!$D:$F,3,FALSE)/VLOOKUP(DT$6,'[1]Precios gasóleo'!$D:$F,3,FALSE)-1) ->  | DU11: =IF($C11<=DU$6,"",VLOOKUP($C11,'[1]Precios gasóleo'!$D:$F,3,FALSE)/VLOOKUP(DU$6,'[1]Precios gasóleo'!$D:$F,3,FALSE)-1) ->  | DV11: =IF($C11<=DV$6,"",VLOOKUP($C11,'[1]Precios gasóleo'!$D:$F,3,FALSE)/VLOOKUP(DV$6,'[1]Precios gasóleo'!$D:$F,3,FALSE)-1) ->  | DW11: =IF($C11<=DW$6,"",VLOOKUP($C11,'[1]Precios gasóleo'!$D:$F,3,FALSE)/VLOOKUP(DW$6,'[1]Precios gasóleo'!$D:$F,3,FALSE)-1) ->  | DX11: =IF($C11<=DX$6,"",VLOOKUP($C11,'[1]Precios gasóleo'!$D:$F,3,FALSE)/VLOOKUP(DX$6,'[1]Precios gasóleo'!$D:$F,3,FALSE)-1) ->  | DY11: =IF($C11<=DY$6,"",VLOOKUP($C11,'[1]Precios gasóleo'!$D:$F,3,FALSE)/VLOOKUP(DY$6,'[1]Precios gasóleo'!$D:$F,3,FALSE)-1) ->  | DZ11: =IF($C11<=DZ$6,"",VLOOKUP($C11,'[1]Precios gasóleo'!$D:$F,3,FALSE)/VLOOKUP(DZ$6,'[1]Precios gasóleo'!$D:$F,3,FALSE)-1) ->  | EA11: =IF($C11<=EA$6,"",VLOOKUP($C11,'[1]Precios gasóleo'!$D:$F,3,FALSE)/VLOOKUP(EA$6,'[1]Precios gasóleo'!$D:$F,3,FALSE)-1) ->  | EB11: =IF($C11<=EB$6,"",VLOOKUP($C11,'[1]Precios gasóleo'!$D:$F,3,FALSE)/VLOOKUP(EB$6,'[1]Precios gasóleo'!$D:$F,3,FALSE)-1) ->  | EC11: =IF($C11<=EC$6,"",VLOOKUP($C11,'[1]Precios gasóleo'!$D:$F,3,FALSE)/VLOOKUP(EC$6,'[1]Precios gasóleo'!$D:$F,3,FALSE)-1) ->  | ED11: =IF($C11<=ED$6,"",VLOOKUP($C11,'[1]Precios gasóleo'!$D:$F,3,FALSE)/VLOOKUP(ED$6,'[1]Precios gasóleo'!$D:$F,3,FALSE)-1) ->  | EE11: =IF($C11<=EE$6,"",VLOOKUP($C11,'[1]Precios gasóleo'!$D:$F,3,FALSE)/VLOOKUP(EE$6,'[1]Precios gasóleo'!$D:$F,3,FALSE)-1) ->  | EF11: =IF($C11<=EF$6,"",VLOOKUP($C11,'[1]Precios gasóleo'!$D:$F,3,FALSE)/VLOOKUP(EF$6,'[1]Precios gasóleo'!$D:$F,3,FALSE)-1) ->  | EG11: =IF($C11<=EG$6,"",VLOOKUP($C11,'[1]Precios gasóleo'!$D:$F,3,FALSE)/VLOOKUP(EG$6,'[1]Precios gasóleo'!$D:$F,3,FALSE)-1) ->  | EH11: 2020-02-11
C12: 2020-02-18 | D12: =IF($C12<=D$6,"",VLOOKUP($C12,'[1]Precios gasóleo'!$D:$F,3,FALSE)/VLOOKUP(D$6,'[1]Precios gasóleo'!$D:$F,3,FALSE)-1) -> -0.04178795008 | E12: =IF($C12<=E$6,"",VLOOKUP($C12,'[1]Precios gasóleo'!$D:$F,3,FALSE)/VLOOKUP(E$6,'[1]Precios gasóleo'!$D:$F,3,FALSE)-1) -> -0.03612283207 | F12: =IF($C12<=F$6,"",VLOOKUP($C12,'[1]Precios gasóleo'!$D:$F,3,FALSE)/VLOOKUP(F$6,'[1]Precios gasóleo'!$D:$F,3,FALSE)-1) -> -0.02784857238 | G12: =IF($C12<=G$6,"",VLOOKUP($C12,'[1]Precios gasóleo'!$D:$F,3,FALSE)/VLOOKUP(G$6,'[1]Precios gasóleo'!$D:$F,3,FALSE)-1) -> -0.01625184215 | H12: =IF($C12<=H$6,"",VLOOKUP($C12,'[1]Precios gasóleo'!$D:$F,3,FALSE)/VLOOKUP(H$6,'[1]Precios gasóleo'!$D:$F,3,FALSE)-1) -> -0.003888115135 | I12: =IF($C12<=I$6,"",VLOOKUP($C12,'[1]Precios gasóleo'!$D:$F,3,FALSE)/VLOOKUP(I$6,'[1]Precios gasóleo'!$D:$F,3,FALSE)-1) -> 0.0009997084184 | J12: =IF($C12<=J$6,"",VLOOKUP($C12,'[1]Precios gasóleo'!$D:$F,3,FALSE)/VLOOKUP(J$6,'[1]Precios gasóleo'!$D:$F,3,FALSE)-1) ->  | K12: =IF($C12<=K$6,"",VLOOKUP($C12,'[1]Precios gasóleo'!$D:$F,3,FALSE)/VLOOKUP(K$6,'[1]Precios gasóleo'!$D:$F,3,FALSE)-1) ->  | L12: =IF($C12<=L$6,"",VLOOKUP($C12,'[1]Precios gasóleo'!$D:$F,3,FALSE)/VLOOKUP(L$6,'[1]Precios gasóleo'!$D:$F,3,FALSE)-1) ->  | M12: =IF($C12<=M$6,"",VLOOKUP($C12,'[1]Precios gasóleo'!$D:$F,3,FALSE)/VLOOKUP(M$6,'[1]Precios gasóleo'!$D:$F,3,FALSE)-1) ->  | N12: =IF($C12<=N$6,"",VLOOKUP($C12,'[1]Precios gasóleo'!$D:$F,3,FALSE)/VLOOKUP(N$6,'[1]Precios gasóleo'!$D:$F,3,FALSE)-1) ->  | O12: =IF($C12<=O$6,"",VLOOKUP($C12,'[1]Precios gasóleo'!$D:$F,3,FALSE)/VLOOKUP(O$6,'[1]Precios gasóleo'!$D:$F,3,FALSE)-1) ->  | P12: =IF($C12<=P$6,"",VLOOKUP($C12,'[1]Precios gasóleo'!$D:$F,3,FALSE)/VLOOKUP(P$6,'[1]Precios gasóleo'!$D:$F,3,FALSE)-1) ->  | Q12: =IF($C12<=Q$6,"",VLOOKUP($C12,'[1]Precios gasóleo'!$D:$F,3,FALSE)/VLOOKUP(Q$6,'[1]Precios gasóleo'!$D:$F,3,FALSE)-1) ->  | R12: =IF($C12<=R$6,"",VLOOKUP($C12,'[1]Precios gasóleo'!$D:$F,3,FALSE)/VLOOKUP(R$6,'[1]Precios gasóleo'!$D:$F,3,FALSE)-1) ->  | S12: =IF($C12<=S$6,"",VLOOKUP($C12,'[1]Precios gasóleo'!$D:$F,3,FALSE)/VLOOKUP(S$6,'[1]Precios gasóleo'!$D:$F,3,FALSE)-1) ->  | T12: =IF($C12<=T$6,"",VLOOKUP($C12,'[1]Precios gasóleo'!$D:$F,3,FALSE)/VLOOKUP(T$6,'[1]Precios gasóleo'!$D:$F,3,FALSE)-1) ->  | U12: =IF($C12<=U$6,"",VLOOKUP($C12,'[1]Precios gasóleo'!$D:$F,3,FALSE)/VLOOKUP(U$6,'[1]Precios gasóleo'!$D:$F,3,FALSE)-1) ->  | V12: =IF($C12<=V$6,"",VLOOKUP($C12,'[1]Precios gasóleo'!$D:$F,3,FALSE)/VLOOKUP(V$6,'[1]Precios gasóleo'!$D:$F,3,FALSE)-1) ->  | W12: =IF($C12<=W$6,"",VLOOKUP($C12,'[1]Precios gasóleo'!$D:$F,3,FALSE)/VLOOKUP(W$6,'[1]Precios gasóleo'!$D:$F,3,FALSE)-1) ->  | X12: =IF($C12<=X$6,"",VLOOKUP($C12,'[1]Precios gasóleo'!$D:$F,3,FALSE)/VLOOKUP(X$6,'[1]Precios gasóleo'!$D:$F,3,FALSE)-1) ->  | Y12: =IF($C12<=Y$6,"",VLOOKUP($C12,'[1]Precios gasóleo'!$D:$F,3,FALSE)/VLOOKUP(Y$6,'[1]Precios gasóleo'!$D:$F,3,FALSE)-1) ->  | Z12: =IF($C12<=Z$6,"",VLOOKUP($C12,'[1]Precios gasóleo'!$D:$F,3,FALSE)/VLOOKUP(Z$6,'[1]Precios gasóleo'!$D:$F,3,FALSE)-1) ->  | AA12: =IF($C12<=AA$6,"",VLOOKUP($C12,'[1]Precios gasóleo'!$D:$F,3,FALSE)/VLOOKUP(AA$6,'[1]Precios gasóleo'!$D:$F,3,FALSE)-1) ->  | AB12: =IF($C12<=AB$6,"",VLOOKUP($C12,'[1]Precios gasóleo'!$D:$F,3,FALSE)/VLOOKUP(AB$6,'[1]Precios gasóleo'!$D:$F,3,FALSE)-1) ->  | AC12: =IF($C12<=AC$6,"",VLOOKUP($C12,'[1]Precios gasóleo'!$D:$F,3,FALSE)/VLOOKUP(AC$6,'[1]Precios gasóleo'!$D:$F,3,FALSE)-1) ->  | AD12: =IF($C12<=AD$6,"",VLOOKUP($C12,'[1]Precios gasóleo'!$D:$F,3,FALSE)/VLOOKUP(AD$6,'[1]Precios gasóleo'!$D:$F,3,FALSE)-1) ->  | AE12: =IF($C12<=AE$6,"",VLOOKUP($C12,'[1]Precios gasóleo'!$D:$F,3,FALSE)/VLOOKUP(AE$6,'[1]Precios gasóleo'!$D:$F,3,FALSE)-1) ->  | AF12: =IF($C12<=AF$6,"",VLOOKUP($C12,'[1]Precios gasóleo'!$D:$F,3,FALSE)/VLOOKUP(AF$6,'[1]Precios gasóleo'!$D:$F,3,FALSE)-1) ->  | AG12: =IF($C12<=AG$6,"",VLOOKUP($C12,'[1]Precios gasóleo'!$D:$F,3,FALSE)/VLOOKUP(AG$6,'[1]Precios gasóleo'!$D:$F,3,FALSE)-1) ->  | AH12: =IF($C12<=AH$6,"",VLOOKUP($C12,'[1]Precios gasóleo'!$D:$F,3,FALSE)/VLOOKUP(AH$6,'[1]Precios gasóleo'!$D:$F,3,FALSE)-1) ->  | AI12: =IF($C12<=AI$6,"",VLOOKUP($C12,'[1]Precios gasóleo'!$D:$F,3,FALSE)/VLOOKUP(AI$6,'[1]Precios gasóleo'!$D:$F,3,FALSE)-1) ->  | AJ12: =IF($C12<=AJ$6,"",VLOOKUP($C12,'[1]Precios gasóleo'!$D:$F,3,FALSE)/VLOOKUP(AJ$6,'[1]Precios gasóleo'!$D:$F,3,FALSE)-1) ->  | AK12: =IF($C12<=AK$6,"",VLOOKUP($C12,'[1]Precios gasóleo'!$D:$F,3,FALSE)/VLOOKUP(AK$6,'[1]Precios gasóleo'!$D:$F,3,FALSE)-1) ->  | AL12: =IF($C12<=AL$6,"",VLOOKUP($C12,'[1]Precios gasóleo'!$D:$F,3,FALSE)/VLOOKUP(AL$6,'[1]Precios gasóleo'!$D:$F,3,FALSE)-1) ->  | AM12: =IF($C12<=AM$6,"",VLOOKUP($C12,'[1]Precios gasóleo'!$D:$F,3,FALSE)/VLOOKUP(AM$6,'[1]Precios gasóleo'!$D:$F,3,FALSE)-1) ->  | AN12: =IF($C12<=AN$6,"",VLOOKUP($C12,'[1]Precios gasóleo'!$D:$F,3,FALSE)/VLOOKUP(AN$6,'[1]Precios gasóleo'!$D:$F,3,FALSE)-1) ->  | AO12: =IF($C12<=AO$6,"",VLOOKUP($C12,'[1]Precios gasóleo'!$D:$F,3,FALSE)/VLOOKUP(AO$6,'[1]Precios gasóleo'!$D:$F,3,FALSE)-1) ->  | AP12: =IF($C12<=AP$6,"",VLOOKUP($C12,'[1]Precios gasóleo'!$D:$F,3,FALSE)/VLOOKUP(AP$6,'[1]Precios gasóleo'!$D:$F,3,FALSE)-1) ->  | AQ12: =IF($C12<=AQ$6,"",VLOOKUP($C12,'[1]Precios gasóleo'!$D:$F,3,FALSE)/VLOOKUP(AQ$6,'[1]Precios gasóleo'!$D:$F,3,FALSE)-1) ->  | AR12: =IF($C12<=AR$6,"",VLOOKUP($C12,'[1]Precios gasóleo'!$D:$F,3,FALSE)/VLOOKUP(AR$6,'[1]Precios gasóleo'!$D:$F,3,FALSE)-1) ->  | AS12: =IF($C12<=AS$6,"",VLOOKUP($C12,'[1]Precios gasóleo'!$D:$F,3,FALSE)/VLOOKUP(AS$6,'[1]Precios gasóleo'!$D:$F,3,FALSE)-1) ->  | AT12: =IF($C12<=AT$6,"",VLOOKUP($C12,'[1]Precios gasóleo'!$D:$F,3,FALSE)/VLOOKUP(AT$6,'[1]Precios gasóleo'!$D:$F,3,FALSE)-1) ->  | AU12: =IF($C12<=AU$6,"",VLOOKUP($C12,'[1]Precios gasóleo'!$D:$F,3,FALSE)/VLOOKUP(AU$6,'[1]Precios gasóleo'!$D:$F,3,FALSE)-1) ->  | AV12: =IF($C12<=AV$6,"",VLOOKUP($C12,'[1]Precios gasóleo'!$D:$F,3,FALSE)/VLOOKUP(AV$6,'[1]Precios gasóleo'!$D:$F,3,FALSE)-1) ->  | AW12: =IF($C12<=AW$6,"",VLOOKUP($C12,'[1]Precios gasóleo'!$D:$F,3,FALSE)/VLOOKUP(AW$6,'[1]Precios gasóleo'!$D:$F,3,FALSE)-1) ->  | AX12: =IF($C12<=AX$6,"",VLOOKUP($C12,'[1]Precios gasóleo'!$D:$F,3,FALSE)/VLOOKUP(AX$6,'[1]Precios gasóleo'!$D:$F,3,FALSE)-1) ->  | AY12: =IF($C12<=AY$6,"",VLOOKUP($C12,'[1]Precios gasóleo'!$D:$F,3,FALSE)/VLOOKUP(AY$6,'[1]Precios gasóleo'!$D:$F,3,FALSE)-1) ->  | AZ12: =IF($C12<=AZ$6,"",VLOOKUP($C12,'[1]Precios gasóleo'!$D:$F,3,FALSE)/VLOOKUP(AZ$6,'[1]Precios gasóleo'!$D:$F,3,FALSE)-1) ->  | BA12: =IF($C12<=BA$6,"",VLOOKUP($C12,'[1]Precios gasóleo'!$D:$F,3,FALSE)/VLOOKUP(BA$6,'[1]Precios gasóleo'!$D:$F,3,FALSE)-1) ->  | BB12: =IF($C12<=BB$6,"",VLOOKUP($C12,'[1]Precios gasóleo'!$D:$F,3,FALSE)/VLOOKUP(BB$6,'[1]Precios gasóleo'!$D:$F,3,FALSE)-1) ->  | BC12: =IF($C12<=BC$6,"",VLOOKUP($C12,'[1]Precios gasóleo'!$D:$F,3,FALSE)/VLOOKUP(BC$6,'[1]Precios gasóleo'!$D:$F,3,FALSE)-1) ->  | BD12: =IF($C12<=BD$6,"",VLOOKUP($C12,'[1]Precios gasóleo'!$D:$F,3,FALSE)/VLOOKUP(BD$6,'[1]Precios gasóleo'!$D:$F,3,FALSE)-1) ->  | BE12: =IF($C12<=BE$6,"",VLOOKUP($C12,'[1]Precios gasóleo'!$D:$F,3,FALSE)/VLOOKUP(BE$6,'[1]Precios gasóleo'!$D:$F,3,FALSE)-1) ->  | BF12: =IF($C12<=BF$6,"",VLOOKUP($C12,'[1]Precios gasóleo'!$D:$F,3,FALSE)/VLOOKUP(BF$6,'[1]Precios gasóleo'!$D:$F,3,FALSE)-1) ->  | BG12: =IF($C12<=BG$6,"",VLOOKUP($C12,'[1]Precios gasóleo'!$D:$F,3,FALSE)/VLOOKUP(BG$6,'[1]Precios gasóleo'!$D:$F,3,FALSE)-1) ->  | BH12: =IF($C12<=BH$6,"",VLOOKUP($C12,'[1]Precios gasóleo'!$D:$F,3,FALSE)/VLOOKUP(BH$6,'[1]Precios gasóleo'!$D:$F,3,FALSE)-1) ->  | BI12: =IF($C12<=BI$6,"",VLOOKUP($C12,'[1]Precios gasóleo'!$D:$F,3,FALSE)/VLOOKUP(BI$6,'[1]Precios gasóleo'!$D:$F,3,FALSE)-1) ->  | BJ12: =IF($C12<=BJ$6,"",VLOOKUP($C12,'[1]Precios gasóleo'!$D:$F,3,FALSE)/VLOOKUP(BJ$6,'[1]Precios gasóleo'!$D:$F,3,FALSE)-1) ->  | BK12: =IF($C12<=BK$6,"",VLOOKUP($C12,'[1]Precios gasóleo'!$D:$F,3,FALSE)/VLOOKUP(BK$6,'[1]Precios gasóleo'!$D:$F,3,FALSE)-1) ->  | BL12: =IF($C12<=BL$6,"",VLOOKUP($C12,'[1]Precios gasóleo'!$D:$F,3,FALSE)/VLOOKUP(BL$6,'[1]Precios gasóleo'!$D:$F,3,FALSE)-1) ->  | BM12: =IF($C12<=BM$6,"",VLOOKUP($C12,'[1]Precios gasóleo'!$D:$F,3,FALSE)/VLOOKUP(BM$6,'[1]Precios gasóleo'!$D:$F,3,FALSE)-1) ->  | BN12: =IF($C12<=BN$6,"",VLOOKUP($C12,'[1]Precios gasóleo'!$D:$F,3,FALSE)/VLOOKUP(BN$6,'[1]Precios gasóleo'!$D:$F,3,FALSE)-1) ->  | BO12: =IF($C12<=BO$6,"",VLOOKUP($C12,'[1]Precios gasóleo'!$D:$F,3,FALSE)/VLOOKUP(BO$6,'[1]Precios gasóleo'!$D:$F,3,FALSE)-1) ->  | BP12: =IF($C12<=BP$6,"",VLOOKUP($C12,'[1]Precios gasóleo'!$D:$F,3,FALSE)/VLOOKUP(BP$6,'[1]Precios gasóleo'!$D:$F,3,FALSE)-1) ->  | BQ12: =IF($C12<=BQ$6,"",VLOOKUP($C12,'[1]Precios gasóleo'!$D:$F,3,FALSE)/VLOOKUP(BQ$6,'[1]Precios gasóleo'!$D:$F,3,FALSE)-1) ->  | BR12: =IF($C12<=BR$6,"",VLOOKUP($C12,'[1]Precios gasóleo'!$D:$F,3,FALSE)/VLOOKUP(BR$6,'[1]Precios gasóleo'!$D:$F,3,FALSE)-1) ->  | BS12: =IF($C12<=BS$6,"",VLOOKUP($C12,'[1]Precios gasóleo'!$D:$F,3,FALSE)/VLOOKUP(BS$6,'[1]Precios gasóleo'!$D:$F,3,FALSE)-1) ->  | BT12: =IF($C12<=BT$6,"",VLOOKUP($C12,'[1]Precios gasóleo'!$D:$F,3,FALSE)/VLOOKUP(BT$6,'[1]Precios gasóleo'!$D:$F,3,FALSE)-1) ->  | BU12: =IF($C12<=BU$6,"",VLOOKUP($C12,'[1]Precios gasóleo'!$D:$F,3,FALSE)/VLOOKUP(BU$6,'[1]Precios gasóleo'!$D:$F,3,FALSE)-1) ->  | BV12: =IF($C12<=BV$6,"",VLOOKUP($C12,'[1]Precios gasóleo'!$D:$F,3,FALSE)/VLOOKUP(BV$6,'[1]Precios gasóleo'!$D:$F,3,FALSE)-1) ->  | BW12: =IF($C12<=BW$6,"",VLOOKUP($C12,'[1]Precios gasóleo'!$D:$F,3,FALSE)/VLOOKUP(BW$6,'[1]Precios gasóleo'!$D:$F,3,FALSE)-1) ->  | BX12: =IF($C12<=BX$6,"",VLOOKUP($C12,'[1]Precios gasóleo'!$D:$F,3,FALSE)/VLOOKUP(BX$6,'[1]Precios gasóleo'!$D:$F,3,FALSE)-1) ->  | BY12: =IF($C12<=BY$6,"",VLOOKUP($C12,'[1]Precios gasóleo'!$D:$F,3,FALSE)/VLOOKUP(BY$6,'[1]Precios gasóleo'!$D:$F,3,FALSE)-1) ->  | BZ12: =IF($C12<=BZ$6,"",VLOOKUP($C12,'[1]Precios gasóleo'!$D:$F,3,FALSE)/VLOOKUP(BZ$6,'[1]Precios gasóleo'!$D:$F,3,FALSE)-1) ->  | CA12: =IF($C12<=CA$6,"",VLOOKUP($C12,'[1]Precios gasóleo'!$D:$F,3,FALSE)/VLOOKUP(CA$6,'[1]Precios gasóleo'!$D:$F,3,FALSE)-1) ->  | CB12: =IF($C12<=CB$6,"",VLOOKUP($C12,'[1]Precios gasóleo'!$D:$F,3,FALSE)/VLOOKUP(CB$6,'[1]Precios gasóleo'!$D:$F,3,FALSE)-1) ->  | CC12: =IF($C12<=CC$6,"",VLOOKUP($C12,'[1]Precios gasóleo'!$D:$F,3,FALSE)/VLOOKUP(CC$6,'[1]Precios gasóleo'!$D:$F,3,FALSE)-1) ->  | CD12: =IF($C12<=CD$6,"",VLOOKUP($C12,'[1]Precios gasóleo'!$D:$F,3,FALSE)/VLOOKUP(CD$6,'[1]Precios gasóleo'!$D:$F,3,FALSE)-1) ->  | CE12: =IF($C12<=CE$6,"",VLOOKUP($C12,'[1]Precios gasóleo'!$D:$F,3,FALSE)/VLOOKUP(CE$6,'[1]Precios gasóleo'!$D:$F,3,FALSE)-1) ->  | CF12: =IF($C12<=CF$6,"",VLOOKUP($C12,'[1]Precios gasóleo'!$D:$F,3,FALSE)/VLOOKUP(CF$6,'[1]Precios gasóleo'!$D:$F,3,FALSE)-1) ->  | CG12: =IF($C12<=CG$6,"",VLOOKUP($C12,'[1]Precios gasóleo'!$D:$F,3,FALSE)/VLOOKUP(CG$6,'[1]Precios gasóleo'!$D:$F,3,FALSE)-1) ->  | CH12: =IF($C12<=CH$6,"",VLOOKUP($C12,'[1]Precios gasóleo'!$D:$F,3,FALSE)/VLOOKUP(CH$6,'[1]Precios gasóleo'!$D:$F,3,FALSE)-1) ->  | CI12: =IF($C12<=CI$6,"",VLOOKUP($C12,'[1]Precios gasóleo'!$D:$F,3,FALSE)/VLOOKUP(CI$6,'[1]Precios gasóleo'!$D:$F,3,FALSE)-1) ->  | CJ12: =IF($C12<=CJ$6,"",VLOOKUP($C12,'[1]Precios gasóleo'!$D:$F,3,FALSE)/VLOOKUP(CJ$6,'[1]Precios gasóleo'!$D:$F,3,FALSE)-1) ->  | CK12: =IF($C12<=CK$6,"",VLOOKUP($C12,'[1]Precios gasóleo'!$D:$F,3,FALSE)/VLOOKUP(CK$6,'[1]Precios gasóleo'!$D:$F,3,FALSE)-1) ->  | CL12: =IF($C12<=CL$6,"",VLOOKUP($C12,'[1]Precios gasóleo'!$D:$F,3,FALSE)/VLOOKUP(CL$6,'[1]Precios gasóleo'!$D:$F,3,FALSE)-1) ->  | CM12: =IF($C12<=CM$6,"",VLOOKUP($C12,'[1]Precios gasóleo'!$D:$F,3,FALSE)/VLOOKUP(CM$6,'[1]Precios gasóleo'!$D:$F,3,FALSE)-1) ->  | CN12: =IF($C12<=CN$6,"",VLOOKUP($C12,'[1]Precios gasóleo'!$D:$F,3,FALSE)/VLOOKUP(CN$6,'[1]Precios gasóleo'!$D:$F,3,FALSE)-1) ->  | CO12: =IF($C12<=CO$6,"",VLOOKUP($C12,'[1]Precios gasóleo'!$D:$F,3,FALSE)/VLOOKUP(CO$6,'[1]Precios gasóleo'!$D:$F,3,FALSE)-1) ->  | CP12: =IF($C12<=CP$6,"",VLOOKUP($C12,'[1]Precios gasóleo'!$D:$F,3,FALSE)/VLOOKUP(CP$6,'[1]Precios gasóleo'!$D:$F,3,FALSE)-1) ->  | CQ12: =IF($C12<=CQ$6,"",VLOOKUP($C12,'[1]Precios gasóleo'!$D:$F,3,FALSE)/VLOOKUP(CQ$6,'[1]Precios gasóleo'!$D:$F,3,FALSE)-1) ->  | CR12: =IF($C12<=CR$6,"",VLOOKUP($C12,'[1]Precios gasóleo'!$D:$F,3,FALSE)/VLOOKUP(CR$6,'[1]Precios gasóleo'!$D:$F,3,FALSE)-1) ->  | CS12: =IF($C12<=CS$6,"",VLOOKUP($C12,'[1]Precios gasóleo'!$D:$F,3,FALSE)/VLOOKUP(CS$6,'[1]Precios gasóleo'!$D:$F,3,FALSE)-1) ->  | CT12: =IF($C12<=CT$6,"",VLOOKUP($C12,'[1]Precios gasóleo'!$D:$F,3,FALSE)/VLOOKUP(CT$6,'[1]Precios gasóleo'!$D:$F,3,FALSE)-1) ->  | CU12: =IF($C12<=CU$6,"",VLOOKUP($C12,'[1]Precios gasóleo'!$D:$F,3,FALSE)/VLOOKUP(CU$6,'[1]Precios gasóleo'!$D:$F,3,FALSE)-1) ->  | CV12: =IF($C12<=CV$6,"",VLOOKUP($C12,'[1]Precios gasóleo'!$D:$F,3,FALSE)/VLOOKUP(CV$6,'[1]Precios gasóleo'!$D:$F,3,FALSE)-1) ->  | CW12: =IF($C12<=CW$6,"",VLOOKUP($C12,'[1]Precios gasóleo'!$D:$F,3,FALSE)/VLOOKUP(CW$6,'[1]Precios gasóleo'!$D:$F,3,FALSE)-1) ->  | CX12: =IF($C12<=CX$6,"",VLOOKUP($C12,'[1]Precios gasóleo'!$D:$F,3,FALSE)/VLOOKUP(CX$6,'[1]Precios gasóleo'!$D:$F,3,FALSE)-1) ->  | CY12: =IF($C12<=CY$6,"",VLOOKUP($C12,'[1]Precios gasóleo'!$D:$F,3,FALSE)/VLOOKUP(CY$6,'[1]Precios gasóleo'!$D:$F,3,FALSE)-1) ->  | CZ12: =IF($C12<=CZ$6,"",VLOOKUP($C12,'[1]Precios gasóleo'!$D:$F,3,FALSE)/VLOOKUP(CZ$6,'[1]Precios gasóleo'!$D:$F,3,FALSE)-1) ->  | DA12: =IF($C12<=DA$6,"",VLOOKUP($C12,'[1]Precios gasóleo'!$D:$F,3,FALSE)/VLOOKUP(DA$6,'[1]Precios gasóleo'!$D:$F,3,FALSE)-1) ->  | DB12: =IF($C12<=DB$6,"",VLOOKUP($C12,'[1]Precios gasóleo'!$D:$F,3,FALSE)/VLOOKUP(DB$6,'[1]Precios gasóleo'!$D:$F,3,FALSE)-1) ->  | DC12: =IF($C12<=DC$6,"",VLOOKUP($C12,'[1]Precios gasóleo'!$D:$F,3,FALSE)/VLOOKUP(DC$6,'[1]Precios gasóleo'!$D:$F,3,FALSE)-1) ->  | DD12: =IF($C12<=DD$6,"",VLOOKUP($C12,'[1]Precios gasóleo'!$D:$F,3,FALSE)/VLOOKUP(DD$6,'[1]Precios gasóleo'!$D:$F,3,FALSE)-1) ->  | DE12: =IF($C12<=DE$6,"",VLOOKUP($C12,'[1]Precios gasóleo'!$D:$F,3,FALSE)/VLOOKUP(DE$6,'[1]Precios gasóleo'!$D:$F,3,FALSE)-1) ->  | DF12: =IF($C12<=DF$6,"",VLOOKUP($C12,'[1]Precios gasóleo'!$D:$F,3,FALSE)/VLOOKUP(DF$6,'[1]Precios gasóleo'!$D:$F,3,FALSE)-1) ->  | DG12: =IF($C12<=DG$6,"",VLOOKUP($C12,'[1]Precios gasóleo'!$D:$F,3,FALSE)/VLOOKUP(DG$6,'[1]Precios gasóleo'!$D:$F,3,FALSE)-1) ->  | DH12: =IF($C12<=DH$6,"",VLOOKUP($C12,'[1]Precios gasóleo'!$D:$F,3,FALSE)/VLOOKUP(DH$6,'[1]Precios gasóleo'!$D:$F,3,FALSE)-1) ->  | DI12: =IF($C12<=DI$6,"",VLOOKUP($C12,'[1]Precios gasóleo'!$D:$F,3,FALSE)/VLOOKUP(DI$6,'[1]Precios gasóleo'!$D:$F,3,FALSE)-1) ->  | DJ12: =IF($C12<=DJ$6,"",VLOOKUP($C12,'[1]Precios gasóleo'!$D:$F,3,FALSE)/VLOOKUP(DJ$6,'[1]Precios gasóleo'!$D:$F,3,FALSE)-1) ->  | DK12: =IF($C12<=DK$6,"",VLOOKUP($C12,'[1]Precios gasóleo'!$D:$F,3,FALSE)/VLOOKUP(DK$6,'[1]Precios gasóleo'!$D:$F,3,FALSE)-1) ->  | DL12: =IF($C12<=DL$6,"",VLOOKUP($C12,'[1]Precios gasóleo'!$D:$F,3,FALSE)/VLOOKUP(DL$6,'[1]Precios gasóleo'!$D:$F,3,FALSE)-1) ->  | DM12: =IF($C12<=DM$6,"",VLOOKUP($C12,'[1]Precios gasóleo'!$D:$F,3,FALSE)/VLOOKUP(DM$6,'[1]Precios gasóleo'!$D:$F,3,FALSE)-1) ->  | DN12: =IF($C12<=DN$6,"",VLOOKUP($C12,'[1]Precios gasóleo'!$D:$F,3,FALSE)/VLOOKUP(DN$6,'[1]Precios gasóleo'!$D:$F,3,FALSE)-1) ->  | DO12: =IF($C12<=DO$6,"",VLOOKUP($C12,'[1]Precios gasóleo'!$D:$F,3,FALSE)/VLOOKUP(DO$6,'[1]Precios gasóleo'!$D:$F,3,FALSE)-1) ->  | DP12: =IF($C12<=DP$6,"",VLOOKUP($C12,'[1]Precios gasóleo'!$D:$F,3,FALSE)/VLOOKUP(DP$6,'[1]Precios gasóleo'!$D:$F,3,FALSE)-1) ->  | DQ12: =IF($C12<=DQ$6,"",VLOOKUP($C12,'[1]Precios gasóleo'!$D:$F,3,FALSE)/VLOOKUP(DQ$6,'[1]Precios gasóleo'!$D:$F,3,FALSE)-1) ->  | DR12: =IF($C12<=DR$6,"",VLOOKUP($C12,'[1]Precios gasóleo'!$D:$F,3,FALSE)/VLOOKUP(DR$6,'[1]Precios gasóleo'!$D:$F,3,FALSE)-1) ->  | DS12: =IF($C12<=DS$6,"",VLOOKUP($C12,'[1]Precios gasóleo'!$D:$F,3,FALSE)/VLOOKUP(DS$6,'[1]Precios gasóleo'!$D:$F,3,FALSE)-1) ->  | DT12: =IF($C12<=DT$6,"",VLOOKUP($C12,'[1]Precios gasóleo'!$D:$F,3,FALSE)/VLOOKUP(DT$6,'[1]Precios gasóleo'!$D:$F,3,FALSE)-1) ->  | DU12: =IF($C12<=DU$6,"",VLOOKUP($C12,'[1]Precios gasóleo'!$D:$F,3,FALSE)/VLOOKUP(DU$6,'[1]Precios gasóleo'!$D:$F,3,FALSE)-1) ->  | DV12: =IF($C12<=DV$6,"",VLOOKUP($C12,'[1]Precios gasóleo'!$D:$F,3,FALSE)/VLOOKUP(DV$6,'[1]Precios gasóleo'!$D:$F,3,FALSE)-1) ->  | DW12: =IF($C12<=DW$6,"",VLOOKUP($C12,'[1]Precios gasóleo'!$D:$F,3,FALSE)/VLOOKUP(DW$6,'[1]Precios gasóleo'!$D:$F,3,FALSE)-1) ->  | DX12: =IF($C12<=DX$6,"",VLOOKUP($C12,'[1]Precios gasóleo'!$D:$F,3,FALSE)/VLOOKUP(DX$6,'[1]Precios gasóleo'!$D:$F,3,FALSE)-1) ->  | DY12: =IF($C12<=DY$6,"",VLOOKUP($C12,'[1]Precios gasóleo'!$D:$F,3,FALSE)/VLOOKUP(DY$6,'[1]Precios gasóleo'!$D:$F,3,FALSE)-1) ->  | DZ12: =IF($C12<=DZ$6,"",VLOOKUP($C12,'[1]Precios gasóleo'!$D:$F,3,FALSE)/VLOOKUP(DZ$6,'[1]Precios gasóleo'!$D:$F,3,FALSE)-1) ->  | EA12: =IF($C12<=EA$6,"",VLOOKUP($C12,'[1]Precios gasóleo'!$D:$F,3,FALSE)/VLOOKUP(EA$6,'[1]Precios gasóleo'!$D:$F,3,FALSE)-1) ->  | EB12: =IF($C12<=EB$6,"",VLOOKUP($C12,'[1]Precios gasóleo'!$D:$F,3,FALSE)/VLOOKUP(EB$6,'[1]Precios gasóleo'!$D:$F,3,FALSE)-1) ->  | EC12: =IF($C12<=EC$6,"",VLOOKUP($C12,'[1]Precios gasóleo'!$D:$F,3,FALSE)/VLOOKUP(EC$6,'[1]Precios gasóleo'!$D:$F,3,FALSE)-1) ->  | ED12: =IF($C12<=ED$6,"",VLOOKUP($C12,'[1]Precios gasóleo'!$D:$F,3,FALSE)/VLOOKUP(ED$6,'[1]Precios gasóleo'!$D:$F,3,FALSE)-1) ->  | EE12: =IF($C12<=EE$6,"",VLOOKUP($C12,'[1]Precios gasóleo'!$D:$F,3,FALSE)/VLOOKUP(EE$6,'[1]Precios gasóleo'!$D:$F,3,FALSE)-1) ->  | EF12: =IF($C12<=EF$6,"",VLOOKUP($C12,'[1]Precios gasóleo'!$D:$F,3,FALSE)/VLOOKUP(EF$6,'[1]Precios gasóleo'!$D:$F,3,FALSE)-1) ->  | EG12: =IF($C12<=EG$6,"",VLOOKUP($C12,'[1]Precios gasóleo'!$D:$F,3,FALSE)/VLOOKUP(EG$6,'[1]Precios gasóleo'!$D:$F,3,FALSE)-1) ->  | EH12: 2020-02-18
C13: 2020-02-25 | D13: =IF($C13<=D$6,"",VLOOKUP($C13,'[1]Precios gasóleo'!$D:$F,3,FALSE)/VLOOKUP(D$6,'[1]Precios gasóleo'!$D:$F,3,FALSE)-1) -> -0.05095099486 | E13: =IF($C13<=E$6,"",VLOOKUP($C13,'[1]Precios gasóleo'!$D:$F,3,FALSE)/VLOOKUP(E$6,'[1]Precios gasóleo'!$D:$F,3,FALSE)-1) -> -0.04534005038 | F13: =IF($C13<=F$6,"",VLOOKUP($C13,'[1]Precios gasóleo'!$D:$F,3,FALSE)/VLOOKUP(F$6,'[1]Precios gasóleo'!$D:$F,3,FALSE)-1) -> -0.03714491452 | G13: =IF($C13<=G$6,"",VLOOKUP($C13,'[1]Precios gasóleo'!$D:$F,3,FALSE)/VLOOKUP(G$6,'[1]Precios gasóleo'!$D:$F,3,FALSE)-1) -> -0.02565907974 | H13: =IF($C13<=H$6,"",VLOOKUP($C13,'[1]Precios gasóleo'!$D:$F,3,FALSE)/VLOOKUP(H$6,'[1]Precios gasóleo'!$D:$F,3,FALSE)-1) -> -0.0134135827 | I13: =IF($C13<=I$6,"",VLOOKUP($C13,'[1]Precios gasóleo'!$D:$F,3,FALSE)/VLOOKUP(I$6,'[1]Precios gasóleo'!$D:$F,3,FALSE)-1) -> -0.008572499688 | J13: =IF($C13<=J$6,"",VLOOKUP($C13,'[1]Precios gasóleo'!$D:$F,3,FALSE)/VLOOKUP(J$6,'[1]Precios gasóleo'!$D:$F,3,FALSE)-1) -> -0.009562648246 | K13: =IF($C13<=K$6,"",VLOOKUP($C13,'[1]Precios gasóleo'!$D:$F,3,FALSE)/VLOOKUP(K$6,'[1]Precios gasóleo'!$D:$F,3,FALSE)-1) ->  | L13: =IF($C13<=L$6,"",VLOOKUP($C13,'[1]Precios gasóleo'!$D:$F,3,FALSE)/VLOOKUP(L$6,'[1]Precios gasóleo'!$D:$F,3,FALSE)-1) ->  | M13: =IF($C13<=M$6,"",VLOOKUP($C13,'[1]Precios gasóleo'!$D:$F,3,FALSE)/VLOOKUP(M$6,'[1]Precios gasóleo'!$D:$F,3,FALSE)-1) ->  | N13: =IF($C13<=N$6,"",VLOOKUP($C13,'[1]Precios gasóleo'!$D:$F,3,FALSE)/VLOOKUP(N$6,'[1]Precios gasóleo'!$D:$F,3,FALSE)-1) ->  | O13: =IF($C13<=O$6,"",VLOOKUP($C13,'[1]Precios gasóleo'!$D:$F,3,FALSE)/VLOOKUP(O$6,'[1]Precios gasóleo'!$D:$F,3,FALSE)-1) ->  | P13: =IF($C13<=P$6,"",VLOOKUP($C13,'[1]Precios gasóleo'!$D:$F,3,FALSE)/VLOOKUP(P$6,'[1]Precios gasóleo'!$D:$F,3,FALSE)-1) ->  | Q13: =IF($C13<=Q$6,"",VLOOKUP($C13,'[1]Precios gasóleo'!$D:$F,3,FALSE)/VLOOKUP(Q$6,'[1]Precios gasóleo'!$D:$F,3,FALSE)-1) ->  | R13: =IF($C13<=R$6,"",VLOOKUP($C13,'[1]Precios gasóleo'!$D:$F,3,FALSE)/VLOOKUP(R$6,'[1]Precios gasóleo'!$D:$F,3,FALSE)-1) ->  | S13: =IF($C13<=S$6,"",VLOOKUP($C13,'[1]Precios gasóleo'!$D:$F,3,FALSE)/VLOOKUP(S$6,'[1]Precios gasóleo'!$D:$F,3,FALSE)-1) ->  | T13: =IF($C13<=T$6,"",VLOOKUP($C13,'[1]Precios gasóleo'!$D:$F,3,FALSE)/VLOOKUP(T$6,'[1]Precios gasóleo'!$D:$F,3,FALSE)-1) ->  | U13: =IF($C13<=U$6,"",VLOOKUP($C13,'[1]Precios gasóleo'!$D:$F,3,FALSE)/VLOOKUP(U$6,'[1]Precios gasóleo'!$D:$F,3,FALSE)-1) ->  | V13: =IF($C13<=V$6,"",VLOOKUP($C13,'[1]Precios gasóleo'!$D:$F,3,FALSE)/VLOOKUP(V$6,'[1]Precios gasóleo'!$D:$F,3,FALSE)-1) ->  | W13: =IF($C13<=W$6,"",VLOOKUP($C13,'[1]Precios gasóleo'!$D:$F,3,FALSE)/VLOOKUP(W$6,'[1]Precios gasóleo'!$D:$F,3,FALSE)-1) ->  | X13: =IF($C13<=X$6,"",VLOOKUP($C13,'[1]Precios gasóleo'!$D:$F,3,FALSE)/VLOOKUP(X$6,'[1]Precios gasóleo'!$D:$F,3,FALSE)-1) ->  | Y13: =IF($C13<=Y$6,"",VLOOKUP($C13,'[1]Precios gasóleo'!$D:$F,3,FALSE)/VLOOKUP(Y$6,'[1]Precios gasóleo'!$D:$F,3,FALSE)-1) ->  | Z13: =IF($C13<=Z$6,"",VLOOKUP($C13,'[1]Precios gasóleo'!$D:$F,3,FALSE)/VLOOKUP(Z$6,'[1]Precios gasóleo'!$D:$F,3,FALSE)-1) ->  | AA13: =IF($C13<=AA$6,"",VLOOKUP($C13,'[1]Precios gasóleo'!$D:$F,3,FALSE)/VLOOKUP(AA$6,'[1]Precios gasóleo'!$D:$F,3,FALSE)-1) ->  | AB13: =IF($C13<=AB$6,"",VLOOKUP($C13,'[1]Precios gasóleo'!$D:$F,3,FALSE)/VLOOKUP(AB$6,'[1]Precios gasóleo'!$D:$F,3,FALSE)-1) ->  | AC13: =IF($C13<=AC$6,"",VLOOKUP($C13,'[1]Precios gasóleo'!$D:$F,3,FALSE)/VLOOKUP(AC$6,'[1]Precios gasóleo'!$D:$F,3,FALSE)-1) ->  | AD13: =IF($C13<=AD$6,"",VLOOKUP($C13,'[1]Precios gasóleo'!$D:$F,3,FALSE)/VLOOKUP(AD$6,'[1]Precios gasóleo'!$D:$F,3,FALSE)-1) ->  | AE13: =IF($C13<=AE$6,"",VLOOKUP($C13,'[1]Precios gasóleo'!$D:$F,3,FALSE)/VLOOKUP(AE$6,'[1]Precios gasóleo'!$D:$F,3,FALSE)-1) ->  | AF13: =IF($C13<=AF$6,"",VLOOKUP($C13,'[1]Precios gasóleo'!$D:$F,3,FALSE)/VLOOKUP(AF$6,'[1]Precios gasóleo'!$D:$F,3,FALSE)-1) ->  | AG13: =IF($C13<=AG$6,"",VLOOKUP($C13,'[1]Precios gasóleo'!$D:$F,3,FALSE)/VLOOKUP(AG$6,'[1]Precios gasóleo'!$D:$F,3,FALSE)-1) ->  | AH13: =IF($C13<=AH$6,"",VLOOKUP($C13,'[1]Precios gasóleo'!$D:$F,3,FALSE)/VLOOKUP(AH$6,'[1]Precios gasóleo'!$D:$F,3,FALSE)-1) ->  | AI13: =IF($C13<=AI$6,"",VLOOKUP($C13,'[1]Precios gasóleo'!$D:$F,3,FALSE)/VLOOKUP(AI$6,'[1]Precios gasóleo'!$D:$F,3,FALSE)-1) ->  | AJ13: =IF($C13<=AJ$6,"",VLOOKUP($C13,'[1]Precios gasóleo'!$D:$F,3,FALSE)/VLOOKUP(AJ$6,'[1]Precios gasóleo'!$D:$F,3,FALSE)-1) ->  | AK13: =IF($C13<=AK$6,"",VLOOKUP($C13,'[1]Precios gasóleo'!$D:$F,3,FALSE)/VLOOKUP(AK$6,'[1]Precios gasóleo'!$D:$F,3,FALSE)-1) ->  | AL13: =IF($C13<=AL$6,"",VLOOKUP($C13,'[1]Precios gasóleo'!$D:$F,3,FALSE)/VLOOKUP(AL$6,'[1]Precios gasóleo'!$D:$F,3,FALSE)-1) ->  | AM13: =IF($C13<=AM$6,"",VLOOKUP($C13,'[1]Precios gasóleo'!$D:$F,3,FALSE)/VLOOKUP(AM$6,'[1]Precios gasóleo'!$D:$F,3,FALSE)-1) ->  | AN13: =IF($C13<=AN$6,"",VLOOKUP($C13,'[1]Precios gasóleo'!$D:$F,3,FALSE)/VLOOKUP(AN$6,'[1]Precios gasóleo'!$D:$F,3,FALSE)-1) ->  | AO13: =IF($C13<=AO$6,"",VLOOKUP($C13,'[1]Precios gasóleo'!$D:$F,3,FALSE)/VLOOKUP(AO$6,'[1]Precios gasóleo'!$D:$F,3,FALSE)-1) ->  | AP13: =IF($C13<=AP$6,"",VLOOKUP($C13,'[1]Precios gasóleo'!$D:$F,3,FALSE)/VLOOKUP(AP$6,'[1]Precios gasóleo'!$D:$F,3,FALSE)-1) ->  | AQ13: =IF($C13<=AQ$6,"",VLOOKUP($C13,'[1]Precios gasóleo'!$D:$F,3,FALSE)/VLOOKUP(AQ$6,'[1]Precios gasóleo'!$D:$F,3,FALSE)-1) ->  | AR13: =IF($C13<=AR$6,"",VLOOKUP($C13,'[1]Precios gasóleo'!$D:$F,3,FALSE)/VLOOKUP(AR$6,'[1]Precios gasóleo'!$D:$F,3,FALSE)-1) ->  | AS13: =IF($C13<=AS$6,"",VLOOKUP($C13,'[1]Precios gasóleo'!$D:$F,3,FALSE)/VLOOKUP(AS$6,'[1]Precios gasóleo'!$D:$F,3,FALSE)-1) ->  | AT13: =IF($C13<=AT$6,"",VLOOKUP($C13,'[1]Precios gasóleo'!$D:$F,3,FALSE)/VLOOKUP(AT$6,'[1]Precios gasóleo'!$D:$F,3,FALSE)-1) ->  | AU13: =IF($C13<=AU$6,"",VLOOKUP($C13,'[1]Precios gasóleo'!$D:$F,3,FALSE)/VLOOKUP(AU$6,'[1]Precios gasóleo'!$D:$F,3,FALSE)-1) ->  | AV13: =IF($C13<=AV$6,"",VLOOKUP($C13,'[1]Precios gasóleo'!$D:$F,3,FALSE)/VLOOKUP(AV$6,'[1]Precios gasóleo'!$D:$F,3,FALSE)-1) ->  | AW13: =IF($C13<=AW$6,"",VLOOKUP($C13,'[1]Precios gasóleo'!$D:$F,3,FALSE)/VLOOKUP(AW$6,'[1]Precios gasóleo'!$D:$F,3,FALSE)-1) ->  | AX13: =IF($C13<=AX$6,"",VLOOKUP($C13,'[1]Precios gasóleo'!$D:$F,3,FALSE)/VLOOKUP(AX$6,'[1]Precios gasóleo'!$D:$F,3,FALSE)-1) ->  | AY13: =IF($C13<=AY$6,"",VLOOKUP($C13,'[1]Precios gasóleo'!$D:$F,3,FALSE)/VLOOKUP(AY$6,'[1]Precios gasóleo'!$D:$F,3,FALSE)-1) ->  | AZ13: =IF($C13<=AZ$6,"",VLOOKUP($C13,'[1]Precios gasóleo'!$D:$F,3,FALSE)/VLOOKUP(AZ$6,'[1]Precios gasóleo'!$D:$F,3,FALSE)-1) ->  | BA13: =IF($C13<=BA$6,"",VLOOKUP($C13,'[1]Precios gasóleo'!$D:$F,3,FALSE)/VLOOKUP(BA$6,'[1]Precios gasóleo'!$D:$F,3,FALSE)-1) ->  | BB13: =IF($C13<=BB$6,"",VLOOKUP($C13,'[1]Precios gasóleo'!$D:$F,3,FALSE)/VLOOKUP(BB$6,'[1]Precios gasóleo'!$D:$F,3,FALSE)-1) ->  | BC13: =IF($C13<=BC$6,"",VLOOKUP($C13,'[1]Precios gasóleo'!$D:$F,3,FALSE)/VLOOKUP(BC$6,'[1]Precios gasóleo'!$D:$F,3,FALSE)-1) ->  | BD13: =IF($C13<=BD$6,"",VLOOKUP($C13,'[1]Precios gasóleo'!$D:$F,3,FALSE)/VLOOKUP(BD$6,'[1]Precios gasóleo'!$D:$F,3,FALSE)-1) ->  | BE13: =IF($C13<=BE$6,"",VLOOKUP($C13,'[1]Precios gasóleo'!$D:$F,3,FALSE)/VLOOKUP(BE$6,'[1]Precios gasóleo'!$D:$F,3,FALSE)-1) ->  | BF13: =IF($C13<=BF$6,"",VLOOKUP($C13,'[1]Precios gasóleo'!$D:$F,3,FALSE)/VLOOKUP(BF$6,'[1]Precios gasóleo'!$D:$F,3,FALSE)-1) ->  | BG13: =IF($C13<=BG$6,"",VLOOKUP($C13,'[1]Precios gasóleo'!$D:$F,3,FALSE)/VLOOKUP(BG$6,'[1]Precios gasóleo'!$D:$F,3,FALSE)-1) ->  | BH13: =IF($C13<=BH$6,"",VLOOKUP($C13,'[1]Precios gasóleo'!$D:$F,3,FALSE)/VLOOKUP(BH$6,'[1]Precios gasóleo'!$D:$F,3,FALSE)-1) ->  | BI13: =IF($C13<=BI$6,"",VLOOKUP($C13,'[1]Precios gasóleo'!$D:$F,3,FALSE)/VLOOKUP(BI$6,'[1]Precios gasóleo'!$D:$F,3,FALSE)-1) ->  | BJ13: =IF($C13<=BJ$6,"",VLOOKUP($C13,'[1]Precios gasóleo'!$D:$F,3,FALSE)/VLOOKUP(BJ$6,'[1]Precios gasóleo'!$D:$F,3,FALSE)-1) ->  | BK13: =IF($C13<=BK$6,"",VLOOKUP($C13,'[1]Precios gasóleo'!$D:$F,3,FALSE)/VLOOKUP(BK$6,'[1]Precios gasóleo'!$D:$F,3,FALSE)-1) ->  | BL13: =IF($C13<=BL$6,"",VLOOKUP($C13,'[1]Precios gasóleo'!$D:$F,3,FALSE)/VLOOKUP(BL$6,'[1]Precios gasóleo'!$D:$F,3,FALSE)-1) ->  | BM13: =IF($C13<=BM$6,"",VLOOKUP($C13,'[1]Precios gasóleo'!$D:$F,3,FALSE)/VLOOKUP(BM$6,'[1]Precios gasóleo'!$D:$F,3,FALSE)-1) ->  | BN13: =IF($C13<=BN$6,"",VLOOKUP($C13,'[1]Precios gasóleo'!$D:$F,3,FALSE)/VLOOKUP(BN$6,'[1]Precios gasóleo'!$D:$F,3,FALSE)-1) ->  | BO13: =IF($C13<=BO$6,"",VLOOKUP($C13,'[1]Precios gasóleo'!$D:$F,3,FALSE)/VLOOKUP(BO$6,'[1]Precios gasóleo'!$D:$F,3,FALSE)-1) ->  | BP13: =IF($C13<=BP$6,"",VLOOKUP($C13,'[1]Precios gasóleo'!$D:$F,3,FALSE)/VLOOKUP(BP$6,'[1]Precios gasóleo'!$D:$F,3,FALSE)-1) ->  | BQ13: =IF($C13<=BQ$6,"",VLOOKUP($C13,'[1]Precios gasóleo'!$D:$F,3,FALSE)/VLOOKUP(BQ$6,'[1]Precios gasóleo'!$D:$F,3,FALSE)-1) ->  | BR13: =IF($C13<=BR$6,"",VLOOKUP($C13,'[1]Precios gasóleo'!$D:$F,3,FALSE)/VLOOKUP(BR$6,'[1]Precios gasóleo'!$D:$F,3,FALSE)-1) ->  | BS13: =IF($C13<=BS$6,"",VLOOKUP($C13,'[1]Precios gasóleo'!$D:$F,3,FALSE)/VLOOKUP(BS$6,'[1]Precios gasóleo'!$D:$F,3,FALSE)-1) ->  | BT13: =IF($C13<=BT$6,"",VLOOKUP($C13,'[1]Precios gasóleo'!$D:$F,3,FALSE)/VLOOKUP(BT$6,'[1]Precios gasóleo'!$D:$F,3,FALSE)-1) ->  | BU13: =IF($C13<=BU$6,"",VLOOKUP($C13,'[1]Precios gasóleo'!$D:$F,3,FALSE)/VLOOKUP(BU$6,'[1]Precios gasóleo'!$D:$F,3,FALSE)-1) ->  | BV13: =IF($C13<=BV$6,"",VLOOKUP($C13,'[1]Precios gasóleo'!$D:$F,3,FALSE)/VLOOKUP(BV$6,'[1]Precios gasóleo'!$D:$F,3,FALSE)-1) ->  | BW13: =IF($C13<=BW$6,"",VLOOKUP($C13,'[1]Precios gasóleo'!$D:$F,3,FALSE)/VLOOKUP(BW$6,'[1]Precios gasóleo'!$D:$F,3,FALSE)-1) ->  | BX13: =IF($C13<=BX$6,"",VLOOKUP($C13,'[1]Precios gasóleo'!$D:$F,3,FALSE)/VLOOKUP(BX$6,'[1]Precios gasóleo'!$D:$F,3,FALSE)-1) ->  | BY13: =IF($C13<=BY$6,"",VLOOKUP($C13,'[1]Precios gasóleo'!$D:$F,3,FALSE)/VLOOKUP(BY$6,'[1]Precios gasóleo'!$D:$F,3,FALSE)-1) ->  | BZ13: =IF($C13<=BZ$6,"",VLOOKUP($C13,'[1]Precios gasóleo'!$D:$F,3,FALSE)/VLOOKUP(BZ$6,'[1]Precios gasóleo'!$D:$F,3,FALSE)-1) ->  | CA13: =IF($C13<=CA$6,"",VLOOKUP($C13,'[1]Precios gasóleo'!$D:$F,3,FALSE)/VLOOKUP(CA$6,'[1]Precios gasóleo'!$D:$F,3,FALSE)-1) ->  | CB13: =IF($C13<=CB$6,"",VLOOKUP($C13,'[1]Precios gasóleo'!$D:$F,3,FALSE)/VLOOKUP(CB$6,'[1]Precios gasóleo'!$D:$F,3,FALSE)-1) ->  | CC13: =IF($C13<=CC$6,"",VLOOKUP($C13,'[1]Precios gasóleo'!$D:$F,3,FALSE)/VLOOKUP(CC$6,'[1]Precios gasóleo'!$D:$F,3,FALSE)-1) ->  | CD13: =IF($C13<=CD$6,"",VLOOKUP($C13,'[1]Precios gasóleo'!$D:$F,3,FALSE)/VLOOKUP(CD$6,'[1]Precios gasóleo'!$D:$F,3,FALSE)-1) ->  | CE13: =IF($C13<=CE$6,"",VLOOKUP($C13,'[1]Precios gasóleo'!$D:$F,3,FALSE)/VLOOKUP(CE$6,'[1]Precios gasóleo'!$D:$F,3,FALSE)-1) ->  | CF13: =IF($C13<=CF$6,"",VLOOKUP($C13,'[1]Precios gasóleo'!$D:$F,3,FALSE)/VLOOKUP(CF$6,'[1]Precios gasóleo'!$D:$F,3,FALSE)-1) ->  | CG13: =IF($C13<=CG$6,"",VLOOKUP($C13,'[1]Precios gasóleo'!$D:$F,3,FALSE)/VLOOKUP(CG$6,'[1]Precios gasóleo'!$D:$F,3,FALSE)-1) ->  | CH13: =IF($C13<=CH$6,"",VLOOKUP($C13,'[1]Precios gasóleo'!$D:$F,3,FALSE)/VLOOKUP(CH$6,'[1]Precios gasóleo'!$D:$F,3,FALSE)-1) ->  | CI13: =IF($C13<=CI$6,"",VLOOKUP($C13,'[1]Precios gasóleo'!$D:$F,3,FALSE)/VLOOKUP(CI$6,'[1]Precios gasóleo'!$D:$F,3,FALSE)-1) ->  | CJ13: =IF($C13<=CJ$6,"",VLOOKUP($C13,'[1]Precios gasóleo'!$D:$F,3,FALSE)/VLOOKUP(CJ$6,'[1]Precios gasóleo'!$D:$F,3,FALSE)-1) ->  | CK13: =IF($C13<=CK$6,"",VLOOKUP($C13,'[1]Precios gasóleo'!$D:$F,3,FALSE)/VLOOKUP(CK$6,'[1]Precios gasóleo'!$D:$F,3,FALSE)-1) ->  | CL13: =IF($C13<=CL$6,"",VLOOKUP($C13,'[1]Precios gasóleo'!$D:$F,3,FALSE)/VLOOKUP(CL$6,'[1]Precios gasóleo'!$D:$F,3,FALSE)-1) ->  | CM13: =IF($C13<=CM$6,"",VLOOKUP($C13,'[1]Precios gasóleo'!$D:$F,3,FALSE)/VLOOKUP(CM$6,'[1]Precios gasóleo'!$D:$F,3,FALSE)-1) ->  | CN13: =IF($C13<=CN$6,"",VLOOKUP($C13,'[1]Precios gasóleo'!$D:$F,3,FALSE)/VLOOKUP(CN$6,'[1]Precios gasóleo'!$D:$F,3,FALSE)-1) ->  | CO13: =IF($C13<=CO$6,"",VLOOKUP($C13,'[1]Precios gasóleo'!$D:$F,3,FALSE)/VLOOKUP(CO$6,'[1]Precios gasóleo'!$D:$F,3,FALSE)-1) ->  | CP13: =IF($C13<=CP$6,"",VLOOKUP($C13,'[1]Precios gasóleo'!$D:$F,3,FALSE)/VLOOKUP(CP$6,'[1]Precios gasóleo'!$D:$F,3,FALSE)-1) ->  | CQ13: =IF($C13<=CQ$6,"",VLOOKUP($C13,'[1]Precios gasóleo'!$D:$F,3,FALSE)/VLOOKUP(CQ$6,'[1]Precios gasóleo'!$D:$F,3,FALSE)-1) ->  | CR13: =IF($C13<=CR$6,"",VLOOKUP($C13,'[1]Precios gasóleo'!$D:$F,3,FALSE)/VLOOKUP(CR$6,'[1]Precios gasóleo'!$D:$F,3,FALSE)-1) ->  | CS13: =IF($C13<=CS$6,"",VLOOKUP($C13,'[1]Precios gasóleo'!$D:$F,3,FALSE)/VLOOKUP(CS$6,'[1]Precios gasóleo'!$D:$F,3,FALSE)-1) ->  | CT13: =IF($C13<=CT$6,"",VLOOKUP($C13,'[1]Precios gasóleo'!$D:$F,3,FALSE)/VLOOKUP(CT$6,'[1]Precios gasóleo'!$D:$F,3,FALSE)-1) ->  | CU13: =IF($C13<=CU$6,"",VLOOKUP($C13,'[1]Precios gasóleo'!$D:$F,3,FALSE)/VLOOKUP(CU$6,'[1]Precios gasóleo'!$D:$F,3,FALSE)-1) ->  | CV13: =IF($C13<=CV$6,"",VLOOKUP($C13,'[1]Precios gasóleo'!$D:$F,3,FALSE)/VLOOKUP(CV$6,'[1]Precios gasóleo'!$D:$F,3,FALSE)-1) ->  | CW13: =IF($C13<=CW$6,"",VLOOKUP($C13,'[1]Precios gasóleo'!$D:$F,3,FALSE)/VLOOKUP(CW$6,'[1]Precios gasóleo'!$D:$F,3,FALSE)-1) ->  | CX13: =IF($C13<=CX$6,"",VLOOKUP($C13,'[1]Precios gasóleo'!$D:$F,3,FALSE)/VLOOKUP(CX$6,'[1]Precios gasóleo'!$D:$F,3,FALSE)-1) ->  | CY13: =IF($C13<=CY$6,"",VLOOKUP($C13,'[1]Precios gasóleo'!$D:$F,3,FALSE)/VLOOKUP(CY$6,'[1]Precios gasóleo'!$D:$F,3,FALSE)-1) ->  | CZ13: =IF($C13<=CZ$6,"",VLOOKUP($C13,'[1]Precios gasóleo'!$D:$F,3,FALSE)/VLOOKUP(CZ$6,'[1]Precios gasóleo'!$D:$F,3,FALSE)-1) ->  | DA13: =IF($C13<=DA$6,"",VLOOKUP($C13,'[1]Precios gasóleo'!$D:$F,3,FALSE)/VLOOKUP(DA$6,'[1]Precios gasóleo'!$D:$F,3,FALSE)-1) ->  | DB13: =IF($C13<=DB$6,"",VLOOKUP($C13,'[1]Precios gasóleo'!$D:$F,3,FALSE)/VLOOKUP(DB$6,'[1]Precios gasóleo'!$D:$F,3,FALSE)-1) ->  | DC13: =IF($C13<=DC$6,"",VLOOKUP($C13,'[1]Precios gasóleo'!$D:$F,3,FALSE)/VLOOKUP(DC$6,'[1]Precios gasóleo'!$D:$F,3,FALSE)-1) ->  | DD13: =IF($C13<=DD$6,"",VLOOKUP($C13,'[1]Precios gasóleo'!$D:$F,3,FALSE)/VLOOKUP(DD$6,'[1]Precios gasóleo'!$D:$F,3,FALSE)-1) ->  | DE13: =IF($C13<=DE$6,"",VLOOKUP($C13,'[1]Precios gasóleo'!$D:$F,3,FALSE)/VLOOKUP(DE$6,'[1]Precios gasóleo'!$D:$F,3,FALSE)-1) ->  | DF13: =IF($C13<=DF$6,"",VLOOKUP($C13,'[1]Precios gasóleo'!$D:$F,3,FALSE)/VLOOKUP(DF$6,'[1]Precios gasóleo'!$D:$F,3,FALSE)-1) ->  | DG13: =IF($C13<=DG$6,"",VLOOKUP($C13,'[1]Precios gasóleo'!$D:$F,3,FALSE)/VLOOKUP(DG$6,'[1]Precios gasóleo'!$D:$F,3,FALSE)-1) ->  | DH13: =IF($C13<=DH$6,"",VLOOKUP($C13,'[1]Precios gasóleo'!$D:$F,3,FALSE)/VLOOKUP(DH$6,'[1]Precios gasóleo'!$D:$F,3,FALSE)-1) ->  | DI13: =IF($C13<=DI$6,"",VLOOKUP($C13,'[1]Precios gasóleo'!$D:$F,3,FALSE)/VLOOKUP(DI$6,'[1]Precios gasóleo'!$D:$F,3,FALSE)-1) ->  | DJ13: =IF($C13<=DJ$6,"",VLOOKUP($C13,'[1]Precios gasóleo'!$D:$F,3,FALSE)/VLOOKUP(DJ$6,'[1]Precios gasóleo'!$D:$F,3,FALSE)-1) ->  | DK13: =IF($C13<=DK$6,"",VLOOKUP($C13,'[1]Precios gasóleo'!$D:$F,3,FALSE)/VLOOKUP(DK$6,'[1]Precios gasóleo'!$D:$F,3,FALSE)-1) ->  | DL13: =IF($C13<=DL$6,"",VLOOKUP($C13,'[1]Precios gasóleo'!$D:$F,3,FALSE)/VLOOKUP(DL$6,'[1]Precios gasóleo'!$D:$F,3,FALSE)-1) ->  | DM13: =IF($C13<=DM$6,"",VLOOKUP($C13,'[1]Precios gasóleo'!$D:$F,3,FALSE)/VLOOKUP(DM$6,'[1]Precios gasóleo'!$D:$F,3,FALSE)-1) ->  | DN13: =IF($C13<=DN$6,"",VLOOKUP($C13,'[1]Precios gasóleo'!$D:$F,3,FALSE)/VLOOKUP(DN$6,'[1]Precios gasóleo'!$D:$F,3,FALSE)-1) ->  | DO13: =IF($C13<=DO$6,"",VLOOKUP($C13,'[1]Precios gasóleo'!$D:$F,3,FALSE)/VLOOKUP(DO$6,'[1]Precios gasóleo'!$D:$F,3,FALSE)-1) ->  | DP13: =IF($C13<=DP$6,"",VLOOKUP($C13,'[1]Precios gasóleo'!$D:$F,3,FALSE)/VLOOKUP(DP$6,'[1]Precios gasóleo'!$D:$F,3,FALSE)-1) ->  | DQ13: =IF($C13<=DQ$6,"",VLOOKUP($C13,'[1]Precios gasóleo'!$D:$F,3,FALSE)/VLOOKUP(DQ$6,'[1]Precios gasóleo'!$D:$F,3,FALSE)-1) ->  | DR13: =IF($C13<=DR$6,"",VLOOKUP($C13,'[1]Precios gasóleo'!$D:$F,3,FALSE)/VLOOKUP(DR$6,'[1]Precios gasóleo'!$D:$F,3,FALSE)-1) ->  | DS13: =IF($C13<=DS$6,"",VLOOKUP($C13,'[1]Precios gasóleo'!$D:$F,3,FALSE)/VLOOKUP(DS$6,'[1]Precios gasóleo'!$D:$F,3,FALSE)-1) ->  | DT13: =IF($C13<=DT$6,"",VLOOKUP($C13,'[1]Precios gasóleo'!$D:$F,3,FALSE)/VLOOKUP(DT$6,'[1]Precios gasóleo'!$D:$F,3,FALSE)-1) ->  | DU13: =IF($C13<=DU$6,"",VLOOKUP($C13,'[1]Precios gasóleo'!$D:$F,3,FALSE)/VLOOKUP(DU$6,'[1]Precios gasóleo'!$D:$F,3,FALSE)-1) ->  | DV13: =IF($C13<=DV$6,"",VLOOKUP($C13,'[1]Precios gasóleo'!$D:$F,3,FALSE)/VLOOKUP(DV$6,'[1]Precios gasóleo'!$D:$F,3,FALSE)-1) ->  | DW13: =IF($C13<=DW$6,"",VLOOKUP($C13,'[1]Precios gasóleo'!$D:$F,3,FALSE)/VLOOKUP(DW$6,'[1]Precios gasóleo'!$D:$F,3,FALSE)-1) ->  | DX13: =IF($C13<=DX$6,"",VLOOKUP($C13,'[1]Precios gasóleo'!$D:$F,3,FALSE)/VLOOKUP(DX$6,'[1]Precios gasóleo'!$D:$F,3,FALSE)-1) ->  | DY13: =IF($C13<=DY$6,"",VLOOKUP($C13,'[1]Precios gasóleo'!$D:$F,3,FALSE)/VLOOKUP(DY$6,'[1]Precios gasóleo'!$D:$F,3,FALSE)-1) ->  | DZ13: =IF($C13<=DZ$6,"",VLOOKUP($C13,'[1]Precios gasóleo'!$D:$F,3,FALSE)/VLOOKUP(DZ$6,'[1]Precios gasóleo'!$D:$F,3,FALSE)-1) ->  | EA13: =IF($C13<=EA$6,"",VLOOKUP($C13,'[1]Precios gasóleo'!$D:$F,3,FALSE)/VLOOKUP(EA$6,'[1]Precios gasóleo'!$D:$F,3,FALSE)-1) ->  | EB13: =IF($C13<=EB$6,"",VLOOKUP($C13,'[1]Precios gasóleo'!$D:$F,3,FALSE)/VLOOKUP(EB$6,'[1]Precios gasóleo'!$D:$F,3,FALSE)-1) ->  | EC13: =IF($C13<=EC$6,"",VLOOKUP($C13,'[1]Precios gasóleo'!$D:$F,3,FALSE)/VLOOKUP(EC$6,'[1]Precios gasóleo'!$D:$F,3,FALSE)-1) ->  | ED13: =IF($C13<=ED$6,"",VLOOKUP($C13,'[1]Precios gasóleo'!$D:$F,3,FALSE)/VLOOKUP(ED$6,'[1]Precios gasóleo'!$D:$F,3,FALSE)-1) ->  | EE13: =IF($C13<=EE$6,"",VLOOKUP($C13,'[1]Precios gasóleo'!$D:$F,3,FALSE)/VLOOKUP(EE$6,'[1]Precios gasóleo'!$D:$F,3,FALSE)-1) ->  | EF13: =IF($C13<=EF$6,"",VLOOKUP($C13,'[1]Precios gasóleo'!$D:$F,3,FALSE)/VLOOKUP(EF$6,'[1]Precios gasóleo'!$D:$F,3,FALSE)-1) ->  | EG13: =IF($C13<=EG$6,"",VLOOKUP($C13,'[1]Precios gasóleo'!$D:$F,3,FALSE)/VLOOKUP(EG$6,'[1]Precios gasóleo'!$D:$F,3,FALSE)-1) ->  | EH13: 2020-02-25
C14: 2020-03-03 | D14: =IF($C14<=D$6,"",VLOOKUP($C14,'[1]Precios gasóleo'!$D:$F,3,FALSE)/VLOOKUP(D$6,'[1]Precios gasóleo'!$D:$F,3,FALSE)-1) -> -0.06608716456 | E14: =IF($C14<=E$6,"",VLOOKUP($C14,'[1]Precios gasóleo'!$D:$F,3,FALSE)/VLOOKUP(E$6,'[1]Precios gasóleo'!$D:$F,3,FALSE)-1) -> -0.06056570778 | F14: =IF($C14<=F$6,"",VLOOKUP($C14,'[1]Precios gasóleo'!$D:$F,3,FALSE)/VLOOKUP(F$6,'[1]Precios gasóleo'!$D:$F,3,FALSE)-1) -> -0.0525012743 | G14: =IF($C14<=G$6,"",VLOOKUP($C14,'[1]Precios gasóleo'!$D:$F,3,FALSE)/VLOOKUP(G$6,'[1]Precios gasóleo'!$D:$F,3,FALSE)-1) -> -0.04119862453 | H14: =IF($C14<=H$6,"",VLOOKUP($C14,'[1]Precios gasóleo'!$D:$F,3,FALSE)/VLOOKUP(H$6,'[1]Precios gasóleo'!$D:$F,3,FALSE)-1) -> -0.02914842817 | I14: =IF($C14<=I$6,"",VLOOKUP($C14,'[1]Precios gasóleo'!$D:$F,3,FALSE)/VLOOKUP(I$6,'[1]Precios gasóleo'!$D:$F,3,FALSE)-1) -> -0.0243845545 | J14: =IF($C14<=J$6,"",VLOOKUP($C14,'[1]Precios gasóleo'!$D:$F,3,FALSE)/VLOOKUP(J$6,'[1]Precios gasóleo'!$D:$F,3,FALSE)-1) -> -0.02535891141 | K14: =IF($C14<=K$6,"",VLOOKUP($C14,'[1]Precios gasóleo'!$D:$F,3,FALSE)/VLOOKUP(K$6,'[1]Precios gasóleo'!$D:$F,3,FALSE)-1) -> -0.01594877569 | L14: =IF($C14<=L$6,"",VLOOKUP($C14,'[1]Precios gasóleo'!$D:$F,3,FALSE)/VLOOKUP(L$6,'[1]Precios gasóleo'!$D:$F,3,FALSE)-1) ->  | M14: =IF($C14<=M$6,"",VLOOKUP($C14,'[1]Precios gasóleo'!$D:$F,3,FALSE)/VLOOKUP(M$6,'[1]Precios gasóleo'!$D:$F,3,FALSE)-1) ->  | N14: =IF($C14<=N$6,"",VLOOKUP($C14,'[1]Precios gasóleo'!$D:$F,3,FALSE)/VLOOKUP(N$6,'[1]Precios gasóleo'!$D:$F,3,FALSE)-1) ->  | O14: =IF($C14<=O$6,"",VLOOKUP($C14,'[1]Precios gasóleo'!$D:$F,3,FALSE)/VLOOKUP(O$6,'[1]Precios gasóleo'!$D:$F,3,FALSE)-1) ->  | P14: =IF($C14<=P$6,"",VLOOKUP($C14,'[1]Precios gasóleo'!$D:$F,3,FALSE)/VLOOKUP(P$6,'[1]Precios gasóleo'!$D:$F,3,FALSE)-1) ->  | Q14: =IF($C14<=Q$6,"",VLOOKUP($C14,'[1]Precios gasóleo'!$D:$F,3,FALSE)/VLOOKUP(Q$6,'[1]Precios gasóleo'!$D:$F,3,FALSE)-1) ->  | R14: =IF($C14<=R$6,"",VLOOKUP($C14,'[1]Precios gasóleo'!$D:$F,3,FALSE)/VLOOKUP(R$6,'[1]Precios gasóleo'!$D:$F,3,FALSE)-1) ->  | S14: =IF($C14<=S$6,"",VLOOKUP($C14,'[1]Precios gasóleo'!$D:$F,3,FALSE)/VLOOKUP(S$6,'[1]Precios gasóleo'!$D:$F,3,FALSE)-1) ->  | T14: =IF($C14<=T$6,"",VLOOKUP($C14,'[1]Precios gasóleo'!$D:$F,3,FALSE)/VLOOKUP(T$6,'[1]Precios gasóleo'!$D:$F,3,FALSE)-1) ->  | U14: =IF($C14<=U$6,"",VLOOKUP($C14,'[1]Precios gasóleo'!$D:$F,3,FALSE)/VLOOKUP(U$6,'[1]Precios gasóleo'!$D:$F,3,FALSE)-1) ->  | V14: =IF($C14<=V$6,"",VLOOKUP($C14,'[1]Precios gasóleo'!$D:$F,3,FALSE)/VLOOKUP(V$6,'[1]Precios gasóleo'!$D:$F,3,FALSE)-1) ->  | W14: =IF($C14<=W$6,"",VLOOKUP($C14,'[1]Precios gasóleo'!$D:$F,3,FALSE)/VLOOKUP(W$6,'[1]Precios gasóleo'!$D:$F,3,FALSE)-1) ->  | X14: =IF($C14<=X$6,"",VLOOKUP($C14,'[1]Precios gasóleo'!$D:$F,3,FALSE)/VLOOKUP(X$6,'[1]Precios gasóleo'!$D:$F,3,FALSE)-1) ->  | Y14: =IF($C14<=Y$6,"",VLOOKUP($C14,'[1]Precios gasóleo'!$D:$F,3,FALSE)/VLOOKUP(Y$6,'[1]Precios gasóleo'!$D:$F,3,FALSE)-1) ->  | Z14: =IF($C14<=Z$6,"",VLOOKUP($C14,'[1]Precios gasóleo'!$D:$F,3,FALSE)/VLOOKUP(Z$6,'[1]Precios gasóleo'!$D:$F,3,FALSE)-1) ->  | AA14: =IF($C14<=AA$6,"",VLOOKUP($C14,'[1]Precios gasóleo'!$D:$F,3,FALSE)/VLOOKUP(AA$6,'[1]Precios gasóleo'!$D:$F,3,FALSE)-1) ->  | AB14: =IF($C14<=AB$6,"",VLOOKUP($C14,'[1]Precios gasóleo'!$D:$F,3,FALSE)/VLOOKUP(AB$6,'[1]Precios gasóleo'!$D:$F,3,FALSE)-1) ->  | AC14: =IF($C14<=AC$6,"",VLOOKUP($C14,'[1]Precios gasóleo'!$D:$F,3,FALSE)/VLOOKUP(AC$6,'[1]Precios gasóleo'!$D:$F,3,FALSE)-1) ->  | AD14: =IF($C14<=AD$6,"",VLOOKUP($C14,'[1]Precios gasóleo'!$D:$F,3,FALSE)/VLOOKUP(AD$6,'[1]Precios gasóleo'!$D:$F,3,FALSE)-1) ->  | AE14: =IF($C14<=AE$6,"",VLOOKUP($C14,'[1]Precios gasóleo'!$D:$F,3,FALSE)/VLOOKUP(AE$6,'[1]Precios gasóleo'!$D:$F,3,FALSE)-1) ->  | AF14: =IF($C14<=AF$6,"",VLOOKUP($C14,'[1]Precios gasóleo'!$D:$F,3,FALSE)/VLOOKUP(AF$6,'[1]Precios gasóleo'!$D:$F,3,FALSE)-1) ->  | AG14: =IF($C14<=AG$6,"",VLOOKUP($C14,'[1]Precios gasóleo'!$D:$F,3,FALSE)/VLOOKUP(AG$6,'[1]Precios gasóleo'!$D:$F,3,FALSE)-1) ->  | AH14: =IF($C14<=AH$6,"",VLOOKUP($C14,'[1]Precios gasóleo'!$D:$F,3,FALSE)/VLOOKUP(AH$6,'[1]Precios gasóleo'!$D:$F,3,FALSE)-1) ->  | AI14: =IF($C14<=AI$6,"",VLOOKUP($C14,'[1]Precios gasóleo'!$D:$F,3,FALSE)/VLOOKUP(AI$6,'[1]Precios gasóleo'!$D:$F,3,FALSE)-1) ->  | AJ14: =IF($C14<=AJ$6,"",VLOOKUP($C14,'[1]Precios gasóleo'!$D:$F,3,FALSE)/VLOOKUP(AJ$6,'[1]Precios gasóleo'!$D:$F,3,FALSE)-1) ->  | AK14: =IF($C14<=AK$6,"",VLOOKUP($C14,'[1]Precios gasóleo'!$D:$F,3,FALSE)/VLOOKUP(AK$6,'[1]Precios gasóleo'!$D:$F,3,FALSE)-1) ->  | AL14: =IF($C14<=AL$6,"",VLOOKUP($C14,'[1]Precios gasóleo'!$D:$F,3,FALSE)/VLOOKUP(AL$6,'[1]Precios gasóleo'!$D:$F,3,FALSE)-1) ->  | AM14: =IF($C14<=AM$6,"",VLOOKUP($C14,'[1]Precios gasóleo'!$D:$F,3,FALSE)/VLOOKUP(AM$6,'[1]Precios gasóleo'!$D:$F,3,FALSE)-1) ->  | AN14: =IF($C14<=AN$6,"",VLOOKUP($C14,'[1]Precios gasóleo'!$D:$F,3,FALSE)/VLOOKUP(AN$6,'[1]Precios gasóleo'!$D:$F,3,FALSE)-1) ->  | AO14: =IF($C14<=AO$6,"",VLOOKUP($C14,'[1]Precios gasóleo'!$D:$F,3,FALSE)/VLOOKUP(AO$6,'[1]Precios gasóleo'!$D:$F,3,FALSE)-1) ->  | AP14: =IF($C14<=AP$6,"",VLOOKUP($C14,'[1]Precios gasóleo'!$D:$F,3,FALSE)/VLOOKUP(AP$6,'[1]Precios gasóleo'!$D:$F,3,FALSE)-1) ->  | AQ14: =IF($C14<=AQ$6,"",VLOOKUP($C14,'[1]Precios gasóleo'!$D:$F,3,FALSE)/VLOOKUP(AQ$6,'[1]Precios gasóleo'!$D:$F,3,FALSE)-1) ->  | AR14: =IF($C14<=AR$6,"",VLOOKUP($C14,'[1]Precios gasóleo'!$D:$F,3,FALSE)/VLOOKUP(AR$6,'[1]Precios gasóleo'!$D:$F,3,FALSE)-1) ->  | AS14: =IF($C14<=AS$6,"",VLOOKUP($C14,'[1]Precios gasóleo'!$D:$F,3,FALSE)/VLOOKUP(AS$6,'[1]Precios gasóleo'!$D:$F,3,FALSE)-1) ->  | AT14: =IF($C14<=AT$6,"",VLOOKUP($C14,'[1]Precios gasóleo'!$D:$F,3,FALSE)/VLOOKUP(AT$6,'[1]Precios gasóleo'!$D:$F,3,FALSE)-1) ->  | AU14: =IF($C14<=AU$6,"",VLOOKUP($C14,'[1]Precios gasóleo'!$D:$F,3,FALSE)/VLOOKUP(AU$6,'[1]Precios gasóleo'!$D:$F,3,FALSE)-1) ->  | AV14: =IF($C14<=AV$6,"",VLOOKUP($C14,'[1]Precios gasóleo'!$D:$F,3,FALSE)/VLOOKUP(AV$6,'[1]Precios gasóleo'!$D:$F,3,FALSE)-1) ->  | AW14: =IF($C14<=AW$6,"",VLOOKUP($C14,'[1]Precios gasóleo'!$D:$F,3,FALSE)/VLOOKUP(AW$6,'[1]Precios gasóleo'!$D:$F,3,FALSE)-1) ->  | AX14: =IF($C14<=AX$6,"",VLOOKUP($C14,'[1]Precios gasóleo'!$D:$F,3,FALSE)/VLOOKUP(AX$6,'[1]Precios gasóleo'!$D:$F,3,FALSE)-1) ->  | AY14: =IF($C14<=AY$6,"",VLOOKUP($C14,'[1]Precios gasóleo'!$D:$F,3,FALSE)/VLOOKUP(AY$6,'[1]Precios gasóleo'!$D:$F,3,FALSE)-1) ->  | AZ14: =IF($C14<=AZ$6,"",VLOOKUP($C14,'[1]Precios gasóleo'!$D:$F,3,FALSE)/VLOOKUP(AZ$6,'[1]Precios gasóleo'!$D:$F,3,FALSE)-1) ->  | BA14: =IF($C14<=BA$6,"",VLOOKUP($C14,'[1]Precios gasóleo'!$D:$F,3,FALSE)/VLOOKUP(BA$6,'[1]Precios gasóleo'!$D:$F,3,FALSE)-1) ->  | BB14: =IF($C14<=BB$6,"",VLOOKUP($C14,'[1]Precios gasóleo'!$D:$F,3,FALSE)/VLOOKUP(BB$6,'[1]Precios gasóleo'!$D:$F,3,FALSE)-1) ->  | BC14: =IF($C14<=BC$6,"",VLOOKUP($C14,'[1]Precios gasóleo'!$D:$F,3,FALSE)/VLOOKUP(BC$6,'[1]Precios gasóleo'!$D:$F,3,FALSE)-1) ->  | BD14: =IF($C14<=BD$6,"",VLOOKUP($C14,'[1]Precios gasóleo'!$D:$F,3,FALSE)/VLOOKUP(BD$6,'[1]Precios gasóleo'!$D:$F,3,FALSE)-1) ->  | BE14: =IF($C14<=BE$6,"",VLOOKUP($C14,'[1]Precios gasóleo'!$D:$F,3,FALSE)/VLOOKUP(BE$6,'[1]Precios gasóleo'!$D:$F,3,FALSE)-1) ->  | BF14: =IF($C14<=BF$6,"",VLOOKUP($C14,'[1]Precios gasóleo'!$D:$F,3,FALSE)/VLOOKUP(BF$6,'[1]Precios gasóleo'!$D:$F,3,FALSE)-1) ->  | BG14: =IF($C14<=BG$6,"",VLOOKUP($C14,'[1]Precios gasóleo'!$D:$F,3,FALSE)/VLOOKUP(BG$6,'[1]Precios gasóleo'!$D:$F,3,FALSE)-1) ->  | BH14: =IF($C14<=BH$6,"",VLOOKUP($C14,'[1]Precios gasóleo'!$D:$F,3,FALSE)/VLOOKUP(BH$6,'[1]Precios gasóleo'!$D:$F,3,FALSE)-1) ->  | BI14: =IF($C14<=BI$6,"",VLOOKUP($C14,'[1]Precios gasóleo'!$D:$F,3,FALSE)/VLOOKUP(BI$6,'[1]Precios gasóleo'!$D:$F,3,FALSE)-1) ->  | BJ14: =IF($C14<=BJ$6,"",VLOOKUP($C14,'[1]Precios gasóleo'!$D:$F,3,FALSE)/VLOOKUP(BJ$6,'[1]Precios gasóleo'!$D:$F,3,FALSE)-1) ->  | BK14: =IF($C14<=BK$6,"",VLOOKUP($C14,'[1]Precios gasóleo'!$D:$F,3,FALSE)/VLOOKUP(BK$6,'[1]Precios gasóleo'!$D:$F,3,FALSE)-1) ->  | BL14: =IF($C14<=BL$6,"",VLOOKUP($C14,'[1]Precios gasóleo'!$D:$F,3,FALSE)/VLOOKUP(BL$6,'[1]Precios gasóleo'!$D:$F,3,FALSE)-1) ->  | BM14: =IF($C14<=BM$6,"",VLOOKUP($C14,'[1]Precios gasóleo'!$D:$F,3,FALSE)/VLOOKUP(BM$6,'[1]Precios gasóleo'!$D:$F,3,FALSE)-1) ->  | BN14: =IF($C14<=BN$6,"",VLOOKUP($C14,'[1]Precios gasóleo'!$D:$F,3,FALSE)/VLOOKUP(BN$6,'[1]Precios gasóleo'!$D:$F,3,FALSE)-1) ->  | BO14: =IF($C14<=BO$6,"",VLOOKUP($C14,'[1]Precios gasóleo'!$D:$F,3,FALSE)/VLOOKUP(BO$6,'[1]Precios gasóleo'!$D:$F,3,FALSE)-1) ->  | BP14: =IF($C14<=BP$6,"",VLOOKUP($C14,'[1]Precios gasóleo'!$D:$F,3,FALSE)/VLOOKUP(BP$6,'[1]Precios gasóleo'!$D:$F,3,FALSE)-1) ->  | BQ14: =IF($C14<=BQ$6,"",VLOOKUP($C14,'[1]Precios gasóleo'!$D:$F,3,FALSE)/VLOOKUP(BQ$6,'[1]Precios gasóleo'!$D:$F,3,FALSE)-1) ->  | BR14: =IF($C14<=BR$6,"",VLOOKUP($C14,'[1]Precios gasóleo'!$D:$F,3,FALSE)/VLOOKUP(BR$6,'[1]Precios gasóleo'!$D:$F,3,FALSE)-1) ->  | BS14: =IF($C14<=BS$6,"",VLOOKUP($C14,'[1]Precios gasóleo'!$D:$F,3,FALSE)/VLOOKUP(BS$6,'[1]Precios gasóleo'!$D:$F,3,FALSE)-1) ->  | BT14: =IF($C14<=BT$6,"",VLOOKUP($C14,'[1]Precios gasóleo'!$D:$F,3,FALSE)/VLOOKUP(BT$6,'[1]Precios gasóleo'!$D:$F,3,FALSE)-1) ->  | BU14: =IF($C14<=BU$6,"",VLOOKUP($C14,'[1]Precios gasóleo'!$D:$F,3,FALSE)/VLOOKUP(BU$6,'[1]Precios gasóleo'!$D:$F,3,FALSE)-1) ->  | BV14: =IF($C14<=BV$6,"",VLOOKUP($C14,'[1]Precios gasóleo'!$D:$F,3,FALSE)/VLOOKUP(BV$6,'[1]Precios gasóleo'!$D:$F,3,FALSE)-1) ->  | BW14: =IF($C14<=BW$6,"",VLOOKUP($C14,'[1]Precios gasóleo'!$D:$F,3,FALSE)/VLOOKUP(BW$6,'[1]Precios gasóleo'!$D:$F,3,FALSE)-1) ->  | BX14: =IF($C14<=BX$6,"",VLOOKUP($C14,'[1]Precios gasóleo'!$D:$F,3,FALSE)/VLOOKUP(BX$6,'[1]Precios gasóleo'!$D:$F,3,FALSE)-1) ->  | BY14: =IF($C14<=BY$6,"",VLOOKUP($C14,'[1]Precios gasóleo'!$D:$F,3,FALSE)/VLOOKUP(BY$6,'[1]Precios gasóleo'!$D:$F,3,FALSE)-1) ->  | BZ14: =IF($C14<=BZ$6,"",VLOOKUP($C14,'[1]Precios gasóleo'!$D:$F,3,FALSE)/VLOOKUP(BZ$6,'[1]Precios gasóleo'!$D:$F,3,FALSE)-1) ->  | CA14: =IF($C14<=CA$6,"",VLOOKUP($C14,'[1]Precios gasóleo'!$D:$F,3,FALSE)/VLOOKUP(CA$6,'[1]Precios gasóleo'!$D:$F,3,FALSE)-1) ->  | CB14: =IF($C14<=CB$6,"",VLOOKUP($C14,'[1]Precios gasóleo'!$D:$F,3,FALSE)/VLOOKUP(CB$6,'[1]Precios gasóleo'!$D:$F,3,FALSE)-1) ->  | CC14: =IF($C14<=CC$6,"",VLOOKUP($C14,'[1]Precios gasóleo'!$D:$F,3,FALSE)/VLOOKUP(CC$6,'[1]Precios gasóleo'!$D:$F,3,FALSE)-1) ->  | CD14: =IF($C14<=CD$6,"",VLOOKUP($C14,'[1]Precios gasóleo'!$D:$F,3,FALSE)/VLOOKUP(CD$6,'[1]Precios gasóleo'!$D:$F,3,FALSE)-1) ->  | CE14: =IF($C14<=CE$6,"",VLOOKUP($C14,'[1]Precios gasóleo'!$D:$F,3,FALSE)/VLOOKUP(CE$6,'[1]Precios gasóleo'!$D:$F,3,FALSE)-1) ->  | CF14: =IF($C14<=CF$6,"",VLOOKUP($C14,'[1]Precios gasóleo'!$D:$F,3,FALSE)/VLOOKUP(CF$6,'[1]Precios gasóleo'!$D:$F,3,FALSE)-1) ->  | CG14: =IF($C14<=CG$6,"",VLOOKUP($C14,'[1]Precios gasóleo'!$D:$F,3,FALSE)/VLOOKUP(CG$6,'[1]Precios gasóleo'!$D:$F,3,FALSE)-1) ->  | CH14: =IF($C14<=CH$6,"",VLOOKUP($C14,'[1]Precios gasóleo'!$D:$F,3,FALSE)/VLOOKUP(CH$6,'[1]Precios gasóleo'!$D:$F,3,FALSE)-1) ->  | CI14: =IF($C14<=CI$6,"",VLOOKUP($C14,'[1]Precios gasóleo'!$D:$F,3,FALSE)/VLOOKUP(CI$6,'[1]Precios gasóleo'!$D:$F,3,FALSE)-1) ->  | CJ14: =IF($C14<=CJ$6,"",VLOOKUP($C14,'[1]Precios gasóleo'!$D:$F,3,FALSE)/VLOOKUP(CJ$6,'[1]Precios gasóleo'!$D:$F,3,FALSE)-1) ->  | CK14: =IF($C14<=CK$6,"",VLOOKUP($C14,'[1]Precios gasóleo'!$D:$F,3,FALSE)/VLOOKUP(CK$6,'[1]Precios gasóleo'!$D:$F,3,FALSE)-1) ->  | CL14: =IF($C14<=CL$6,"",VLOOKUP($C14,'[1]Precios gasóleo'!$D:$F,3,FALSE)/VLOOKUP(CL$6,'[1]Precios gasóleo'!$D:$F,3,FALSE)-1) ->  | CM14: =IF($C14<=CM$6,"",VLOOKUP($C14,'[1]Precios gasóleo'!$D:$F,3,FALSE)/VLOOKUP(CM$6,'[1]Precios gasóleo'!$D:$F,3,FALSE)-1) ->  | CN14: =IF($C14<=CN$6,"",VLOOKUP($C14,'[1]Precios gasóleo'!$D:$F,3,FALSE)/VLOOKUP(CN$6,'[1]Precios gasóleo'!$D:$F,3,FALSE)-1) ->  | CO14: =IF($C14<=CO$6,"",VLOOKUP($C14,'[1]Precios gasóleo'!$D:$F,3,FALSE)/VLOOKUP(CO$6,'[1]Precios gasóleo'!$D:$F,3,FALSE)-1) ->  | CP14: =IF($C14<=CP$6,"",VLOOKUP($C14,'[1]Precios gasóleo'!$D:$F,3,FALSE)/VLOOKUP(CP$6,'[1]Precios gasóleo'!$D:$F,3,FALSE)-1) ->  | CQ14: =IF($C14<=CQ$6,"",VLOOKUP($C14,'[1]Precios gasóleo'!$D:$F,3,FALSE)/VLOOKUP(CQ$6,'[1]Precios gasóleo'!$D:$F,3,FALSE)-1) ->  | CR14: =IF($C14<=CR$6,"",VLOOKUP($C14,'[1]Precios gasóleo'!$D:$F,3,FALSE)/VLOOKUP(CR$6,'[1]Precios gasóleo'!$D:$F,3,FALSE)-1) ->  | CS14: =IF($C14<=CS$6,"",VLOOKUP($C14,'[1]Precios gasóleo'!$D:$F,3,FALSE)/VLOOKUP(CS$6,'[1]Precios gasóleo'!$D:$F,3,FALSE)-1) ->  | CT14: =IF($C14<=CT$6,"",VLOOKUP($C14,'[1]Precios gasóleo'!$D:$F,3,FALSE)/VLOOKUP(CT$6,'[1]Precios gasóleo'!$D:$F,3,FALSE)-1) ->  | CU14: =IF($C14<=CU$6,"",VLOOKUP($C14,'[1]Precios gasóleo'!$D:$F,3,FALSE)/VLOOKUP(CU$6,'[1]Precios gasóleo'!$D:$F,3,FALSE)-1) ->  | CV14: =IF($C14<=CV$6,"",VLOOKUP($C14,'[1]Precios gasóleo'!$D:$F,3,FALSE)/VLOOKUP(CV$6,'[1]Precios gasóleo'!$D:$F,3,FALSE)-1) ->  | CW14: =IF($C14<=CW$6,"",VLOOKUP($C14,'[1]Precios gasóleo'!$D:$F,3,FALSE)/VLOOKUP(CW$6,'[1]Precios gasóleo'!$D:$F,3,FALSE)-1) ->  | CX14: =IF($C14<=CX$6,"",VLOOKUP($C14,'[1]Precios gasóleo'!$D:$F,3,FALSE)/VLOOKUP(CX$6,'[1]Precios gasóleo'!$D:$F,3,FALSE)-1) ->  | CY14: =IF($C14<=CY$6,"",VLOOKUP($C14,'[1]Precios gasóleo'!$D:$F,3,FALSE)/VLOOKUP(CY$6,'[1]Precios gasóleo'!$D:$F,3,FALSE)-1) ->  | CZ14: =IF($C14<=CZ$6,"",VLOOKUP($C14,'[1]Precios gasóleo'!$D:$F,3,FALSE)/VLOOKUP(CZ$6,'[1]Precios gasóleo'!$D:$F,3,FALSE)-1) ->  | DA14: =IF($C14<=DA$6,"",VLOOKUP($C14,'[1]Precios gasóleo'!$D:$F,3,FALSE)/VLOOKUP(DA$6,'[1]Precios gasóleo'!$D:$F,3,FALSE)-1) ->  | DB14: =IF($C14<=DB$6,"",VLOOKUP($C14,'[1]Precios gasóleo'!$D:$F,3,FALSE)/VLOOKUP(DB$6,'[1]Precios gasóleo'!$D:$F,3,FALSE)-1) ->  | DC14: =IF($C14<=DC$6,"",VLOOKUP($C14,'[1]Precios gasóleo'!$D:$F,3,FALSE)/VLOOKUP(DC$6,'[1]Precios gasóleo'!$D:$F,3,FALSE)-1) ->  | DD14: =IF($C14<=DD$6,"",VLOOKUP($C14,'[1]Precios gasóleo'!$D:$F,3,FALSE)/VLOOKUP(DD$6,'[1]Precios gasóleo'!$D:$F,3,FALSE)-1) ->  | DE14: =IF($C14<=DE$6,"",VLOOKUP($C14,'[1]Precios gasóleo'!$D:$F,3,FALSE)/VLOOKUP(DE$6,'[1]Precios gasóleo'!$D:$F,3,FALSE)-1) ->  | DF14: =IF($C14<=DF$6,"",VLOOKUP($C14,'[1]Precios gasóleo'!$D:$F,3,FALSE)/VLOOKUP(DF$6,'[1]Precios gasóleo'!$D:$F,3,FALSE)-1) ->  | DG14: =IF($C14<=DG$6,"",VLOOKUP($C14,'[1]Precios gasóleo'!$D:$F,3,FALSE)/VLOOKUP(DG$6,'[1]Precios gasóleo'!$D:$F,3,FALSE)-1) ->  | DH14: =IF($C14<=DH$6,"",VLOOKUP($C14,'[1]Precios gasóleo'!$D:$F,3,FALSE)/VLOOKUP(DH$6,'[1]Precios gasóleo'!$D:$F,3,FALSE)-1) ->  | DI14: =IF($C14<=DI$6,"",VLOOKUP($C14,'[1]Precios gasóleo'!$D:$F,3,FALSE)/VLOOKUP(DI$6,'[1]Precios gasóleo'!$D:$F,3,FALSE)-1) ->  | DJ14: =IF($C14<=DJ$6,"",VLOOKUP($C14,'[1]Precios gasóleo'!$D:$F,3,FALSE)/VLOOKUP(DJ$6,'[1]Precios gasóleo'!$D:$F,3,FALSE)-1) ->  | DK14: =IF($C14<=DK$6,"",VLOOKUP($C14,'[1]Precios gasóleo'!$D:$F,3,FALSE)/VLOOKUP(DK$6,'[1]Precios gasóleo'!$D:$F,3,FALSE)-1) ->  | DL14: =IF($C14<=DL$6,"",VLOOKUP($C14,'[1]Precios gasóleo'!$D:$F,3,FALSE)/VLOOKUP(DL$6,'[1]Precios gasóleo'!$D:$F,3,FALSE)-1) ->  | DM14: =IF($C14<=DM$6,"",VLOOKUP($C14,'[1]Precios gasóleo'!$D:$F,3,FALSE)/VLOOKUP(DM$6,'[1]Precios gasóleo'!$D:$F,3,FALSE)-1) ->  | DN14: =IF($C14<=DN$6,"",VLOOKUP($C14,'[1]Precios gasóleo'!$D:$F,3,FALSE)/VLOOKUP(DN$6,'[1]Precios gasóleo'!$D:$F,3,FALSE)-1) ->  | DO14: =IF($C14<=DO$6,"",VLOOKUP($C14,'[1]Precios gasóleo'!$D:$F,3,FALSE)/VLOOKUP(DO$6,'[1]Precios gasóleo'!$D:$F,3,FALSE)-1) ->  | DP14: =IF($C14<=DP$6,"",VLOOKUP($C14,'[1]Precios gasóleo'!$D:$F,3,FALSE)/VLOOKUP(DP$6,'[1]Precios gasóleo'!$D:$F,3,FALSE)-1) ->  | DQ14: =IF($C14<=DQ$6,"",VLOOKUP($C14,'[1]Precios gasóleo'!$D:$F,3,FALSE)/VLOOKUP(DQ$6,'[1]Precios gasóleo'!$D:$F,3,FALSE)-1) ->  | DR14: =IF($C14<=DR$6,"",VLOOKUP($C14,'[1]Precios gasóleo'!$D:$F,3,FALSE)/VLOOKUP(DR$6,'[1]Precios gasóleo'!$D:$F,3,FALSE)-1) ->  | DS14: =IF($C14<=DS$6,"",VLOOKUP($C14,'[1]Precios gasóleo'!$D:$F,3,FALSE)/VLOOKUP(DS$6,'[1]Precios gasóleo'!$D:$F,3,FALSE)-1) ->  | DT14: =IF($C14<=DT$6,"",VLOOKUP($C14,'[1]Precios gasóleo'!$D:$F,3,FALSE)/VLOOKUP(DT$6,'[1]Precios gasóleo'!$D:$F,3,FALSE)-1) ->  | DU14: =IF($C14<=DU$6,"",VLOOKUP($C14,'[1]Precios gasóleo'!$D:$F,3,FALSE)/VLOOKUP(DU$6,'[1]Precios gasóleo'!$D:$F,3,FALSE)-1) ->  | DV14: =IF($C14<=DV$6,"",VLOOKUP($C14,'[1]Precios gasóleo'!$D:$F,3,FALSE)/VLOOKUP(DV$6,'[1]Precios gasóleo'!$D:$F,3,FALSE)-1) ->  | DW14: =IF($C14<=DW$6,"",VLOOKUP($C14,'[1]Precios gasóleo'!$D:$F,3,FALSE)/VLOOKUP(DW$6,'[1]Precios gasóleo'!$D:$F,3,FALSE)-1) ->  | DX14: =IF($C14<=DX$6,"",VLOOKUP($C14,'[1]Precios gasóleo'!$D:$F,3,FALSE)/VLOOKUP(DX$6,'[1]Precios gasóleo'!$D:$F,3,FALSE)-1) ->  | DY14: =IF($C14<=DY$6,"",VLOOKUP($C14,'[1]Precios gasóleo'!$D:$F,3,FALSE)/VLOOKUP(DY$6,'[1]Precios gasóleo'!$D:$F,3,FALSE)-1) ->  | DZ14: =IF($C14<=DZ$6,"",VLOOKUP($C14,'[1]Precios gasóleo'!$D:$F,3,FALSE)/VLOOKUP(DZ$6,'[1]Precios gasóleo'!$D:$F,3,FALSE)-1) ->  | EA14: =IF($C14<=EA$6,"",VLOOKUP($C14,'[1]Precios gasóleo'!$D:$F,3,FALSE)/VLOOKUP(EA$6,'[1]Precios gasóleo'!$D:$F,3,FALSE)-1) ->  | EB14: =IF($C14<=EB$6,"",VLOOKUP($C14,'[1]Precios gasóleo'!$D:$F,3,FALSE)/VLOOKUP(EB$6,'[1]Precios gasóleo'!$D:$F,3,FALSE)-1) ->  | EC14: =IF($C14<=EC$6,"",VLOOKUP($C14,'[1]Precios gasóleo'!$D:$F,3,FALSE)/VLOOKUP(EC$6,'[1]Precios gasóleo'!$D:$F,3,FALSE)-1) ->  | ED14: =IF($C14<=ED$6,"",VLOOKUP($C14,'[1]Precios gasóleo'!$D:$F,3,FALSE)/VLOOKUP(ED$6,'[1]Precios gasóleo'!$D:$F,3,FALSE)-1) ->  | EE14: =IF($C14<=EE$6,"",VLOOKUP($C14,'[1]Precios gasóleo'!$D:$F,3,FALSE)/VLOOKUP(EE$6,'[1]Precios gasóleo'!$D:$F,3,FALSE)-1) ->  | EF14: =IF($C14<=EF$6,"",VLOOKUP($C14,'[1]Precios gasóleo'!$D:$F,3,FALSE)/VLOOKUP(EF$6,'[1]Precios gasóleo'!$D:$F,3,FALSE)-1) ->  | EG14: =IF($C14<=EG$6,"",VLOOKUP($C14,'[1]Precios gasóleo'!$D:$F,3,FALSE)/VLOOKUP(EG$6,'[1]Precios gasóleo'!$D:$F,3,FALSE)-1) ->  | EH14: 2020-03-03
C15: 2020-03-10 | D15: =IF($C15<=D$6,"",VLOOKUP($C15,'[1]Precios gasóleo'!$D:$F,3,FALSE)/VLOOKUP(D$6,'[1]Precios gasóleo'!$D:$F,3,FALSE)-1) -> -0.1006020974 | E15: =IF($C15<=E$6,"",VLOOKUP($C15,'[1]Precios gasóleo'!$D:$F,3,FALSE)/VLOOKUP(E$6,'[1]Precios gasóleo'!$D:$F,3,FALSE)-1) -> -0.09528469894 | F15: =IF($C15<=F$6,"",VLOOKUP($C15,'[1]Precios gasóleo'!$D:$F,3,FALSE)/VLOOKUP(F$6,'[1]Precios gasóleo'!$D:$F,3,FALSE)-1) -> -0.08751830546 | G15: =IF($C15<=G$6,"",VLOOKUP($C15,'[1]Precios gasóleo'!$D:$F,3,FALSE)/VLOOKUP(G$6,'[1]Precios gasóleo'!$D:$F,3,FALSE)-1) -> -0.07663337154 | H15: =IF($C15<=H$6,"",VLOOKUP($C15,'[1]Precios gasóleo'!$D:$F,3,FALSE)/VLOOKUP(H$6,'[1]Precios gasóleo'!$D:$F,3,FALSE)-1) -> -0.06502851837 | I15: =IF($C15<=I$6,"",VLOOKUP($C15,'[1]Precios gasóleo'!$D:$F,3,FALSE)/VLOOKUP(I$6,'[1]Precios gasóleo'!$D:$F,3,FALSE)-1) -> -0.06044070479 | J15: =IF($C15<=J$6,"",VLOOKUP($C15,'[1]Precios gasóleo'!$D:$F,3,FALSE)/VLOOKUP(J$6,'[1]Precios gasóleo'!$D:$F,3,FALSE)-1) -> -0.06137905206 | K15: =IF($C15<=K$6,"",VLOOKUP($C15,'[1]Precios gasóleo'!$D:$F,3,FALSE)/VLOOKUP(K$6,'[1]Precios gasóleo'!$D:$F,3,FALSE)-1) -> -0.05231668991 | L15: =IF($C15<=L$6,"",VLOOKUP($C15,'[1]Precios gasóleo'!$D:$F,3,FALSE)/VLOOKUP(L$6,'[1]Precios gasóleo'!$D:$F,3,FALSE)-1) -> -0.03695733853 | M15: =IF($C15<=M$6,"",VLOOKUP($C15,'[1]Precios gasóleo'!$D:$F,3,FALSE)/VLOOKUP(M$6,'[1]Precios gasóleo'!$D:$F,3,FALSE)-1) ->  | N15: =IF($C15<=N$6,"",VLOOKUP($C15,'[1]Precios gasóleo'!$D:$F,3,FALSE)/VLOOKUP(N$6,'[1]Precios gasóleo'!$D:$F,3,FALSE)-1) ->  | O15: =IF($C15<=O$6,"",VLOOKUP($C15,'[1]Precios gasóleo'!$D:$F,3,FALSE)/VLOOKUP(O$6,'[1]Precios gasóleo'!$D:$F,3,FALSE)-1) ->  | P15: =IF($C15<=P$6,"",VLOOKUP($C15,'[1]Precios gasóleo'!$D:$F,3,FALSE)/VLOOKUP(P$6,'[1]Precios gasóleo'!$D:$F,3,FALSE)-1) ->  | Q15: =IF($C15<=Q$6,"",VLOOKUP($C15,'[1]Precios gasóleo'!$D:$F,3,FALSE)/VLOOKUP(Q$6,'[1]Precios gasóleo'!$D:$F,3,FALSE)-1) ->  | R15: =IF($C15<=R$6,"",VLOOKUP($C15,'[1]Precios gasóleo'!$D:$F,3,FALSE)/VLOOKUP(R$6,'[1]Precios gasóleo'!$D:$F,3,FALSE)-1) ->  | S15: =IF($C15<=S$6,"",VLOOKUP($C15,'[1]Precios gasóleo'!$D:$F,3,FALSE)/VLOOKUP(S$6,'[1]Precios gasóleo'!$D:$F,3,FALSE)-1) ->  | T15: =IF($C15<=T$6,"",VLOOKUP($C15,'[1]Precios gasóleo'!$D:$F,3,FALSE)/VLOOKUP(T$6,'[1]Precios gasóleo'!$D:$F,3,FALSE)-1) ->  | U15: =IF($C15<=U$6,"",VLOOKUP($C15,'[1]Precios gasóleo'!$D:$F,3,FALSE)/VLOOKUP(U$6,'[1]Precios gasóleo'!$D:$F,3,FALSE)-1) ->  | V15: =IF($C15<=V$6,"",VLOOKUP($C15,'[1]Precios gasóleo'!$D:$F,3,FALSE)/VLOOKUP(V$6,'[1]Precios gasóleo'!$D:$F,3,FALSE)-1) ->  | W15: =IF($C15<=W$6,"",VLOOKUP($C15,'[1]Precios gasóleo'!$D:$F,3,FALSE)/VLOOKUP(W$6,'[1]Precios gasóleo'!$D:$F,3,FALSE)-1) ->  | X15: =IF($C15<=X$6,"",VLOOKUP($C15,'[1]Precios gasóleo'!$D:$F,3,FALSE)/VLOOKUP(X$6,'[1]Precios gasóleo'!$D:$F,3,FALSE)-1) ->  | Y15: =IF($C15<=Y$6,"",VLOOKUP($C15,'[1]Precios gasóleo'!$D:$F,3,FALSE)/VLOOKUP(Y$6,'[1]Precios gasóleo'!$D:$F,3,FALSE)-1) ->  | Z15: =IF($C15<=Z$6,"",VLOOKUP($C15,'[1]Precios gasóleo'!$D:$F,3,FALSE)/VLOOKUP(Z$6,'[1]Precios gasóleo'!$D:$F,3,FALSE)-1) ->  | AA15: =IF($C15<=AA$6,"",VLOOKUP($C15,'[1]Precios gasóleo'!$D:$F,3,FALSE)/VLOOKUP(AA$6,'[1]Precios gasóleo'!$D:$F,3,FALSE)-1) ->  | AB15: =IF($C15<=AB$6,"",VLOOKUP($C15,'[1]Precios gasóleo'!$D:$F,3,FALSE)/VLOOKUP(AB$6,'[1]Precios gasóleo'!$D:$F,3,FALSE)-1) ->  | AC15: =IF($C15<=AC$6,"",VLOOKUP($C15,'[1]Precios gasóleo'!$D:$F,3,FALSE)/VLOOKUP(AC$6,'[1]Precios gasóleo'!$D:$F,3,FALSE)-1) ->  | AD15: =IF($C15<=AD$6,"",VLOOKUP($C15,'[1]Precios gasóleo'!$D:$F,3,FALSE)/VLOOKUP(AD$6,'[1]Precios gasóleo'!$D:$F,3,FALSE)-1) ->  | AE15: =IF($C15<=AE$6,"",VLOOKUP($C15,'[1]Precios gasóleo'!$D:$F,3,FALSE)/VLOOKUP(AE$6,'[1]Precios gasóleo'!$D:$F,3,FALSE)-1) ->  | AF15: =IF($C15<=AF$6,"",VLOOKUP($C15,'[1]Precios gasóleo'!$D:$F,3,FALSE)/VLOOKUP(AF$6,'[1]Precios gasóleo'!$D:$F,3,FALSE)-1) ->  | AG15: =IF($C15<=AG$6,"",VLOOKUP($C15,'[1]Precios gasóleo'!$D:$F,3,FALSE)/VLOOKUP(AG$6,'[1]Precios gasóleo'!$D:$F,3,FALSE)-1) ->  | AH15: =IF($C15<=AH$6,"",VLOOKUP($C15,'[1]Precios gasóleo'!$D:$F,3,FALSE)/VLOOKUP(AH$6,'[1]Precios gasóleo'!$D:$F,3,FALSE)-1) ->  | AI15: =IF($C15<=AI$6,"",VLOOKUP($C15,'[1]Precios gasóleo'!$D:$F,3,FALSE)/VLOOKUP(AI$6,'[1]Precios gasóleo'!$D:$F,3,FALSE)-1) ->  | AJ15: =IF($C15<=AJ$6,"",VLOOKUP($C15,'[1]Precios gasóleo'!$D:$F,3,FALSE)/VLOOKUP(AJ$6,'[1]Precios gasóleo'!$D:$F,3,FALSE)-1) ->  | AK15: =IF($C15<=AK$6,"",VLOOKUP($C15,'[1]Precios gasóleo'!$D:$F,3,FALSE)/VLOOKUP(AK$6,'[1]Precios gasóleo'!$D:$F,3,FALSE)-1) ->  | AL15: =IF($C15<=AL$6,"",VLOOKUP($C15,'[1]Precios gasóleo'!$D:$F,3,FALSE)/VLOOKUP(AL$6,'[1]Precios gasóleo'!$D:$F,3,FALSE)-1) ->  | AM15: =IF($C15<=AM$6,"",VLOOKUP($C15,'[1]Precios gasóleo'!$D:$F,3,FALSE)/VLOOKUP(AM$6,'[1]Precios gasóleo'!$D:$F,3,FALSE)-1) ->  | AN15: =IF($C15<=AN$6,"",VLOOKUP($C15,'[1]Precios gasóleo'!$D:$F,3,FALSE)/VLOOKUP(AN$6,'[1]Precios gasóleo'!$D:$F,3,FALSE)-1) ->  | AO15: =IF($C15<=AO$6,"",VLOOKUP($C15,'[1]Precios gasóleo'!$D:$F,3,FALSE)/VLOOKUP(AO$6,'[1]Precios gasóleo'!$D:$F,3,FALSE)-1) ->  | AP15: =IF($C15<=AP$6,"",VLOOKUP($C15,'[1]Precios gasóleo'!$D:$F,3,FALSE)/VLOOKUP(AP$6,'[1]Precios gasóleo'!$D:$F,3,FALSE)-1) ->  | AQ15: =IF($C15<=AQ$6,"",VLOOKUP($C15,'[1]Precios gasóleo'!$D:$F,3,FALSE)/VLOOKUP(AQ$6,'[1]Precios gasóleo'!$D:$F,3,FALSE)-1) ->  | AR15: =IF($C15<=AR$6,"",VLOOKUP($C15,'[1]Precios gasóleo'!$D:$F,3,FALSE)/VLOOKUP(AR$6,'[1]Precios gasóleo'!$D:$F,3,FALSE)-1) ->  | AS15: =IF($C15<=AS$6,"",VLOOKUP($C15,'[1]Precios gasóleo'!$D:$F,3,FALSE)/VLOOKUP(AS$6,'[1]Precios gasóleo'!$D:$F,3,FALSE)-1) ->  | AT15: =IF($C15<=AT$6,"",VLOOKUP($C15,'[1]Precios gasóleo'!$D:$F,3,FALSE)/VLOOKUP(AT$6,'[1]Precios gasóleo'!$D:$F,3,FALSE)-1) ->  | AU15: =IF($C15<=AU$6,"",VLOOKUP($C15,'[1]Precios gasóleo'!$D:$F,3,FALSE)/VLOOKUP(AU$6,'[1]Precios gasóleo'!$D:$F,3,FALSE)-1) ->  | AV15: =IF($C15<=AV$6,"",VLOOKUP($C15,'[1]Precios gasóleo'!$D:$F,3,FALSE)/VLOOKUP(AV$6,'[1]Precios gasóleo'!$D:$F,3,FALSE)-1) ->  | AW15: =IF($C15<=AW$6,"",VLOOKUP($C15,'[1]Precios gasóleo'!$D:$F,3,FALSE)/VLOOKUP(AW$6,'[1]Precios gasóleo'!$D:$F,3,FALSE)-1) ->  | AX15: =IF($C15<=AX$6,"",VLOOKUP($C15,'[1]Precios gasóleo'!$D:$F,3,FALSE)/VLOOKUP(AX$6,'[1]Precios gasóleo'!$D:$F,3,FALSE)-1) ->  | AY15: =IF($C15<=AY$6,"",VLOOKUP($C15,'[1]Precios gasóleo'!$D:$F,3,FALSE)/VLOOKUP(AY$6,'[1]Precios gasóleo'!$D:$F,3,FALSE)-1) ->  | AZ15: =IF($C15<=AZ$6,"",VLOOKUP($C15,'[1]Precios gasóleo'!$D:$F,3,FALSE)/VLOOKUP(AZ$6,'[1]Precios gasóleo'!$D:$F,3,FALSE)-1) ->  | BA15: =IF($C15<=BA$6,"",VLOOKUP($C15,'[1]Precios gasóleo'!$D:$F,3,FALSE)/VLOOKUP(BA$6,'[1]Precios gasóleo'!$D:$F,3,FALSE)-1) ->  | BB15: =IF($C15<=BB$6,"",VLOOKUP($C15,'[1]Precios gasóleo'!$D:$F,3,FALSE)/VLOOKUP(BB$6,'[1]Precios gasóleo'!$D:$F,3,FALSE)-1) ->  | BC15: =IF($C15<=BC$6,"",VLOOKUP($C15,'[1]Precios gasóleo'!$D:$F,3,FALSE)/VLOOKUP(BC$6,'[1]Precios gasóleo'!$D:$F,3,FALSE)-1) ->  | BD15: =IF($C15<=BD$6,"",VLOOKUP($C15,'[1]Precios gasóleo'!$D:$F,3,FALSE)/VLOOKUP(BD$6,'[1]Precios gasóleo'!$D:$F,3,FALSE)-1) ->  | BE15: =IF($C15<=BE$6,"",VLOOKUP($C15,'[1]Precios gasóleo'!$D:$F,3,FALSE)/VLOOKUP(BE$6,'[1]Precios gasóleo'!$D:$F,3,FALSE)-1) ->  | BF15: =IF($C15<=BF$6,"",VLOOKUP($C15,'[1]Precios gasóleo'!$D:$F,3,FALSE)/VLOOKUP(BF$6,'[1]Precios gasóleo'!$D:$F,3,FALSE)-1) ->  | BG15: =IF($C15<=BG$6,"",VLOOKUP($C15,'[1]Precios gasóleo'!$D:$F,3,FALSE)/VLOOKUP(BG$6,'[1]Precios gasóleo'!$D:$F,3,FALSE)-1) ->  | BH15: =IF($C15<=BH$6,"",VLOOKUP($C15,'[1]Precios gasóleo'!$D:$F,3,FALSE)/VLOOKUP(BH$6,'[1]Precios gasóleo'!$D:$F,3,FALSE)-1) ->  | BI15: =IF($C15<=BI$6,"",VLOOKUP($C15,'[1]Precios gasóleo'!$D:$F,3,FALSE)/VLOOKUP(BI$6,'[1]Precios gasóleo'!$D:$F,3,FALSE)-1) ->  | BJ15: =IF($C15<=BJ$6,"",VLOOKUP($C15,'[1]Precios gasóleo'!$D:$F,3,FALSE)/VLOOKUP(BJ$6,'[1]Precios gasóleo'!$D:$F,3,FALSE)-1) ->  | BK15: =IF($C15<=BK$6,"",VLOOKUP($C15,'[1]Precios gasóleo'!$D:$F,3,FALSE)/VLOOKUP(BK$6,'[1]Precios gasóleo'!$D:$F,3,FALSE)-1) ->  | BL15: =IF($C15<=BL$6,"",VLOOKUP($C15,'[1]Precios gasóleo'!$D:$F,3,FALSE)/VLOOKUP(BL$6,'[1]Precios gasóleo'!$D:$F,3,FALSE)-1) ->  | BM15: =IF($C15<=BM$6,"",VLOOKUP($C15,'[1]Precios gasóleo'!$D:$F,3,FALSE)/VLOOKUP(BM$6,'[1]Precios gasóleo'!$D:$F,3,FALSE)-1) ->  | BN15: =IF($C15<=BN$6,"",VLOOKUP($C15,'[1]Precios gasóleo'!$D:$F,3,FALSE)/VLOOKUP(BN$6,'[1]Precios gasóleo'!$D:$F,3,FALSE)-1) ->  | BO15: =IF($C15<=BO$6,"",VLOOKUP($C15,'[1]Precios gasóleo'!$D:$F,3,FALSE)/VLOOKUP(BO$6,'[1]Precios gasóleo'!$D:$F,3,FALSE)-1) ->  | BP15: =IF($C15<=BP$6,"",VLOOKUP($C15,'[1]Precios gasóleo'!$D:$F,3,FALSE)/VLOOKUP(BP$6,'[1]Precios gasóleo'!$D:$F,3,FALSE)-1) ->  | BQ15: =IF($C15<=BQ$6,"",VLOOKUP($C15,'[1]Precios gasóleo'!$D:$F,3,FALSE)/VLOOKUP(BQ$6,'[1]Precios gasóleo'!$D:$F,3,FALSE)-1) ->  | BR15: =IF($C15<=BR$6,"",VLOOKUP($C15,'[1]Precios gasóleo'!$D:$F,3,FALSE)/VLOOKUP(BR$6,'[1]Precios gasóleo'!$D:$F,3,FALSE)-1) ->  | BS15: =IF($C15<=BS$6,"",VLOOKUP($C15,'[1]Precios gasóleo'!$D:$F,3,FALSE)/VLOOKUP(BS$6,'[1]Precios gasóleo'!$D:$F,3,FALSE)-1) ->  | BT15: =IF($C15<=BT$6,"",VLOOKUP($C15,'[1]Precios gasóleo'!$D:$F,3,FALSE)/VLOOKUP(BT$6,'[1]Precios gasóleo'!$D:$F,3,FALSE)-1) ->  | BU15: =IF($C15<=BU$6,"",VLOOKUP($C15,'[1]Precios gasóleo'!$D:$F,3,FALSE)/VLOOKUP(BU$6,'[1]Precios gasóleo'!$D:$F,3,FALSE)-1) ->  | BV15: =IF($C15<=BV$6,"",VLOOKUP($C15,'[1]Precios gasóleo'!$D:$F,3,FALSE)/VLOOKUP(BV$6,'[1]Precios gasóleo'!$D:$F,3,FALSE)-1) ->  | BW15: =IF($C15<=BW$6,"",VLOOKUP($C15,'[1]Precios gasóleo'!$D:$F,3,FALSE)/VLOOKUP(BW$6,'[1]Precios gasóleo'!$D:$F,3,FALSE)-1) ->  | BX15: =IF($C15<=BX$6,"",VLOOKUP($C15,'[1]Precios gasóleo'!$D:$F,3,FALSE)/VLOOKUP(BX$6,'[1]Precios gasóleo'!$D:$F,3,FALSE)-1) ->  | BY15: =IF($C15<=BY$6,"",VLOOKUP($C15,'[1]Precios gasóleo'!$D:$F,3,FALSE)/VLOOKUP(BY$6,'[1]Precios gasóleo'!$D:$F,3,FALSE)-1) ->  | BZ15: =IF($C15<=BZ$6,"",VLOOKUP($C15,'[1]Precios gasóleo'!$D:$F,3,FALSE)/VLOOKUP(BZ$6,'[1]Precios gasóleo'!$D:$F,3,FALSE)-1) ->  | CA15: =IF($C15<=CA$6,"",VLOOKUP($C15,'[1]Precios gasóleo'!$D:$F,3,FALSE)/VLOOKUP(CA$6,'[1]Precios gasóleo'!$D:$F,3,FALSE)-1) ->  | CB15: =IF($C15<=CB$6,"",VLOOKUP($C15,'[1]Precios gasóleo'!$D:$F,3,FALSE)/VLOOKUP(CB$6,'[1]Precios gasóleo'!$D:$F,3,FALSE)-1) ->  | CC15: =IF($C15<=CC$6,"",VLOOKUP($C15,'[1]Precios gasóleo'!$D:$F,3,FALSE)/VLOOKUP(CC$6,'[1]Precios gasóleo'!$D:$F,3,FALSE)-1) ->  | CD15: =IF($C15<=CD$6,"",VLOOKUP($C15,'[1]Precios gasóleo'!$D:$F,3,FALSE)/VLOOKUP(CD$6,'[1]Precios gasóleo'!$D:$F,3,FALSE)-1) ->  | CE15: =IF($C15<=CE$6,"",VLOOKUP($C15,'[1]Precios gasóleo'!$D:$F,3,FALSE)/VLOOKUP(CE$6,'[1]Precios gasóleo'!$D:$F,3,FALSE)-1) ->  | CF15: =IF($C15<=CF$6,"",VLOOKUP($C15,'[1]Precios gasóleo'!$D:$F,3,FALSE)/VLOOKUP(CF$6,'[1]Precios gasóleo'!$D:$F,3,FALSE)-1) ->  | CG15: =IF($C15<=CG$6,"",VLOOKUP($C15,'[1]Precios gasóleo'!$D:$F,3,FALSE)/VLOOKUP(CG$6,'[1]Precios gasóleo'!$D:$F,3,FALSE)-1) ->  | CH15: =IF($C15<=CH$6,"",VLOOKUP($C15,'[1]Precios gasóleo'!$D:$F,3,FALSE)/VLOOKUP(CH$6,'[1]Precios gasóleo'!$D:$F,3,FALSE)-1) ->  | CI15: =IF($C15<=CI$6,"",VLOOKUP($C15,'[1]Precios gasóleo'!$D:$F,3,FALSE)/VLOOKUP(CI$6,'[1]Precios gasóleo'!$D:$F,3,FALSE)-1) ->  | CJ15: =IF($C15<=CJ$6,"",VLOOKUP($C15,'[1]Precios gasóleo'!$D:$F,3,FALSE)/VLOOKUP(CJ$6,'[1]Precios gasóleo'!$D:$F,3,FALSE)-1) ->  | CK15: =IF($C15<=CK$6,"",VLOOKUP($C15,'[1]Precios gasóleo'!$D:$F,3,FALSE)/VLOOKUP(CK$6,'[1]Precios gasóleo'!$D:$F,3,FALSE)-1) ->  | CL15: =IF($C15<=CL$6,"",VLOOKUP($C15,'[1]Precios gasóleo'!$D:$F,3,FALSE)/VLOOKUP(CL$6,'[1]Precios gasóleo'!$D:$F,3,FALSE)-1) ->  | CM15: =IF($C15<=CM$6,"",VLOOKUP($C15,'[1]Precios gasóleo'!$D:$F,3,FALSE)/VLOOKUP(CM$6,'[1]Precios gasóleo'!$D:$F,3,FALSE)-1) ->  | CN15: =IF($C15<=CN$6,"",VLOOKUP($C15,'[1]Precios gasóleo'!$D:$F,3,FALSE)/VLOOKUP(CN$6,'[1]Precios gasóleo'!$D:$F,3,FALSE)-1) ->  | CO15: =IF($C15<=CO$6,"",VLOOKUP($C15,'[1]Precios gasóleo'!$D:$F,3,FALSE)/VLOOKUP(CO$6,'[1]Precios gasóleo'!$D:$F,3,FALSE)-1) ->  | CP15: =IF($C15<=CP$6,"",VLOOKUP($C15,'[1]Precios gasóleo'!$D:$F,3,FALSE)/VLOOKUP(CP$6,'[1]Precios gasóleo'!$D:$F,3,FALSE)-1) ->  | CQ15: =IF($C15<=CQ$6,"",VLOOKUP($C15,'[1]Precios gasóleo'!$D:$F,3,FALSE)/VLOOKUP(CQ$6,'[1]Precios gasóleo'!$D:$F,3,FALSE)-1) ->  | CR15: =IF($C15<=CR$6,"",VLOOKUP($C15,'[1]Precios gasóleo'!$D:$F,3,FALSE)/VLOOKUP(CR$6,'[1]Precios gasóleo'!$D:$F,3,FALSE)-1) ->  | CS15: =IF($C15<=CS$6,"",VLOOKUP($C15,'[1]Precios gasóleo'!$D:$F,3,FALSE)/VLOOKUP(CS$6,'[1]Precios gasóleo'!$D:$F,3,FALSE)-1) ->  | CT15: =IF($C15<=CT$6,"",VLOOKUP($C15,'[1]Precios gasóleo'!$D:$F,3,FALSE)/VLOOKUP(CT$6,'[1]Precios gasóleo'!$D:$F,3,FALSE)-1) ->  | CU15: =IF($C15<=CU$6,"",VLOOKUP($C15,'[1]Precios gasóleo'!$D:$F,3,FALSE)/VLOOKUP(CU$6,'[1]Precios gasóleo'!$D:$F,3,FALSE)-1) ->  | CV15: =IF($C15<=CV$6,"",VLOOKUP($C15,'[1]Precios gasóleo'!$D:$F,3,FALSE)/VLOOKUP(CV$6,'[1]Precios gasóleo'!$D:$F,3,FALSE)-1) ->  | CW15: =IF($C15<=CW$6,"",VLOOKUP($C15,'[1]Precios gasóleo'!$D:$F,3,FALSE)/VLOOKUP(CW$6,'[1]Precios gasóleo'!$D:$F,3,FALSE)-1) ->  | CX15: =IF($C15<=CX$6,"",VLOOKUP($C15,'[1]Precios gasóleo'!$D:$F,3,FALSE)/VLOOKUP(CX$6,'[1]Precios gasóleo'!$D:$F,3,FALSE)-1) ->  | CY15: =IF($C15<=CY$6,"",VLOOKUP($C15,'[1]Precios gasóleo'!$D:$F,3,FALSE)/VLOOKUP(CY$6,'[1]Precios gasóleo'!$D:$F,3,FALSE)-1) ->  | CZ15: =IF($C15<=CZ$6,"",VLOOKUP($C15,'[1]Precios gasóleo'!$D:$F,3,FALSE)/VLOOKUP(CZ$6,'[1]Precios gasóleo'!$D:$F,3,FALSE)-1) ->  | DA15: =IF($C15<=DA$6,"",VLOOKUP($C15,'[1]Precios gasóleo'!$D:$F,3,FALSE)/VLOOKUP(DA$6,'[1]Precios gasóleo'!$D:$F,3,FALSE)-1) ->  | DB15: =IF($C15<=DB$6,"",VLOOKUP($C15,'[1]Precios gasóleo'!$D:$F,3,FALSE)/VLOOKUP(DB$6,'[1]Precios gasóleo'!$D:$F,3,FALSE)-1) ->  | DC15: =IF($C15<=DC$6,"",VLOOKUP($C15,'[1]Precios gasóleo'!$D:$F,3,FALSE)/VLOOKUP(DC$6,'[1]Precios gasóleo'!$D:$F,3,FALSE)-1) ->  | DD15: =IF($C15<=DD$6,"",VLOOKUP($C15,'[1]Precios gasóleo'!$D:$F,3,FALSE)/VLOOKUP(DD$6,'[1]Precios gasóleo'!$D:$F,3,FALSE)-1) ->  | DE15: =IF($C15<=DE$6,"",VLOOKUP($C15,'[1]Precios gasóleo'!$D:$F,3,FALSE)/VLOOKUP(DE$6,'[1]Precios gasóleo'!$D:$F,3,FALSE)-1) ->  | DF15: =IF($C15<=DF$6,"",VLOOKUP($C15,'[1]Precios gasóleo'!$D:$F,3,FALSE)/VLOOKUP(DF$6,'[1]Precios gasóleo'!$D:$F,3,FALSE)-1) ->  | DG15: =IF($C15<=DG$6,"",VLOOKUP($C15,'[1]Precios gasóleo'!$D:$F,3,FALSE)/VLOOKUP(DG$6,'[1]Precios gasóleo'!$D:$F,3,FALSE)-1) ->  | DH15: =IF($C15<=DH$6,"",VLOOKUP($C15,'[1]Precios gasóleo'!$D:$F,3,FALSE)/VLOOKUP(DH$6,'[1]Precios gasóleo'!$D:$F,3,FALSE)-1) ->  | DI15: =IF($C15<=DI$6,"",VLOOKUP($C15,'[1]Precios gasóleo'!$D:$F,3,FALSE)/VLOOKUP(DI$6,'[1]Precios gasóleo'!$D:$F,3,FALSE)-1) ->  | DJ15: =IF($C15<=DJ$6,"",VLOOKUP($C15,'[1]Precios gasóleo'!$D:$F,3,FALSE)/VLOOKUP(DJ$6,'[1]Precios gasóleo'!$D:$F,3,FALSE)-1) ->  | DK15: =IF($C15<=DK$6,"",VLOOKUP($C15,'[1]Precios gasóleo'!$D:$F,3,FALSE)/VLOOKUP(DK$6,'[1]Precios gasóleo'!$D:$F,3,FALSE)-1) ->  | DL15: =IF($C15<=DL$6,"",VLOOKUP($C15,'[1]Precios gasóleo'!$D:$F,3,FALSE)/VLOOKUP(DL$6,'[1]Precios gasóleo'!$D:$F,3,FALSE)-1) ->  | DM15: =IF($C15<=DM$6,"",VLOOKUP($C15,'[1]Precios gasóleo'!$D:$F,3,FALSE)/VLOOKUP(DM$6,'[1]Precios gasóleo'!$D:$F,3,FALSE)-1) ->  | DN15: =IF($C15<=DN$6,"",VLOOKUP($C15,'[1]Precios gasóleo'!$D:$F,3,FALSE)/VLOOKUP(DN$6,'[1]Precios gasóleo'!$D:$F,3,FALSE)-1) ->  | DO15: =IF($C15<=DO$6,"",VLOOKUP($C15,'[1]Precios gasóleo'!$D:$F,3,FALSE)/VLOOKUP(DO$6,'[1]Precios gasóleo'!$D:$F,3,FALSE)-1) ->  | DP15: =IF($C15<=DP$6,"",VLOOKUP($C15,'[1]Precios gasóleo'!$D:$F,3,FALSE)/VLOOKUP(DP$6,'[1]Precios gasóleo'!$D:$F,3,FALSE)-1) ->  | DQ15: =IF($C15<=DQ$6,"",VLOOKUP($C15,'[1]Precios gasóleo'!$D:$F,3,FALSE)/VLOOKUP(DQ$6,'[1]Precios gasóleo'!$D:$F,3,FALSE)-1) ->  | DR15: =IF($C15<=DR$6,"",VLOOKUP($C15,'[1]Precios gasóleo'!$D:$F,3,FALSE)/VLOOKUP(DR$6,'[1]Precios gasóleo'!$D:$F,3,FALSE)-1) ->  | DS15: =IF($C15<=DS$6,"",VLOOKUP($C15,'[1]Precios gasóleo'!$D:$F,3,FALSE)/VLOOKUP(DS$6,'[1]Precios gasóleo'!$D:$F,3,FALSE)-1) ->  | DT15: =IF($C15<=DT$6,"",VLOOKUP($C15,'[1]Precios gasóleo'!$D:$F,3,FALSE)/VLOOKUP(DT$6,'[1]Precios gasóleo'!$D:$F,3,FALSE)-1) ->  | DU15: =IF($C15<=DU$6,"",VLOOKUP($C15,'[1]Precios gasóleo'!$D:$F,3,FALSE)/VLOOKUP(DU$6,'[1]Precios gasóleo'!$D:$F,3,FALSE)-1) ->  | DV15: =IF($C15<=DV$6,"",VLOOKUP($C15,'[1]Precios gasóleo'!$D:$F,3,FALSE)/VLOOKUP(DV$6,'[1]Precios gasóleo'!$D:$F,3,FALSE)-1) ->  | DW15: =IF($C15<=DW$6,"",VLOOKUP($C15,'[1]Precios gasóleo'!$D:$F,3,FALSE)/VLOOKUP(DW$6,'[1]Precios gasóleo'!$D:$F,3,FALSE)-1) ->  | DX15: =IF($C15<=DX$6,"",VLOOKUP($C15,'[1]Precios gasóleo'!$D:$F,3,FALSE)/VLOOKUP(DX$6,'[1]Precios gasóleo'!$D:$F,3,FALSE)-1) ->  | DY15: =IF($C15<=DY$6,"",VLOOKUP($C15,'[1]Precios gasóleo'!$D:$F,3,FALSE)/VLOOKUP(DY$6,'[1]Precios gasóleo'!$D:$F,3,FALSE)-1) ->  | DZ15: =IF($C15<=DZ$6,"",VLOOKUP($C15,'[1]Precios gasóleo'!$D:$F,3,FALSE)/VLOOKUP(DZ$6,'[1]Precios gasóleo'!$D:$F,3,FALSE)-1) ->  | EA15: =IF($C15<=EA$6,"",VLOOKUP($C15,'[1]Precios gasóleo'!$D:$F,3,FALSE)/VLOOKUP(EA$6,'[1]Precios gasóleo'!$D:$F,3,FALSE)-1) ->  | EB15: =IF($C15<=EB$6,"",VLOOKUP($C15,'[1]Precios gasóleo'!$D:$F,3,FALSE)/VLOOKUP(EB$6,'[1]Precios gasóleo'!$D:$F,3,FALSE)-1) ->  | EC15: =IF($C15<=EC$6,"",VLOOKUP($C15,'[1]Precios gasóleo'!$D:$F,3,FALSE)/VLOOKUP(EC$6,'[1]Precios gasóleo'!$D:$F,3,FALSE)-1) ->  | ED15: =IF($C15<=ED$6,"",VLOOKUP($C15,'[1]Precios gasóleo'!$D:$F,3,FALSE)/VLOOKUP(ED$6,'[1]Precios gasóleo'!$D:$F,3,FALSE)-1) ->  | EE15: =IF($C15<=EE$6,"",VLOOKUP($C15,'[1]Precios gasóleo'!$D:$F,3,FALSE)/VLOOKUP(EE$6,'[1]Precios gasóleo'!$D:$F,3,FALSE)-1) ->  | EF15: =IF($C15<=EF$6,"",VLOOKUP($C15,'[1]Precios gasóleo'!$D:$F,3,FALSE)/VLOOKUP(EF$6,'[1]Precios gasóleo'!$D:$F,3,FALSE)-1) ->  | EG15: =IF($C15<=EG$6,"",VLOOKUP($C15,'[1]Precios gasóleo'!$D:$F,3,FALSE)/VLOOKUP(EG$6,'[1]Precios gasóleo'!$D:$F,3,FALSE)-1) ->  | EH15: 2020-03-10
C16: 2020-03-17 | D16: =IF($C16<=D$6,"",VLOOKUP($C16,'[1]Precios gasóleo'!$D:$F,3,FALSE)/VLOOKUP(D$6,'[1]Precios gasóleo'!$D:$F,3,FALSE)-1) -> -0.1348219626 | E16: =IF($C16<=E$6,"",VLOOKUP($C16,'[1]Precios gasóleo'!$D:$F,3,FALSE)/VLOOKUP(E$6,'[1]Precios gasóleo'!$D:$F,3,FALSE)-1) -> -0.129706878 | F16: =IF($C16<=F$6,"",VLOOKUP($C16,'[1]Precios gasóleo'!$D:$F,3,FALSE)/VLOOKUP(F$6,'[1]Precios gasóleo'!$D:$F,3,FALSE)-1) -> -0.1222359766 | G16: =IF($C16<=G$6,"",VLOOKUP($C16,'[1]Precios gasóleo'!$D:$F,3,FALSE)/VLOOKUP(G$6,'[1]Precios gasóleo'!$D:$F,3,FALSE)-1) -> -0.1117651875 | H16: =IF($C16<=H$6,"",VLOOKUP($C16,'[1]Precios gasóleo'!$D:$F,3,FALSE)/VLOOKUP(H$6,'[1]Precios gasóleo'!$D:$F,3,FALSE)-1) -> -0.1006018703 | I16: =IF($C16<=I$6,"",VLOOKUP($C16,'[1]Precios gasóleo'!$D:$F,3,FALSE)/VLOOKUP(I$6,'[1]Precios gasóleo'!$D:$F,3,FALSE)-1) -> -0.09618861165 | J16: =IF($C16<=J$6,"",VLOOKUP($C16,'[1]Precios gasóleo'!$D:$F,3,FALSE)/VLOOKUP(J$6,'[1]Precios gasóleo'!$D:$F,3,FALSE)-1) -> -0.09709125713 | K16: =IF($C16<=K$6,"",VLOOKUP($C16,'[1]Precios gasóleo'!$D:$F,3,FALSE)/VLOOKUP(K$6,'[1]Precios gasóleo'!$D:$F,3,FALSE)-1) -> -0.08837369544 | L16: =IF($C16<=L$6,"",VLOOKUP($C16,'[1]Precios gasóleo'!$D:$F,3,FALSE)/VLOOKUP(L$6,'[1]Precios gasóleo'!$D:$F,3,FALSE)-1) -> -0.07359872938 | M16: =IF($C16<=M$6,"",VLOOKUP($C16,'[1]Precios gasóleo'!$D:$F,3,FALSE)/VLOOKUP(M$6,'[1]Precios gasóleo'!$D:$F,3,FALSE)-1) -> -0.03804752616 | N16: =IF($C16<=N$6,"",VLOOKUP($C16,'[1]Precios gasóleo'!$D:$F,3,FALSE)/VLOOKUP(N$6,'[1]Precios gasóleo'!$D:$F,3,FALSE)-1) ->  | O16: =IF($C16<=O$6,"",VLOOKUP($C16,'[1]Precios gasóleo'!$D:$F,3,FALSE)/VLOOKUP(O$6,'[1]Precios gasóleo'!$D:$F,3,FALSE)-1) ->  | P16: =IF($C16<=P$6,"",VLOOKUP($C16,'[1]Precios gasóleo'!$D:$F,3,FALSE)/VLOOKUP(P$6,'[1]Precios gasóleo'!$D:$F,3,FALSE)-1) ->  | Q16: =IF($C16<=Q$6,"",VLOOKUP($C16,'[1]Precios gasóleo'!$D:$F,3,FALSE)/VLOOKUP(Q$6,'[1]Precios gasóleo'!$D:$F,3,FALSE)-1) ->  | R16: =IF($C16<=R$6,"",VLOOKUP($C16,'[1]Precios gasóleo'!$D:$F,3,FALSE)/VLOOKUP(R$6,'[1]Precios gasóleo'!$D:$F,3,FALSE)-1) ->  | S16: =IF($C16<=S$6,"",VLOOKUP($C16,'[1]Precios gasóleo'!$D:$F,3,FALSE)/VLOOKUP(S$6,'[1]Precios gasóleo'!$D:$F,3,FALSE)-1) ->  | T16: =IF($C16<=T$6,"",VLOOKUP($C16,'[1]Precios gasóleo'!$D:$F,3,FALSE)/VLOOKUP(T$6,'[1]Precios gasóleo'!$D:$F,3,FALSE)-1) ->  | U16: =IF($C16<=U$6,"",VLOOKUP($C16,'[1]Precios gasóleo'!$D:$F,3,FALSE)/VLOOKUP(U$6,'[1]Precios gasóleo'!$D:$F,3,FALSE)-1) ->  | V16: =IF($C16<=V$6,"",VLOOKUP($C16,'[1]Precios gasóleo'!$D:$F,3,FALSE)/VLOOKUP(V$6,'[1]Precios gasóleo'!$D:$F,3,FALSE)-1) ->  | W16: =IF($C16<=W$6,"",VLOOKUP($C16,'[1]Precios gasóleo'!$D:$F,3,FALSE)/VLOOKUP(W$6,'[1]Precios gasóleo'!$D:$F,3,FALSE)-1) ->  | X16: =IF($C16<=X$6,"",VLOOKUP($C16,'[1]Precios gasóleo'!$D:$F,3,FALSE)/VLOOKUP(X$6,'[1]Precios gasóleo'!$D:$F,3,FALSE)-1) ->  | Y16: =IF($C16<=Y$6,"",VLOOKUP($C16,'[1]Precios gasóleo'!$D:$F,3,FALSE)/VLOOKUP(Y$6,'[1]Precios gasóleo'!$D:$F,3,FALSE)-1) ->  | Z16: =IF($C16<=Z$6,"",VLOOKUP($C16,'[1]Precios gasóleo'!$D:$F,3,FALSE)/VLOOKUP(Z$6,'[1]Precios gasóleo'!$D:$F,3,FALSE)-1) ->  | AA16: =IF($C16<=AA$6,"",VLOOKUP($C16,'[1]Precios gasóleo'!$D:$F,3,FALSE)/VLOOKUP(AA$6,'[1]Precios gasóleo'!$D:$F,3,FALSE)-1) ->  | AB16: =IF($C16<=AB$6,"",VLOOKUP($C16,'[1]Precios gasóleo'!$D:$F,3,FALSE)/VLOOKUP(AB$6,'[1]Precios gasóleo'!$D:$F,3,FALSE)-1) ->  | AC16: =IF($C16<=AC$6,"",VLOOKUP($C16,'[1]Precios gasóleo'!$D:$F,3,FALSE)/VLOOKUP(AC$6,'[1]Precios gasóleo'!$D:$F,3,FALSE)-1) ->  | AD16: =IF($C16<=AD$6,"",VLOOKUP($C16,'[1]Precios gasóleo'!$D:$F,3,FALSE)/VLOOKUP(AD$6,'[1]Precios gasóleo'!$D:$F,3,FALSE)-1) ->  | AE16: =IF($C16<=AE$6,"",VLOOKUP($C16,'[1]Precios gasóleo'!$D:$F,3,FALSE)/VLOOKUP(AE$6,'[1]Precios gasóleo'!$D:$F,3,FALSE)-1) ->  | AF16: =IF($C16<=AF$6,"",VLOOKUP($C16,'[1]Precios gasóleo'!$D:$F,3,FALSE)/VLOOKUP(AF$6,'[1]Precios gasóleo'!$D:$F,3,FALSE)-1) ->  | AG16: =IF($C16<=AG$6,"",VLOOKUP($C16,'[1]Precios gasóleo'!$D:$F,3,FALSE)/VLOOKUP(AG$6,'[1]Precios gasóleo'!$D:$F,3,FALSE)-1) ->  | AH16: =IF($C16<=AH$6,"",VLOOKUP($C16,'[1]Precios gasóleo'!$D:$F,3,FALSE)/VLOOKUP(AH$6,'[1]Precios gasóleo'!$D:$F,3,FALSE)-1) ->  | AI16: =IF($C16<=AI$6,"",VLOOKUP($C16,'[1]Precios gasóleo'!$D:$F,3,FALSE)/VLOOKUP(AI$6,'[1]Precios gasóleo'!$D:$F,3,FALSE)-1) ->  | AJ16: =IF($C16<=AJ$6,"",VLOOKUP($C16,'[1]Precios gasóleo'!$D:$F,3,FALSE)/VLOOKUP(AJ$6,'[1]Precios gasóleo'!$D:$F,3,FALSE)-1) ->  | AK16: =IF($C16<=AK$6,"",VLOOKUP($C16,'[1]Precios gasóleo'!$D:$F,3,FALSE)/VLOOKUP(AK$6,'[1]Precios gasóleo'!$D:$F,3,FALSE)-1) ->  | AL16: =IF($C16<=AL$6,"",VLOOKUP($C16,'[1]Precios gasóleo'!$D:$F,3,FALSE)/VLOOKUP(AL$6,'[1]Precios gasóleo'!$D:$F,3,FALSE)-1) ->  | AM16: =IF($C16<=AM$6,"",VLOOKUP($C16,'[1]Precios gasóleo'!$D:$F,3,FALSE)/VLOOKUP(AM$6,'[1]Precios gasóleo'!$D:$F,3,FALSE)-1) ->  | AN16: =IF($C16<=AN$6,"",VLOOKUP($C16,'[1]Precios gasóleo'!$D:$F,3,FALSE)/VLOOKUP(AN$6,'[1]Precios gasóleo'!$D:$F,3,FALSE)-1) ->  | AO16: =IF($C16<=AO$6,"",VLOOKUP($C16,'[1]Precios gasóleo'!$D:$F,3,FALSE)/VLOOKUP(AO$6,'[1]Precios gasóleo'!$D:$F,3,FALSE)-1) ->  | AP16: =IF($C16<=AP$6,"",VLOOKUP($C16,'[1]Precios gasóleo'!$D:$F,3,FALSE)/VLOOKUP(AP$6,'[1]Precios gasóleo'!$D:$F,3,FALSE)-1) ->  | AQ16: =IF($C16<=AQ$6,"",VLOOKUP($C16,'[1]Precios gasóleo'!$D:$F,3,FALSE)/VLOOKUP(AQ$6,'[1]Precios gasóleo'!$D:$F,3,FALSE)-1) ->  | AR16: =IF($C16<=AR$6,"",VLOOKUP($C16,'[1]Precios gasóleo'!$D:$F,3,FALSE)/VLOOKUP(AR$6,'[1]Precios gasóleo'!$D:$F,3,FALSE)-1) ->  | AS16: =IF($C16<=AS$6,"",VLOOKUP($C16,'[1]Precios gasóleo'!$D:$F,3,FALSE)/VLOOKUP(AS$6,'[1]Precios gasóleo'!$D:$F,3,FALSE)-1) ->  | AT16: =IF($C16<=AT$6,"",VLOOKUP($C16,'[1]Precios gasóleo'!$D:$F,3,FALSE)/VLOOKUP(AT$6,'[1]Precios gasóleo'!$D:$F,3,FALSE)-1) ->  | AU16: =IF($C16<=AU$6,"",VLOOKUP($C16,'[1]Precios gasóleo'!$D:$F,3,FALSE)/VLOOKUP(AU$6,'[1]Precios gasóleo'!$D:$F,3,FALSE)-1) ->  | AV16: =IF($C16<=AV$6,"",VLOOKUP($C16,'[1]Precios gasóleo'!$D:$F,3,FALSE)/VLOOKUP(AV$6,'[1]Precios gasóleo'!$D:$F,3,FALSE)-1) ->  | AW16: =IF($C16<=AW$6,"",VLOOKUP($C16,'[1]Precios gasóleo'!$D:$F,3,FALSE)/VLOOKUP(AW$6,'[1]Precios gasóleo'!$D:$F,3,FALSE)-1) ->  | AX16: =IF($C16<=AX$6,"",VLOOKUP($C16,'[1]Precios gasóleo'!$D:$F,3,FALSE)/VLOOKUP(AX$6,'[1]Precios gasóleo'!$D:$F,3,FALSE)-1) ->  | AY16: =IF($C16<=AY$6,"",VLOOKUP($C16,'[1]Precios gasóleo'!$D:$F,3,FALSE)/VLOOKUP(AY$6,'[1]Precios gasóleo'!$D:$F,3,FALSE)-1) ->  | AZ16: =IF($C16<=AZ$6,"",VLOOKUP($C16,'[1]Precios gasóleo'!$D:$F,3,FALSE)/VLOOKUP(AZ$6,'[1]Precios gasóleo'!$D:$F,3,FALSE)-1) ->  | BA16: =IF($C16<=BA$6,"",VLOOKUP($C16,'[1]Precios gasóleo'!$D:$F,3,FALSE)/VLOOKUP(BA$6,'[1]Precios gasóleo'!$D:$F,3,FALSE)-1) ->  | BB16: =IF($C16<=BB$6,"",VLOOKUP($C16,'[1]Precios gasóleo'!$D:$F,3,FALSE)/VLOOKUP(BB$6,'[1]Precios gasóleo'!$D:$F,3,FALSE)-1) ->  | BC16: =IF($C16<=BC$6,"",VLOOKUP($C16,'[1]Precios gasóleo'!$D:$F,3,FALSE)/VLOOKUP(BC$6,'[1]Precios gasóleo'!$D:$F,3,FALSE)-1) ->  | BD16: =IF($C16<=BD$6,"",VLOOKUP($C16,'[1]Precios gasóleo'!$D:$F,3,FALSE)/VLOOKUP(BD$6,'[1]Precios gasóleo'!$D:$F,3,FALSE)-1) ->  | BE16: =IF($C16<=BE$6,"",VLOOKUP($C16,'[1]Precios gasóleo'!$D:$F,3,FALSE)/VLOOKUP(BE$6,'[1]Precios gasóleo'!$D:$F,3,FALSE)-1) ->  | BF16: =IF($C16<=BF$6,"",VLOOKUP($C16,'[1]Precios gasóleo'!$D:$F,3,FALSE)/VLOOKUP(BF$6,'[1]Precios gasóleo'!$D:$F,3,FALSE)-1) ->  | BG16: =IF($C16<=BG$6,"",VLOOKUP($C16,'[1]Precios gasóleo'!$D:$F,3,FALSE)/VLOOKUP(BG$6,'[1]Precios gasóleo'!$D:$F,3,FALSE)-1) ->  | BH16: =IF($C16<=BH$6,"",VLOOKUP($C16,'[1]Precios gasóleo'!$D:$F,3,FALSE)/VLOOKUP(BH$6,'[1]Precios gasóleo'!$D:$F,3,FALSE)-1) ->  | BI16: =IF($C16<=BI$6,"",VLOOKUP($C16,'[1]Precios gasóleo'!$D:$F,3,FALSE)/VLOOKUP(BI$6,'[1]Precios gasóleo'!$D:$F,3,FALSE)-1) ->  | BJ16: =IF($C16<=BJ$6,"",VLOOKUP($C16,'[1]Precios gasóleo'!$D:$F,3,FALSE)/VLOOKUP(BJ$6,'[1]Precios gasóleo'!$D:$F,3,FALSE)-1) ->  | BK16: =IF($C16<=BK$6,"",VLOOKUP($C16,'[1]Precios gasóleo'!$D:$F,3,FALSE)/VLOOKUP(BK$6,'[1]Precios gasóleo'!$D:$F,3,FALSE)-1) ->  | BL16: =IF($C16<=BL$6,"",VLOOKUP($C16,'[1]Precios gasóleo'!$D:$F,3,FALSE)/VLOOKUP(BL$6,'[1]Precios gasóleo'!$D:$F,3,FALSE)-1) ->  | BM16: =IF($C16<=BM$6,"",VLOOKUP($C16,'[1]Precios gasóleo'!$D:$F,3,FALSE)/VLOOKUP(BM$6,'[1]Precios gasóleo'!$D:$F,3,FALSE)-1) ->  | BN16: =IF($C16<=BN$6,"",VLOOKUP($C16,'[1]Precios gasóleo'!$D:$F,3,FALSE)/VLOOKUP(BN$6,'[1]Precios gasóleo'!$D:$F,3,FALSE)-1) ->  | BO16: =IF($C16<=BO$6,"",VLOOKUP($C16,'[1]Precios gasóleo'!$D:$F,3,FALSE)/VLOOKUP(BO$6,'[1]Precios gasóleo'!$D:$F,3,FALSE)-1) ->  | BP16: =IF($C16<=BP$6,"",VLOOKUP($C16,'[1]Precios gasóleo'!$D:$F,3,FALSE)/VLOOKUP(BP$6,'[1]Precios gasóleo'!$D:$F,3,FALSE)-1) ->  | BQ16: =IF($C16<=BQ$6,"",VLOOKUP($C16,'[1]Precios gasóleo'!$D:$F,3,FALSE)/VLOOKUP(BQ$6,'[1]Precios gasóleo'!$D:$F,3,FALSE)-1) ->  | BR16: =IF($C16<=BR$6,"",VLOOKUP($C16,'[1]Precios gasóleo'!$D:$F,3,FALSE)/VLOOKUP(BR$6,'[1]Precios gasóleo'!$D:$F,3,FALSE)-1) ->  | BS16: =IF($C16<=BS$6,"",VLOOKUP($C16,'[1]Precios gasóleo'!$D:$F,3,FALSE)/VLOOKUP(BS$6,'[1]Precios gasóleo'!$D:$F,3,FALSE)-1) ->  | BT16: =IF($C16<=BT$6,"",VLOOKUP($C16,'[1]Precios gasóleo'!$D:$F,3,FALSE)/VLOOKUP(BT$6,'[1]Precios gasóleo'!$D:$F,3,FALSE)-1) ->  | BU16: =IF($C16<=BU$6,"",VLOOKUP($C16,'[1]Precios gasóleo'!$D:$F,3,FALSE)/VLOOKUP(BU$6,'[1]Precios gasóleo'!$D:$F,3,FALSE)-1) ->  | BV16: =IF($C16<=BV$6,"",VLOOKUP($C16,'[1]Precios gasóleo'!$D:$F,3,FALSE)/VLOOKUP(BV$6,'[1]Precios gasóleo'!$D:$F,3,FALSE)-1) ->  | BW16: =IF($C16<=BW$6,"",VLOOKUP($C16,'[1]Precios gasóleo'!$D:$F,3,FALSE)/VLOOKUP(BW$6,'[1]Precios gasóleo'!$D:$F,3,FALSE)-1) ->  | BX16: =IF($C16<=BX$6,"",VLOOKUP($C16,'[1]Precios gasóleo'!$D:$F,3,FALSE)/VLOOKUP(BX$6,'[1]Precios gasóleo'!$D:$F,3,FALSE)-1) ->  | BY16: =IF($C16<=BY$6,"",VLOOKUP($C16,'[1]Precios gasóleo'!$D:$F,3,FALSE)/VLOOKUP(BY$6,'[1]Precios gasóleo'!$D:$F,3,FALSE)-1) ->  | BZ16: =IF($C16<=BZ$6,"",VLOOKUP($C16,'[1]Precios gasóleo'!$D:$F,3,FALSE)/VLOOKUP(BZ$6,'[1]Precios gasóleo'!$D:$F,3,FALSE)-1) ->  | CA16: =IF($C16<=CA$6,"",VLOOKUP($C16,'[1]Precios gasóleo'!$D:$F,3,FALSE)/VLOOKUP(CA$6,'[1]Precios gasóleo'!$D:$F,3,FALSE)-1) ->  | CB16: =IF($C16<=CB$6,"",VLOOKUP($C16,'[1]Precios gasóleo'!$D:$F,3,FALSE)/VLOOKUP(CB$6,'[1]Precios gasóleo'!$D:$F,3,FALSE)-1) ->  | CC16: =IF($C16<=CC$6,"",VLOOKUP($C16,'[1]Precios gasóleo'!$D:$F,3,FALSE)/VLOOKUP(CC$6,'[1]Precios gasóleo'!$D:$F,3,FALSE)-1) ->  | CD16: =IF($C16<=CD$6,"",VLOOKUP($C16,'[1]Precios gasóleo'!$D:$F,3,FALSE)/VLOOKUP(CD$6,'[1]Precios gasóleo'!$D:$F,3,FALSE)-1) ->  | CE16: =IF($C16<=CE$6,"",VLOOKUP($C16,'[1]Precios gasóleo'!$D:$F,3,FALSE)/VLOOKUP(CE$6,'[1]Precios gasóleo'!$D:$F,3,FALSE)-1) ->  | CF16: =IF($C16<=CF$6,"",VLOOKUP($C16,'[1]Precios gasóleo'!$D:$F,3,FALSE)/VLOOKUP(CF$6,'[1]Precios gasóleo'!$D:$F,3,FALSE)-1) ->  | CG16: =IF($C16<=CG$6,"",VLOOKUP($C16,'[1]Precios gasóleo'!$D:$F,3,FALSE)/VLOOKUP(CG$6,'[1]Precios gasóleo'!$D:$F,3,FALSE)-1) ->  | CH16: =IF($C16<=CH$6,"",VLOOKUP($C16,'[1]Precios gasóleo'!$D:$F,3,FALSE)/VLOOKUP(CH$6,'[1]Precios gasóleo'!$D:$F,3,FALSE)-1) ->  | CI16: =IF($C16<=CI$6,"",VLOOKUP($C16,'[1]Precios gasóleo'!$D:$F,3,FALSE)/VLOOKUP(CI$6,'[1]Precios gasóleo'!$D:$F,3,FALSE)-1) ->  | CJ16: =IF($C16<=CJ$6,"",VLOOKUP($C16,'[1]Precios gasóleo'!$D:$F,3,FALSE)/VLOOKUP(CJ$6,'[1]Precios gasóleo'!$D:$F,3,FALSE)-1) ->  | CK16: =IF($C16<=CK$6,"",VLOOKUP($C16,'[1]Precios gasóleo'!$D:$F,3,FALSE)/VLOOKUP(CK$6,'[1]Precios gasóleo'!$D:$F,3,FALSE)-1) ->  | CL16: =IF($C16<=CL$6,"",VLOOKUP($C16,'[1]Precios gasóleo'!$D:$F,3,FALSE)/VLOOKUP(CL$6,'[1]Precios gasóleo'!$D:$F,3,FALSE)-1) ->  | CM16: =IF($C16<=CM$6,"",VLOOKUP($C16,'[1]Precios gasóleo'!$D:$F,3,FALSE)/VLOOKUP(CM$6,'[1]Precios gasóleo'!$D:$F,3,FALSE)-1) ->  | CN16: =IF($C16<=CN$6,"",VLOOKUP($C16,'[1]Precios gasóleo'!$D:$F,3,FALSE)/VLOOKUP(CN$6,'[1]Precios gasóleo'!$D:$F,3,FALSE)-1) ->  | CO16: =IF($C16<=CO$6,"",VLOOKUP($C16,'[1]Precios gasóleo'!$D:$F,3,FALSE)/VLOOKUP(CO$6,'[1]Precios gasóleo'!$D:$F,3,FALSE)-1) ->  | CP16: =IF($C16<=CP$6,"",VLOOKUP($C16,'[1]Precios gasóleo'!$D:$F,3,FALSE)/VLOOKUP(CP$6,'[1]Precios gasóleo'!$D:$F,3,FALSE)-1) ->  | CQ16: =IF($C16<=CQ$6,"",VLOOKUP($C16,'[1]Precios gasóleo'!$D:$F,3,FALSE)/VLOOKUP(CQ$6,'[1]Precios gasóleo'!$D:$F,3,FALSE)-1) ->  | CR16: =IF($C16<=CR$6,"",VLOOKUP($C16,'[1]Precios gasóleo'!$D:$F,3,FALSE)/VLOOKUP(CR$6,'[1]Precios gasóleo'!$D:$F,3,FALSE)-1) ->  | CS16: =IF($C16<=CS$6,"",VLOOKUP($C16,'[1]Precios gasóleo'!$D:$F,3,FALSE)/VLOOKUP(CS$6,'[1]Precios gasóleo'!$D:$F,3,FALSE)-1) ->  | CT16: =IF($C16<=CT$6,"",VLOOKUP($C16,'[1]Precios gasóleo'!$D:$F,3,FALSE)/VLOOKUP(CT$6,'[1]Precios gasóleo'!$D:$F,3,FALSE)-1) ->  | CU16: =IF($C16<=CU$6,"",VLOOKUP($C16,'[1]Precios gasóleo'!$D:$F,3,FALSE)/VLOOKUP(CU$6,'[1]Precios gasóleo'!$D:$F,3,FALSE)-1) ->  | CV16: =IF($C16<=CV$6,"",VLOOKUP($C16,'[1]Precios gasóleo'!$D:$F,3,FALSE)/VLOOKUP(CV$6,'[1]Precios gasóleo'!$D:$F,3,FALSE)-1) ->  | CW16: =IF($C16<=CW$6,"",VLOOKUP($C16,'[1]Precios gasóleo'!$D:$F,3,FALSE)/VLOOKUP(CW$6,'[1]Precios gasóleo'!$D:$F,3,FALSE)-1) ->  | CX16: =IF($C16<=CX$6,"",VLOOKUP($C16,'[1]Precios gasóleo'!$D:$F,3,FALSE)/VLOOKUP(CX$6,'[1]Precios gasóleo'!$D:$F,3,FALSE)-1) ->  | CY16: =IF($C16<=CY$6,"",VLOOKUP($C16,'[1]Precios gasóleo'!$D:$F,3,FALSE)/VLOOKUP(CY$6,'[1]Precios gasóleo'!$D:$F,3,FALSE)-1) ->  | CZ16: =IF($C16<=CZ$6,"",VLOOKUP($C16,'[1]Precios gasóleo'!$D:$F,3,FALSE)/VLOOKUP(CZ$6,'[1]Precios gasóleo'!$D:$F,3,FALSE)-1) ->  | DA16: =IF($C16<=DA$6,"",VLOOKUP($C16,'[1]Precios gasóleo'!$D:$F,3,FALSE)/VLOOKUP(DA$6,'[1]Precios gasóleo'!$D:$F,3,FALSE)-1) ->  | DB16: =IF($C16<=DB$6,"",VLOOKUP($C16,'[1]Precios gasóleo'!$D:$F,3,FALSE)/VLOOKUP(DB$6,'[1]Precios gasóleo'!$D:$F,3,FALSE)-1) ->  | DC16: =IF($C16<=DC$6,"",VLOOKUP($C16,'[1]Precios gasóleo'!$D:$F,3,FALSE)/VLOOKUP(DC$6,'[1]Precios gasóleo'!$D:$F,3,FALSE)-1) ->  | DD16: =IF($C16<=DD$6,"",VLOOKUP($C16,'[1]Precios gasóleo'!$D:$F,3,FALSE)/VLOOKUP(DD$6,'[1]Precios gasóleo'!$D:$F,3,FALSE)-1) ->  | DE16: =IF($C16<=DE$6,"",VLOOKUP($C16,'[1]Precios gasóleo'!$D:$F,3,FALSE)/VLOOKUP(DE$6,'[1]Precios gasóleo'!$D:$F,3,FALSE)-1) ->  | DF16: =IF($C16<=DF$6,"",VLOOKUP($C16,'[1]Precios gasóleo'!$D:$F,3,FALSE)/VLOOKUP(DF$6,'[1]Precios gasóleo'!$D:$F,3,FALSE)-1) ->  | DG16: =IF($C16<=DG$6,"",VLOOKUP($C16,'[1]Precios gasóleo'!$D:$F,3,FALSE)/VLOOKUP(DG$6,'[1]Precios gasóleo'!$D:$F,3,FALSE)-1) ->  | DH16: =IF($C16<=DH$6,"",VLOOKUP($C16,'[1]Precios gasóleo'!$D:$F,3,FALSE)/VLOOKUP(DH$6,'[1]Precios gasóleo'!$D:$F,3,FALSE)-1) ->  | DI16: =IF($C16<=DI$6,"",VLOOKUP($C16,'[1]Precios gasóleo'!$D:$F,3,FALSE)/VLOOKUP(DI$6,'[1]Precios gasóleo'!$D:$F,3,FALSE)-1) ->  | DJ16: =IF($C16<=DJ$6,"",VLOOKUP($C16,'[1]Precios gasóleo'!$D:$F,3,FALSE)/VLOOKUP(DJ$6,'[1]Precios gasóleo'!$D:$F,3,FALSE)-1) ->  | DK16: =IF($C16<=DK$6,"",VLOOKUP($C16,'[1]Precios gasóleo'!$D:$F,3,FALSE)/VLOOKUP(DK$6,'[1]Precios gasóleo'!$D:$F,3,FALSE)-1) ->  | DL16: =IF($C16<=DL$6,"",VLOOKUP($C16,'[1]Precios gasóleo'!$D:$F,3,FALSE)/VLOOKUP(DL$6,'[1]Precios gasóleo'!$D:$F,3,FALSE)-1) ->  | DM16: =IF($C16<=DM$6,"",VLOOKUP($C16,'[1]Precios gasóleo'!$D:$F,3,FALSE)/VLOOKUP(DM$6,'[1]Precios gasóleo'!$D:$F,3,FALSE)-1) ->  | DN16: =IF($C16<=DN$6,"",VLOOKUP($C16,'[1]Precios gasóleo'!$D:$F,3,FALSE)/VLOOKUP(DN$6,'[1]Precios gasóleo'!$D:$F,3,FALSE)-1) ->  | DO16: =IF($C16<=DO$6,"",VLOOKUP($C16,'[1]Precios gasóleo'!$D:$F,3,FALSE)/VLOOKUP(DO$6,'[1]Precios gasóleo'!$D:$F,3,FALSE)-1) ->  | DP16: =IF($C16<=DP$6,"",VLOOKUP($C16,'[1]Precios gasóleo'!$D:$F,3,FALSE)/VLOOKUP(DP$6,'[1]Precios gasóleo'!$D:$F,3,FALSE)-1) ->  | DQ16: =IF($C16<=DQ$6,"",VLOOKUP($C16,'[1]Precios gasóleo'!$D:$F,3,FALSE)/VLOOKUP(DQ$6,'[1]Precios gasóleo'!$D:$F,3,FALSE)-1) ->  | DR16: =IF($C16<=DR$6,"",VLOOKUP($C16,'[1]Precios gasóleo'!$D:$F,3,FALSE)/VLOOKUP(DR$6,'[1]Precios gasóleo'!$D:$F,3,FALSE)-1) ->  | DS16: =IF($C16<=DS$6,"",VLOOKUP($C16,'[1]Precios gasóleo'!$D:$F,3,FALSE)/VLOOKUP(DS$6,'[1]Precios gasóleo'!$D:$F,3,FALSE)-1) ->  | DT16: =IF($C16<=DT$6,"",VLOOKUP($C16,'[1]Precios gasóleo'!$D:$F,3,FALSE)/VLOOKUP(DT$6,'[1]Precios gasóleo'!$D:$F,3,FALSE)-1) ->  | DU16: =IF($C16<=DU$6,"",VLOOKUP($C16,'[1]Precios gasóleo'!$D:$F,3,FALSE)/VLOOKUP(DU$6,'[1]Precios gasóleo'!$D:$F,3,FALSE)-1) ->  | DV16: =IF($C16<=DV$6,"",VLOOKUP($C16,'[1]Precios gasóleo'!$D:$F,3,FALSE)/VLOOKUP(DV$6,'[1]Precios gasóleo'!$D:$F,3,FALSE)-1) ->  | DW16: =IF($C16<=DW$6,"",VLOOKUP($C16,'[1]Precios gasóleo'!$D:$F,3,FALSE)/VLOOKUP(DW$6,'[1]Precios gasóleo'!$D:$F,3,FALSE)-1) ->  | DX16: =IF($C16<=DX$6,"",VLOOKUP($C16,'[1]Precios gasóleo'!$D:$F,3,FALSE)/VLOOKUP(DX$6,'[1]Precios gasóleo'!$D:$F,3,FALSE)-1) ->  | DY16: =IF($C16<=DY$6,"",VLOOKUP($C16,'[1]Precios gasóleo'!$D:$F,3,FALSE)/VLOOKUP(DY$6,'[1]Precios gasóleo'!$D:$F,3,FALSE)-1) ->  | DZ16: =IF($C16<=DZ$6,"",VLOOKUP($C16,'[1]Precios gasóleo'!$D:$F,3,FALSE)/VLOOKUP(DZ$6,'[1]Precios gasóleo'!$D:$F,3,FALSE)-1) ->  | EA16: =IF($C16<=EA$6,"",VLOOKUP($C16,'[1]Precios gasóleo'!$D:$F,3,FALSE)/VLOOKUP(EA$6,'[1]Precios gasóleo'!$D:$F,3,FALSE)-1) ->  | EB16: =IF($C16<=EB$6,"",VLOOKUP($C16,'[1]Precios gasóleo'!$D:$F,3,FALSE)/VLOOKUP(EB$6,'[1]Precios gasóleo'!$D:$F,3,FALSE)-1) ->  | EC16: =IF($C16<=EC$6,"",VLOOKUP($C16,'[1]Precios gasóleo'!$D:$F,3,FALSE)/VLOOKUP(EC$6,'[1]Precios gasóleo'!$D:$F,3,FALSE)-1) ->  | ED16: =IF($C16<=ED$6,"",VLOOKUP($C16,'[1]Precios gasóleo'!$D:$F,3,FALSE)/VLOOKUP(ED$6,'[1]Precios gasóleo'!$D:$F,3,FALSE)-1) ->  | EE16: =IF($C16<=EE$6,"",VLOOKUP($C16,'[1]Precios gasóleo'!$D:$F,3,FALSE)/VLOOKUP(EE$6,'[1]Precios gasóleo'!$D:$F,3,FALSE)-1) ->  | EF16: =IF($C16<=EF$6,"",VLOOKUP($C16,'[1]Precios gasóleo'!$D:$F,3,FALSE)/VLOOKUP(EF$6,'[1]Precios gasóleo'!$D:$F,3,FALSE)-1) ->  | EG16: =IF($C16<=EG$6,"",VLOOKUP($C16,'[1]Precios gasóleo'!$D:$F,3,FALSE)/VLOOKUP(EG$6,'[1]Precios gasóleo'!$D:$F,3,FALSE)-1) ->  | EH16: 2020-03-17
C17: 2020-03-24 | D17: =IF($C17<=D$6,"",VLOOKUP($C17,'[1]Precios gasóleo'!$D:$F,3,FALSE)/VLOOKUP(D$6,'[1]Precios gasóleo'!$D:$F,3,FALSE)-1) -> -0.156736712 | E17: =IF($C17<=E$6,"",VLOOKUP($C17,'[1]Precios gasóleo'!$D:$F,3,FALSE)/VLOOKUP(E$6,'[1]Precios gasóleo'!$D:$F,3,FALSE)-1) -> -0.1517511913 | F17: =IF($C17<=F$6,"",VLOOKUP($C17,'[1]Precios gasóleo'!$D:$F,3,FALSE)/VLOOKUP(F$6,'[1]Precios gasóleo'!$D:$F,3,FALSE)-1) -> -0.144469526 | G17: =IF($C17<=G$6,"",VLOOKUP($C17,'[1]Precios gasóleo'!$D:$F,3,FALSE)/VLOOKUP(G$6,'[1]Precios gasóleo'!$D:$F,3,FALSE)-1) -> -0.1342639594 | H17: =IF($C17<=H$6,"",VLOOKUP($C17,'[1]Precios gasóleo'!$D:$F,3,FALSE)/VLOOKUP(H$6,'[1]Precios gasóleo'!$D:$F,3,FALSE)-1) -> -0.1233834063 | I17: =IF($C17<=I$6,"",VLOOKUP($C17,'[1]Precios gasóleo'!$D:$F,3,FALSE)/VLOOKUP(I$6,'[1]Precios gasóleo'!$D:$F,3,FALSE)-1) -> -0.1190819344 | J17: =IF($C17<=J$6,"",VLOOKUP($C17,'[1]Precios gasóleo'!$D:$F,3,FALSE)/VLOOKUP(J$6,'[1]Precios gasóleo'!$D:$F,3,FALSE)-1) -> -0.1199617161 | K17: =IF($C17<=K$6,"",VLOOKUP($C17,'[1]Precios gasóleo'!$D:$F,3,FALSE)/VLOOKUP(K$6,'[1]Precios gasóleo'!$D:$F,3,FALSE)-1) -> -0.1114649682 | L17: =IF($C17<=L$6,"",VLOOKUP($C17,'[1]Precios gasóleo'!$D:$F,3,FALSE)/VLOOKUP(L$6,'[1]Precios gasóleo'!$D:$F,3,FALSE)-1) -> -0.09706424839 | M17: =IF($C17<=M$6,"",VLOOKUP($C17,'[1]Precios gasóleo'!$D:$F,3,FALSE)/VLOOKUP(M$6,'[1]Precios gasóleo'!$D:$F,3,FALSE)-1) -> -0.0624135485 | N17: =IF($C17<=N$6,"",VLOOKUP($C17,'[1]Precios gasóleo'!$D:$F,3,FALSE)/VLOOKUP(N$6,'[1]Precios gasóleo'!$D:$F,3,FALSE)-1) -> -0.02532975693 | O17: =IF($C17<=O$6,"",VLOOKUP($C17,'[1]Precios gasóleo'!$D:$F,3,FALSE)/VLOOKUP(O$6,'[1]Precios gasóleo'!$D:$F,3,FALSE)-1) ->  | P17: =IF($C17<=P$6,"",VLOOKUP($C17,'[1]Precios gasóleo'!$D:$F,3,FALSE)/VLOOKUP(P$6,'[1]Precios gasóleo'!$D:$F,3,FALSE)-1) ->  | Q17: =IF($C17<=Q$6,"",VLOOKUP($C17,'[1]Precios gasóleo'!$D:$F,3,FALSE)/VLOOKUP(Q$6,'[1]Precios gasóleo'!$D:$F,3,FALSE)-1) ->  | R17: =IF($C17<=R$6,"",VLOOKUP($C17,'[1]Precios gasóleo'!$D:$F,3,FALSE)/VLOOKUP(R$6,'[1]Precios gasóleo'!$D:$F,3,FALSE)-1) ->  | S17: =IF($C17<=S$6,"",VLOOKUP($C17,'[1]Precios gasóleo'!$D:$F,3,FALSE)/VLOOKUP(S$6,'[1]Precios gasóleo'!$D:$F,3,FALSE)-1) ->  | T17: =IF($C17<=T$6,"",VLOOKUP($C17,'[1]Precios gasóleo'!$D:$F,3,FALSE)/VLOOKUP(T$6,'[1]Precios gasóleo'!$D:$F,3,FALSE)-1) ->  | U17: =IF($C17<=U$6,"",VLOOKUP($C17,'[1]Precios gasóleo'!$D:$F,3,FALSE)/VLOOKUP(U$6,'[1]Precios gasóleo'!$D:$F,3,FALSE)-1) ->  | V17: =IF($C17<=V$6,"",VLOOKUP($C17,'[1]Precios gasóleo'!$D:$F,3,FALSE)/VLOOKUP(V$6,'[1]Precios gasóleo'!$D:$F,3,FALSE)-1) ->  | W17: =IF($C17<=W$6,"",VLOOKUP($C17,'[1]Precios gasóleo'!$D:$F,3,FALSE)/VLOOKUP(W$6,'[1]Precios gasóleo'!$D:$F,3,FALSE)-1) ->  | X17: =IF($C17<=X$6,"",VLOOKUP($C17,'[1]Precios gasóleo'!$D:$F,3,FALSE)/VLOOKUP(X$6,'[1]Precios gasóleo'!$D:$F,3,FALSE)-1) ->  | Y17: =IF($C17<=Y$6,"",VLOOKUP($C17,'[1]Precios gasóleo'!$D:$F,3,FALSE)/VLOOKUP(Y$6,'[1]Precios gasóleo'!$D:$F,3,FALSE)-1) ->  | Z17: =IF($C17<=Z$6,"",VLOOKUP($C17,'[1]Precios gasóleo'!$D:$F,3,FALSE)/VLOOKUP(Z$6,'[1]Precios gasóleo'!$D:$F,3,FALSE)-1) ->  | AA17: =IF($C17<=AA$6,"",VLOOKUP($C17,'[1]Precios gasóleo'!$D:$F,3,FALSE)/VLOOKUP(AA$6,'[1]Precios gasóleo'!$D:$F,3,FALSE)-1) ->  | AB17: =IF($C17<=AB$6,"",VLOOKUP($C17,'[1]Precios gasóleo'!$D:$F,3,FALSE)/VLOOKUP(AB$6,'[1]Precios gasóleo'!$D:$F,3,FALSE)-1) ->  | AC17: =IF($C17<=AC$6,"",VLOOKUP($C17,'[1]Precios gasóleo'!$D:$F,3,FALSE)/VLOOKUP(AC$6,'[1]Precios gasóleo'!$D:$F,3,FALSE)-1) ->  | AD17: =IF($C17<=AD$6,"",VLOOKUP($C17,'[1]Precios gasóleo'!$D:$F,3,FALSE)/VLOOKUP(AD$6,'[1]Precios gasóleo'!$D:$F,3,FALSE)-1) ->  | AE17: =IF($C17<=AE$6,"",VLOOKUP($C17,'[1]Precios gasóleo'!$D:$F,3,FALSE)/VLOOKUP(AE$6,'[1]Precios gasóleo'!$D:$F,3,FALSE)-1) ->  | AF17: =IF($C17<=AF$6,"",VLOOKUP($C17,'[1]Precios gasóleo'!$D:$F,3,FALSE)/VLOOKUP(AF$6,'[1]Precios gasóleo'!$D:$F,3,FALSE)-1) ->  | AG17: =IF($C17<=AG$6,"",VLOOKUP($C17,'[1]Precios gasóleo'!$D:$F,3,FALSE)/VLOOKUP(AG$6,'[1]Precios gasóleo'!$D:$F,3,FALSE)-1) ->  | AH17: =IF($C17<=AH$6,"",VLOOKUP($C17,'[1]Precios gasóleo'!$D:$F,3,FALSE)/VLOOKUP(AH$6,'[1]Precios gasóleo'!$D:$F,3,FALSE)-1) ->  | AI17: =IF($C17<=AI$6,"",VLOOKUP($C17,'[1]Precios gasóleo'!$D:$F,3,FALSE)/VLOOKUP(AI$6,'[1]Precios gasóleo'!$D:$F,3,FALSE)-1) ->  | AJ17: =IF($C17<=AJ$6,"",VLOOKUP($C17,'[1]Precios gasóleo'!$D:$F,3,FALSE)/VLOOKUP(AJ$6,'[1]Precios gasóleo'!$D:$F,3,FALSE)-1) ->  | AK17: =IF($C17<=AK$6,"",VLOOKUP($C17,'[1]Precios gasóleo'!$D:$F,3,FALSE)/VLOOKUP(AK$6,'[1]Precios gasóleo'!$D:$F,3,FALSE)-1) ->  | AL17: =IF($C17<=AL$6,"",VLOOKUP($C17,'[1]Precios gasóleo'!$D:$F,3,FALSE)/VLOOKUP(AL$6,'[1]Precios gasóleo'!$D:$F,3,FALSE)-1) ->  | AM17: =IF($C17<=AM$6,"",VLOOKUP($C17,'[1]Precios gasóleo'!$D:$F,3,FALSE)/VLOOKUP(AM$6,'[1]Precios gasóleo'!$D:$F,3,FALSE)-1) ->  | AN17: =IF($C17<=AN$6,"",VLOOKUP($C17,'[1]Precios gasóleo'!$D:$F,3,FALSE)/VLOOKUP(AN$6,'[1]Precios gasóleo'!$D:$F,3,FALSE)-1) ->  | AO17: =IF($C17<=AO$6,"",VLOOKUP($C17,'[1]Precios gasóleo'!$D:$F,3,FALSE)/VLOOKUP(AO$6,'[1]Precios gasóleo'!$D:$F,3,FALSE)-1) ->  | AP17: =IF($C17<=AP$6,"",VLOOKUP($C17,'[1]Precios gasóleo'!$D:$F,3,FALSE)/VLOOKUP(AP$6,'[1]Precios gasóleo'!$D:$F,3,FALSE)-1) ->  | AQ17: =IF($C17<=AQ$6,"",VLOOKUP($C17,'[1]Precios gasóleo'!$D:$F,3,FALSE)/VLOOKUP(AQ$6,'[1]Precios gasóleo'!$D:$F,3,FALSE)-1) ->  | AR17: =IF($C17<=AR$6,"",VLOOKUP($C17,'[1]Precios gasóleo'!$D:$F,3,FALSE)/VLOOKUP(AR$6,'[1]Precios gasóleo'!$D:$F,3,FALSE)-1) ->  | AS17: =IF($C17<=AS$6,"",VLOOKUP($C17,'[1]Precios gasóleo'!$D:$F,3,FALSE)/VLOOKUP(AS$6,'[1]Precios gasóleo'!$D:$F,3,FALSE)-1) ->  | AT17: =IF($C17<=AT$6,"",VLOOKUP($C17,'[1]Precios gasóleo'!$D:$F,3,FALSE)/VLOOKUP(AT$6,'[1]Precios gasóleo'!$D:$F,3,FALSE)-1) ->  | AU17: =IF($C17<=AU$6,"",VLOOKUP($C17,'[1]Precios gasóleo'!$D:$F,3,FALSE)/VLOOKUP(AU$6,'[1]Precios gasóleo'!$D:$F,3,FALSE)-1) ->  | AV17: =IF($C17<=AV$6,"",VLOOKUP($C17,'[1]Precios gasóleo'!$D:$F,3,FALSE)/VLOOKUP(AV$6,'[1]Precios gasóleo'!$D:$F,3,FALSE)-1) ->  | AW17: =IF($C17<=AW$6,"",VLOOKUP($C17,'[1]Precios gasóleo'!$D:$F,3,FALSE)/VLOOKUP(AW$6,'[1]Precios gasóleo'!$D:$F,3,FALSE)-1) ->  | AX17: =IF($C17<=AX$6,"",VLOOKUP($C17,'[1]Precios gasóleo'!$D:$F,3,FALSE)/VLOOKUP(AX$6,'[1]Precios gasóleo'!$D:$F,3,FALSE)-1) ->  | AY17: =IF($C17<=AY$6,"",VLOOKUP($C17,'[1]Precios gasóleo'!$D:$F,3,FALSE)/VLOOKUP(AY$6,'[1]Precios gasóleo'!$D:$F,3,FALSE)-1) ->  | AZ17: =IF($C17<=AZ$6,"",VLOOKUP($C17,'[1]Precios gasóleo'!$D:$F,3,FALSE)/VLOOKUP(AZ$6,'[1]Precios gasóleo'!$D:$F,3,FALSE)-1) ->  | BA17: =IF($C17<=BA$6,"",VLOOKUP($C17,'[1]Precios gasóleo'!$D:$F,3,FALSE)/VLOOKUP(BA$6,'[1]Precios gasóleo'!$D:$F,3,FALSE)-1) ->  | BB17: =IF($C17<=BB$6,"",VLOOKUP($C17,'[1]Precios gasóleo'!$D:$F,3,FALSE)/VLOOKUP(BB$6,'[1]Precios gasóleo'!$D:$F,3,FALSE)-1) ->  | BC17: =IF($C17<=BC$6,"",VLOOKUP($C17,'[1]Precios gasóleo'!$D:$F,3,FALSE)/VLOOKUP(BC$6,'[1]Precios gasóleo'!$D:$F,3,FALSE)-1) ->  | BD17: =IF($C17<=BD$6,"",VLOOKUP($C17,'[1]Precios gasóleo'!$D:$F,3,FALSE)/VLOOKUP(BD$6,'[1]Precios gasóleo'!$D:$F,3,FALSE)-1) ->  | BE17: =IF($C17<=BE$6,"",VLOOKUP($C17,'[1]Precios gasóleo'!$D:$F,3,FALSE)/VLOOKUP(BE$6,'[1]Precios gasóleo'!$D:$F,3,FALSE)-1) ->  | BF17: =IF($C17<=BF$6,"",VLOOKUP($C17,'[1]Precios gasóleo'!$D:$F,3,FALSE)/VLOOKUP(BF$6,'[1]Precios gasóleo'!$D:$F,3,FALSE)-1) ->  | BG17: =IF($C17<=BG$6,"",VLOOKUP($C17,'[1]Precios gasóleo'!$D:$F,3,FALSE)/VLOOKUP(BG$6,'[1]Precios gasóleo'!$D:$F,3,FALSE)-1) ->  | BH17: =IF($C17<=BH$6,"",VLOOKUP($C17,'[1]Precios gasóleo'!$D:$F,3,FALSE)/VLOOKUP(BH$6,'[1]Precios gasóleo'!$D:$F,3,FALSE)-1) ->  | BI17: =IF($C17<=BI$6,"",VLOOKUP($C17,'[1]Precios gasóleo'!$D:$F,3,FALSE)/VLOOKUP(BI$6,'[1]Precios gasóleo'!$D:$F,3,FALSE)-1) ->  | BJ17: =IF($C17<=BJ$6,"",VLOOKUP($C17,'[1]Precios gasóleo'!$D:$F,3,FALSE)/VLOOKUP(BJ$6,'[1]Precios gasóleo'!$D:$F,3,FALSE)-1) ->  | BK17: =IF($C17<=BK$6,"",VLOOKUP($C17,'[1]Precios gasóleo'!$D:$F,3,FALSE)/VLOOKUP(BK$6,'[1]Precios gasóleo'!$D:$F,3,FALSE)-1) ->  | BL17: =IF($C17<=BL$6,"",VLOOKUP($C17,'[1]Precios gasóleo'!$D:$F,3,FALSE)/VLOOKUP(BL$6,'[1]Precios gasóleo'!$D:$F,3,FALSE)-1) ->  | BM17: =IF($C17<=BM$6,"",VLOOKUP($C17,'[1]Precios gasóleo'!$D:$F,3,FALSE)/VLOOKUP(BM$6,'[1]Precios gasóleo'!$D:$F,3,FALSE)-1) ->  | BN17: =IF($C17<=BN$6,"",VLOOKUP($C17,'[1]Precios gasóleo'!$D:$F,3,FALSE)/VLOOKUP(BN$6,'[1]Precios gasóleo'!$D:$F,3,FALSE)-1) ->  | BO17: =IF($C17<=BO$6,"",VLOOKUP($C17,'[1]Precios gasóleo'!$D:$F,3,FALSE)/VLOOKUP(BO$6,'[1]Precios gasóleo'!$D:$F,3,FALSE)-1) ->  | BP17: =IF($C17<=BP$6,"",VLOOKUP($C17,'[1]Precios gasóleo'!$D:$F,3,FALSE)/VLOOKUP(BP$6,'[1]Precios gasóleo'!$D:$F,3,FALSE)-1) ->  | BQ17: =IF($C17<=BQ$6,"",VLOOKUP($C17,'[1]Precios gasóleo'!$D:$F,3,FALSE)/VLOOKUP(BQ$6,'[1]Precios gasóleo'!$D:$F,3,FALSE)-1) ->  | BR17: =IF($C17<=BR$6,"",VLOOKUP($C17,'[1]Precios gasóleo'!$D:$F,3,FALSE)/VLOOKUP(BR$6,'[1]Precios gasóleo'!$D:$F,3,FALSE)-1) ->  | BS17: =IF($C17<=BS$6,"",VLOOKUP($C17,'[1]Precios gasóleo'!$D:$F,3,FALSE)/VLOOKUP(BS$6,'[1]Precios gasóleo'!$D:$F,3,FALSE)-1) ->  | BT17: =IF($C17<=BT$6,"",VLOOKUP($C17,'[1]Precios gasóleo'!$D:$F,3,FALSE)/VLOOKUP(BT$6,'[1]Precios gasóleo'!$D:$F,3,FALSE)-1) ->  | BU17: =IF($C17<=BU$6,"",VLOOKUP($C17,'[1]Precios gasóleo'!$D:$F,3,FALSE)/VLOOKUP(BU$6,'[1]Precios gasóleo'!$D:$F,3,FALSE)-1) ->  | BV17: =IF($C17<=BV$6,"",VLOOKUP($C17,'[1]Precios gasóleo'!$D:$F,3,FALSE)/VLOOKUP(BV$6,'[1]Precios gasóleo'!$D:$F,3,FALSE)-1) ->  | BW17: =IF($C17<=BW$6,"",VLOOKUP($C17,'[1]Precios gasóleo'!$D:$F,3,FALSE)/VLOOKUP(BW$6,'[1]Precios gasóleo'!$D:$F,3,FALSE)-1) ->  | BX17: =IF($C17<=BX$6,"",VLOOKUP($C17,'[1]Precios gasóleo'!$D:$F,3,FALSE)/VLOOKUP(BX$6,'[1]Precios gasóleo'!$D:$F,3,FALSE)-1) ->  | BY17: =IF($C17<=BY$6,"",VLOOKUP($C17,'[1]Precios gasóleo'!$D:$F,3,FALSE)/VLOOKUP(BY$6,'[1]Precios gasóleo'!$D:$F,3,FALSE)-1) ->  | BZ17: =IF($C17<=BZ$6,"",VLOOKUP($C17,'[1]Precios gasóleo'!$D:$F,3,FALSE)/VLOOKUP(BZ$6,'[1]Precios gasóleo'!$D:$F,3,FALSE)-1) ->  | CA17: =IF($C17<=CA$6,"",VLOOKUP($C17,'[1]Precios gasóleo'!$D:$F,3,FALSE)/VLOOKUP(CA$6,'[1]Precios gasóleo'!$D:$F,3,FALSE)-1) ->  | CB17: =IF($C17<=CB$6,"",VLOOKUP($C17,'[1]Precios gasóleo'!$D:$F,3,FALSE)/VLOOKUP(CB$6,'[1]Precios gasóleo'!$D:$F,3,FALSE)-1) ->  | CC17: =IF($C17<=CC$6,"",VLOOKUP($C17,'[1]Precios gasóleo'!$D:$F,3,FALSE)/VLOOKUP(CC$6,'[1]Precios gasóleo'!$D:$F,3,FALSE)-1) ->  | CD17: =IF($C17<=CD$6,"",VLOOKUP($C17,'[1]Precios gasóleo'!$D:$F,3,FALSE)/VLOOKUP(CD$6,'[1]Precios gasóleo'!$D:$F,3,FALSE)-1) ->  | CE17: =IF($C17<=CE$6,"",VLOOKUP($C17,'[1]Precios gasóleo'!$D:$F,3,FALSE)/VLOOKUP(CE$6,'[1]Precios gasóleo'!$D:$F,3,FALSE)-1) ->  | CF17: =IF($C17<=CF$6,"",VLOOKUP($C17,'[1]Precios gasóleo'!$D:$F,3,FALSE)/VLOOKUP(CF$6,'[1]Precios gasóleo'!$D:$F,3,FALSE)-1) ->  | CG17: =IF($C17<=CG$6,"",VLOOKUP($C17,'[1]Precios gasóleo'!$D:$F,3,FALSE)/VLOOKUP(CG$6,'[1]Precios gasóleo'!$D:$F,3,FALSE)-1) ->  | CH17: =IF($C17<=CH$6,"",VLOOKUP($C17,'[1]Precios gasóleo'!$D:$F,3,FALSE)/VLOOKUP(CH$6,'[1]Precios gasóleo'!$D:$F,3,FALSE)-1) ->  | CI17: =IF($C17<=CI$6,"",VLOOKUP($C17,'[1]Precios gasóleo'!$D:$F,3,FALSE)/VLOOKUP(CI$6,'[1]Precios gasóleo'!$D:$F,3,FALSE)-1) ->  | CJ17: =IF($C17<=CJ$6,"",VLOOKUP($C17,'[1]Precios gasóleo'!$D:$F,3,FALSE)/VLOOKUP(CJ$6,'[1]Precios gasóleo'!$D:$F,3,FALSE)-1) ->  | CK17: =IF($C17<=CK$6,"",VLOOKUP($C17,'[1]Precios gasóleo'!$D:$F,3,FALSE)/VLOOKUP(CK$6,'[1]Precios gasóleo'!$D:$F,3,FALSE)-1) ->  | CL17: =IF($C17<=CL$6,"",VLOOKUP($C17,'[1]Precios gasóleo'!$D:$F,3,FALSE)/VLOOKUP(CL$6,'[1]Precios gasóleo'!$D:$F,3,FALSE)-1) ->  | CM17: =IF($C17<=CM$6,"",VLOOKUP($C17,'[1]Precios gasóleo'!$D:$F,3,FALSE)/VLOOKUP(CM$6,'[1]Precios gasóleo'!$D:$F,3,FALSE)-1) ->  | CN17: =IF($C17<=CN$6,"",VLOOKUP($C17,'[1]Precios gasóleo'!$D:$F,3,FALSE)/VLOOKUP(CN$6,'[1]Precios gasóleo'!$D:$F,3,FALSE)-1) ->  | CO17: =IF($C17<=CO$6,"",VLOOKUP($C17,'[1]Precios gasóleo'!$D:$F,3,FALSE)/VLOOKUP(CO$6,'[1]Precios gasóleo'!$D:$F,3,FALSE)-1) ->  | CP17: =IF($C17<=CP$6,"",VLOOKUP($C17,'[1]Precios gasóleo'!$D:$F,3,FALSE)/VLOOKUP(CP$6,'[1]Precios gasóleo'!$D:$F,3,FALSE)-1) ->  | CQ17: =IF($C17<=CQ$6,"",VLOOKUP($C17,'[1]Precios gasóleo'!$D:$F,3,FALSE)/VLOOKUP(CQ$6,'[1]Precios gasóleo'!$D:$F,3,FALSE)-1) ->  | CR17: =IF($C17<=CR$6,"",VLOOKUP($C17,'[1]Precios gasóleo'!$D:$F,3,FALSE)/VLOOKUP(CR$6,'[1]Precios gasóleo'!$D:$F,3,FALSE)-1) ->  | CS17: =IF($C17<=CS$6,"",VLOOKUP($C17,'[1]Precios gasóleo'!$D:$F,3,FALSE)/VLOOKUP(CS$6,'[1]Precios gasóleo'!$D:$F,3,FALSE)-1) ->  | CT17: =IF($C17<=CT$6,"",VLOOKUP($C17,'[1]Precios gasóleo'!$D:$F,3,FALSE)/VLOOKUP(CT$6,'[1]Precios gasóleo'!$D:$F,3,FALSE)-1) ->  | CU17: =IF($C17<=CU$6,"",VLOOKUP($C17,'[1]Precios gasóleo'!$D:$F,3,FALSE)/VLOOKUP(CU$6,'[1]Precios gasóleo'!$D:$F,3,FALSE)-1) ->  | CV17: =IF($C17<=CV$6,"",VLOOKUP($C17,'[1]Precios gasóleo'!$D:$F,3,FALSE)/VLOOKUP(CV$6,'[1]Precios gasóleo'!$D:$F,3,FALSE)-1) ->  | CW17: =IF($C17<=CW$6,"",VLOOKUP($C17,'[1]Precios gasóleo'!$D:$F,3,FALSE)/VLOOKUP(CW$6,'[1]Precios gasóleo'!$D:$F,3,FALSE)-1) ->  | CX17: =IF($C17<=CX$6,"",VLOOKUP($C17,'[1]Precios gasóleo'!$D:$F,3,FALSE)/VLOOKUP(CX$6,'[1]Precios gasóleo'!$D:$F,3,FALSE)-1) ->  | CY17: =IF($C17<=CY$6,"",VLOOKUP($C17,'[1]Precios gasóleo'!$D:$F,3,FALSE)/VLOOKUP(CY$6,'[1]Precios gasóleo'!$D:$F,3,FALSE)-1) ->  | CZ17: =IF($C17<=CZ$6,"",VLOOKUP($C17,'[1]Precios gasóleo'!$D:$F,3,FALSE)/VLOOKUP(CZ$6,'[1]Precios gasóleo'!$D:$F,3,FALSE)-1) ->  | DA17: =IF($C17<=DA$6,"",VLOOKUP($C17,'[1]Precios gasóleo'!$D:$F,3,FALSE)/VLOOKUP(DA$6,'[1]Precios gasóleo'!$D:$F,3,FALSE)-1) ->  | DB17: =IF($C17<=DB$6,"",VLOOKUP($C17,'[1]Precios gasóleo'!$D:$F,3,FALSE)/VLOOKUP(DB$6,'[1]Precios gasóleo'!$D:$F,3,FALSE)-1) ->  | DC17: =IF($C17<=DC$6,"",VLOOKUP($C17,'[1]Precios gasóleo'!$D:$F,3,FALSE)/VLOOKUP(DC$6,'[1]Precios gasóleo'!$D:$F,3,FALSE)-1) ->  | DD17: =IF($C17<=DD$6,"",VLOOKUP($C17,'[1]Precios gasóleo'!$D:$F,3,FALSE)/VLOOKUP(DD$6,'[1]Precios gasóleo'!$D:$F,3,FALSE)-1) ->  | DE17: =IF($C17<=DE$6,"",VLOOKUP($C17,'[1]Precios gasóleo'!$D:$F,3,FALSE)/VLOOKUP(DE$6,'[1]Precios gasóleo'!$D:$F,3,FALSE)-1) ->  | DF17: =IF($C17<=DF$6,"",VLOOKUP($C17,'[1]Precios gasóleo'!$D:$F,3,FALSE)/VLOOKUP(DF$6,'[1]Precios gasóleo'!$D:$F,3,FALSE)-1) ->  | DG17: =IF($C17<=DG$6,"",VLOOKUP($C17,'[1]Precios gasóleo'!$D:$F,3,FALSE)/VLOOKUP(DG$6,'[1]Precios gasóleo'!$D:$F,3,FALSE)-1) ->  | DH17: =IF($C17<=DH$6,"",VLOOKUP($C17,'[1]Precios gasóleo'!$D:$F,3,FALSE)/VLOOKUP(DH$6,'[1]Precios gasóleo'!$D:$F,3,FALSE)-1) ->  | DI17: =IF($C17<=DI$6,"",VLOOKUP($C17,'[1]Precios gasóleo'!$D:$F,3,FALSE)/VLOOKUP(DI$6,'[1]Precios gasóleo'!$D:$F,3,FALSE)-1) ->  | DJ17: =IF($C17<=DJ$6,"",VLOOKUP($C17,'[1]Precios gasóleo'!$D:$F,3,FALSE)/VLOOKUP(DJ$6,'[1]Precios gasóleo'!$D:$F,3,FALSE)-1) ->  | DK17: =IF($C17<=DK$6,"",VLOOKUP($C17,'[1]Precios gasóleo'!$D:$F,3,FALSE)/VLOOKUP(DK$6,'[1]Precios gasóleo'!$D:$F,3,FALSE)-1) ->  | DL17: =IF($C17<=DL$6,"",VLOOKUP($C17,'[1]Precios gasóleo'!$D:$F,3,FALSE)/VLOOKUP(DL$6,'[1]Precios gasóleo'!$D:$F,3,FALSE)-1) ->  | DM17: =IF($C17<=DM$6,"",VLOOKUP($C17,'[1]Precios gasóleo'!$D:$F,3,FALSE)/VLOOKUP(DM$6,'[1]Precios gasóleo'!$D:$F,3,FALSE)-1) ->  | DN17: =IF($C17<=DN$6,"",VLOOKUP($C17,'[1]Precios gasóleo'!$D:$F,3,FALSE)/VLOOKUP(DN$6,'[1]Precios gasóleo'!$D:$F,3,FALSE)-1) ->  | DO17: =IF($C17<=DO$6,"",VLOOKUP($C17,'[1]Precios gasóleo'!$D:$F,3,FALSE)/VLOOKUP(DO$6,'[1]Precios gasóleo'!$D:$F,3,FALSE)-1) ->  | DP17: =IF($C17<=DP$6,"",VLOOKUP($C17,'[1]Precios gasóleo'!$D:$F,3,FALSE)/VLOOKUP(DP$6,'[1]Precios gasóleo'!$D:$F,3,FALSE)-1) ->  | DQ17: =IF($C17<=DQ$6,"",VLOOKUP($C17,'[1]Precios gasóleo'!$D:$F,3,FALSE)/VLOOKUP(DQ$6,'[1]Precios gasóleo'!$D:$F,3,FALSE)-1) ->  | DR17: =IF($C17<=DR$6,"",VLOOKUP($C17,'[1]Precios gasóleo'!$D:$F,3,FALSE)/VLOOKUP(DR$6,'[1]Precios gasóleo'!$D:$F,3,FALSE)-1) ->  | DS17: =IF($C17<=DS$6,"",VLOOKUP($C17,'[1]Precios gasóleo'!$D:$F,3,FALSE)/VLOOKUP(DS$6,'[1]Precios gasóleo'!$D:$F,3,FALSE)-1) ->  | DT17: =IF($C17<=DT$6,"",VLOOKUP($C17,'[1]Precios gasóleo'!$D:$F,3,FALSE)/VLOOKUP(DT$6,'[1]Precios gasóleo'!$D:$F,3,FALSE)-1) ->  | DU17: =IF($C17<=DU$6,"",VLOOKUP($C17,'[1]Precios gasóleo'!$D:$F,3,FALSE)/VLOOKUP(DU$6,'[1]Precios gasóleo'!$D:$F,3,FALSE)-1) ->  | DV17: =IF($C17<=DV$6,"",VLOOKUP($C17,'[1]Precios gasóleo'!$D:$F,3,FALSE)/VLOOKUP(DV$6,'[1]Precios gasóleo'!$D:$F,3,FALSE)-1) ->  | DW17: =IF($C17<=DW$6,"",VLOOKUP($C17,'[1]Precios gasóleo'!$D:$F,3,FALSE)/VLOOKUP(DW$6,'[1]Precios gasóleo'!$D:$F,3,FALSE)-1) ->  | DX17: =IF($C17<=DX$6,"",VLOOKUP($C17,'[1]Precios gasóleo'!$D:$F,3,FALSE)/VLOOKUP(DX$6,'[1]Precios gasóleo'!$D:$F,3,FALSE)-1) ->  | DY17: =IF($C17<=DY$6,"",VLOOKUP($C17,'[1]Precios gasóleo'!$D:$F,3,FALSE)/VLOOKUP(DY$6,'[1]Precios gasóleo'!$D:$F,3,FALSE)-1) ->  | DZ17: =IF($C17<=DZ$6,"",VLOOKUP($C17,'[1]Precios gasóleo'!$D:$F,3,FALSE)/VLOOKUP(DZ$6,'[1]Precios gasóleo'!$D:$F,3,FALSE)-1) ->  | EA17: =IF($C17<=EA$6,"",VLOOKUP($C17,'[1]Precios gasóleo'!$D:$F,3,FALSE)/VLOOKUP(EA$6,'[1]Precios gasóleo'!$D:$F,3,FALSE)-1) ->  | EB17: =IF($C17<=EB$6,"",VLOOKUP($C17,'[1]Precios gasóleo'!$D:$F,3,FALSE)/VLOOKUP(EB$6,'[1]Precios gasóleo'!$D:$F,3,FALSE)-1) ->  | EC17: =IF($C17<=EC$6,"",VLOOKUP($C17,'[1]Precios gasóleo'!$D:$F,3,FALSE)/VLOOKUP(EC$6,'[1]Precios gasóleo'!$D:$F,3,FALSE)-1) ->  | ED17: =IF($C17<=ED$6,"",VLOOKUP($C17,'[1]Precios gasóleo'!$D:$F,3,FALSE)/VLOOKUP(ED$6,'[1]Precios gasóleo'!$D:$F,3,FALSE)-1) ->  | EE17: =IF($C17<=EE$6,"",VLOOKUP($C17,'[1]Precios gasóleo'!$D:$F,3,FALSE)/VLOOKUP(EE$6,'[1]Precios gasóleo'!$D:$F,3,FALSE)-1) ->  | EF17: =IF($C17<=EF$6,"",VLOOKUP($C17,'[1]Precios gasóleo'!$D:$F,3,FALSE)/VLOOKUP(EF$6,'[1]Precios gasóleo'!$D:$F,3,FALSE)-1) ->  | EG17: =IF($C17<=EG$6,"",VLOOKUP($C17,'[1]Precios gasóleo'!$D:$F,3,FALSE)/VLOOKUP(EG$6,'[1]Precios gasóleo'!$D:$F,3,FALSE)-1) ->  | EH17: 2020-03-24
C18: 2020-03-31 | D18: =IF($C18<=D$6,"",VLOOKUP($C18,'[1]Precios gasóleo'!$D:$F,3,FALSE)/VLOOKUP(D$6,'[1]Precios gasóleo'!$D:$F,3,FALSE)-1) -> -0.1723513697 | E18: =IF($C18<=E$6,"",VLOOKUP($C18,'[1]Precios gasóleo'!$D:$F,3,FALSE)/VLOOKUP(E$6,'[1]Precios gasóleo'!$D:$F,3,FALSE)-1) -> -0.1674581655 | F18: =IF($C18<=F$6,"",VLOOKUP($C18,'[1]Precios gasóleo'!$D:$F,3,FALSE)/VLOOKUP(F$6,'[1]Precios gasóleo'!$D:$F,3,FALSE)-1) -> -0.1603113344 | G18: =IF($C18<=G$6,"",VLOOKUP($C18,'[1]Precios gasóleo'!$D:$F,3,FALSE)/VLOOKUP(G$6,'[1]Precios gasóleo'!$D:$F,3,FALSE)-1) -> -0.1502947437 | H18: =IF($C18<=H$6,"",VLOOKUP($C18,'[1]Precios gasóleo'!$D:$F,3,FALSE)/VLOOKUP(H$6,'[1]Precios gasóleo'!$D:$F,3,FALSE)-1) -> -0.1396156652 | I18: =IF($C18<=I$6,"",VLOOKUP($C18,'[1]Precios gasóleo'!$D:$F,3,FALSE)/VLOOKUP(I$6,'[1]Precios gasóleo'!$D:$F,3,FALSE)-1) -> -0.1353938435 | J18: =IF($C18<=J$6,"",VLOOKUP($C18,'[1]Precios gasóleo'!$D:$F,3,FALSE)/VLOOKUP(J$6,'[1]Precios gasóleo'!$D:$F,3,FALSE)-1) -> -0.1362573343 | K18: =IF($C18<=K$6,"",VLOOKUP($C18,'[1]Precios gasóleo'!$D:$F,3,FALSE)/VLOOKUP(K$6,'[1]Precios gasóleo'!$D:$F,3,FALSE)-1) -> -0.1279179201 | L18: =IF($C18<=L$6,"",VLOOKUP($C18,'[1]Precios gasóleo'!$D:$F,3,FALSE)/VLOOKUP(L$6,'[1]Precios gasóleo'!$D:$F,3,FALSE)-1) -> -0.1137838576 | M18: =IF($C18<=M$6,"",VLOOKUP($C18,'[1]Precios gasóleo'!$D:$F,3,FALSE)/VLOOKUP(M$6,'[1]Precios gasóleo'!$D:$F,3,FALSE)-1) -> -0.07977478276 | N18: =IF($C18<=N$6,"",VLOOKUP($C18,'[1]Precios gasóleo'!$D:$F,3,FALSE)/VLOOKUP(N$6,'[1]Precios gasóleo'!$D:$F,3,FALSE)-1) -> -0.04337766963 | O18: =IF($C18<=O$6,"",VLOOKUP($C18,'[1]Precios gasóleo'!$D:$F,3,FALSE)/VLOOKUP(O$6,'[1]Precios gasóleo'!$D:$F,3,FALSE)-1) -> -0.01851694234 | P18: =IF($C18<=P$6,"",VLOOKUP($C18,'[1]Precios gasóleo'!$D:$F,3,FALSE)/VLOOKUP(P$6,'[1]Precios gasóleo'!$D:$F,3,FALSE)-1) ->  | Q18: =IF($C18<=Q$6,"",VLOOKUP($C18,'[1]Precios gasóleo'!$D:$F,3,FALSE)/VLOOKUP(Q$6,'[1]Precios gasóleo'!$D:$F,3,FALSE)-1) ->  | R18: =IF($C18<=R$6,"",VLOOKUP($C18,'[1]Precios gasóleo'!$D:$F,3,FALSE)/VLOOKUP(R$6,'[1]Precios gasóleo'!$D:$F,3,FALSE)-1) ->  | S18: =IF($C18<=S$6,"",VLOOKUP($C18,'[1]Precios gasóleo'!$D:$F,3,FALSE)/VLOOKUP(S$6,'[1]Precios gasóleo'!$D:$F,3,FALSE)-1) ->  | T18: =IF($C18<=T$6,"",VLOOKUP($C18,'[1]Precios gasóleo'!$D:$F,3,FALSE)/VLOOKUP(T$6,'[1]Precios gasóleo'!$D:$F,3,FALSE)-1) ->  | U18: =IF($C18<=U$6,"",VLOOKUP($C18,'[1]Precios gasóleo'!$D:$F,3,FALSE)/VLOOKUP(U$6,'[1]Precios gasóleo'!$D:$F,3,FALSE)-1) ->  | V18: =IF($C18<=V$6,"",VLOOKUP($C18,'[1]Precios gasóleo'!$D:$F,3,FALSE)/VLOOKUP(V$6,'[1]Precios gasóleo'!$D:$F,3,FALSE)-1) ->  | W18: =IF($C18<=W$6,"",VLOOKUP($C18,'[1]Precios gasóleo'!$D:$F,3,FALSE)/VLOOKUP(W$6,'[1]Precios gasóleo'!$D:$F,3,FALSE)-1) ->  | X18: =IF($C18<=X$6,"",VLOOKUP($C18,'[1]Precios gasóleo'!$D:$F,3,FALSE)/VLOOKUP(X$6,'[1]Precios gasóleo'!$D:$F,3,FALSE)-1) ->  | Y18: =IF($C18<=Y$6,"",VLOOKUP($C18,'[1]Precios gasóleo'!$D:$F,3,FALSE)/VLOOKUP(Y$6,'[1]Precios gasóleo'!$D:$F,3,FALSE)-1) ->  | Z18: =IF($C18<=Z$6,"",VLOOKUP($C18,'[1]Precios gasóleo'!$D:$F,3,FALSE)/VLOOKUP(Z$6,'[1]Precios gasóleo'!$D:$F,3,FALSE)-1) ->  | AA18: =IF($C18<=AA$6,"",VLOOKUP($C18,'[1]Precios gasóleo'!$D:$F,3,FALSE)/VLOOKUP(AA$6,'[1]Precios gasóleo'!$D:$F,3,FALSE)-1) ->  | AB18: =IF($C18<=AB$6,"",VLOOKUP($C18,'[1]Precios gasóleo'!$D:$F,3,FALSE)/VLOOKUP(AB$6,'[1]Precios gasóleo'!$D:$F,3,FALSE)-1) ->  | AC18: =IF($C18<=AC$6,"",VLOOKUP($C18,'[1]Precios gasóleo'!$D:$F,3,FALSE)/VLOOKUP(AC$6,'[1]Precios gasóleo'!$D:$F,3,FALSE)-1) ->  | AD18: =IF($C18<=AD$6,"",VLOOKUP($C18,'[1]Precios gasóleo'!$D:$F,3,FALSE)/VLOOKUP(AD$6,'[1]Precios gasóleo'!$D:$F,3,FALSE)-1) ->  | AE18: =IF($C18<=AE$6,"",VLOOKUP($C18,'[1]Precios gasóleo'!$D:$F,3,FALSE)/VLOOKUP(AE$6,'[1]Precios gasóleo'!$D:$F,3,FALSE)-1) ->  | AF18: =IF($C18<=AF$6,"",VLOOKUP($C18,'[1]Precios gasóleo'!$D:$F,3,FALSE)/VLOOKUP(AF$6,'[1]Precios gasóleo'!$D:$F,3,FALSE)-1) ->  | AG18: =IF($C18<=AG$6,"",VLOOKUP($C18,'[1]Precios gasóleo'!$D:$F,3,FALSE)/VLOOKUP(AG$6,'[1]Precios gasóleo'!$D:$F,3,FALSE)-1) ->  | AH18: =IF($C18<=AH$6,"",VLOOKUP($C18,'[1]Precios gasóleo'!$D:$F,3,FALSE)/VLOOKUP(AH$6,'[1]Precios gasóleo'!$D:$F,3,FALSE)-1) ->  | AI18: =IF($C18<=AI$6,"",VLOOKUP($C18,'[1]Precios gasóleo'!$D:$F,3,FALSE)/VLOOKUP(AI$6,'[1]Precios gasóleo'!$D:$F,3,FALSE)-1) ->  | AJ18: =IF($C18<=AJ$6,"",VLOOKUP($C18,'[1]Precios gasóleo'!$D:$F,3,FALSE)/VLOOKUP(AJ$6,'[1]Precios gasóleo'!$D:$F,3,FALSE)-1) ->  | AK18: =IF($C18<=AK$6,"",VLOOKUP($C18,'[1]Precios gasóleo'!$D:$F,3,FALSE)/VLOOKUP(AK$6,'[1]Precios gasóleo'!$D:$F,3,FALSE)-1) ->  | AL18: =IF($C18<=AL$6,"",VLOOKUP($C18,'[1]Precios gasóleo'!$D:$F,3,FALSE)/VLOOKUP(AL$6,'[1]Precios gasóleo'!$D:$F,3,FALSE)-1) ->  | AM18: =IF($C18<=AM$6,"",VLOOKUP($C18,'[1]Precios gasóleo'!$D:$F,3,FALSE)/VLOOKUP(AM$6,'[1]Precios gasóleo'!$D:$F,3,FALSE)-1) ->  | AN18: =IF($C18<=AN$6,"",VLOOKUP($C18,'[1]Precios gasóleo'!$D:$F,3,FALSE)/VLOOKUP(AN$6,'[1]Precios gasóleo'!$D:$F,3,FALSE)-1) ->  | AO18: =IF($C18<=AO$6,"",VLOOKUP($C18,'[1]Precios gasóleo'!$D:$F,3,FALSE)/VLOOKUP(AO$6,'[1]Precios gasóleo'!$D:$F,3,FALSE)-1) ->  | AP18: =IF($C18<=AP$6,"",VLOOKUP($C18,'[1]Precios gasóleo'!$D:$F,3,FALSE)/VLOOKUP(AP$6,'[1]Precios gasóleo'!$D:$F,3,FALSE)-1) ->  | AQ18: =IF($C18<=AQ$6,"",VLOOKUP($C18,'[1]Precios gasóleo'!$D:$F,3,FALSE)/VLOOKUP(AQ$6,'[1]Precios gasóleo'!$D:$F,3,FALSE)-1) ->  | AR18: =IF($C18<=AR$6,"",VLOOKUP($C18,'[1]Precios gasóleo'!$D:$F,3,FALSE)/VLOOKUP(AR$6,'[1]Precios gasóleo'!$D:$F,3,FALSE)-1) ->  | AS18: =IF($C18<=AS$6,"",VLOOKUP($C18,'[1]Precios gasóleo'!$D:$F,3,FALSE)/VLOOKUP(AS$6,'[1]Precios gasóleo'!$D:$F,3,FALSE)-1) ->  | AT18: =IF($C18<=AT$6,"",VLOOKUP($C18,'[1]Precios gasóleo'!$D:$F,3,FALSE)/VLOOKUP(AT$6,'[1]Precios gasóleo'!$D:$F,3,FALSE)-1) ->  | AU18: =IF($C18<=AU$6,"",VLOOKUP($C18,'[1]Precios gasóleo'!$D:$F,3,FALSE)/VLOOKUP(AU$6,'[1]Precios gasóleo'!$D:$F,3,FALSE)-1) ->  | AV18: =IF($C18<=AV$6,"",VLOOKUP($C18,'[1]Precios gasóleo'!$D:$F,3,FALSE)/VLOOKUP(AV$6,'[1]Precios gasóleo'!$D:$F,3,FALSE)-1) ->  | AW18: =IF($C18<=AW$6,"",VLOOKUP($C18,'[1]Precios gasóleo'!$D:$F,3,FALSE)/VLOOKUP(AW$6,'[1]Precios gasóleo'!$D:$F,3,FALSE)-1) ->  | AX18: =IF($C18<=AX$6,"",VLOOKUP($C18,'[1]Precios gasóleo'!$D:$F,3,FALSE)/VLOOKUP(AX$6,'[1]Precios gasóleo'!$D:$F,3,FALSE)-1) ->  | AY18: =IF($C18<=AY$6,"",VLOOKUP($C18,'[1]Precios gasóleo'!$D:$F,3,FALSE)/VLOOKUP(AY$6,'[1]Precios gasóleo'!$D:$F,3,FALSE)-1) ->  | AZ18: =IF($C18<=AZ$6,"",VLOOKUP($C18,'[1]Precios gasóleo'!$D:$F,3,FALSE)/VLOOKUP(AZ$6,'[1]Precios gasóleo'!$D:$F,3,FALSE)-1) ->  | BA18: =IF($C18<=BA$6,"",VLOOKUP($C18,'[1]Precios gasóleo'!$D:$F,3,FALSE)/VLOOKUP(BA$6,'[1]Precios gasóleo'!$D:$F,3,FALSE)-1) ->  | BB18: =IF($C18<=BB$6,"",VLOOKUP($C18,'[1]Precios gasóleo'!$D:$F,3,FALSE)/VLOOKUP(BB$6,'[1]Precios gasóleo'!$D:$F,3,FALSE)-1) ->  | BC18: =IF($C18<=BC$6,"",VLOOKUP($C18,'[1]Precios gasóleo'!$D:$F,3,FALSE)/VLOOKUP(BC$6,'[1]Precios gasóleo'!$D:$F,3,FALSE)-1) ->  | BD18: =IF($C18<=BD$6,"",VLOOKUP($C18,'[1]Precios gasóleo'!$D:$F,3,FALSE)/VLOOKUP(BD$6,'[1]Precios gasóleo'!$D:$F,3,FALSE)-1) ->  | BE18: =IF($C18<=BE$6,"",VLOOKUP($C18,'[1]Precios gasóleo'!$D:$F,3,FALSE)/VLOOKUP(BE$6,'[1]Precios gasóleo'!$D:$F,3,FALSE)-1) ->  | BF18: =IF($C18<=BF$6,"",VLOOKUP($C18,'[1]Precios gasóleo'!$D:$F,3,FALSE)/VLOOKUP(BF$6,'[1]Precios gasóleo'!$D:$F,3,FALSE)-1) ->  | BG18: =IF($C18<=BG$6,"",VLOOKUP($C18,'[1]Precios gasóleo'!$D:$F,3,FALSE)/VLOOKUP(BG$6,'[1]Precios gasóleo'!$D:$F,3,FALSE)-1) ->  | BH18: =IF($C18<=BH$6,"",VLOOKUP($C18,'[1]Precios gasóleo'!$D:$F,3,FALSE)/VLOOKUP(BH$6,'[1]Precios gasóleo'!$D:$F,3,FALSE)-1) ->  | BI18: =IF($C18<=BI$6,"",VLOOKUP($C18,'[1]Precios gasóleo'!$D:$F,3,FALSE)/VLOOKUP(BI$6,'[1]Precios gasóleo'!$D:$F,3,FALSE)-1) ->  | BJ18: =IF($C18<=BJ$6,"",VLOOKUP($C18,'[1]Precios gasóleo'!$D:$F,3,FALSE)/VLOOKUP(BJ$6,'[1]Precios gasóleo'!$D:$F,3,FALSE)-1) ->  | BK18: =IF($C18<=BK$6,"",VLOOKUP($C18,'[1]Precios gasóleo'!$D:$F,3,FALSE)/VLOOKUP(BK$6,'[1]Precios gasóleo'!$D:$F,3,FALSE)-1) ->  | BL18: =IF($C18<=BL$6,"",VLOOKUP($C18,'[1]Precios gasóleo'!$D:$F,3,FALSE)/VLOOKUP(BL$6,'[1]Precios gasóleo'!$D:$F,3,FALSE)-1) ->  | BM18: =IF($C18<=BM$6,"",VLOOKUP($C18,'[1]Precios gasóleo'!$D:$F,3,FALSE)/VLOOKUP(BM$6,'[1]Precios gasóleo'!$D:$F,3,FALSE)-1) ->  | BN18: =IF($C18<=BN$6,"",VLOOKUP($C18,'[1]Precios gasóleo'!$D:$F,3,FALSE)/VLOOKUP(BN$6,'[1]Precios gasóleo'!$D:$F,3,FALSE)-1) ->  | BO18: =IF($C18<=BO$6,"",VLOOKUP($C18,'[1]Precios gasóleo'!$D:$F,3,FALSE)/VLOOKUP(BO$6,'[1]Precios gasóleo'!$D:$F,3,FALSE)-1) ->  | BP18: =IF($C18<=BP$6,"",VLOOKUP($C18,'[1]Precios gasóleo'!$D:$F,3,FALSE)/VLOOKUP(BP$6,'[1]Precios gasóleo'!$D:$F,3,FALSE)-1) ->  | BQ18: =IF($C18<=BQ$6,"",VLOOKUP($C18,'[1]Precios gasóleo'!$D:$F,3,FALSE)/VLOOKUP(BQ$6,'[1]Precios gasóleo'!$D:$F,3,FALSE)-1) ->  | BR18: =IF($C18<=BR$6,"",VLOOKUP($C18,'[1]Precios gasóleo'!$D:$F,3,FALSE)/VLOOKUP(BR$6,'[1]Precios gasóleo'!$D:$F,3,FALSE)-1) ->  | BS18: =IF($C18<=BS$6,"",VLOOKUP($C18,'[1]Precios gasóleo'!$D:$F,3,FALSE)/VLOOKUP(BS$6,'[1]Precios gasóleo'!$D:$F,3,FALSE)-1) ->  | BT18: =IF($C18<=BT$6,"",VLOOKUP($C18,'[1]Precios gasóleo'!$D:$F,3,FALSE)/VLOOKUP(BT$6,'[1]Precios gasóleo'!$D:$F,3,FALSE)-1) ->  | BU18: =IF($C18<=BU$6,"",VLOOKUP($C18,'[1]Precios gasóleo'!$D:$F,3,FALSE)/VLOOKUP(BU$6,'[1]Precios gasóleo'!$D:$F,3,FALSE)-1) ->  | BV18: =IF($C18<=BV$6,"",VLOOKUP($C18,'[1]Precios gasóleo'!$D:$F,3,FALSE)/VLOOKUP(BV$6,'[1]Precios gasóleo'!$D:$F,3,FALSE)-1) ->  | BW18: =IF($C18<=BW$6,"",VLOOKUP($C18,'[1]Precios gasóleo'!$D:$F,3,FALSE)/VLOOKUP(BW$6,'[1]Precios gasóleo'!$D:$F,3,FALSE)-1) ->  | BX18: =IF($C18<=BX$6,"",VLOOKUP($C18,'[1]Precios gasóleo'!$D:$F,3,FALSE)/VLOOKUP(BX$6,'[1]Precios gasóleo'!$D:$F,3,FALSE)-1) ->  | BY18: =IF($C18<=BY$6,"",VLOOKUP($C18,'[1]Precios gasóleo'!$D:$F,3,FALSE)/VLOOKUP(BY$6,'[1]Precios gasóleo'!$D:$F,3,FALSE)-1) ->  | BZ18: =IF($C18<=BZ$6,"",VLOOKUP($C18,'[1]Precios gasóleo'!$D:$F,3,FALSE)/VLOOKUP(BZ$6,'[1]Precios gasóleo'!$D:$F,3,FALSE)-1) ->  | CA18: =IF($C18<=CA$6,"",VLOOKUP($C18,'[1]Precios gasóleo'!$D:$F,3,FALSE)/VLOOKUP(CA$6,'[1]Precios gasóleo'!$D:$F,3,FALSE)-1) ->  | CB18: =IF($C18<=CB$6,"",VLOOKUP($C18,'[1]Precios gasóleo'!$D:$F,3,FALSE)/VLOOKUP(CB$6,'[1]Precios gasóleo'!$D:$F,3,FALSE)-1) ->  | CC18: =IF($C18<=CC$6,"",VLOOKUP($C18,'[1]Precios gasóleo'!$D:$F,3,FALSE)/VLOOKUP(CC$6,'[1]Precios gasóleo'!$D:$F,3,FALSE)-1) ->  | CD18: =IF($C18<=CD$6,"",VLOOKUP($C18,'[1]Precios gasóleo'!$D:$F,3,FALSE)/VLOOKUP(CD$6,'[1]Precios gasóleo'!$D:$F,3,FALSE)-1) ->  | CE18: =IF($C18<=CE$6,"",VLOOKUP($C18,'[1]Precios gasóleo'!$D:$F,3,FALSE)/VLOOKUP(CE$6,'[1]Precios gasóleo'!$D:$F,3,FALSE)-1) ->  | CF18: =IF($C18<=CF$6,"",VLOOKUP($C18,'[1]Precios gasóleo'!$D:$F,3,FALSE)/VLOOKUP(CF$6,'[1]Precios gasóleo'!$D:$F,3,FALSE)-1) ->  | CG18: =IF($C18<=CG$6,"",VLOOKUP($C18,'[1]Precios gasóleo'!$D:$F,3,FALSE)/VLOOKUP(CG$6,'[1]Precios gasóleo'!$D:$F,3,FALSE)-1) ->  | CH18: =IF($C18<=CH$6,"",VLOOKUP($C18,'[1]Precios gasóleo'!$D:$F,3,FALSE)/VLOOKUP(CH$6,'[1]Precios gasóleo'!$D:$F,3,FALSE)-1) ->  | CI18: =IF($C18<=CI$6,"",VLOOKUP($C18,'[1]Precios gasóleo'!$D:$F,3,FALSE)/VLOOKUP(CI$6,'[1]Precios gasóleo'!$D:$F,3,FALSE)-1) ->  | CJ18: =IF($C18<=CJ$6,"",VLOOKUP($C18,'[1]Precios gasóleo'!$D:$F,3,FALSE)/VLOOKUP(CJ$6,'[1]Precios gasóleo'!$D:$F,3,FALSE)-1) ->  | CK18: =IF($C18<=CK$6,"",VLOOKUP($C18,'[1]Precios gasóleo'!$D:$F,3,FALSE)/VLOOKUP(CK$6,'[1]Precios gasóleo'!$D:$F,3,FALSE)-1) ->  | CL18: =IF($C18<=CL$6,"",VLOOKUP($C18,'[1]Precios gasóleo'!$D:$F,3,FALSE)/VLOOKUP(CL$6,'[1]Precios gasóleo'!$D:$F,3,FALSE)-1) ->  | CM18: =IF($C18<=CM$6,"",VLOOKUP($C18,'[1]Precios gasóleo'!$D:$F,3,FALSE)/VLOOKUP(CM$6,'[1]Precios gasóleo'!$D:$F,3,FALSE)-1) ->  | CN18: =IF($C18<=CN$6,"",VLOOKUP($C18,'[1]Precios gasóleo'!$D:$F,3,FALSE)/VLOOKUP(CN$6,'[1]Precios gasóleo'!$D:$F,3,FALSE)-1) ->  | CO18: =IF($C18<=CO$6,"",VLOOKUP($C18,'[1]Precios gasóleo'!$D:$F,3,FALSE)/VLOOKUP(CO$6,'[1]Precios gasóleo'!$D:$F,3,FALSE)-1) ->  | CP18: =IF($C18<=CP$6,"",VLOOKUP($C18,'[1]Precios gasóleo'!$D:$F,3,FALSE)/VLOOKUP(CP$6,'[1]Precios gasóleo'!$D:$F,3,FALSE)-1) ->  | CQ18: =IF($C18<=CQ$6,"",VLOOKUP($C18,'[1]Precios gasóleo'!$D:$F,3,FALSE)/VLOOKUP(CQ$6,'[1]Precios gasóleo'!$D:$F,3,FALSE)-1) ->  | CR18: =IF($C18<=CR$6,"",VLOOKUP($C18,'[1]Precios gasóleo'!$D:$F,3,FALSE)/VLOOKUP(CR$6,'[1]Precios gasóleo'!$D:$F,3,FALSE)-1) ->  | CS18: =IF($C18<=CS$6,"",VLOOKUP($C18,'[1]Precios gasóleo'!$D:$F,3,FALSE)/VLOOKUP(CS$6,'[1]Precios gasóleo'!$D:$F,3,FALSE)-1) ->  | CT18: =IF($C18<=CT$6,"",VLOOKUP($C18,'[1]Precios gasóleo'!$D:$F,3,FALSE)/VLOOKUP(CT$6,'[1]Precios gasóleo'!$D:$F,3,FALSE)-1) ->  | CU18: =IF($C18<=CU$6,"",VLOOKUP($C18,'[1]Precios gasóleo'!$D:$F,3,FALSE)/VLOOKUP(CU$6,'[1]Precios gasóleo'!$D:$F,3,FALSE)-1) ->  | CV18: =IF($C18<=CV$6,"",VLOOKUP($C18,'[1]Precios gasóleo'!$D:$F,3,FALSE)/VLOOKUP(CV$6,'[1]Precios gasóleo'!$D:$F,3,FALSE)-1) ->  | CW18: =IF($C18<=CW$6,"",VLOOKUP($C18,'[1]Precios gasóleo'!$D:$F,3,FALSE)/VLOOKUP(CW$6,'[1]Precios gasóleo'!$D:$F,3,FALSE)-1) ->  | CX18: =IF($C18<=CX$6,"",VLOOKUP($C18,'[1]Precios gasóleo'!$D:$F,3,FALSE)/VLOOKUP(CX$6,'[1]Precios gasóleo'!$D:$F,3,FALSE)-1) ->  | CY18: =IF($C18<=CY$6,"",VLOOKUP($C18,'[1]Precios gasóleo'!$D:$F,3,FALSE)/VLOOKUP(CY$6,'[1]Precios gasóleo'!$D:$F,3,FALSE)-1) ->  | CZ18: =IF($C18<=CZ$6,"",VLOOKUP($C18,'[1]Precios gasóleo'!$D:$F,3,FALSE)/VLOOKUP(CZ$6,'[1]Precios gasóleo'!$D:$F,3,FALSE)-1) ->  | DA18: =IF($C18<=DA$6,"",VLOOKUP($C18,'[1]Precios gasóleo'!$D:$F,3,FALSE)/VLOOKUP(DA$6,'[1]Precios gasóleo'!$D:$F,3,FALSE)-1) ->  | DB18: =IF($C18<=DB$6,"",VLOOKUP($C18,'[1]Precios gasóleo'!$D:$F,3,FALSE)/VLOOKUP(DB$6,'[1]Precios gasóleo'!$D:$F,3,FALSE)-1) ->  | DC18: =IF($C18<=DC$6,"",VLOOKUP($C18,'[1]Precios gasóleo'!$D:$F,3,FALSE)/VLOOKUP(DC$6,'[1]Precios gasóleo'!$D:$F,3,FALSE)-1) ->  | DD18: =IF($C18<=DD$6,"",VLOOKUP($C18,'[1]Precios gasóleo'!$D:$F,3,FALSE)/VLOOKUP(DD$6,'[1]Precios gasóleo'!$D:$F,3,FALSE)-1) ->  | DE18: =IF($C18<=DE$6,"",VLOOKUP($C18,'[1]Precios gasóleo'!$D:$F,3,FALSE)/VLOOKUP(DE$6,'[1]Precios gasóleo'!$D:$F,3,FALSE)-1) ->  | DF18: =IF($C18<=DF$6,"",VLOOKUP($C18,'[1]Precios gasóleo'!$D:$F,3,FALSE)/VLOOKUP(DF$6,'[1]Precios gasóleo'!$D:$F,3,FALSE)-1) ->  | DG18: =IF($C18<=DG$6,"",VLOOKUP($C18,'[1]Precios gasóleo'!$D:$F,3,FALSE)/VLOOKUP(DG$6,'[1]Precios gasóleo'!$D:$F,3,FALSE)-1) ->  | DH18: =IF($C18<=DH$6,"",VLOOKUP($C18,'[1]Precios gasóleo'!$D:$F,3,FALSE)/VLOOKUP(DH$6,'[1]Precios gasóleo'!$D:$F,3,FALSE)-1) ->  | DI18: =IF($C18<=DI$6,"",VLOOKUP($C18,'[1]Precios gasóleo'!$D:$F,3,FALSE)/VLOOKUP(DI$6,'[1]Precios gasóleo'!$D:$F,3,FALSE)-1) ->  | DJ18: =IF($C18<=DJ$6,"",VLOOKUP($C18,'[1]Precios gasóleo'!$D:$F,3,FALSE)/VLOOKUP(DJ$6,'[1]Precios gasóleo'!$D:$F,3,FALSE)-1) ->  | DK18: =IF($C18<=DK$6,"",VLOOKUP($C18,'[1]Precios gasóleo'!$D:$F,3,FALSE)/VLOOKUP(DK$6,'[1]Precios gasóleo'!$D:$F,3,FALSE)-1) ->  | DL18: =IF($C18<=DL$6,"",VLOOKUP($C18,'[1]Precios gasóleo'!$D:$F,3,FALSE)/VLOOKUP(DL$6,'[1]Precios gasóleo'!$D:$F,3,FALSE)-1) ->  | DM18: =IF($C18<=DM$6,"",VLOOKUP($C18,'[1]Precios gasóleo'!$D:$F,3,FALSE)/VLOOKUP(DM$6,'[1]Precios gasóleo'!$D:$F,3,FALSE)-1) ->  | DN18: =IF($C18<=DN$6,"",VLOOKUP($C18,'[1]Precios gasóleo'!$D:$F,3,FALSE)/VLOOKUP(DN$6,'[1]Precios gasóleo'!$D:$F,3,FALSE)-1) ->  | DO18: =IF($C18<=DO$6,"",VLOOKUP($C18,'[1]Precios gasóleo'!$D:$F,3,FALSE)/VLOOKUP(DO$6,'[1]Precios gasóleo'!$D:$F,3,FALSE)-1) ->  | DP18: =IF($C18<=DP$6,"",VLOOKUP($C18,'[1]Precios gasóleo'!$D:$F,3,FALSE)/VLOOKUP(DP$6,'[1]Precios gasóleo'!$D:$F,3,FALSE)-1) ->  | DQ18: =IF($C18<=DQ$6,"",VLOOKUP($C18,'[1]Precios gasóleo'!$D:$F,3,FALSE)/VLOOKUP(DQ$6,'[1]Precios gasóleo'!$D:$F,3,FALSE)-1) ->  | DR18: =IF($C18<=DR$6,"",VLOOKUP($C18,'[1]Precios gasóleo'!$D:$F,3,FALSE)/VLOOKUP(DR$6,'[1]Precios gasóleo'!$D:$F,3,FALSE)-1) ->  | DS18: =IF($C18<=DS$6,"",VLOOKUP($C18,'[1]Precios gasóleo'!$D:$F,3,FALSE)/VLOOKUP(DS$6,'[1]Precios gasóleo'!$D:$F,3,FALSE)-1) ->  | DT18: =IF($C18<=DT$6,"",VLOOKUP($C18,'[1]Precios gasóleo'!$D:$F,3,FALSE)/VLOOKUP(DT$6,'[1]Precios gasóleo'!$D:$F,3,FALSE)-1) ->  | DU18: =IF($C18<=DU$6,"",VLOOKUP($C18,'[1]Precios gasóleo'!$D:$F,3,FALSE)/VLOOKUP(DU$6,'[1]Precios gasóleo'!$D:$F,3,FALSE)-1) ->  | DV18: =IF($C18<=DV$6,"",VLOOKUP($C18,'[1]Precios gasóleo'!$D:$F,3,FALSE)/VLOOKUP(DV$6,'[1]Precios gasóleo'!$D:$F,3,FALSE)-1) ->  | DW18: =IF($C18<=DW$6,"",VLOOKUP($C18,'[1]Precios gasóleo'!$D:$F,3,FALSE)/VLOOKUP(DW$6,'[1]Precios gasóleo'!$D:$F,3,FALSE)-1) ->  | DX18: =IF($C18<=DX$6,"",VLOOKUP($C18,'[1]Precios gasóleo'!$D:$F,3,FALSE)/VLOOKUP(DX$6,'[1]Precios gasóleo'!$D:$F,3,FALSE)-1) ->  | DY18: =IF($C18<=DY$6,"",VLOOKUP($C18,'[1]Precios gasóleo'!$D:$F,3,FALSE)/VLOOKUP(DY$6,'[1]Precios gasóleo'!$D:$F,3,FALSE)-1) ->  | DZ18: =IF($C18<=DZ$6,"",VLOOKUP($C18,'[1]Precios gasóleo'!$D:$F,3,FALSE)/VLOOKUP(DZ$6,'[1]Precios gasóleo'!$D:$F,3,FALSE)-1) ->  | EA18: =IF($C18<=EA$6,"",VLOOKUP($C18,'[1]Precios gasóleo'!$D:$F,3,FALSE)/VLOOKUP(EA$6,'[1]Precios gasóleo'!$D:$F,3,FALSE)-1) ->  | EB18: =IF($C18<=EB$6,"",VLOOKUP($C18,'[1]Precios gasóleo'!$D:$F,3,FALSE)/VLOOKUP(EB$6,'[1]Precios gasóleo'!$D:$F,3,FALSE)-1) ->  | EC18: =IF($C18<=EC$6,"",VLOOKUP($C18,'[1]Precios gasóleo'!$D:$F,3,FALSE)/VLOOKUP(EC$6,'[1]Precios gasóleo'!$D:$F,3,FALSE)-1) ->  | ED18: =IF($C18<=ED$6,"",VLOOKUP($C18,'[1]Precios gasóleo'!$D:$F,3,FALSE)/VLOOKUP(ED$6,'[1]Precios gasóleo'!$D:$F,3,FALSE)-1) ->  | EE18: =IF($C18<=EE$6,"",VLOOKUP($C18,'[1]Precios gasóleo'!$D:$F,3,FALSE)/VLOOKUP(EE$6,'[1]Precios gasóleo'!$D:$F,3,FALSE)-1) ->  | EF18: =IF($C18<=EF$6,"",VLOOKUP($C18,'[1]Precios gasóleo'!$D:$F,3,FALSE)/VLOOKUP(EF$6,'[1]Precios gasóleo'!$D:$F,3,FALSE)-1) ->  | EG18: =IF($C18<=EG$6,"",VLOOKUP($C18,'[1]Precios gasóleo'!$D:$F,3,FALSE)/VLOOKUP(EG$6,'[1]Precios gasóleo'!$D:$F,3,FALSE)-1) ->  | EH18: 2020-03-31
C19: 2020-04-07 | D19: =IF($C19<=D$6,"",VLOOKUP($C19,'[1]Precios gasóleo'!$D:$F,3,FALSE)/VLOOKUP(D$6,'[1]Precios gasóleo'!$D:$F,3,FALSE)-1) -> -0.1848080067 | E19: =IF($C19<=E$6,"",VLOOKUP($C19,'[1]Precios gasóleo'!$D:$F,3,FALSE)/VLOOKUP(E$6,'[1]Precios gasóleo'!$D:$F,3,FALSE)-1) -> -0.1799884484 | F19: =IF($C19<=F$6,"",VLOOKUP($C19,'[1]Precios gasóleo'!$D:$F,3,FALSE)/VLOOKUP(F$6,'[1]Precios gasóleo'!$D:$F,3,FALSE)-1) -> -0.1729491816 | G19: =IF($C19<=G$6,"",VLOOKUP($C19,'[1]Precios gasóleo'!$D:$F,3,FALSE)/VLOOKUP(G$6,'[1]Precios gasóleo'!$D:$F,3,FALSE)-1) -> -0.163083347 | H19: =IF($C19<=H$6,"",VLOOKUP($C19,'[1]Precios gasóleo'!$D:$F,3,FALSE)/VLOOKUP(H$6,'[1]Precios gasóleo'!$D:$F,3,FALSE)-1) -> -0.1525649954 | I19: =IF($C19<=I$6,"",VLOOKUP($C19,'[1]Precios gasóleo'!$D:$F,3,FALSE)/VLOOKUP(I$6,'[1]Precios gasóleo'!$D:$F,3,FALSE)-1) -> -0.1484067147 | J19: =IF($C19<=J$6,"",VLOOKUP($C19,'[1]Precios gasóleo'!$D:$F,3,FALSE)/VLOOKUP(J$6,'[1]Precios gasóleo'!$D:$F,3,FALSE)-1) -> -0.1492572094 | K19: =IF($C19<=K$6,"",VLOOKUP($C19,'[1]Precios gasóleo'!$D:$F,3,FALSE)/VLOOKUP(K$6,'[1]Precios gasóleo'!$D:$F,3,FALSE)-1) -> -0.1410433087 | L19: =IF($C19<=L$6,"",VLOOKUP($C19,'[1]Precios gasóleo'!$D:$F,3,FALSE)/VLOOKUP(L$6,'[1]Precios gasóleo'!$D:$F,3,FALSE)-1) -> -0.1271219729 | M19: =IF($C19<=M$6,"",VLOOKUP($C19,'[1]Precios gasóleo'!$D:$F,3,FALSE)/VLOOKUP(M$6,'[1]Precios gasóleo'!$D:$F,3,FALSE)-1) -> -0.09362475616 | N19: =IF($C19<=N$6,"",VLOOKUP($C19,'[1]Precios gasóleo'!$D:$F,3,FALSE)/VLOOKUP(N$6,'[1]Precios gasóleo'!$D:$F,3,FALSE)-1) -> -0.05777544267 | O19: =IF($C19<=O$6,"",VLOOKUP($C19,'[1]Precios gasóleo'!$D:$F,3,FALSE)/VLOOKUP(O$6,'[1]Precios gasóleo'!$D:$F,3,FALSE)-1) -> -0.03328888511 | P19: =IF($C19<=P$6,"",VLOOKUP($C19,'[1]Precios gasóleo'!$D:$F,3,FALSE)/VLOOKUP(P$6,'[1]Precios gasóleo'!$D:$F,3,FALSE)-1) -> -0.0150506345 | Q19: =IF($C19<=Q$6,"",VLOOKUP($C19,'[1]Precios gasóleo'!$D:$F,3,FALSE)/VLOOKUP(Q$6,'[1]Precios gasóleo'!$D:$F,3,FALSE)-1) ->  | R19: =IF($C19<=R$6,"",VLOOKUP($C19,'[1]Precios gasóleo'!$D:$F,3,FALSE)/VLOOKUP(R$6,'[1]Precios gasóleo'!$D:$F,3,FALSE)-1) ->  | S19: =IF($C19<=S$6,"",VLOOKUP($C19,'[1]Precios gasóleo'!$D:$F,3,FALSE)/VLOOKUP(S$6,'[1]Precios gasóleo'!$D:$F,3,FALSE)-1) ->  | T19: =IF($C19<=T$6,"",VLOOKUP($C19,'[1]Precios gasóleo'!$D:$F,3,FALSE)/VLOOKUP(T$6,'[1]Precios gasóleo'!$D:$F,3,FALSE)-1) ->  | U19: =IF($C19<=U$6,"",VLOOKUP($C19,'[1]Precios gasóleo'!$D:$F,3,FALSE)/VLOOKUP(U$6,'[1]Precios gasóleo'!$D:$F,3,FALSE)-1) ->  | V19: =IF($C19<=V$6,"",VLOOKUP($C19,'[1]Precios gasóleo'!$D:$F,3,FALSE)/VLOOKUP(V$6,'[1]Precios gasóleo'!$D:$F,3,FALSE)-1) ->  | W19: =IF($C19<=W$6,"",VLOOKUP($C19,'[1]Precios gasóleo'!$D:$F,3,FALSE)/VLOOKUP(W$6,'[1]Precios gasóleo'!$D:$F,3,FALSE)-1) ->  | X19: =IF($C19<=X$6,"",VLOOKUP($C19,'[1]Precios gasóleo'!$D:$F,3,FALSE)/VLOOKUP(X$6,'[1]Precios gasóleo'!$D:$F,3,FALSE)-1) ->  | Y19: =IF($C19<=Y$6,"",VLOOKUP($C19,'[1]Precios gasóleo'!$D:$F,3,FALSE)/VLOOKUP(Y$6,'[1]Precios gasóleo'!$D:$F,3,FALSE)-1) ->  | Z19: =IF($C19<=Z$6,"",VLOOKUP($C19,'[1]Precios gasóleo'!$D:$F,3,FALSE)/VLOOKUP(Z$6,'[1]Precios gasóleo'!$D:$F,3,FALSE)-1) ->  | AA19: =IF($C19<=AA$6,"",VLOOKUP($C19,'[1]Precios gasóleo'!$D:$F,3,FALSE)/VLOOKUP(AA$6,'[1]Precios gasóleo'!$D:$F,3,FALSE)-1) ->  | AB19: =IF($C19<=AB$6,"",VLOOKUP($C19,'[1]Precios gasóleo'!$D:$F,3,FALSE)/VLOOKUP(AB$6,'[1]Precios gasóleo'!$D:$F,3,FALSE)-1) ->  | AC19: =IF($C19<=AC$6,"",VLOOKUP($C19,'[1]Precios gasóleo'!$D:$F,3,FALSE)/VLOOKUP(AC$6,'[1]Precios gasóleo'!$D:$F,3,FALSE)-1) ->  | AD19: =IF($C19<=AD$6,"",VLOOKUP($C19,'[1]Precios gasóleo'!$D:$F,3,FALSE)/VLOOKUP(AD$6,'[1]Precios gasóleo'!$D:$F,3,FALSE)-1) ->  | AE19: =IF($C19<=AE$6,"",VLOOKUP($C19,'[1]Precios gasóleo'!$D:$F,3,FALSE)/VLOOKUP(AE$6,'[1]Precios gasóleo'!$D:$F,3,FALSE)-1) ->  | AF19: =IF($C19<=AF$6,"",VLOOKUP($C19,'[1]Precios gasóleo'!$D:$F,3,FALSE)/VLOOKUP(AF$6,'[1]Precios gasóleo'!$D:$F,3,FALSE)-1) ->  | AG19: =IF($C19<=AG$6,"",VLOOKUP($C19,'[1]Precios gasóleo'!$D:$F,3,FALSE)/VLOOKUP(AG$6,'[1]Precios gasóleo'!$D:$F,3,FALSE)-1) ->  | AH19: =IF($C19<=AH$6,"",VLOOKUP($C19,'[1]Precios gasóleo'!$D:$F,3,FALSE)/VLOOKUP(AH$6,'[1]Precios gasóleo'!$D:$F,3,FALSE)-1) ->  | AI19: =IF($C19<=AI$6,"",VLOOKUP($C19,'[1]Precios gasóleo'!$D:$F,3,FALSE)/VLOOKUP(AI$6,'[1]Precios gasóleo'!$D:$F,3,FALSE)-1) ->  | AJ19: =IF($C19<=AJ$6,"",VLOOKUP($C19,'[1]Precios gasóleo'!$D:$F,3,FALSE)/VLOOKUP(AJ$6,'[1]Precios gasóleo'!$D:$F,3,FALSE)-1) ->  | AK19: =IF($C19<=AK$6,"",VLOOKUP($C19,'[1]Precios gasóleo'!$D:$F,3,FALSE)/VLOOKUP(AK$6,'[1]Precios gasóleo'!$D:$F,3,FALSE)-1) ->  | AL19: =IF($C19<=AL$6,"",VLOOKUP($C19,'[1]Precios gasóleo'!$D:$F,3,FALSE)/VLOOKUP(AL$6,'[1]Precios gasóleo'!$D:$F,3,FALSE)-1) ->  | AM19: =IF($C19<=AM$6,"",VLOOKUP($C19,'[1]Precios gasóleo'!$D:$F,3,FALSE)/VLOOKUP(AM$6,'[1]Precios gasóleo'!$D:$F,3,FALSE)-1) ->  | AN19: =IF($C19<=AN$6,"",VLOOKUP($C19,'[1]Precios gasóleo'!$D:$F,3,FALSE)/VLOOKUP(AN$6,'[1]Precios gasóleo'!$D:$F,3,FALSE)-1) ->  | AO19: =IF($C19<=AO$6,"",VLOOKUP($C19,'[1]Precios gasóleo'!$D:$F,3,FALSE)/VLOOKUP(AO$6,'[1]Precios gasóleo'!$D:$F,3,FALSE)-1) ->  | AP19: =IF($C19<=AP$6,"",VLOOKUP($C19,'[1]Precios gasóleo'!$D:$F,3,FALSE)/VLOOKUP(AP$6,'[1]Precios gasóleo'!$D:$F,3,FALSE)-1) ->  | AQ19: =IF($C19<=AQ$6,"",VLOOKUP($C19,'[1]Precios gasóleo'!$D:$F,3,FALSE)/VLOOKUP(AQ$6,'[1]Precios gasóleo'!$D:$F,3,FALSE)-1) ->  | AR19: =IF($C19<=AR$6,"",VLOOKUP($C19,'[1]Precios gasóleo'!$D:$F,3,FALSE)/VLOOKUP(AR$6,'[1]Precios gasóleo'!$D:$F,3,FALSE)-1) ->  | AS19: =IF($C19<=AS$6,"",VLOOKUP($C19,'[1]Precios gasóleo'!$D:$F,3,FALSE)/VLOOKUP(AS$6,'[1]Precios gasóleo'!$D:$F,3,FALSE)-1) ->  | AT19: =IF($C19<=AT$6,"",VLOOKUP($C19,'[1]Precios gasóleo'!$D:$F,3,FALSE)/VLOOKUP(AT$6,'[1]Precios gasóleo'!$D:$F,3,FALSE)-1) ->  | AU19: =IF($C19<=AU$6,"",VLOOKUP($C19,'[1]Precios gasóleo'!$D:$F,3,FALSE)/VLOOKUP(AU$6,'[1]Precios gasóleo'!$D:$F,3,FALSE)-1) ->  | AV19: =IF($C19<=AV$6,"",VLOOKUP($C19,'[1]Precios gasóleo'!$D:$F,3,FALSE)/VLOOKUP(AV$6,'[1]Precios gasóleo'!$D:$F,3,FALSE)-1) ->  | AW19: =IF($C19<=AW$6,"",VLOOKUP($C19,'[1]Precios gasóleo'!$D:$F,3,FALSE)/VLOOKUP(AW$6,'[1]Precios gasóleo'!$D:$F,3,FALSE)-1) ->  | AX19: =IF($C19<=AX$6,"",VLOOKUP($C19,'[1]Precios gasóleo'!$D:$F,3,FALSE)/VLOOKUP(AX$6,'[1]Precios gasóleo'!$D:$F,3,FALSE)-1) ->  | AY19: =IF($C19<=AY$6,"",VLOOKUP($C19,'[1]Precios gasóleo'!$D:$F,3,FALSE)/VLOOKUP(AY$6,'[1]Precios gasóleo'!$D:$F,3,FALSE)-1) ->  | AZ19: =IF($C19<=AZ$6,"",VLOOKUP($C19,'[1]Precios gasóleo'!$D:$F,3,FALSE)/VLOOKUP(AZ$6,'[1]Precios gasóleo'!$D:$F,3,FALSE)-1) ->  | BA19: =IF($C19<=BA$6,"",VLOOKUP($C19,'[1]Precios gasóleo'!$D:$F,3,FALSE)/VLOOKUP(BA$6,'[1]Precios gasóleo'!$D:$F,3,FALSE)-1) ->  | BB19: =IF($C19<=BB$6,"",VLOOKUP($C19,'[1]Precios gasóleo'!$D:$F,3,FALSE)/VLOOKUP(BB$6,'[1]Precios gasóleo'!$D:$F,3,FALSE)-1) ->  | BC19: =IF($C19<=BC$6,"",VLOOKUP($C19,'[1]Precios gasóleo'!$D:$F,3,FALSE)/VLOOKUP(BC$6,'[1]Precios gasóleo'!$D:$F,3,FALSE)-1) ->  | BD19: =IF($C19<=BD$6,"",VLOOKUP($C19,'[1]Precios gasóleo'!$D:$F,3,FALSE)/VLOOKUP(BD$6,'[1]Precios gasóleo'!$D:$F,3,FALSE)-1) ->  | BE19: =IF($C19<=BE$6,"",VLOOKUP($C19,'[1]Precios gasóleo'!$D:$F,3,FALSE)/VLOOKUP(BE$6,'[1]Precios gasóleo'!$D:$F,3,FALSE)-1) ->  | BF19: =IF($C19<=BF$6,"",VLOOKUP($C19,'[1]Precios gasóleo'!$D:$F,3,FALSE)/VLOOKUP(BF$6,'[1]Precios gasóleo'!$D:$F,3,FALSE)-1) ->  | BG19: =IF($C19<=BG$6,"",VLOOKUP($C19,'[1]Precios gasóleo'!$D:$F,3,FALSE)/VLOOKUP(BG$6,'[1]Precios gasóleo'!$D:$F,3,FALSE)-1) ->  | BH19: =IF($C19<=BH$6,"",VLOOKUP($C19,'[1]Precios gasóleo'!$D:$F,3,FALSE)/VLOOKUP(BH$6,'[1]Precios gasóleo'!$D:$F,3,FALSE)-1) ->  | BI19: =IF($C19<=BI$6,"",VLOOKUP($C19,'[1]Precios gasóleo'!$D:$F,3,FALSE)/VLOOKUP(BI$6,'[1]Precios gasóleo'!$D:$F,3,FALSE)-1) ->  | BJ19: =IF($C19<=BJ$6,"",VLOOKUP($C19,'[1]Precios gasóleo'!$D:$F,3,FALSE)/VLOOKUP(BJ$6,'[1]Precios gasóleo'!$D:$F,3,FALSE)-1) ->  | BK19: =IF($C19<=BK$6,"",VLOOKUP($C19,'[1]Precios gasóleo'!$D:$F,3,FALSE)/VLOOKUP(BK$6,'[1]Precios gasóleo'!$D:$F,3,FALSE)-1) ->  | BL19: =IF($C19<=BL$6,"",VLOOKUP($C19,'[1]Precios gasóleo'!$D:$F,3,FALSE)/VLOOKUP(BL$6,'[1]Precios gasóleo'!$D:$F,3,FALSE)-1) ->  | BM19: =IF($C19<=BM$6,"",VLOOKUP($C19,'[1]Precios gasóleo'!$D:$F,3,FALSE)/VLOOKUP(BM$6,'[1]Precios gasóleo'!$D:$F,3,FALSE)-1) ->  | BN19: =IF($C19<=BN$6,"",VLOOKUP($C19,'[1]Precios gasóleo'!$D:$F,3,FALSE)/VLOOKUP(BN$6,'[1]Precios gasóleo'!$D:$F,3,FALSE)-1) ->  | BO19: =IF($C19<=BO$6,"",VLOOKUP($C19,'[1]Precios gasóleo'!$D:$F,3,FALSE)/VLOOKUP(BO$6,'[1]Precios gasóleo'!$D:$F,3,FALSE)-1) ->  | BP19: =IF($C19<=BP$6,"",VLOOKUP($C19,'[1]Precios gasóleo'!$D:$F,3,FALSE)/VLOOKUP(BP$6,'[1]Precios gasóleo'!$D:$F,3,FALSE)-1) ->  | BQ19: =IF($C19<=BQ$6,"",VLOOKUP($C19,'[1]Precios gasóleo'!$D:$F,3,FALSE)/VLOOKUP(BQ$6,'[1]Precios gasóleo'!$D:$F,3,FALSE)-1) ->  | BR19: =IF($C19<=BR$6,"",VLOOKUP($C19,'[1]Precios gasóleo'!$D:$F,3,FALSE)/VLOOKUP(BR$6,'[1]Precios gasóleo'!$D:$F,3,FALSE)-1) ->  | BS19: =IF($C19<=BS$6,"",VLOOKUP($C19,'[1]Precios gasóleo'!$D:$F,3,FALSE)/VLOOKUP(BS$6,'[1]Precios gasóleo'!$D:$F,3,FALSE)-1) ->  | BT19: =IF($C19<=BT$6,"",VLOOKUP($C19,'[1]Precios gasóleo'!$D:$F,3,FALSE)/VLOOKUP(BT$6,'[1]Precios gasóleo'!$D:$F,3,FALSE)-1) ->  | BU19: =IF($C19<=BU$6,"",VLOOKUP($C19,'[1]Precios gasóleo'!$D:$F,3,FALSE)/VLOOKUP(BU$6,'[1]Precios gasóleo'!$D:$F,3,FALSE)-1) ->  | BV19: =IF($C19<=BV$6,"",VLOOKUP($C19,'[1]Precios gasóleo'!$D:$F,3,FALSE)/VLOOKUP(BV$6,'[1]Precios gasóleo'!$D:$F,3,FALSE)-1) ->  | BW19: =IF($C19<=BW$6,"",VLOOKUP($C19,'[1]Precios gasóleo'!$D:$F,3,FALSE)/VLOOKUP(BW$6,'[1]Precios gasóleo'!$D:$F,3,FALSE)-1) ->  | BX19: =IF($C19<=BX$6,"",VLOOKUP($C19,'[1]Precios gasóleo'!$D:$F,3,FALSE)/VLOOKUP(BX$6,'[1]Precios gasóleo'!$D:$F,3,FALSE)-1) ->  | BY19: =IF($C19<=BY$6,"",VLOOKUP($C19,'[1]Precios gasóleo'!$D:$F,3,FALSE)/VLOOKUP(BY$6,'[1]Precios gasóleo'!$D:$F,3,FALSE)-1) ->  | BZ19: =IF($C19<=BZ$6,"",VLOOKUP($C19,'[1]Precios gasóleo'!$D:$F,3,FALSE)/VLOOKUP(BZ$6,'[1]Precios gasóleo'!$D:$F,3,FALSE)-1) ->  | CA19: =IF($C19<=CA$6,"",VLOOKUP($C19,'[1]Precios gasóleo'!$D:$F,3,FALSE)/VLOOKUP(CA$6,'[1]Precios gasóleo'!$D:$F,3,FALSE)-1) ->  | CB19: =IF($C19<=CB$6,"",VLOOKUP($C19,'[1]Precios gasóleo'!$D:$F,3,FALSE)/VLOOKUP(CB$6,'[1]Precios gasóleo'!$D:$F,3,FALSE)-1) ->  | CC19: =IF($C19<=CC$6,"",VLOOKUP($C19,'[1]Precios gasóleo'!$D:$F,3,FALSE)/VLOOKUP(CC$6,'[1]Precios gasóleo'!$D:$F,3,FALSE)-1) ->  | CD19: =IF($C19<=CD$6,"",VLOOKUP($C19,'[1]Precios gasóleo'!$D:$F,3,FALSE)/VLOOKUP(CD$6,'[1]Precios gasóleo'!$D:$F,3,FALSE)-1) ->  | CE19: =IF($C19<=CE$6,"",VLOOKUP($C19,'[1]Precios gasóleo'!$D:$F,3,FALSE)/VLOOKUP(CE$6,'[1]Precios gasóleo'!$D:$F,3,FALSE)-1) ->  | CF19: =IF($C19<=CF$6,"",VLOOKUP($C19,'[1]Precios gasóleo'!$D:$F,3,FALSE)/VLOOKUP(CF$6,'[1]Precios gasóleo'!$D:$F,3,FALSE)-1) ->  | CG19: =IF($C19<=CG$6,"",VLOOKUP($C19,'[1]Precios gasóleo'!$D:$F,3,FALSE)/VLOOKUP(CG$6,'[1]Precios gasóleo'!$D:$F,3,FALSE)-1) ->  | CH19: =IF($C19<=CH$6,"",VLOOKUP($C19,'[1]Precios gasóleo'!$D:$F,3,FALSE)/VLOOKUP(CH$6,'[1]Precios gasóleo'!$D:$F,3,FALSE)-1) ->  | CI19: =IF($C19<=CI$6,"",VLOOKUP($C19,'[1]Precios gasóleo'!$D:$F,3,FALSE)/VLOOKUP(CI$6,'[1]Precios gasóleo'!$D:$F,3,FALSE)-1) ->  | CJ19: =IF($C19<=CJ$6,"",VLOOKUP($C19,'[1]Precios gasóleo'!$D:$F,3,FALSE)/VLOOKUP(CJ$6,'[1]Precios gasóleo'!$D:$F,3,FALSE)-1) ->  | CK19: =IF($C19<=CK$6,"",VLOOKUP($C19,'[1]Precios gasóleo'!$D:$F,3,FALSE)/VLOOKUP(CK$6,'[1]Precios gasóleo'!$D:$F,3,FALSE)-1) ->  | CL19: =IF($C19<=CL$6,"",VLOOKUP($C19,'[1]Precios gasóleo'!$D:$F,3,FALSE)/VLOOKUP(CL$6,'[1]Precios gasóleo'!$D:$F,3,FALSE)-1) ->  | CM19: =IF($C19<=CM$6,"",VLOOKUP($C19,'[1]Precios gasóleo'!$D:$F,3,FALSE)/VLOOKUP(CM$6,'[1]Precios gasóleo'!$D:$F,3,FALSE)-1) ->  | CN19: =IF($C19<=CN$6,"",VLOOKUP($C19,'[1]Precios gasóleo'!$D:$F,3,FALSE)/VLOOKUP(CN$6,'[1]Precios gasóleo'!$D:$F,3,FALSE)-1) ->  | CO19: =IF($C19<=CO$6,"",VLOOKUP($C19,'[1]Precios gasóleo'!$D:$F,3,FALSE)/VLOOKUP(CO$6,'[1]Precios gasóleo'!$D:$F,3,FALSE)-1) ->  | CP19: =IF($C19<=CP$6,"",VLOOKUP($C19,'[1]Precios gasóleo'!$D:$F,3,FALSE)/VLOOKUP(CP$6,'[1]Precios gasóleo'!$D:$F,3,FALSE)-1) ->  | CQ19: =IF($C19<=CQ$6,"",VLOOKUP($C19,'[1]Precios gasóleo'!$D:$F,3,FALSE)/VLOOKUP(CQ$6,'[1]Precios gasóleo'!$D:$F,3,FALSE)-1) ->  | CR19: =IF($C19<=CR$6,"",VLOOKUP($C19,'[1]Precios gasóleo'!$D:$F,3,FALSE)/VLOOKUP(CR$6,'[1]Precios gasóleo'!$D:$F,3,FALSE)-1) ->  | CS19: =IF($C19<=CS$6,"",VLOOKUP($C19,'[1]Precios gasóleo'!$D:$F,3,FALSE)/VLOOKUP(CS$6,'[1]Precios gasóleo'!$D:$F,3,FALSE)-1) ->  | CT19: =IF($C19<=CT$6,"",VLOOKUP($C19,'[1]Precios gasóleo'!$D:$F,3,FALSE)/VLOOKUP(CT$6,'[1]Precios gasóleo'!$D:$F,3,FALSE)-1) ->  | CU19: =IF($C19<=CU$6,"",VLOOKUP($C19,'[1]Precios gasóleo'!$D:$F,3,FALSE)/VLOOKUP(CU$6,'[1]Precios gasóleo'!$D:$F,3,FALSE)-1) ->  | CV19: =IF($C19<=CV$6,"",VLOOKUP($C19,'[1]Precios gasóleo'!$D:$F,3,FALSE)/VLOOKUP(CV$6,'[1]Precios gasóleo'!$D:$F,3,FALSE)-1) ->  | CW19: =IF($C19<=CW$6,"",VLOOKUP($C19,'[1]Precios gasóleo'!$D:$F,3,FALSE)/VLOOKUP(CW$6,'[1]Precios gasóleo'!$D:$F,3,FALSE)-1) ->  | CX19: =IF($C19<=CX$6,"",VLOOKUP($C19,'[1]Precios gasóleo'!$D:$F,3,FALSE)/VLOOKUP(CX$6,'[1]Precios gasóleo'!$D:$F,3,FALSE)-1) ->  | CY19: =IF($C19<=CY$6,"",VLOOKUP($C19,'[1]Precios gasóleo'!$D:$F,3,FALSE)/VLOOKUP(CY$6,'[1]Precios gasóleo'!$D:$F,3,FALSE)-1) ->  | CZ19: =IF($C19<=CZ$6,"",VLOOKUP($C19,'[1]Precios gasóleo'!$D:$F,3,FALSE)/VLOOKUP(CZ$6,'[1]Precios gasóleo'!$D:$F,3,FALSE)-1) ->  | DA19: =IF($C19<=DA$6,"",VLOOKUP($C19,'[1]Precios gasóleo'!$D:$F,3,FALSE)/VLOOKUP(DA$6,'[1]Precios gasóleo'!$D:$F,3,FALSE)-1) ->  | DB19: =IF($C19<=DB$6,"",VLOOKUP($C19,'[1]Precios gasóleo'!$D:$F,3,FALSE)/VLOOKUP(DB$6,'[1]Precios gasóleo'!$D:$F,3,FALSE)-1) ->  | DC19: =IF($C19<=DC$6,"",VLOOKUP($C19,'[1]Precios gasóleo'!$D:$F,3,FALSE)/VLOOKUP(DC$6,'[1]Precios gasóleo'!$D:$F,3,FALSE)-1) ->  | DD19: =IF($C19<=DD$6,"",VLOOKUP($C19,'[1]Precios gasóleo'!$D:$F,3,FALSE)/VLOOKUP(DD$6,'[1]Precios gasóleo'!$D:$F,3,FALSE)-1) ->  | DE19: =IF($C19<=DE$6,"",VLOOKUP($C19,'[1]Precios gasóleo'!$D:$F,3,FALSE)/VLOOKUP(DE$6,'[1]Precios gasóleo'!$D:$F,3,FALSE)-1) ->  | DF19: =IF($C19<=DF$6,"",VLOOKUP($C19,'[1]Precios gasóleo'!$D:$F,3,FALSE)/VLOOKUP(DF$6,'[1]Precios gasóleo'!$D:$F,3,FALSE)-1) ->  | DG19: =IF($C19<=DG$6,"",VLOOKUP($C19,'[1]Precios gasóleo'!$D:$F,3,FALSE)/VLOOKUP(DG$6,'[1]Precios gasóleo'!$D:$F,3,FALSE)-1) ->  | DH19: =IF($C19<=DH$6,"",VLOOKUP($C19,'[1]Precios gasóleo'!$D:$F,3,FALSE)/VLOOKUP(DH$6,'[1]Precios gasóleo'!$D:$F,3,FALSE)-1) ->  | DI19: =IF($C19<=DI$6,"",VLOOKUP($C19,'[1]Precios gasóleo'!$D:$F,3,FALSE)/VLOOKUP(DI$6,'[1]Precios gasóleo'!$D:$F,3,FALSE)-1) ->  | DJ19: =IF($C19<=DJ$6,"",VLOOKUP($C19,'[1]Precios gasóleo'!$D:$F,3,FALSE)/VLOOKUP(DJ$6,'[1]Precios gasóleo'!$D:$F,3,FALSE)-1) ->  | DK19: =IF($C19<=DK$6,"",VLOOKUP($C19,'[1]Precios gasóleo'!$D:$F,3,FALSE)/VLOOKUP(DK$6,'[1]Precios gasóleo'!$D:$F,3,FALSE)-1) ->  | DL19: =IF($C19<=DL$6,"",VLOOKUP($C19,'[1]Precios gasóleo'!$D:$F,3,FALSE)/VLOOKUP(DL$6,'[1]Precios gasóleo'!$D:$F,3,FALSE)-1) ->  | DM19: =IF($C19<=DM$6,"",VLOOKUP($C19,'[1]Precios gasóleo'!$D:$F,3,FALSE)/VLOOKUP(DM$6,'[1]Precios gasóleo'!$D:$F,3,FALSE)-1) ->  | DN19: =IF($C19<=DN$6,"",VLOOKUP($C19,'[1]Precios gasóleo'!$D:$F,3,FALSE)/VLOOKUP(DN$6,'[1]Precios gasóleo'!$D:$F,3,FALSE)-1) ->  | DO19: =IF($C19<=DO$6,"",VLOOKUP($C19,'[1]Precios gasóleo'!$D:$F,3,FALSE)/VLOOKUP(DO$6,'[1]Precios gasóleo'!$D:$F,3,FALSE)-1) ->  | DP19: =IF($C19<=DP$6,"",VLOOKUP($C19,'[1]Precios gasóleo'!$D:$F,3,FALSE)/VLOOKUP(DP$6,'[1]Precios gasóleo'!$D:$F,3,FALSE)-1) ->  | DQ19: =IF($C19<=DQ$6,"",VLOOKUP($C19,'[1]Precios gasóleo'!$D:$F,3,FALSE)/VLOOKUP(DQ$6,'[1]Precios gasóleo'!$D:$F,3,FALSE)-1) ->  | DR19: =IF($C19<=DR$6,"",VLOOKUP($C19,'[1]Precios gasóleo'!$D:$F,3,FALSE)/VLOOKUP(DR$6,'[1]Precios gasóleo'!$D:$F,3,FALSE)-1) ->  | DS19: =IF($C19<=DS$6,"",VLOOKUP($C19,'[1]Precios gasóleo'!$D:$F,3,FALSE)/VLOOKUP(DS$6,'[1]Precios gasóleo'!$D:$F,3,FALSE)-1) ->  | DT19: =IF($C19<=DT$6,"",VLOOKUP($C19,'[1]Precios gasóleo'!$D:$F,3,FALSE)/VLOOKUP(DT$6,'[1]Precios gasóleo'!$D:$F,3,FALSE)-1) ->  | DU19: =IF($C19<=DU$6,"",VLOOKUP($C19,'[1]Precios gasóleo'!$D:$F,3,FALSE)/VLOOKUP(DU$6,'[1]Precios gasóleo'!$D:$F,3,FALSE)-1) ->  | DV19: =IF($C19<=DV$6,"",VLOOKUP($C19,'[1]Precios gasóleo'!$D:$F,3,FALSE)/VLOOKUP(DV$6,'[1]Precios gasóleo'!$D:$F,3,FALSE)-1) ->  | DW19: =IF($C19<=DW$6,"",VLOOKUP($C19,'[1]Precios gasóleo'!$D:$F,3,FALSE)/VLOOKUP(DW$6,'[1]Precios gasóleo'!$D:$F,3,FALSE)-1) ->  | DX19: =IF($C19<=DX$6,"",VLOOKUP($C19,'[1]Precios gasóleo'!$D:$F,3,FALSE)/VLOOKUP(DX$6,'[1]Precios gasóleo'!$D:$F,3,FALSE)-1) ->  | DY19: =IF($C19<=DY$6,"",VLOOKUP($C19,'[1]Precios gasóleo'!$D:$F,3,FALSE)/VLOOKUP(DY$6,'[1]Precios gasóleo'!$D:$F,3,FALSE)-1) ->  | DZ19: =IF($C19<=DZ$6,"",VLOOKUP($C19,'[1]Precios gasóleo'!$D:$F,3,FALSE)/VLOOKUP(DZ$6,'[1]Precios gasóleo'!$D:$F,3,FALSE)-1) ->  | EA19: =IF($C19<=EA$6,"",VLOOKUP($C19,'[1]Precios gasóleo'!$D:$F,3,FALSE)/VLOOKUP(EA$6,'[1]Precios gasóleo'!$D:$F,3,FALSE)-1) ->  | EB19: =IF($C19<=EB$6,"",VLOOKUP($C19,'[1]Precios gasóleo'!$D:$F,3,FALSE)/VLOOKUP(EB$6,'[1]Precios gasóleo'!$D:$F,3,FALSE)-1) ->  | EC19: =IF($C19<=EC$6,"",VLOOKUP($C19,'[1]Precios gasóleo'!$D:$F,3,FALSE)/VLOOKUP(EC$6,'[1]Precios gasóleo'!$D:$F,3,FALSE)-1) ->  | ED19: =IF($C19<=ED$6,"",VLOOKUP($C19,'[1]Precios gasóleo'!$D:$F,3,FALSE)/VLOOKUP(ED$6,'[1]Precios gasóleo'!$D:$F,3,FALSE)-1) ->  | EE19: =IF($C19<=EE$6,"",VLOOKUP($C19,'[1]Precios gasóleo'!$D:$F,3,FALSE)/VLOOKUP(EE$6,'[1]Precios gasóleo'!$D:$F,3,FALSE)-1) ->  | EF19: =IF($C19<=EF$6,"",VLOOKUP($C19,'[1]Precios gasóleo'!$D:$F,3,FALSE)/VLOOKUP(EF$6,'[1]Precios gasóleo'!$D:$F,3,FALSE)-1) ->  | EG19: =IF($C19<=EG$6,"",VLOOKUP($C19,'[1]Precios gasóleo'!$D:$F,3,FALSE)/VLOOKUP(EG$6,'[1]Precios gasóleo'!$D:$F,3,FALSE)-1) ->  | EH19: 2020-04-07
C20: 2020-04-21 | D20: =IF($C20<=D$6,"",VLOOKUP($C20,'[1]Precios gasóleo'!$D:$F,3,FALSE)/VLOOKUP(D$6,'[1]Precios gasóleo'!$D:$F,3,FALSE)-1) -> -0.2026795327 | E20: =IF($C20<=E$6,"",VLOOKUP($C20,'[1]Precios gasóleo'!$D:$F,3,FALSE)/VLOOKUP(E$6,'[1]Precios gasóleo'!$D:$F,3,FALSE)-1) -> -0.197965634 | F20: =IF($C20<=F$6,"",VLOOKUP($C20,'[1]Precios gasóleo'!$D:$F,3,FALSE)/VLOOKUP(F$6,'[1]Precios gasóleo'!$D:$F,3,FALSE)-1) -> -0.1910806897 | G20: =IF($C20<=G$6,"",VLOOKUP($C20,'[1]Precios gasóleo'!$D:$F,3,FALSE)/VLOOKUP(G$6,'[1]Precios gasóleo'!$D:$F,3,FALSE)-1) -> -0.1814311446 | H20: =IF($C20<=H$6,"",VLOOKUP($C20,'[1]Precios gasóleo'!$D:$F,3,FALSE)/VLOOKUP(H$6,'[1]Precios gasóleo'!$D:$F,3,FALSE)-1) -> -0.1711433877 | I20: =IF($C20<=I$6,"",VLOOKUP($C20,'[1]Precios gasóleo'!$D:$F,3,FALSE)/VLOOKUP(I$6,'[1]Precios gasóleo'!$D:$F,3,FALSE)-1) -> -0.1670762694 | J20: =IF($C20<=J$6,"",VLOOKUP($C20,'[1]Precios gasóleo'!$D:$F,3,FALSE)/VLOOKUP(J$6,'[1]Precios gasóleo'!$D:$F,3,FALSE)-1) -> -0.1679081187 | K20: =IF($C20<=K$6,"",VLOOKUP($C20,'[1]Precios gasóleo'!$D:$F,3,FALSE)/VLOOKUP(K$6,'[1]Precios gasóleo'!$D:$F,3,FALSE)-1) -> -0.1598742921 | L20: =IF($C20<=L$6,"",VLOOKUP($C20,'[1]Precios gasóleo'!$D:$F,3,FALSE)/VLOOKUP(L$6,'[1]Precios gasóleo'!$D:$F,3,FALSE)-1) -> -0.1462581549 | M20: =IF($C20<=M$6,"",VLOOKUP($C20,'[1]Precios gasóleo'!$D:$F,3,FALSE)/VLOOKUP(M$6,'[1]Precios gasóleo'!$D:$F,3,FALSE)-1) -> -0.1134953006 | N20: =IF($C20<=N$6,"",VLOOKUP($C20,'[1]Precios gasóleo'!$D:$F,3,FALSE)/VLOOKUP(N$6,'[1]Precios gasóleo'!$D:$F,3,FALSE)-1) -> -0.07843191476 | O20: =IF($C20<=O$6,"",VLOOKUP($C20,'[1]Precios gasóleo'!$D:$F,3,FALSE)/VLOOKUP(O$6,'[1]Precios gasóleo'!$D:$F,3,FALSE)-1) -> -0.05448217815 | P20: =IF($C20<=P$6,"",VLOOKUP($C20,'[1]Precios gasóleo'!$D:$F,3,FALSE)/VLOOKUP(P$6,'[1]Precios gasóleo'!$D:$F,3,FALSE)-1) -> -0.03664376632 | Q20: =IF($C20<=Q$6,"",VLOOKUP($C20,'[1]Precios gasóleo'!$D:$F,3,FALSE)/VLOOKUP(Q$6,'[1]Precios gasóleo'!$D:$F,3,FALSE)-1) -> -0.02192308821 | R20: =IF($C20<=R$6,"",VLOOKUP($C20,'[1]Precios gasóleo'!$D:$F,3,FALSE)/VLOOKUP(R$6,'[1]Precios gasóleo'!$D:$F,3,FALSE)-1) ->  | S20: =IF($C20<=S$6,"",VLOOKUP($C20,'[1]Precios gasóleo'!$D:$F,3,FALSE)/VLOOKUP(S$6,'[1]Precios gasóleo'!$D:$F,3,FALSE)-1) ->  | T20: =IF($C20<=T$6,"",VLOOKUP($C20,'[1]Precios gasóleo'!$D:$F,3,FALSE)/VLOOKUP(T$6,'[1]Precios gasóleo'!$D:$F,3,FALSE)-1) ->  | U20: =IF($C20<=U$6,"",VLOOKUP($C20,'[1]Precios gasóleo'!$D:$F,3,FALSE)/VLOOKUP(U$6,'[1]Precios gasóleo'!$D:$F,3,FALSE)-1) ->  | V20: =IF($C20<=V$6,"",VLOOKUP($C20,'[1]Precios gasóleo'!$D:$F,3,FALSE)/VLOOKUP(V$6,'[1]Precios gasóleo'!$D:$F,3,FALSE)-1) ->  | W20: =IF($C20<=W$6,"",VLOOKUP($C20,'[1]Precios gasóleo'!$D:$F,3,FALSE)/VLOOKUP(W$6,'[1]Precios gasóleo'!$D:$F,3,FALSE)-1) ->  | X20: =IF($C20<=X$6,"",VLOOKUP($C20,'[1]Precios gasóleo'!$D:$F,3,FALSE)/VLOOKUP(X$6,'[1]Precios gasóleo'!$D:$F,3,FALSE)-1) ->  | Y20: =IF($C20<=Y$6,"",VLOOKUP($C20,'[1]Precios gasóleo'!$D:$F,3,FALSE)/VLOOKUP(Y$6,'[1]Precios gasóleo'!$D:$F,3,FALSE)-1) ->  | Z20: =IF($C20<=Z$6,"",VLOOKUP($C20,'[1]Precios gasóleo'!$D:$F,3,FALSE)/VLOOKUP(Z$6,'[1]Precios gasóleo'!$D:$F,3,FALSE)-1) ->  | AA20: =IF($C20<=AA$6,"",VLOOKUP($C20,'[1]Precios gasóleo'!$D:$F,3,FALSE)/VLOOKUP(AA$6,'[1]Precios gasóleo'!$D:$F,3,FALSE)-1) ->  | AB20: =IF($C20<=AB$6,"",VLOOKUP($C20,'[1]Precios gasóleo'!$D:$F,3,FALSE)/VLOOKUP(AB$6,'[1]Precios gasóleo'!$D:$F,3,FALSE)-1) ->  | AC20: =IF($C20<=AC$6,"",VLOOKUP($C20,'[1]Precios gasóleo'!$D:$F,3,FALSE)/VLOOKUP(AC$6,'[1]Precios gasóleo'!$D:$F,3,FALSE)-1) ->  | AD20: =IF($C20<=AD$6,"",VLOOKUP($C20,'[1]Precios gasóleo'!$D:$F,3,FALSE)/VLOOKUP(AD$6,'[1]Precios gasóleo'!$D:$F,3,FALSE)-1) ->  | AE20: =IF($C20<=AE$6,"",VLOOKUP($C20,'[1]Precios gasóleo'!$D:$F,3,FALSE)/VLOOKUP(AE$6,'[1]Precios gasóleo'!$D:$F,3,FALSE)-1) ->  | AF20: =IF($C20<=AF$6,"",VLOOKUP($C20,'[1]Precios gasóleo'!$D:$F,3,FALSE)/VLOOKUP(AF$6,'[1]Precios gasóleo'!$D:$F,3,FALSE)-1) ->  | AG20: =IF($C20<=AG$6,"",VLOOKUP($C20,'[1]Precios gasóleo'!$D:$F,3,FALSE)/VLOOKUP(AG$6,'[1]Precios gasóleo'!$D:$F,3,FALSE)-1) ->  | AH20: =IF($C20<=AH$6,"",VLOOKUP($C20,'[1]Precios gasóleo'!$D:$F,3,FALSE)/VLOOKUP(AH$6,'[1]Precios gasóleo'!$D:$F,3,FALSE)-1) ->  | AI20: =IF($C20<=AI$6,"",VLOOKUP($C20,'[1]Precios gasóleo'!$D:$F,3,FALSE)/VLOOKUP(AI$6,'[1]Precios gasóleo'!$D:$F,3,FALSE)-1) ->  | AJ20: =IF($C20<=AJ$6,"",VLOOKUP($C20,'[1]Precios gasóleo'!$D:$F,3,FALSE)/VLOOKUP(AJ$6,'[1]Precios gasóleo'!$D:$F,3,FALSE)-1) ->  | AK20: =IF($C20<=AK$6,"",VLOOKUP($C20,'[1]Precios gasóleo'!$D:$F,3,FALSE)/VLOOKUP(AK$6,'[1]Precios gasóleo'!$D:$F,3,FALSE)-1) ->  | AL20: =IF($C20<=AL$6,"",VLOOKUP($C20,'[1]Precios gasóleo'!$D:$F,3,FALSE)/VLOOKUP(AL$6,'[1]Precios gasóleo'!$D:$F,3,FALSE)-1) ->  | AM20: =IF($C20<=AM$6,"",VLOOKUP($C20,'[1]Precios gasóleo'!$D:$F,3,FALSE)/VLOOKUP(AM$6,'[1]Precios gasóleo'!$D:$F,3,FALSE)-1) ->  | AN20: =IF($C20<=AN$6,"",VLOOKUP($C20,'[1]Precios gasóleo'!$D:$F,3,FALSE)/VLOOKUP(AN$6,'[1]Precios gasóleo'!$D:$F,3,FALSE)-1) ->  | AO20: =IF($C20<=AO$6,"",VLOOKUP($C20,'[1]Precios gasóleo'!$D:$F,3,FALSE)/VLOOKUP(AO$6,'[1]Precios gasóleo'!$D:$F,3,FALSE)-1) ->  | AP20: =IF($C20<=AP$6,"",VLOOKUP($C20,'[1]Precios gasóleo'!$D:$F,3,FALSE)/VLOOKUP(AP$6,'[1]Precios gasóleo'!$D:$F,3,FALSE)-1) ->  | AQ20: =IF($C20<=AQ$6,"",VLOOKUP($C20,'[1]Precios gasóleo'!$D:$F,3,FALSE)/VLOOKUP(AQ$6,'[1]Precios gasóleo'!$D:$F,3,FALSE)-1) ->  | AR20: =IF($C20<=AR$6,"",VLOOKUP($C20,'[1]Precios gasóleo'!$D:$F,3,FALSE)/VLOOKUP(AR$6,'[1]Precios gasóleo'!$D:$F,3,FALSE)-1) ->  | AS20: =IF($C20<=AS$6,"",VLOOKUP($C20,'[1]Precios gasóleo'!$D:$F,3,FALSE)/VLOOKUP(AS$6,'[1]Precios gasóleo'!$D:$F,3,FALSE)-1) ->  | AT20: =IF($C20<=AT$6,"",VLOOKUP($C20,'[1]Precios gasóleo'!$D:$F,3,FALSE)/VLOOKUP(AT$6,'[1]Precios gasóleo'!$D:$F,3,FALSE)-1) ->  | AU20: =IF($C20<=AU$6,"",VLOOKUP($C20,'[1]Precios gasóleo'!$D:$F,3,FALSE)/VLOOKUP(AU$6,'[1]Precios gasóleo'!$D:$F,3,FALSE)-1) ->  | AV20: =IF($C20<=AV$6,"",VLOOKUP($C20,'[1]Precios gasóleo'!$D:$F,3,FALSE)/VLOOKUP(AV$6,'[1]Precios gasóleo'!$D:$F,3,FALSE)-1) ->  | AW20: =IF($C20<=AW$6,"",VLOOKUP($C20,'[1]Precios gasóleo'!$D:$F,3,FALSE)/VLOOKUP(AW$6,'[1]Precios gasóleo'!$D:$F,3,FALSE)-1) ->  | AX20: =IF($C20<=AX$6,"",VLOOKUP($C20,'[1]Precios gasóleo'!$D:$F,3,FALSE)/VLOOKUP(AX$6,'[1]Precios gasóleo'!$D:$F,3,FALSE)-1) ->  | AY20: =IF($C20<=AY$6,"",VLOOKUP($C20,'[1]Precios gasóleo'!$D:$F,3,FALSE)/VLOOKUP(AY$6,'[1]Precios gasóleo'!$D:$F,3,FALSE)-1) ->  | AZ20: =IF($C20<=AZ$6,"",VLOOKUP($C20,'[1]Precios gasóleo'!$D:$F,3,FALSE)/VLOOKUP(AZ$6,'[1]Precios gasóleo'!$D:$F,3,FALSE)-1) ->  | BA20: =IF($C20<=BA$6,"",VLOOKUP($C20,'[1]Precios gasóleo'!$D:$F,3,FALSE)/VLOOKUP(BA$6,'[1]Precios gasóleo'!$D:$F,3,FALSE)-1) ->  | BB20: =IF($C20<=BB$6,"",VLOOKUP($C20,'[1]Precios gasóleo'!$D:$F,3,FALSE)/VLOOKUP(BB$6,'[1]Precios gasóleo'!$D:$F,3,FALSE)-1) ->  | BC20: =IF($C20<=BC$6,"",VLOOKUP($C20,'[1]Precios gasóleo'!$D:$F,3,FALSE)/VLOOKUP(BC$6,'[1]Precios gasóleo'!$D:$F,3,FALSE)-1) ->  | BD20: =IF($C20<=BD$6,"",VLOOKUP($C20,'[1]Precios gasóleo'!$D:$F,3,FALSE)/VLOOKUP(BD$6,'[1]Precios gasóleo'!$D:$F,3,FALSE)-1) ->  | BE20: =IF($C20<=BE$6,"",VLOOKUP($C20,'[1]Precios gasóleo'!$D:$F,3,FALSE)/VLOOKUP(BE$6,'[1]Precios gasóleo'!$D:$F,3,FALSE)-1) ->  | BF20: =IF($C20<=BF$6,"",VLOOKUP($C20,'[1]Precios gasóleo'!$D:$F,3,FALSE)/VLOOKUP(BF$6,'[1]Precios gasóleo'!$D:$F,3,FALSE)-1) ->  | BG20: =IF($C20<=BG$6,"",VLOOKUP($C20,'[1]Precios gasóleo'!$D:$F,3,FALSE)/VLOOKUP(BG$6,'[1]Precios gasóleo'!$D:$F,3,FALSE)-1) ->  | BH20: =IF($C20<=BH$6,"",VLOOKUP($C20,'[1]Precios gasóleo'!$D:$F,3,FALSE)/VLOOKUP(BH$6,'[1]Precios gasóleo'!$D:$F,3,FALSE)-1) ->  | BI20: =IF($C20<=BI$6,"",VLOOKUP($C20,'[1]Precios gasóleo'!$D:$F,3,FALSE)/VLOOKUP(BI$6,'[1]Precios gasóleo'!$D:$F,3,FALSE)-1) ->  | BJ20: =IF($C20<=BJ$6,"",VLOOKUP($C20,'[1]Precios gasóleo'!$D:$F,3,FALSE)/VLOOKUP(BJ$6,'[1]Precios gasóleo'!$D:$F,3,FALSE)-1) ->  | BK20: =IF($C20<=BK$6,"",VLOOKUP($C20,'[1]Precios gasóleo'!$D:$F,3,FALSE)/VLOOKUP(BK$6,'[1]Precios gasóleo'!$D:$F,3,FALSE)-1) ->  | BL20: =IF($C20<=BL$6,"",VLOOKUP($C20,'[1]Precios gasóleo'!$D:$F,3,FALSE)/VLOOKUP(BL$6,'[1]Precios gasóleo'!$D:$F,3,FALSE)-1) ->  | BM20: =IF($C20<=BM$6,"",VLOOKUP($C20,'[1]Precios gasóleo'!$D:$F,3,FALSE)/VLOOKUP(BM$6,'[1]Precios gasóleo'!$D:$F,3,FALSE)-1) ->  | BN20: =IF($C20<=BN$6,"",VLOOKUP($C20,'[1]Precios gasóleo'!$D:$F,3,FALSE)/VLOOKUP(BN$6,'[1]Precios gasóleo'!$D:$F,3,FALSE)-1) ->  | BO20: =IF($C20<=BO$6,"",VLOOKUP($C20,'[1]Precios gasóleo'!$D:$F,3,FALSE)/VLOOKUP(BO$6,'[1]Precios gasóleo'!$D:$F,3,FALSE)-1) ->  | BP20: =IF($C20<=BP$6,"",VLOOKUP($C20,'[1]Precios gasóleo'!$D:$F,3,FALSE)/VLOOKUP(BP$6,'[1]Precios gasóleo'!$D:$F,3,FALSE)-1) ->  | BQ20: =IF($C20<=BQ$6,"",VLOOKUP($C20,'[1]Precios gasóleo'!$D:$F,3,FALSE)/VLOOKUP(BQ$6,'[1]Precios gasóleo'!$D:$F,3,FALSE)-1) ->  | BR20: =IF($C20<=BR$6,"",VLOOKUP($C20,'[1]Precios gasóleo'!$D:$F,3,FALSE)/VLOOKUP(BR$6,'[1]Precios gasóleo'!$D:$F,3,FALSE)-1) ->  | BS20: =IF($C20<=BS$6,"",VLOOKUP($C20,'[1]Precios gasóleo'!$D:$F,3,FALSE)/VLOOKUP(BS$6,'[1]Precios gasóleo'!$D:$F,3,FALSE)-1) ->  | BT20: =IF($C20<=BT$6,"",VLOOKUP($C20,'[1]Precios gasóleo'!$D:$F,3,FALSE)/VLOOKUP(BT$6,'[1]Precios gasóleo'!$D:$F,3,FALSE)-1) ->  | BU20: =IF($C20<=BU$6,"",VLOOKUP($C20,'[1]Precios gasóleo'!$D:$F,3,FALSE)/VLOOKUP(BU$6,'[1]Precios gasóleo'!$D:$F,3,FALSE)-1) ->  | BV20: =IF($C20<=BV$6,"",VLOOKUP($C20,'[1]Precios gasóleo'!$D:$F,3,FALSE)/VLOOKUP(BV$6,'[1]Precios gasóleo'!$D:$F,3,FALSE)-1) ->  | BW20: =IF($C20<=BW$6,"",VLOOKUP($C20,'[1]Precios gasóleo'!$D:$F,3,FALSE)/VLOOKUP(BW$6,'[1]Precios gasóleo'!$D:$F,3,FALSE)-1) ->  | BX20: =IF($C20<=BX$6,"",VLOOKUP($C20,'[1]Precios gasóleo'!$D:$F,3,FALSE)/VLOOKUP(BX$6,'[1]Precios gasóleo'!$D:$F,3,FALSE)-1) ->  | BY20: =IF($C20<=BY$6,"",VLOOKUP($C20,'[1]Precios gasóleo'!$D:$F,3,FALSE)/VLOOKUP(BY$6,'[1]Precios gasóleo'!$D:$F,3,FALSE)-1) ->  | BZ20: =IF($C20<=BZ$6,"",VLOOKUP($C20,'[1]Precios gasóleo'!$D:$F,3,FALSE)/VLOOKUP(BZ$6,'[1]Precios gasóleo'!$D:$F,3,FALSE)-1) ->  | CA20: =IF($C20<=CA$6,"",VLOOKUP($C20,'[1]Precios gasóleo'!$D:$F,3,FALSE)/VLOOKUP(CA$6,'[1]Precios gasóleo'!$D:$F,3,FALSE)-1) ->  | CB20: =IF($C20<=CB$6,"",VLOOKUP($C20,'[1]Precios gasóleo'!$D:$F,3,FALSE)/VLOOKUP(CB$6,'[1]Precios gasóleo'!$D:$F,3,FALSE)-1) ->  | CC20: =IF($C20<=CC$6,"",VLOOKUP($C20,'[1]Precios gasóleo'!$D:$F,3,FALSE)/VLOOKUP(CC$6,'[1]Precios gasóleo'!$D:$F,3,FALSE)-1) ->  | CD20: =IF($C20<=CD$6,"",VLOOKUP($C20,'[1]Precios gasóleo'!$D:$F,3,FALSE)/VLOOKUP(CD$6,'[1]Precios gasóleo'!$D:$F,3,FALSE)-1) ->  | CE20: =IF($C20<=CE$6,"",VLOOKUP($C20,'[1]Precios gasóleo'!$D:$F,3,FALSE)/VLOOKUP(CE$6,'[1]Precios gasóleo'!$D:$F,3,FALSE)-1) ->  | CF20: =IF($C20<=CF$6,"",VLOOKUP($C20,'[1]Precios gasóleo'!$D:$F,3,FALSE)/VLOOKUP(CF$6,'[1]Precios gasóleo'!$D:$F,3,FALSE)-1) ->  | CG20: =IF($C20<=CG$6,"",VLOOKUP($C20,'[1]Precios gasóleo'!$D:$F,3,FALSE)/VLOOKUP(CG$6,'[1]Precios gasóleo'!$D:$F,3,FALSE)-1) ->  | CH20: =IF($C20<=CH$6,"",VLOOKUP($C20,'[1]Precios gasóleo'!$D:$F,3,FALSE)/VLOOKUP(CH$6,'[1]Precios gasóleo'!$D:$F,3,FALSE)-1) ->  | CI20: =IF($C20<=CI$6,"",VLOOKUP($C20,'[1]Precios gasóleo'!$D:$F,3,FALSE)/VLOOKUP(CI$6,'[1]Precios gasóleo'!$D:$F,3,FALSE)-1) ->  | CJ20: =IF($C20<=CJ$6,"",VLOOKUP($C20,'[1]Precios gasóleo'!$D:$F,3,FALSE)/VLOOKUP(CJ$6,'[1]Precios gasóleo'!$D:$F,3,FALSE)-1) ->  | CK20: =IF($C20<=CK$6,"",VLOOKUP($C20,'[1]Precios gasóleo'!$D:$F,3,FALSE)/VLOOKUP(CK$6,'[1]Precios gasóleo'!$D:$F,3,FALSE)-1) ->  | CL20: =IF($C20<=CL$6,"",VLOOKUP($C20,'[1]Precios gasóleo'!$D:$F,3,FALSE)/VLOOKUP(CL$6,'[1]Precios gasóleo'!$D:$F,3,FALSE)-1) ->  | CM20: =IF($C20<=CM$6,"",VLOOKUP($C20,'[1]Precios gasóleo'!$D:$F,3,FALSE)/VLOOKUP(CM$6,'[1]Precios gasóleo'!$D:$F,3,FALSE)-1) ->  | CN20: =IF($C20<=CN$6,"",VLOOKUP($C20,'[1]Precios gasóleo'!$D:$F,3,FALSE)/VLOOKUP(CN$6,'[1]Precios gasóleo'!$D:$F,3,FALSE)-1) ->  | CO20: =IF($C20<=CO$6,"",VLOOKUP($C20,'[1]Precios gasóleo'!$D:$F,3,FALSE)/VLOOKUP(CO$6,'[1]Precios gasóleo'!$D:$F,3,FALSE)-1) ->  | CP20: =IF($C20<=CP$6,"",VLOOKUP($C20,'[1]Precios gasóleo'!$D:$F,3,FALSE)/VLOOKUP(CP$6,'[1]Precios gasóleo'!$D:$F,3,FALSE)-1) ->  | CQ20: =IF($C20<=CQ$6,"",VLOOKUP($C20,'[1]Precios gasóleo'!$D:$F,3,FALSE)/VLOOKUP(CQ$6,'[1]Precios gasóleo'!$D:$F,3,FALSE)-1) ->  | CR20: =IF($C20<=CR$6,"",VLOOKUP($C20,'[1]Precios gasóleo'!$D:$F,3,FALSE)/VLOOKUP(CR$6,'[1]Precios gasóleo'!$D:$F,3,FALSE)-1) ->  | CS20: =IF($C20<=CS$6,"",VLOOKUP($C20,'[1]Precios gasóleo'!$D:$F,3,FALSE)/VLOOKUP(CS$6,'[1]Precios gasóleo'!$D:$F,3,FALSE)-1) ->  | CT20: =IF($C20<=CT$6,"",VLOOKUP($C20,'[1]Precios gasóleo'!$D:$F,3,FALSE)/VLOOKUP(CT$6,'[1]Precios gasóleo'!$D:$F,3,FALSE)-1) ->  | CU20: =IF($C20<=CU$6,"",VLOOKUP($C20,'[1]Precios gasóleo'!$D:$F,3,FALSE)/VLOOKUP(CU$6,'[1]Precios gasóleo'!$D:$F,3,FALSE)-1) ->  | CV20: =IF($C20<=CV$6,"",VLOOKUP($C20,'[1]Precios gasóleo'!$D:$F,3,FALSE)/VLOOKUP(CV$6,'[1]Precios gasóleo'!$D:$F,3,FALSE)-1) ->  | CW20: =IF($C20<=CW$6,"",VLOOKUP($C20,'[1]Precios gasóleo'!$D:$F,3,FALSE)/VLOOKUP(CW$6,'[1]Precios gasóleo'!$D:$F,3,FALSE)-1) ->  | CX20: =IF($C20<=CX$6,"",VLOOKUP($C20,'[1]Precios gasóleo'!$D:$F,3,FALSE)/VLOOKUP(CX$6,'[1]Precios gasóleo'!$D:$F,3,FALSE)-1) ->  | CY20: =IF($C20<=CY$6,"",VLOOKUP($C20,'[1]Precios gasóleo'!$D:$F,3,FALSE)/VLOOKUP(CY$6,'[1]Precios gasóleo'!$D:$F,3,FALSE)-1) ->  | CZ20: =IF($C20<=CZ$6,"",VLOOKUP($C20,'[1]Precios gasóleo'!$D:$F,3,FALSE)/VLOOKUP(CZ$6,'[1]Precios gasóleo'!$D:$F,3,FALSE)-1) ->  | DA20: =IF($C20<=DA$6,"",VLOOKUP($C20,'[1]Precios gasóleo'!$D:$F,3,FALSE)/VLOOKUP(DA$6,'[1]Precios gasóleo'!$D:$F,3,FALSE)-1) ->  | DB20: =IF($C20<=DB$6,"",VLOOKUP($C20,'[1]Precios gasóleo'!$D:$F,3,FALSE)/VLOOKUP(DB$6,'[1]Precios gasóleo'!$D:$F,3,FALSE)-1) ->  | DC20: =IF($C20<=DC$6,"",VLOOKUP($C20,'[1]Precios gasóleo'!$D:$F,3,FALSE)/VLOOKUP(DC$6,'[1]Precios gasóleo'!$D:$F,3,FALSE)-1) ->  | DD20: =IF($C20<=DD$6,"",VLOOKUP($C20,'[1]Precios gasóleo'!$D:$F,3,FALSE)/VLOOKUP(DD$6,'[1]Precios gasóleo'!$D:$F,3,FALSE)-1) ->  | DE20: =IF($C20<=DE$6,"",VLOOKUP($C20,'[1]Precios gasóleo'!$D:$F,3,FALSE)/VLOOKUP(DE$6,'[1]Precios gasóleo'!$D:$F,3,FALSE)-1) ->  | DF20: =IF($C20<=DF$6,"",VLOOKUP($C20,'[1]Precios gasóleo'!$D:$F,3,FALSE)/VLOOKUP(DF$6,'[1]Precios gasóleo'!$D:$F,3,FALSE)-1) ->  | DG20: =IF($C20<=DG$6,"",VLOOKUP($C20,'[1]Precios gasóleo'!$D:$F,3,FALSE)/VLOOKUP(DG$6,'[1]Precios gasóleo'!$D:$F,3,FALSE)-1) ->  | DH20: =IF($C20<=DH$6,"",VLOOKUP($C20,'[1]Precios gasóleo'!$D:$F,3,FALSE)/VLOOKUP(DH$6,'[1]Precios gasóleo'!$D:$F,3,FALSE)-1) ->  | DI20: =IF($C20<=DI$6,"",VLOOKUP($C20,'[1]Precios gasóleo'!$D:$F,3,FALSE)/VLOOKUP(DI$6,'[1]Precios gasóleo'!$D:$F,3,FALSE)-1) ->  | DJ20: =IF($C20<=DJ$6,"",VLOOKUP($C20,'[1]Precios gasóleo'!$D:$F,3,FALSE)/VLOOKUP(DJ$6,'[1]Precios gasóleo'!$D:$F,3,FALSE)-1) ->  | DK20: =IF($C20<=DK$6,"",VLOOKUP($C20,'[1]Precios gasóleo'!$D:$F,3,FALSE)/VLOOKUP(DK$6,'[1]Precios gasóleo'!$D:$F,3,FALSE)-1) ->  | DL20: =IF($C20<=DL$6,"",VLOOKUP($C20,'[1]Precios gasóleo'!$D:$F,3,FALSE)/VLOOKUP(DL$6,'[1]Precios gasóleo'!$D:$F,3,FALSE)-1) ->  | DM20: =IF($C20<=DM$6,"",VLOOKUP($C20,'[1]Precios gasóleo'!$D:$F,3,FALSE)/VLOOKUP(DM$6,'[1]Precios gasóleo'!$D:$F,3,FALSE)-1) ->  | DN20: =IF($C20<=DN$6,"",VLOOKUP($C20,'[1]Precios gasóleo'!$D:$F,3,FALSE)/VLOOKUP(DN$6,'[1]Precios gasóleo'!$D:$F,3,FALSE)-1) ->  | DO20: =IF($C20<=DO$6,"",VLOOKUP($C20,'[1]Precios gasóleo'!$D:$F,3,FALSE)/VLOOKUP(DO$6,'[1]Precios gasóleo'!$D:$F,3,FALSE)-1) ->  | DP20: =IF($C20<=DP$6,"",VLOOKUP($C20,'[1]Precios gasóleo'!$D:$F,3,FALSE)/VLOOKUP(DP$6,'[1]Precios gasóleo'!$D:$F,3,FALSE)-1) ->  | DQ20: =IF($C20<=DQ$6,"",VLOOKUP($C20,'[1]Precios gasóleo'!$D:$F,3,FALSE)/VLOOKUP(DQ$6,'[1]Precios gasóleo'!$D:$F,3,FALSE)-1) ->  | DR20: =IF($C20<=DR$6,"",VLOOKUP($C20,'[1]Precios gasóleo'!$D:$F,3,FALSE)/VLOOKUP(DR$6,'[1]Precios gasóleo'!$D:$F,3,FALSE)-1) ->  | DS20: =IF($C20<=DS$6,"",VLOOKUP($C20,'[1]Precios gasóleo'!$D:$F,3,FALSE)/VLOOKUP(DS$6,'[1]Precios gasóleo'!$D:$F,3,FALSE)-1) ->  | DT20: =IF($C20<=DT$6,"",VLOOKUP($C20,'[1]Precios gasóleo'!$D:$F,3,FALSE)/VLOOKUP(DT$6,'[1]Precios gasóleo'!$D:$F,3,FALSE)-1) ->  | DU20: =IF($C20<=DU$6,"",VLOOKUP($C20,'[1]Precios gasóleo'!$D:$F,3,FALSE)/VLOOKUP(DU$6,'[1]Precios gasóleo'!$D:$F,3,FALSE)-1) ->  | DV20: =IF($C20<=DV$6,"",VLOOKUP($C20,'[1]Precios gasóleo'!$D:$F,3,FALSE)/VLOOKUP(DV$6,'[1]Precios gasóleo'!$D:$F,3,FALSE)-1) ->  | DW20: =IF($C20<=DW$6,"",VLOOKUP($C20,'[1]Precios gasóleo'!$D:$F,3,FALSE)/VLOOKUP(DW$6,'[1]Precios gasóleo'!$D:$F,3,FALSE)-1) ->  | DX20: =IF($C20<=DX$6,"",VLOOKUP($C20,'[1]Precios gasóleo'!$D:$F,3,FALSE)/VLOOKUP(DX$6,'[1]Precios gasóleo'!$D:$F,3,FALSE)-1) ->  | DY20: =IF($C20<=DY$6,"",VLOOKUP($C20,'[1]Precios gasóleo'!$D:$F,3,FALSE)/VLOOKUP(DY$6,'[1]Precios gasóleo'!$D:$F,3,FALSE)-1) ->  | DZ20: =IF($C20<=DZ$6,"",VLOOKUP($C20,'[1]Precios gasóleo'!$D:$F,3,FALSE)/VLOOKUP(DZ$6,'[1]Precios gasóleo'!$D:$F,3,FALSE)-1) ->  | EA20: =IF($C20<=EA$6,"",VLOOKUP($C20,'[1]Precios gasóleo'!$D:$F,3,FALSE)/VLOOKUP(EA$6,'[1]Precios gasóleo'!$D:$F,3,FALSE)-1) ->  | EB20: =IF($C20<=EB$6,"",VLOOKUP($C20,'[1]Precios gasóleo'!$D:$F,3,FALSE)/VLOOKUP(EB$6,'[1]Precios gasóleo'!$D:$F,3,FALSE)-1) ->  | EC20: =IF($C20<=EC$6,"",VLOOKUP($C20,'[1]Precios gasóleo'!$D:$F,3,FALSE)/VLOOKUP(EC$6,'[1]Precios gasóleo'!$D:$F,3,FALSE)-1) ->  | ED20: =IF($C20<=ED$6,"",VLOOKUP($C20,'[1]Precios gasóleo'!$D:$F,3,FALSE)/VLOOKUP(ED$6,'[1]Precios gasóleo'!$D:$F,3,FALSE)-1) ->  | EE20: =IF($C20<=EE$6,"",VLOOKUP($C20,'[1]Precios gasóleo'!$D:$F,3,FALSE)/VLOOKUP(EE$6,'[1]Precios gasóleo'!$D:$F,3,FALSE)-1) ->  | EF20: =IF($C20<=EF$6,"",VLOOKUP($C20,'[1]Precios gasóleo'!$D:$F,3,FALSE)/VLOOKUP(EF$6,'[1]Precios gasóleo'!$D:$F,3,FALSE)-1) ->  | EG20: =IF($C20<=EG$6,"",VLOOKUP($C20,'[1]Precios gasóleo'!$D:$F,3,FALSE)/VLOOKUP(EG$6,'[1]Precios gasóleo'!$D:$F,3,FALSE)-1) ->  | EH20: 2020-04-21
C21: 2020-04-28 | D21: =IF($C21<=D$6,"",VLOOKUP($C21,'[1]Precios gasóleo'!$D:$F,3,FALSE)/VLOOKUP(D$6,'[1]Precios gasóleo'!$D:$F,3,FALSE)-1) -> -0.2173372144 | E21: =IF($C21<=E$6,"",VLOOKUP($C21,'[1]Precios gasóleo'!$D:$F,3,FALSE)/VLOOKUP(E$6,'[1]Precios gasóleo'!$D:$F,3,FALSE)-1) -> -0.2127099745 | F21: =IF($C21<=F$6,"",VLOOKUP($C21,'[1]Precios gasóleo'!$D:$F,3,FALSE)/VLOOKUP(F$6,'[1]Precios gasóleo'!$D:$F,3,FALSE)-1) -> -0.2059516008 | G21: =IF($C21<=G$6,"",VLOOKUP($C21,'[1]Precios gasóleo'!$D:$F,3,FALSE)/VLOOKUP(G$6,'[1]Precios gasóleo'!$D:$F,3,FALSE)-1) -> -0.1964794498 | H21: =IF($C21<=H$6,"",VLOOKUP($C21,'[1]Precios gasóleo'!$D:$F,3,FALSE)/VLOOKUP(H$6,'[1]Precios gasóleo'!$D:$F,3,FALSE)-1) -> -0.1863808197 | I21: =IF($C21<=I$6,"",VLOOKUP($C21,'[1]Precios gasóleo'!$D:$F,3,FALSE)/VLOOKUP(I$6,'[1]Precios gasóleo'!$D:$F,3,FALSE)-1) -> -0.18238847 | J21: =IF($C21<=J$6,"",VLOOKUP($C21,'[1]Precios gasóleo'!$D:$F,3,FALSE)/VLOOKUP(J$6,'[1]Precios gasóleo'!$D:$F,3,FALSE)-1) -> -0.1832050268 | K21: =IF($C21<=K$6,"",VLOOKUP($C21,'[1]Precios gasóleo'!$D:$F,3,FALSE)/VLOOKUP(K$6,'[1]Precios gasóleo'!$D:$F,3,FALSE)-1) -> -0.1753188915 | L21: =IF($C21<=L$6,"",VLOOKUP($C21,'[1]Precios gasóleo'!$D:$F,3,FALSE)/VLOOKUP(L$6,'[1]Precios gasóleo'!$D:$F,3,FALSE)-1) -> -0.161953069 | M21: =IF($C21<=M$6,"",VLOOKUP($C21,'[1]Precios gasóleo'!$D:$F,3,FALSE)/VLOOKUP(M$6,'[1]Precios gasóleo'!$D:$F,3,FALSE)-1) -> -0.1297925164 | N21: =IF($C21<=N$6,"",VLOOKUP($C21,'[1]Precios gasóleo'!$D:$F,3,FALSE)/VLOOKUP(N$6,'[1]Precios gasóleo'!$D:$F,3,FALSE)-1) -> -0.09537372453 | O21: =IF($C21<=O$6,"",VLOOKUP($C21,'[1]Precios gasóleo'!$D:$F,3,FALSE)/VLOOKUP(O$6,'[1]Precios gasóleo'!$D:$F,3,FALSE)-1) -> -0.07186427214 | P21: =IF($C21<=P$6,"",VLOOKUP($C21,'[1]Precios gasóleo'!$D:$F,3,FALSE)/VLOOKUP(P$6,'[1]Precios gasóleo'!$D:$F,3,FALSE)-1) -> -0.0543537959 | Q21: =IF($C21<=Q$6,"",VLOOKUP($C21,'[1]Precios gasóleo'!$D:$F,3,FALSE)/VLOOKUP(Q$6,'[1]Precios gasóleo'!$D:$F,3,FALSE)-1) -> -0.03990373798 | R21: =IF($C21<=R$6,"",VLOOKUP($C21,'[1]Precios gasóleo'!$D:$F,3,FALSE)/VLOOKUP(R$6,'[1]Precios gasóleo'!$D:$F,3,FALSE)-1) -> -0.01838367674 | S21: =IF($C21<=S$6,"",VLOOKUP($C21,'[1]Precios gasóleo'!$D:$F,3,FALSE)/VLOOKUP(S$6,'[1]Precios gasóleo'!$D:$F,3,FALSE)-1) ->  | T21: =IF($C21<=T$6,"",VLOOKUP($C21,'[1]Precios gasóleo'!$D:$F,3,FALSE)/VLOOKUP(T$6,'[1]Precios gasóleo'!$D:$F,3,FALSE)-1) ->  | U21: =IF($C21<=U$6,"",VLOOKUP($C21,'[1]Precios gasóleo'!$D:$F,3,FALSE)/VLOOKUP(U$6,'[1]Precios gasóleo'!$D:$F,3,FALSE)-1) ->  | V21: =IF($C21<=V$6,"",VLOOKUP($C21,'[1]Precios gasóleo'!$D:$F,3,FALSE)/VLOOKUP(V$6,'[1]Precios gasóleo'!$D:$F,3,FALSE)-1) ->  | W21: =IF($C21<=W$6,"",VLOOKUP($C21,'[1]Precios gasóleo'!$D:$F,3,FALSE)/VLOOKUP(W$6,'[1]Precios gasóleo'!$D:$F,3,FALSE)-1) ->  | X21: =IF($C21<=X$6,"",VLOOKUP($C21,'[1]Precios gasóleo'!$D:$F,3,FALSE)/VLOOKUP(X$6,'[1]Precios gasóleo'!$D:$F,3,FALSE)-1) ->  | Y21: =IF($C21<=Y$6,"",VLOOKUP($C21,'[1]Precios gasóleo'!$D:$F,3,FALSE)/VLOOKUP(Y$6,'[1]Precios gasóleo'!$D:$F,3,FALSE)-1) ->  | Z21: =IF($C21<=Z$6,"",VLOOKUP($C21,'[1]Precios gasóleo'!$D:$F,3,FALSE)/VLOOKUP(Z$6,'[1]Precios gasóleo'!$D:$F,3,FALSE)-1) ->  | AA21: =IF($C21<=AA$6,"",VLOOKUP($C21,'[1]Precios gasóleo'!$D:$F,3,FALSE)/VLOOKUP(AA$6,'[1]Precios gasóleo'!$D:$F,3,FALSE)-1) ->  | AB21: =IF($C21<=AB$6,"",VLOOKUP($C21,'[1]Precios gasóleo'!$D:$F,3,FALSE)/VLOOKUP(AB$6,'[1]Precios gasóleo'!$D:$F,3,FALSE)-1) ->  | AC21: =IF($C21<=AC$6,"",VLOOKUP($C21,'[1]Precios gasóleo'!$D:$F,3,FALSE)/VLOOKUP(AC$6,'[1]Precios gasóleo'!$D:$F,3,FALSE)-1) ->  | AD21: =IF($C21<=AD$6,"",VLOOKUP($C21,'[1]Precios gasóleo'!$D:$F,3,FALSE)/VLOOKUP(AD$6,'[1]Precios gasóleo'!$D:$F,3,FALSE)-1) ->  | AE21: =IF($C21<=AE$6,"",VLOOKUP($C21,'[1]Precios gasóleo'!$D:$F,3,FALSE)/VLOOKUP(AE$6,'[1]Precios gasóleo'!$D:$F,3,FALSE)-1) ->  | AF21: =IF($C21<=AF$6,"",VLOOKUP($C21,'[1]Precios gasóleo'!$D:$F,3,FALSE)/VLOOKUP(AF$6,'[1]Precios gasóleo'!$D:$F,3,FALSE)-1) ->  | AG21: =IF($C21<=AG$6,"",VLOOKUP($C21,'[1]Precios gasóleo'!$D:$F,3,FALSE)/VLOOKUP(AG$6,'[1]Precios gasóleo'!$D:$F,3,FALSE)-1) ->  | AH21: =IF($C21<=AH$6,"",VLOOKUP($C21,'[1]Precios gasóleo'!$D:$F,3,FALSE)/VLOOKUP(AH$6,'[1]Precios gasóleo'!$D:$F,3,FALSE)-1) ->  | AI21: =IF($C21<=AI$6,"",VLOOKUP($C21,'[1]Precios gasóleo'!$D:$F,3,FALSE)/VLOOKUP(AI$6,'[1]Precios gasóleo'!$D:$F,3,FALSE)-1) ->  | AJ21: =IF($C21<=AJ$6,"",VLOOKUP($C21,'[1]Precios gasóleo'!$D:$F,3,FALSE)/VLOOKUP(AJ$6,'[1]Precios gasóleo'!$D:$F,3,FALSE)-1) ->  | AK21: =IF($C21<=AK$6,"",VLOOKUP($C21,'[1]Precios gasóleo'!$D:$F,3,FALSE)/VLOOKUP(AK$6,'[1]Precios gasóleo'!$D:$F,3,FALSE)-1) ->  | AL21: =IF($C21<=AL$6,"",VLOOKUP($C21,'[1]Precios gasóleo'!$D:$F,3,FALSE)/VLOOKUP(AL$6,'[1]Precios gasóleo'!$D:$F,3,FALSE)-1) ->  | AM21: =IF($C21<=AM$6,"",VLOOKUP($C21,'[1]Precios gasóleo'!$D:$F,3,FALSE)/VLOOKUP(AM$6,'[1]Precios gasóleo'!$D:$F,3,FALSE)-1) ->  | AN21: =IF($C21<=AN$6,"",VLOOKUP($C21,'[1]Precios gasóleo'!$D:$F,3,FALSE)/VLOOKUP(AN$6,'[1]Precios gasóleo'!$D:$F,3,FALSE)-1) ->  | AO21: =IF($C21<=AO$6,"",VLOOKUP($C21,'[1]Precios gasóleo'!$D:$F,3,FALSE)/VLOOKUP(AO$6,'[1]Precios gasóleo'!$D:$F,3,FALSE)-1) ->  | AP21: =IF($C21<=AP$6,"",VLOOKUP($C21,'[1]Precios gasóleo'!$D:$F,3,FALSE)/VLOOKUP(AP$6,'[1]Precios gasóleo'!$D:$F,3,FALSE)-1) ->  | AQ21: =IF($C21<=AQ$6,"",VLOOKUP($C21,'[1]Precios gasóleo'!$D:$F,3,FALSE)/VLOOKUP(AQ$6,'[1]Precios gasóleo'!$D:$F,3,FALSE)-1) ->  | AR21: =IF($C21<=AR$6,"",VLOOKUP($C21,'[1]Precios gasóleo'!$D:$F,3,FALSE)/VLOOKUP(AR$6,'[1]Precios gasóleo'!$D:$F,3,FALSE)-1) ->  | AS21: =IF($C21<=AS$6,"",VLOOKUP($C21,'[1]Precios gasóleo'!$D:$F,3,FALSE)/VLOOKUP(AS$6,'[1]Precios gasóleo'!$D:$F,3,FALSE)-1) ->  | AT21: =IF($C21<=AT$6,"",VLOOKUP($C21,'[1]Precios gasóleo'!$D:$F,3,FALSE)/VLOOKUP(AT$6,'[1]Precios gasóleo'!$D:$F,3,FALSE)-1) ->  | AU21: =IF($C21<=AU$6,"",VLOOKUP($C21,'[1]Precios gasóleo'!$D:$F,3,FALSE)/VLOOKUP(AU$6,'[1]Precios gasóleo'!$D:$F,3,FALSE)-1) ->  | AV21: =IF($C21<=AV$6,"",VLOOKUP($C21,'[1]Precios gasóleo'!$D:$F,3,FALSE)/VLOOKUP(AV$6,'[1]Precios gasóleo'!$D:$F,3,FALSE)-1) ->  | AW21: =IF($C21<=AW$6,"",VLOOKUP($C21,'[1]Precios gasóleo'!$D:$F,3,FALSE)/VLOOKUP(AW$6,'[1]Precios gasóleo'!$D:$F,3,FALSE)-1) ->  | AX21: =IF($C21<=AX$6,"",VLOOKUP($C21,'[1]Precios gasóleo'!$D:$F,3,FALSE)/VLOOKUP(AX$6,'[1]Precios gasóleo'!$D:$F,3,FALSE)-1) ->  | AY21: =IF($C21<=AY$6,"",VLOOKUP($C21,'[1]Precios gasóleo'!$D:$F,3,FALSE)/VLOOKUP(AY$6,'[1]Precios gasóleo'!$D:$F,3,FALSE)-1) ->  | AZ21: =IF($C21<=AZ$6,"",VLOOKUP($C21,'[1]Precios gasóleo'!$D:$F,3,FALSE)/VLOOKUP(AZ$6,'[1]Precios gasóleo'!$D:$F,3,FALSE)-1) ->  | BA21: =IF($C21<=BA$6,"",VLOOKUP($C21,'[1]Precios gasóleo'!$D:$F,3,FALSE)/VLOOKUP(BA$6,'[1]Precios gasóleo'!$D:$F,3,FALSE)-1) ->  | BB21: =IF($C21<=BB$6,"",VLOOKUP($C21,'[1]Precios gasóleo'!$D:$F,3,FALSE)/VLOOKUP(BB$6,'[1]Precios gasóleo'!$D:$F,3,FALSE)-1) ->  | BC21: =IF($C21<=BC$6,"",VLOOKUP($C21,'[1]Precios gasóleo'!$D:$F,3,FALSE)/VLOOKUP(BC$6,'[1]Precios gasóleo'!$D:$F,3,FALSE)-1) ->  | BD21: =IF($C21<=BD$6,"",VLOOKUP($C21,'[1]Precios gasóleo'!$D:$F,3,FALSE)/VLOOKUP(BD$6,'[1]Precios gasóleo'!$D:$F,3,FALSE)-1) ->  | BE21: =IF($C21<=BE$6,"",VLOOKUP($C21,'[1]Precios gasóleo'!$D:$F,3,FALSE)/VLOOKUP(BE$6,'[1]Precios gasóleo'!$D:$F,3,FALSE)-1) ->  | BF21: =IF($C21<=BF$6,"",VLOOKUP($C21,'[1]Precios gasóleo'!$D:$F,3,FALSE)/VLOOKUP(BF$6,'[1]Precios gasóleo'!$D:$F,3,FALSE)-1) ->  | BG21: =IF($C21<=BG$6,"",VLOOKUP($C21,'[1]Precios gasóleo'!$D:$F,3,FALSE)/VLOOKUP(BG$6,'[1]Precios gasóleo'!$D:$F,3,FALSE)-1) ->  | BH21: =IF($C21<=BH$6,"",VLOOKUP($C21,'[1]Precios gasóleo'!$D:$F,3,FALSE)/VLOOKUP(BH$6,'[1]Precios gasóleo'!$D:$F,3,FALSE)-1) ->  | BI21: =IF($C21<=BI$6,"",VLOOKUP($C21,'[1]Precios gasóleo'!$D:$F,3,FALSE)/VLOOKUP(BI$6,'[1]Precios gasóleo'!$D:$F,3,FALSE)-1) ->  | BJ21: =IF($C21<=BJ$6,"",VLOOKUP($C21,'[1]Precios gasóleo'!$D:$F,3,FALSE)/VLOOKUP(BJ$6,'[1]Precios gasóleo'!$D:$F,3,FALSE)-1) ->  | BK21: =IF($C21<=BK$6,"",VLOOKUP($C21,'[1]Precios gasóleo'!$D:$F,3,FALSE)/VLOOKUP(BK$6,'[1]Precios gasóleo'!$D:$F,3,FALSE)-1) ->  | BL21: =IF($C21<=BL$6,"",VLOOKUP($C21,'[1]Precios gasóleo'!$D:$F,3,FALSE)/VLOOKUP(BL$6,'[1]Precios gasóleo'!$D:$F,3,FALSE)-1) ->  | BM21: =IF($C21<=BM$6,"",VLOOKUP($C21,'[1]Precios gasóleo'!$D:$F,3,FALSE)/VLOOKUP(BM$6,'[1]Precios gasóleo'!$D:$F,3,FALSE)-1) ->  | BN21: =IF($C21<=BN$6,"",VLOOKUP($C21,'[1]Precios gasóleo'!$D:$F,3,FALSE)/VLOOKUP(BN$6,'[1]Precios gasóleo'!$D:$F,3,FALSE)-1) ->  | BO21: =IF($C21<=BO$6,"",VLOOKUP($C21,'[1]Precios gasóleo'!$D:$F,3,FALSE)/VLOOKUP(BO$6,'[1]Precios gasóleo'!$D:$F,3,FALSE)-1) ->  | BP21: =IF($C21<=BP$6,"",VLOOKUP($C21,'[1]Precios gasóleo'!$D:$F,3,FALSE)/VLOOKUP(BP$6,'[1]Precios gasóleo'!$D:$F,3,FALSE)-1) ->  | BQ21: =IF($C21<=BQ$6,"",VLOOKUP($C21,'[1]Precios gasóleo'!$D:$F,3,FALSE)/VLOOKUP(BQ$6,'[1]Precios gasóleo'!$D:$F,3,FALSE)-1) ->  | BR21: =IF($C21<=BR$6,"",VLOOKUP($C21,'[1]Precios gasóleo'!$D:$F,3,FALSE)/VLOOKUP(BR$6,'[1]Precios gasóleo'!$D:$F,3,FALSE)-1) ->  | BS21: =IF($C21<=BS$6,"",VLOOKUP($C21,'[1]Precios gasóleo'!$D:$F,3,FALSE)/VLOOKUP(BS$6,'[1]Precios gasóleo'!$D:$F,3,FALSE)-1) ->  | BT21: =IF($C21<=BT$6,"",VLOOKUP($C21,'[1]Precios gasóleo'!$D:$F,3,FALSE)/VLOOKUP(BT$6,'[1]Precios gasóleo'!$D:$F,3,FALSE)-1) ->  | BU21: =IF($C21<=BU$6,"",VLOOKUP($C21,'[1]Precios gasóleo'!$D:$F,3,FALSE)/VLOOKUP(BU$6,'[1]Precios gasóleo'!$D:$F,3,FALSE)-1) ->  | BV21: =IF($C21<=BV$6,"",VLOOKUP($C21,'[1]Precios gasóleo'!$D:$F,3,FALSE)/VLOOKUP(BV$6,'[1]Precios gasóleo'!$D:$F,3,FALSE)-1) ->  | BW21: =IF($C21<=BW$6,"",VLOOKUP($C21,'[1]Precios gasóleo'!$D:$F,3,FALSE)/VLOOKUP(BW$6,'[1]Precios gasóleo'!$D:$F,3,FALSE)-1) ->  | BX21: =IF($C21<=BX$6,"",VLOOKUP($C21,'[1]Precios gasóleo'!$D:$F,3,FALSE)/VLOOKUP(BX$6,'[1]Precios gasóleo'!$D:$F,3,FALSE)-1) ->  | BY21: =IF($C21<=BY$6,"",VLOOKUP($C21,'[1]Precios gasóleo'!$D:$F,3,FALSE)/VLOOKUP(BY$6,'[1]Precios gasóleo'!$D:$F,3,FALSE)-1) ->  | BZ21: =IF($C21<=BZ$6,"",VLOOKUP($C21,'[1]Precios gasóleo'!$D:$F,3,FALSE)/VLOOKUP(BZ$6,'[1]Precios gasóleo'!$D:$F,3,FALSE)-1) ->  | CA21: =IF($C21<=CA$6,"",VLOOKUP($C21,'[1]Precios gasóleo'!$D:$F,3,FALSE)/VLOOKUP(CA$6,'[1]Precios gasóleo'!$D:$F,3,FALSE)-1) ->  | CB21: =IF($C21<=CB$6,"",VLOOKUP($C21,'[1]Precios gasóleo'!$D:$F,3,FALSE)/VLOOKUP(CB$6,'[1]Precios gasóleo'!$D:$F,3,FALSE)-1) ->  | CC21: =IF($C21<=CC$6,"",VLOOKUP($C21,'[1]Precios gasóleo'!$D:$F,3,FALSE)/VLOOKUP(CC$6,'[1]Precios gasóleo'!$D:$F,3,FALSE)-1) ->  | CD21: =IF($C21<=CD$6,"",VLOOKUP($C21,'[1]Precios gasóleo'!$D:$F,3,FALSE)/VLOOKUP(CD$6,'[1]Precios gasóleo'!$D:$F,3,FALSE)-1) ->  | CE21: =IF($C21<=CE$6,"",VLOOKUP($C21,'[1]Precios gasóleo'!$D:$F,3,FALSE)/VLOOKUP(CE$6,'[1]Precios gasóleo'!$D:$F,3,FALSE)-1) ->  | CF21: =IF($C21<=CF$6,"",VLOOKUP($C21,'[1]Precios gasóleo'!$D:$F,3,FALSE)/VLOOKUP(CF$6,'[1]Precios gasóleo'!$D:$F,3,FALSE)-1) ->  | CG21: =IF($C21<=CG$6,"",VLOOKUP($C21,'[1]Precios gasóleo'!$D:$F,3,FALSE)/VLOOKUP(CG$6,'[1]Precios gasóleo'!$D:$F,3,FALSE)-1) ->  | CH21: =IF($C21<=CH$6,"",VLOOKUP($C21,'[1]Precios gasóleo'!$D:$F,3,FALSE)/VLOOKUP(CH$6,'[1]Precios gasóleo'!$D:$F,3,FALSE)-1) ->  | CI21: =IF($C21<=CI$6,"",VLOOKUP($C21,'[1]Precios gasóleo'!$D:$F,3,FALSE)/VLOOKUP(CI$6,'[1]Precios gasóleo'!$D:$F,3,FALSE)-1) ->  | CJ21: =IF($C21<=CJ$6,"",VLOOKUP($C21,'[1]Precios gasóleo'!$D:$F,3,FALSE)/VLOOKUP(CJ$6,'[1]Precios gasóleo'!$D:$F,3,FALSE)-1) ->  | CK21: =IF($C21<=CK$6,"",VLOOKUP($C21,'[1]Precios gasóleo'!$D:$F,3,FALSE)/VLOOKUP(CK$6,'[1]Precios gasóleo'!$D:$F,3,FALSE)-1) ->  | CL21: =IF($C21<=CL$6,"",VLOOKUP($C21,'[1]Precios gasóleo'!$D:$F,3,FALSE)/VLOOKUP(CL$6,'[1]Precios gasóleo'!$D:$F,3,FALSE)-1) ->  | CM21: =IF($C21<=CM$6,"",VLOOKUP($C21,'[1]Precios gasóleo'!$D:$F,3,FALSE)/VLOOKUP(CM$6,'[1]Precios gasóleo'!$D:$F,3,FALSE)-1) ->  | CN21: =IF($C21<=CN$6,"",VLOOKUP($C21,'[1]Precios gasóleo'!$D:$F,3,FALSE)/VLOOKUP(CN$6,'[1]Precios gasóleo'!$D:$F,3,FALSE)-1) ->  | CO21: =IF($C21<=CO$6,"",VLOOKUP($C21,'[1]Precios gasóleo'!$D:$F,3,FALSE)/VLOOKUP(CO$6,'[1]Precios gasóleo'!$D:$F,3,FALSE)-1) ->  | CP21: =IF($C21<=CP$6,"",VLOOKUP($C21,'[1]Precios gasóleo'!$D:$F,3,FALSE)/VLOOKUP(CP$6,'[1]Precios gasóleo'!$D:$F,3,FALSE)-1) ->  | CQ21: =IF($C21<=CQ$6,"",VLOOKUP($C21,'[1]Precios gasóleo'!$D:$F,3,FALSE)/VLOOKUP(CQ$6,'[1]Precios gasóleo'!$D:$F,3,FALSE)-1) ->  | CR21: =IF($C21<=CR$6,"",VLOOKUP($C21,'[1]Precios gasóleo'!$D:$F,3,FALSE)/VLOOKUP(CR$6,'[1]Precios gasóleo'!$D:$F,3,FALSE)-1) ->  | CS21: =IF($C21<=CS$6,"",VLOOKUP($C21,'[1]Precios gasóleo'!$D:$F,3,FALSE)/VLOOKUP(CS$6,'[1]Precios gasóleo'!$D:$F,3,FALSE)-1) ->  | CT21: =IF($C21<=CT$6,"",VLOOKUP($C21,'[1]Precios gasóleo'!$D:$F,3,FALSE)/VLOOKUP(CT$6,'[1]Precios gasóleo'!$D:$F,3,FALSE)-1) ->  | CU21: =IF($C21<=CU$6,"",VLOOKUP($C21,'[1]Precios gasóleo'!$D:$F,3,FALSE)/VLOOKUP(CU$6,'[1]Precios gasóleo'!$D:$F,3,FALSE)-1) ->  | CV21: =IF($C21<=CV$6,"",VLOOKUP($C21,'[1]Precios gasóleo'!$D:$F,3,FALSE)/VLOOKUP(CV$6,'[1]Precios gasóleo'!$D:$F,3,FALSE)-1) ->  | CW21: =IF($C21<=CW$6,"",VLOOKUP($C21,'[1]Precios gasóleo'!$D:$F,3,FALSE)/VLOOKUP(CW$6,'[1]Precios gasóleo'!$D:$F,3,FALSE)-1) ->  | CX21: =IF($C21<=CX$6,"",VLOOKUP($C21,'[1]Precios gasóleo'!$D:$F,3,FALSE)/VLOOKUP(CX$6,'[1]Precios gasóleo'!$D:$F,3,FALSE)-1) ->  | CY21: =IF($C21<=CY$6,"",VLOOKUP($C21,'[1]Precios gasóleo'!$D:$F,3,FALSE)/VLOOKUP(CY$6,'[1]Precios gasóleo'!$D:$F,3,FALSE)-1) ->  | CZ21: =IF($C21<=CZ$6,"",VLOOKUP($C21,'[1]Precios gasóleo'!$D:$F,3,FALSE)/VLOOKUP(CZ$6,'[1]Precios gasóleo'!$D:$F,3,FALSE)-1) ->  | DA21: =IF($C21<=DA$6,"",VLOOKUP($C21,'[1]Precios gasóleo'!$D:$F,3,FALSE)/VLOOKUP(DA$6,'[1]Precios gasóleo'!$D:$F,3,FALSE)-1) ->  | DB21: =IF($C21<=DB$6,"",VLOOKUP($C21,'[1]Precios gasóleo'!$D:$F,3,FALSE)/VLOOKUP(DB$6,'[1]Precios gasóleo'!$D:$F,3,FALSE)-1) ->  | DC21: =IF($C21<=DC$6,"",VLOOKUP($C21,'[1]Precios gasóleo'!$D:$F,3,FALSE)/VLOOKUP(DC$6,'[1]Precios gasóleo'!$D:$F,3,FALSE)-1) ->  | DD21: =IF($C21<=DD$6,"",VLOOKUP($C21,'[1]Precios gasóleo'!$D:$F,3,FALSE)/VLOOKUP(DD$6,'[1]Precios gasóleo'!$D:$F,3,FALSE)-1) ->  | DE21: =IF($C21<=DE$6,"",VLOOKUP($C21,'[1]Precios gasóleo'!$D:$F,3,FALSE)/VLOOKUP(DE$6,'[1]Precios gasóleo'!$D:$F,3,FALSE)-1) ->  | DF21: =IF($C21<=DF$6,"",VLOOKUP($C21,'[1]Precios gasóleo'!$D:$F,3,FALSE)/VLOOKUP(DF$6,'[1]Precios gasóleo'!$D:$F,3,FALSE)-1) ->  | DG21: =IF($C21<=DG$6,"",VLOOKUP($C21,'[1]Precios gasóleo'!$D:$F,3,FALSE)/VLOOKUP(DG$6,'[1]Precios gasóleo'!$D:$F,3,FALSE)-1) ->  | DH21: =IF($C21<=DH$6,"",VLOOKUP($C21,'[1]Precios gasóleo'!$D:$F,3,FALSE)/VLOOKUP(DH$6,'[1]Precios gasóleo'!$D:$F,3,FALSE)-1) ->  | DI21: =IF($C21<=DI$6,"",VLOOKUP($C21,'[1]Precios gasóleo'!$D:$F,3,FALSE)/VLOOKUP(DI$6,'[1]Precios gasóleo'!$D:$F,3,FALSE)-1) ->  | DJ21: =IF($C21<=DJ$6,"",VLOOKUP($C21,'[1]Precios gasóleo'!$D:$F,3,FALSE)/VLOOKUP(DJ$6,'[1]Precios gasóleo'!$D:$F,3,FALSE)-1) ->  | DK21: =IF($C21<=DK$6,"",VLOOKUP($C21,'[1]Precios gasóleo'!$D:$F,3,FALSE)/VLOOKUP(DK$6,'[1]Precios gasóleo'!$D:$F,3,FALSE)-1) ->  | DL21: =IF($C21<=DL$6,"",VLOOKUP($C21,'[1]Precios gasóleo'!$D:$F,3,FALSE)/VLOOKUP(DL$6,'[1]Precios gasóleo'!$D:$F,3,FALSE)-1) ->  | DM21: =IF($C21<=DM$6,"",VLOOKUP($C21,'[1]Precios gasóleo'!$D:$F,3,FALSE)/VLOOKUP(DM$6,'[1]Precios gasóleo'!$D:$F,3,FALSE)-1) ->  | DN21: =IF($C21<=DN$6,"",VLOOKUP($C21,'[1]Precios gasóleo'!$D:$F,3,FALSE)/VLOOKUP(DN$6,'[1]Precios gasóleo'!$D:$F,3,FALSE)-1) ->  | DO21: =IF($C21<=DO$6,"",VLOOKUP($C21,'[1]Precios gasóleo'!$D:$F,3,FALSE)/VLOOKUP(DO$6,'[1]Precios gasóleo'!$D:$F,3,FALSE)-1) ->  | DP21: =IF($C21<=DP$6,"",VLOOKUP($C21,'[1]Precios gasóleo'!$D:$F,3,FALSE)/VLOOKUP(DP$6,'[1]Precios gasóleo'!$D:$F,3,FALSE)-1) ->  | DQ21: =IF($C21<=DQ$6,"",VLOOKUP($C21,'[1]Precios gasóleo'!$D:$F,3,FALSE)/VLOOKUP(DQ$6,'[1]Precios gasóleo'!$D:$F,3,FALSE)-1) ->  | DR21: =IF($C21<=DR$6,"",VLOOKUP($C21,'[1]Precios gasóleo'!$D:$F,3,FALSE)/VLOOKUP(DR$6,'[1]Precios gasóleo'!$D:$F,3,FALSE)-1) ->  | DS21: =IF($C21<=DS$6,"",VLOOKUP($C21,'[1]Precios gasóleo'!$D:$F,3,FALSE)/VLOOKUP(DS$6,'[1]Precios gasóleo'!$D:$F,3,FALSE)-1) ->  | DT21: =IF($C21<=DT$6,"",VLOOKUP($C21,'[1]Precios gasóleo'!$D:$F,3,FALSE)/VLOOKUP(DT$6,'[1]Precios gasóleo'!$D:$F,3,FALSE)-1) ->  | DU21: =IF($C21<=DU$6,"",VLOOKUP($C21,'[1]Precios gasóleo'!$D:$F,3,FALSE)/VLOOKUP(DU$6,'[1]Precios gasóleo'!$D:$F,3,FALSE)-1) ->  | DV21: =IF($C21<=DV$6,"",VLOOKUP($C21,'[1]Precios gasóleo'!$D:$F,3,FALSE)/VLOOKUP(DV$6,'[1]Precios gasóleo'!$D:$F,3,FALSE)-1) ->  | DW21: =IF($C21<=DW$6,"",VLOOKUP($C21,'[1]Precios gasóleo'!$D:$F,3,FALSE)/VLOOKUP(DW$6,'[1]Precios gasóleo'!$D:$F,3,FALSE)-1) ->  | DX21: =IF($C21<=DX$6,"",VLOOKUP($C21,'[1]Precios gasóleo'!$D:$F,3,FALSE)/VLOOKUP(DX$6,'[1]Precios gasóleo'!$D:$F,3,FALSE)-1) ->  | DY21: =IF($C21<=DY$6,"",VLOOKUP($C21,'[1]Precios gasóleo'!$D:$F,3,FALSE)/VLOOKUP(DY$6,'[1]Precios gasóleo'!$D:$F,3,FALSE)-1) ->  | DZ21: =IF($C21<=DZ$6,"",VLOOKUP($C21,'[1]Precios gasóleo'!$D:$F,3,FALSE)/VLOOKUP(DZ$6,'[1]Precios gasóleo'!$D:$F,3,FALSE)-1) ->  | EA21: =IF($C21<=EA$6,"",VLOOKUP($C21,'[1]Precios gasóleo'!$D:$F,3,FALSE)/VLOOKUP(EA$6,'[1]Precios gasóleo'!$D:$F,3,FALSE)-1) ->  | EB21: =IF($C21<=EB$6,"",VLOOKUP($C21,'[1]Precios gasóleo'!$D:$F,3,FALSE)/VLOOKUP(EB$6,'[1]Precios gasóleo'!$D:$F,3,FALSE)-1) ->  | EC21: =IF($C21<=EC$6,"",VLOOKUP($C21,'[1]Precios gasóleo'!$D:$F,3,FALSE)/VLOOKUP(EC$6,'[1]Precios gasóleo'!$D:$F,3,FALSE)-1) ->  | ED21: =IF($C21<=ED$6,"",VLOOKUP($C21,'[1]Precios gasóleo'!$D:$F,3,FALSE)/VLOOKUP(ED$6,'[1]Precios gasóleo'!$D:$F,3,FALSE)-1) ->  | EE21: =IF($C21<=EE$6,"",VLOOKUP($C21,'[1]Precios gasóleo'!$D:$F,3,FALSE)/VLOOKUP(EE$6,'[1]Precios gasóleo'!$D:$F,3,FALSE)-1) ->  | EF21: =IF($C21<=EF$6,"",VLOOKUP($C21,'[1]Precios gasóleo'!$D:$F,3,FALSE)/VLOOKUP(EF$6,'[1]Precios gasóleo'!$D:$F,3,FALSE)-1) ->  | EG21: =IF($C21<=EG$6,"",VLOOKUP($C21,'[1]Precios gasóleo'!$D:$F,3,FALSE)/VLOOKUP(EG$6,'[1]Precios gasóleo'!$D:$F,3,FALSE)-1) ->  | EH21: 2020-04-28
C22: 2020-05-05 | D22: =IF($C22<=D$6,"",VLOOKUP($C22,'[1]Precios gasóleo'!$D:$F,3,FALSE)/VLOOKUP(D$6,'[1]Precios gasóleo'!$D:$F,3,FALSE)-1) -> -0.2179114 | E22: =IF($C22<=E$6,"",VLOOKUP($C22,'[1]Precios gasóleo'!$D:$F,3,FALSE)/VLOOKUP(E$6,'[1]Precios gasóleo'!$D:$F,3,FALSE)-1) -> -0.2132875547 | F22: =IF($C22<=F$6,"",VLOOKUP($C22,'[1]Precios gasóleo'!$D:$F,3,FALSE)/VLOOKUP(F$6,'[1]Precios gasóleo'!$D:$F,3,FALSE)-1) -> -0.2065341392 | G22: =IF($C22<=G$6,"",VLOOKUP($C22,'[1]Precios gasóleo'!$D:$F,3,FALSE)/VLOOKUP(G$6,'[1]Precios gasóleo'!$D:$F,3,FALSE)-1) -> -0.1970689373 | H22: =IF($C22<=H$6,"",VLOOKUP($C22,'[1]Precios gasóleo'!$D:$F,3,FALSE)/VLOOKUP(H$6,'[1]Precios gasóleo'!$D:$F,3,FALSE)-1) -> -0.1869777159 | I22: =IF($C22<=I$6,"",VLOOKUP($C22,'[1]Precios gasóleo'!$D:$F,3,FALSE)/VLOOKUP(I$6,'[1]Precios gasóleo'!$D:$F,3,FALSE)-1) -> -0.1829882951 | J22: =IF($C22<=J$6,"",VLOOKUP($C22,'[1]Precios gasóleo'!$D:$F,3,FALSE)/VLOOKUP(J$6,'[1]Precios gasóleo'!$D:$F,3,FALSE)-1) -> -0.1838042528 | K22: =IF($C22<=K$6,"",VLOOKUP($C22,'[1]Precios gasóleo'!$D:$F,3,FALSE)/VLOOKUP(K$6,'[1]Precios gasóleo'!$D:$F,3,FALSE)-1) -> -0.175923903 | L22: =IF($C22<=L$6,"",VLOOKUP($C22,'[1]Precios gasóleo'!$D:$F,3,FALSE)/VLOOKUP(L$6,'[1]Precios gasóleo'!$D:$F,3,FALSE)-1) -> -0.1625678861 | M22: =IF($C22<=M$6,"",VLOOKUP($C22,'[1]Precios gasóleo'!$D:$F,3,FALSE)/VLOOKUP(M$6,'[1]Precios gasóleo'!$D:$F,3,FALSE)-1) -> -0.1304309275 | N22: =IF($C22<=N$6,"",VLOOKUP($C22,'[1]Precios gasóleo'!$D:$F,3,FALSE)/VLOOKUP(N$6,'[1]Precios gasóleo'!$D:$F,3,FALSE)-1) -> -0.09603738628 | O22: =IF($C22<=O$6,"",VLOOKUP($C22,'[1]Precios gasóleo'!$D:$F,3,FALSE)/VLOOKUP(O$6,'[1]Precios gasóleo'!$D:$F,3,FALSE)-1) -> -0.07254518115 | P22: =IF($C22<=P$6,"",VLOOKUP($C22,'[1]Precios gasóleo'!$D:$F,3,FALSE)/VLOOKUP(P$6,'[1]Precios gasóleo'!$D:$F,3,FALSE)-1) -> -0.05504755114 | Q22: =IF($C22<=Q$6,"",VLOOKUP($C22,'[1]Precios gasóleo'!$D:$F,3,FALSE)/VLOOKUP(Q$6,'[1]Precios gasóleo'!$D:$F,3,FALSE)-1) -> -0.04060809423 | R22: =IF($C22<=R$6,"",VLOOKUP($C22,'[1]Precios gasóleo'!$D:$F,3,FALSE)/VLOOKUP(R$6,'[1]Precios gasóleo'!$D:$F,3,FALSE)-1) -> -0.01910382076 | S22: =IF($C22<=S$6,"",VLOOKUP($C22,'[1]Precios gasóleo'!$D:$F,3,FALSE)/VLOOKUP(S$6,'[1]Precios gasóleo'!$D:$F,3,FALSE)-1) -> -0.0007336308614 | T22: =IF($C22<=T$6,"",VLOOKUP($C22,'[1]Precios gasóleo'!$D:$F,3,FALSE)/VLOOKUP(T$6,'[1]Precios gasóleo'!$D:$F,3,FALSE)-1) ->  | U22: =IF($C22<=U$6,"",VLOOKUP($C22,'[1]Precios gasóleo'!$D:$F,3,FALSE)/VLOOKUP(U$6,'[1]Precios gasóleo'!$D:$F,3,FALSE)-1) ->  | V22: =IF($C22<=V$6,"",VLOOKUP($C22,'[1]Precios gasóleo'!$D:$F,3,FALSE)/VLOOKUP(V$6,'[1]Precios gasóleo'!$D:$F,3,FALSE)-1) ->  | W22: =IF($C22<=W$6,"",VLOOKUP($C22,'[1]Precios gasóleo'!$D:$F,3,FALSE)/VLOOKUP(W$6,'[1]Precios gasóleo'!$D:$F,3,FALSE)-1) ->  | X22: =IF($C22<=X$6,"",VLOOKUP($C22,'[1]Precios gasóleo'!$D:$F,3,FALSE)/VLOOKUP(X$6,'[1]Precios gasóleo'!$D:$F,3,FALSE)-1) ->  | Y22: =IF($C22<=Y$6,"",VLOOKUP($C22,'[1]Precios gasóleo'!$D:$F,3,FALSE)/VLOOKUP(Y$6,'[1]Precios gasóleo'!$D:$F,3,FALSE)-1) ->  | Z22: =IF($C22<=Z$6,"",VLOOKUP($C22,'[1]Precios gasóleo'!$D:$F,3,FALSE)/VLOOKUP(Z$6,'[1]Precios gasóleo'!$D:$F,3,FALSE)-1) ->  | AA22: =IF($C22<=AA$6,"",VLOOKUP($C22,'[1]Precios gasóleo'!$D:$F,3,FALSE)/VLOOKUP(AA$6,'[1]Precios gasóleo'!$D:$F,3,FALSE)-1) ->  | AB22: =IF($C22<=AB$6,"",VLOOKUP($C22,'[1]Precios gasóleo'!$D:$F,3,FALSE)/VLOOKUP(AB$6,'[1]Precios gasóleo'!$D:$F,3,FALSE)-1) ->  | AC22: =IF($C22<=AC$6,"",VLOOKUP($C22,'[1]Precios gasóleo'!$D:$F,3,FALSE)/VLOOKUP(AC$6,'[1]Precios gasóleo'!$D:$F,3,FALSE)-1) ->  | AD22: =IF($C22<=AD$6,"",VLOOKUP($C22,'[1]Precios gasóleo'!$D:$F,3,FALSE)/VLOOKUP(AD$6,'[1]Precios gasóleo'!$D:$F,3,FALSE)-1) ->  | AE22: =IF($C22<=AE$6,"",VLOOKUP($C22,'[1]Precios gasóleo'!$D:$F,3,FALSE)/VLOOKUP(AE$6,'[1]Precios gasóleo'!$D:$F,3,FALSE)-1) ->  | AF22: =IF($C22<=AF$6,"",VLOOKUP($C22,'[1]Precios gasóleo'!$D:$F,3,FALSE)/VLOOKUP(AF$6,'[1]Precios gasóleo'!$D:$F,3,FALSE)-1) ->  | AG22: =IF($C22<=AG$6,"",VLOOKUP($C22,'[1]Precios gasóleo'!$D:$F,3,FALSE)/VLOOKUP(AG$6,'[1]Precios gasóleo'!$D:$F,3,FALSE)-1) ->  | AH22: =IF($C22<=AH$6,"",VLOOKUP($C22,'[1]Precios gasóleo'!$D:$F,3,FALSE)/VLOOKUP(AH$6,'[1]Precios gasóleo'!$D:$F,3,FALSE)-1) ->  | AI22: =IF($C22<=AI$6,"",VLOOKUP($C22,'[1]Precios gasóleo'!$D:$F,3,FALSE)/VLOOKUP(AI$6,'[1]Precios gasóleo'!$D:$F,3,FALSE)-1) ->  | AJ22: =IF($C22<=AJ$6,"",VLOOKUP($C22,'[1]Precios gasóleo'!$D:$F,3,FALSE)/VLOOKUP(AJ$6,'[1]Precios gasóleo'!$D:$F,3,FALSE)-1) ->  | AK22: =IF($C22<=AK$6,"",VLOOKUP($C22,'[1]Precios gasóleo'!$D:$F,3,FALSE)/VLOOKUP(AK$6,'[1]Precios gasóleo'!$D:$F,3,FALSE)-1) ->  | AL22: =IF($C22<=AL$6,"",VLOOKUP($C22,'[1]Precios gasóleo'!$D:$F,3,FALSE)/VLOOKUP(AL$6,'[1]Precios gasóleo'!$D:$F,3,FALSE)-1) ->  | AM22: =IF($C22<=AM$6,"",VLOOKUP($C22,'[1]Precios gasóleo'!$D:$F,3,FALSE)/VLOOKUP(AM$6,'[1]Precios gasóleo'!$D:$F,3,FALSE)-1) ->  | AN22: =IF($C22<=AN$6,"",VLOOKUP($C22,'[1]Precios gasóleo'!$D:$F,3,FALSE)/VLOOKUP(AN$6,'[1]Precios gasóleo'!$D:$F,3,FALSE)-1) ->  | AO22: =IF($C22<=AO$6,"",VLOOKUP($C22,'[1]Precios gasóleo'!$D:$F,3,FALSE)/VLOOKUP(AO$6,'[1]Precios gasóleo'!$D:$F,3,FALSE)-1) ->  | AP22: =IF($C22<=AP$6,"",VLOOKUP($C22,'[1]Precios gasóleo'!$D:$F,3,FALSE)/VLOOKUP(AP$6,'[1]Precios gasóleo'!$D:$F,3,FALSE)-1) ->  | AQ22: =IF($C22<=AQ$6,"",VLOOKUP($C22,'[1]Precios gasóleo'!$D:$F,3,FALSE)/VLOOKUP(AQ$6,'[1]Precios gasóleo'!$D:$F,3,FALSE)-1) ->  | AR22: =IF($C22<=AR$6,"",VLOOKUP($C22,'[1]Precios gasóleo'!$D:$F,3,FALSE)/VLOOKUP(AR$6,'[1]Precios gasóleo'!$D:$F,3,FALSE)-1) ->  | AS22: =IF($C22<=AS$6,"",VLOOKUP($C22,'[1]Precios gasóleo'!$D:$F,3,FALSE)/VLOOKUP(AS$6,'[1]Precios gasóleo'!$D:$F,3,FALSE)-1) ->  | AT22: =IF($C22<=AT$6,"",VLOOKUP($C22,'[1]Precios gasóleo'!$D:$F,3,FALSE)/VLOOKUP(AT$6,'[1]Precios gasóleo'!$D:$F,3,FALSE)-1) ->  | AU22: =IF($C22<=AU$6,"",VLOOKUP($C22,'[1]Precios gasóleo'!$D:$F,3,FALSE)/VLOOKUP(AU$6,'[1]Precios gasóleo'!$D:$F,3,FALSE)-1) ->  | AV22: =IF($C22<=AV$6,"",VLOOKUP($C22,'[1]Precios gasóleo'!$D:$F,3,FALSE)/VLOOKUP(AV$6,'[1]Precios gasóleo'!$D:$F,3,FALSE)-1) ->  | AW22: =IF($C22<=AW$6,"",VLOOKUP($C22,'[1]Precios gasóleo'!$D:$F,3,FALSE)/VLOOKUP(AW$6,'[1]Precios gasóleo'!$D:$F,3,FALSE)-1) ->  | AX22: =IF($C22<=AX$6,"",VLOOKUP($C22,'[1]Precios gasóleo'!$D:$F,3,FALSE)/VLOOKUP(AX$6,'[1]Precios gasóleo'!$D:$F,3,FALSE)-1) ->  | AY22: =IF($C22<=AY$6,"",VLOOKUP($C22,'[1]Precios gasóleo'!$D:$F,3,FALSE)/VLOOKUP(AY$6,'[1]Precios gasóleo'!$D:$F,3,FALSE)-1) ->  | AZ22: =IF($C22<=AZ$6,"",VLOOKUP($C22,'[1]Precios gasóleo'!$D:$F,3,FALSE)/VLOOKUP(AZ$6,'[1]Precios gasóleo'!$D:$F,3,FALSE)-1) ->  | BA22: =IF($C22<=BA$6,"",VLOOKUP($C22,'[1]Precios gasóleo'!$D:$F,3,FALSE)/VLOOKUP(BA$6,'[1]Precios gasóleo'!$D:$F,3,FALSE)-1) ->  | BB22: =IF($C22<=BB$6,"",VLOOKUP($C22,'[1]Precios gasóleo'!$D:$F,3,FALSE)/VLOOKUP(BB$6,'[1]Precios gasóleo'!$D:$F,3,FALSE)-1) ->  | BC22: =IF($C22<=BC$6,"",VLOOKUP($C22,'[1]Precios gasóleo'!$D:$F,3,FALSE)/VLOOKUP(BC$6,'[1]Precios gasóleo'!$D:$F,3,FALSE)-1) ->  | BD22: =IF($C22<=BD$6,"",VLOOKUP($C22,'[1]Precios gasóleo'!$D:$F,3,FALSE)/VLOOKUP(BD$6,'[1]Precios gasóleo'!$D:$F,3,FALSE)-1) ->  | BE22: =IF($C22<=BE$6,"",VLOOKUP($C22,'[1]Precios gasóleo'!$D:$F,3,FALSE)/VLOOKUP(BE$6,'[1]Precios gasóleo'!$D:$F,3,FALSE)-1) ->  | BF22: =IF($C22<=BF$6,"",VLOOKUP($C22,'[1]Precios gasóleo'!$D:$F,3,FALSE)/VLOOKUP(BF$6,'[1]Precios gasóleo'!$D:$F,3,FALSE)-1) ->  | BG22: =IF($C22<=BG$6,"",VLOOKUP($C22,'[1]Precios gasóleo'!$D:$F,3,FALSE)/VLOOKUP(BG$6,'[1]Precios gasóleo'!$D:$F,3,FALSE)-1) ->  | BH22: =IF($C22<=BH$6,"",VLOOKUP($C22,'[1]Precios gasóleo'!$D:$F,3,FALSE)/VLOOKUP(BH$6,'[1]Precios gasóleo'!$D:$F,3,FALSE)-1) ->  | BI22: =IF($C22<=BI$6,"",VLOOKUP($C22,'[1]Precios gasóleo'!$D:$F,3,FALSE)/VLOOKUP(BI$6,'[1]Precios gasóleo'!$D:$F,3,FALSE)-1) ->  | BJ22: =IF($C22<=BJ$6,"",VLOOKUP($C22,'[1]Precios gasóleo'!$D:$F,3,FALSE)/VLOOKUP(BJ$6,'[1]Precios gasóleo'!$D:$F,3,FALSE)-1) ->  | BK22: =IF($C22<=BK$6,"",VLOOKUP($C22,'[1]Precios gasóleo'!$D:$F,3,FALSE)/VLOOKUP(BK$6,'[1]Precios gasóleo'!$D:$F,3,FALSE)-1) ->  | BL22: =IF($C22<=BL$6,"",VLOOKUP($C22,'[1]Precios gasóleo'!$D:$F,3,FALSE)/VLOOKUP(BL$6,'[1]Precios gasóleo'!$D:$F,3,FALSE)-1) ->  | BM22: =IF($C22<=BM$6,"",VLOOKUP($C22,'[1]Precios gasóleo'!$D:$F,3,FALSE)/VLOOKUP(BM$6,'[1]Precios gasóleo'!$D:$F,3,FALSE)-1) ->  | BN22: =IF($C22<=BN$6,"",VLOOKUP($C22,'[1]Precios gasóleo'!$D:$F,3,FALSE)/VLOOKUP(BN$6,'[1]Precios gasóleo'!$D:$F,3,FALSE)-1) ->  | BO22: =IF($C22<=BO$6,"",VLOOKUP($C22,'[1]Precios gasóleo'!$D:$F,3,FALSE)/VLOOKUP(BO$6,'[1]Precios gasóleo'!$D:$F,3,FALSE)-1) ->  | BP22: =IF($C22<=BP$6,"",VLOOKUP($C22,'[1]Precios gasóleo'!$D:$F,3,FALSE)/VLOOKUP(BP$6,'[1]Precios gasóleo'!$D:$F,3,FALSE)-1) ->  | BQ22: =IF($C22<=BQ$6,"",VLOOKUP($C22,'[1]Precios gasóleo'!$D:$F,3,FALSE)/VLOOKUP(BQ$6,'[1]Precios gasóleo'!$D:$F,3,FALSE)-1) ->  | BR22: =IF($C22<=BR$6,"",VLOOKUP($C22,'[1]Precios gasóleo'!$D:$F,3,FALSE)/VLOOKUP(BR$6,'[1]Precios gasóleo'!$D:$F,3,FALSE)-1) ->  | BS22: =IF($C22<=BS$6,"",VLOOKUP($C22,'[1]Precios gasóleo'!$D:$F,3,FALSE)/VLOOKUP(BS$6,'[1]Precios gasóleo'!$D:$F,3,FALSE)-1) ->  | BT22: =IF($C22<=BT$6,"",VLOOKUP($C22,'[1]Precios gasóleo'!$D:$F,3,FALSE)/VLOOKUP(BT$6,'[1]Precios gasóleo'!$D:$F,3,FALSE)-1) ->  | BU22: =IF($C22<=BU$6,"",VLOOKUP($C22,'[1]Precios gasóleo'!$D:$F,3,FALSE)/VLOOKUP(BU$6,'[1]Precios gasóleo'!$D:$F,3,FALSE)-1) ->  | BV22: =IF($C22<=BV$6,"",VLOOKUP($C22,'[1]Precios gasóleo'!$D:$F,3,FALSE)/VLOOKUP(BV$6,'[1]Precios gasóleo'!$D:$F,3,FALSE)-1) ->  | BW22: =IF($C22<=BW$6,"",VLOOKUP($C22,'[1]Precios gasóleo'!$D:$F,3,FALSE)/VLOOKUP(BW$6,'[1]Precios gasóleo'!$D:$F,3,FALSE)-1) ->  | BX22: =IF($C22<=BX$6,"",VLOOKUP($C22,'[1]Precios gasóleo'!$D:$F,3,FALSE)/VLOOKUP(BX$6,'[1]Precios gasóleo'!$D:$F,3,FALSE)-1) ->  | BY22: =IF($C22<=BY$6,"",VLOOKUP($C22,'[1]Precios gasóleo'!$D:$F,3,FALSE)/VLOOKUP(BY$6,'[1]Precios gasóleo'!$D:$F,3,FALSE)-1) ->  | BZ22: =IF($C22<=BZ$6,"",VLOOKUP($C22,'[1]Precios gasóleo'!$D:$F,3,FALSE)/VLOOKUP(BZ$6,'[1]Precios gasóleo'!$D:$F,3,FALSE)-1) ->  | CA22: =IF($C22<=CA$6,"",VLOOKUP($C22,'[1]Precios gasóleo'!$D:$F,3,FALSE)/VLOOKUP(CA$6,'[1]Precios gasóleo'!$D:$F,3,FALSE)-1) ->  | CB22: =IF($C22<=CB$6,"",VLOOKUP($C22,'[1]Precios gasóleo'!$D:$F,3,FALSE)/VLOOKUP(CB$6,'[1]Precios gasóleo'!$D:$F,3,FALSE)-1) ->  | CC22: =IF($C22<=CC$6,"",VLOOKUP($C22,'[1]Precios gasóleo'!$D:$F,3,FALSE)/VLOOKUP(CC$6,'[1]Precios gasóleo'!$D:$F,3,FALSE)-1) ->  | CD22: =IF($C22<=CD$6,"",VLOOKUP($C22,'[1]Precios gasóleo'!$D:$F,3,FALSE)/VLOOKUP(CD$6,'[1]Precios gasóleo'!$D:$F,3,FALSE)-1) ->  | CE22: =IF($C22<=CE$6,"",VLOOKUP($C22,'[1]Precios gasóleo'!$D:$F,3,FALSE)/VLOOKUP(CE$6,'[1]Precios gasóleo'!$D:$F,3,FALSE)-1) ->  | CF22: =IF($C22<=CF$6,"",VLOOKUP($C22,'[1]Precios gasóleo'!$D:$F,3,FALSE)/VLOOKUP(CF$6,'[1]Precios gasóleo'!$D:$F,3,FALSE)-1) ->  | CG22: =IF($C22<=CG$6,"",VLOOKUP($C22,'[1]Precios gasóleo'!$D:$F,3,FALSE)/VLOOKUP(CG$6,'[1]Precios gasóleo'!$D:$F,3,FALSE)-1) ->  | CH22: =IF($C22<=CH$6,"",VLOOKUP($C22,'[1]Precios gasóleo'!$D:$F,3,FALSE)/VLOOKUP(CH$6,'[1]Precios gasóleo'!$D:$F,3,FALSE)-1) ->  | CI22: =IF($C22<=CI$6,"",VLOOKUP($C22,'[1]Precios gasóleo'!$D:$F,3,FALSE)/VLOOKUP(CI$6,'[1]Precios gasóleo'!$D:$F,3,FALSE)-1) ->  | CJ22: =IF($C22<=CJ$6,"",VLOOKUP($C22,'[1]Precios gasóleo'!$D:$F,3,FALSE)/VLOOKUP(CJ$6,'[1]Precios gasóleo'!$D:$F,3,FALSE)-1) ->  | CK22: =IF($C22<=CK$6,"",VLOOKUP($C22,'[1]Precios gasóleo'!$D:$F,3,FALSE)/VLOOKUP(CK$6,'[1]Precios gasóleo'!$D:$F,3,FALSE)-1) ->  | CL22: =IF($C22<=CL$6,"",VLOOKUP($C22,'[1]Precios gasóleo'!$D:$F,3,FALSE)/VLOOKUP(CL$6,'[1]Precios gasóleo'!$D:$F,3,FALSE)-1) ->  | CM22: =IF($C22<=CM$6,"",VLOOKUP($C22,'[1]Precios gasóleo'!$D:$F,3,FALSE)/VLOOKUP(CM$6,'[1]Precios gasóleo'!$D:$F,3,FALSE)-1) ->  | CN22: =IF($C22<=CN$6,"",VLOOKUP($C22,'[1]Precios gasóleo'!$D:$F,3,FALSE)/VLOOKUP(CN$6,'[1]Precios gasóleo'!$D:$F,3,FALSE)-1) ->  | CO22: =IF($C22<=CO$6,"",VLOOKUP($C22,'[1]Precios gasóleo'!$D:$F,3,FALSE)/VLOOKUP(CO$6,'[1]Precios gasóleo'!$D:$F,3,FALSE)-1) ->  | CP22: =IF($C22<=CP$6,"",VLOOKUP($C22,'[1]Precios gasóleo'!$D:$F,3,FALSE)/VLOOKUP(CP$6,'[1]Precios gasóleo'!$D:$F,3,FALSE)-1) ->  | CQ22: =IF($C22<=CQ$6,"",VLOOKUP($C22,'[1]Precios gasóleo'!$D:$F,3,FALSE)/VLOOKUP(CQ$6,'[1]Precios gasóleo'!$D:$F,3,FALSE)-1) ->  | CR22: =IF($C22<=CR$6,"",VLOOKUP($C22,'[1]Precios gasóleo'!$D:$F,3,FALSE)/VLOOKUP(CR$6,'[1]Precios gasóleo'!$D:$F,3,FALSE)-1) ->  | CS22: =IF($C22<=CS$6,"",VLOOKUP($C22,'[1]Precios gasóleo'!$D:$F,3,FALSE)/VLOOKUP(CS$6,'[1]Precios gasóleo'!$D:$F,3,FALSE)-1) ->  | CT22: =IF($C22<=CT$6,"",VLOOKUP($C22,'[1]Precios gasóleo'!$D:$F,3,FALSE)/VLOOKUP(CT$6,'[1]Precios gasóleo'!$D:$F,3,FALSE)-1) ->  | CU22: =IF($C22<=CU$6,"",VLOOKUP($C22,'[1]Precios gasóleo'!$D:$F,3,FALSE)/VLOOKUP(CU$6,'[1]Precios gasóleo'!$D:$F,3,FALSE)-1) ->  | CV22: =IF($C22<=CV$6,"",VLOOKUP($C22,'[1]Precios gasóleo'!$D:$F,3,FALSE)/VLOOKUP(CV$6,'[1]Precios gasóleo'!$D:$F,3,FALSE)-1) ->  | CW22: =IF($C22<=CW$6,"",VLOOKUP($C22,'[1]Precios gasóleo'!$D:$F,3,FALSE)/VLOOKUP(CW$6,'[1]Precios gasóleo'!$D:$F,3,FALSE)-1) ->  | CX22: =IF($C22<=CX$6,"",VLOOKUP($C22,'[1]Precios gasóleo'!$D:$F,3,FALSE)/VLOOKUP(CX$6,'[1]Precios gasóleo'!$D:$F,3,FALSE)-1) ->  | CY22: =IF($C22<=CY$6,"",VLOOKUP($C22,'[1]Precios gasóleo'!$D:$F,3,FALSE)/VLOOKUP(CY$6,'[1]Precios gasóleo'!$D:$F,3,FALSE)-1) ->  | CZ22: =IF($C22<=CZ$6,"",VLOOKUP($C22,'[1]Precios gasóleo'!$D:$F,3,FALSE)/VLOOKUP(CZ$6,'[1]Precios gasóleo'!$D:$F,3,FALSE)-1) ->  | DA22: =IF($C22<=DA$6,"",VLOOKUP($C22,'[1]Precios gasóleo'!$D:$F,3,FALSE)/VLOOKUP(DA$6,'[1]Precios gasóleo'!$D:$F,3,FALSE)-1) ->  | DB22: =IF($C22<=DB$6,"",VLOOKUP($C22,'[1]Precios gasóleo'!$D:$F,3,FALSE)/VLOOKUP(DB$6,'[1]Precios gasóleo'!$D:$F,3,FALSE)-1) ->  | DC22: =IF($C22<=DC$6,"",VLOOKUP($C22,'[1]Precios gasóleo'!$D:$F,3,FALSE)/VLOOKUP(DC$6,'[1]Precios gasóleo'!$D:$F,3,FALSE)-1) ->  | DD22: =IF($C22<=DD$6,"",VLOOKUP($C22,'[1]Precios gasóleo'!$D:$F,3,FALSE)/VLOOKUP(DD$6,'[1]Precios gasóleo'!$D:$F,3,FALSE)-1) ->  | DE22: =IF($C22<=DE$6,"",VLOOKUP($C22,'[1]Precios gasóleo'!$D:$F,3,FALSE)/VLOOKUP(DE$6,'[1]Precios gasóleo'!$D:$F,3,FALSE)-1) ->  | DF22: =IF($C22<=DF$6,"",VLOOKUP($C22,'[1]Precios gasóleo'!$D:$F,3,FALSE)/VLOOKUP(DF$6,'[1]Precios gasóleo'!$D:$F,3,FALSE)-1) ->  | DG22: =IF($C22<=DG$6,"",VLOOKUP($C22,'[1]Precios gasóleo'!$D:$F,3,FALSE)/VLOOKUP(DG$6,'[1]Precios gasóleo'!$D:$F,3,FALSE)-1) ->  | DH22: =IF($C22<=DH$6,"",VLOOKUP($C22,'[1]Precios gasóleo'!$D:$F,3,FALSE)/VLOOKUP(DH$6,'[1]Precios gasóleo'!$D:$F,3,FALSE)-1) ->  | DI22: =IF($C22<=DI$6,"",VLOOKUP($C22,'[1]Precios gasóleo'!$D:$F,3,FALSE)/VLOOKUP(DI$6,'[1]Precios gasóleo'!$D:$F,3,FALSE)-1) ->  | DJ22: =IF($C22<=DJ$6,"",VLOOKUP($C22,'[1]Precios gasóleo'!$D:$F,3,FALSE)/VLOOKUP(DJ$6,'[1]Precios gasóleo'!$D:$F,3,FALSE)-1) ->  | DK22: =IF($C22<=DK$6,"",VLOOKUP($C22,'[1]Precios gasóleo'!$D:$F,3,FALSE)/VLOOKUP(DK$6,'[1]Precios gasóleo'!$D:$F,3,FALSE)-1) ->  | DL22: =IF($C22<=DL$6,"",VLOOKUP($C22,'[1]Precios gasóleo'!$D:$F,3,FALSE)/VLOOKUP(DL$6,'[1]Precios gasóleo'!$D:$F,3,FALSE)-1) ->  | DM22: =IF($C22<=DM$6,"",VLOOKUP($C22,'[1]Precios gasóleo'!$D:$F,3,FALSE)/VLOOKUP(DM$6,'[1]Precios gasóleo'!$D:$F,3,FALSE)-1) ->  | DN22: =IF($C22<=DN$6,"",VLOOKUP($C22,'[1]Precios gasóleo'!$D:$F,3,FALSE)/VLOOKUP(DN$6,'[1]Precios gasóleo'!$D:$F,3,FALSE)-1) ->  | DO22: =IF($C22<=DO$6,"",VLOOKUP($C22,'[1]Precios gasóleo'!$D:$F,3,FALSE)/VLOOKUP(DO$6,'[1]Precios gasóleo'!$D:$F,3,FALSE)-1) ->  | DP22: =IF($C22<=DP$6,"",VLOOKUP($C22,'[1]Precios gasóleo'!$D:$F,3,FALSE)/VLOOKUP(DP$6,'[1]Precios gasóleo'!$D:$F,3,FALSE)-1) ->  | DQ22: =IF($C22<=DQ$6,"",VLOOKUP($C22,'[1]Precios gasóleo'!$D:$F,3,FALSE)/VLOOKUP(DQ$6,'[1]Precios gasóleo'!$D:$F,3,FALSE)-1) ->  | DR22: =IF($C22<=DR$6,"",VLOOKUP($C22,'[1]Precios gasóleo'!$D:$F,3,FALSE)/VLOOKUP(DR$6,'[1]Precios gasóleo'!$D:$F,3,FALSE)-1) ->  | DS22: =IF($C22<=DS$6,"",VLOOKUP($C22,'[1]Precios gasóleo'!$D:$F,3,FALSE)/VLOOKUP(DS$6,'[1]Precios gasóleo'!$D:$F,3,FALSE)-1) ->  | DT22: =IF($C22<=DT$6,"",VLOOKUP($C22,'[1]Precios gasóleo'!$D:$F,3,FALSE)/VLOOKUP(DT$6,'[1]Precios gasóleo'!$D:$F,3,FALSE)-1) ->  | DU22: =IF($C22<=DU$6,"",VLOOKUP($C22,'[1]Precios gasóleo'!$D:$F,3,FALSE)/VLOOKUP(DU$6,'[1]Precios gasóleo'!$D:$F,3,FALSE)-1) ->  | DV22: =IF($C22<=DV$6,"",VLOOKUP($C22,'[1]Precios gasóleo'!$D:$F,3,FALSE)/VLOOKUP(DV$6,'[1]Precios gasóleo'!$D:$F,3,FALSE)-1) ->  | DW22: =IF($C22<=DW$6,"",VLOOKUP($C22,'[1]Precios gasóleo'!$D:$F,3,FALSE)/VLOOKUP(DW$6,'[1]Precios gasóleo'!$D:$F,3,FALSE)-1) ->  | DX22: =IF($C22<=DX$6,"",VLOOKUP($C22,'[1]Precios gasóleo'!$D:$F,3,FALSE)/VLOOKUP(DX$6,'[1]Precios gasóleo'!$D:$F,3,FALSE)-1) ->  | DY22: =IF($C22<=DY$6,"",VLOOKUP($C22,'[1]Precios gasóleo'!$D:$F,3,FALSE)/VLOOKUP(DY$6,'[1]Precios gasóleo'!$D:$F,3,FALSE)-1) ->  | DZ22: =IF($C22<=DZ$6,"",VLOOKUP($C22,'[1]Precios gasóleo'!$D:$F,3,FALSE)/VLOOKUP(DZ$6,'[1]Precios gasóleo'!$D:$F,3,FALSE)-1) ->  | EA22: =IF($C22<=EA$6,"",VLOOKUP($C22,'[1]Precios gasóleo'!$D:$F,3,FALSE)/VLOOKUP(EA$6,'[1]Precios gasóleo'!$D:$F,3,FALSE)-1) ->  | EB22: =IF($C22<=EB$6,"",VLOOKUP($C22,'[1]Precios gasóleo'!$D:$F,3,FALSE)/VLOOKUP(EB$6,'[1]Precios gasóleo'!$D:$F,3,FALSE)-1) ->  | EC22: =IF($C22<=EC$6,"",VLOOKUP($C22,'[1]Precios gasóleo'!$D:$F,3,FALSE)/VLOOKUP(EC$6,'[1]Precios gasóleo'!$D:$F,3,FALSE)-1) ->  | ED22: =IF($C22<=ED$6,"",VLOOKUP($C22,'[1]Precios gasóleo'!$D:$F,3,FALSE)/VLOOKUP(ED$6,'[1]Precios gasóleo'!$D:$F,3,FALSE)-1) ->  | EE22: =IF($C22<=EE$6,"",VLOOKUP($C22,'[1]Precios gasóleo'!$D:$F,3,FALSE)/VLOOKUP(EE$6,'[1]Precios gasóleo'!$D:$F,3,FALSE)-1) ->  | EF22: =IF($C22<=EF$6,"",VLOOKUP($C22,'[1]Precios gasóleo'!$D:$F,3,FALSE)/VLOOKUP(EF$6,'[1]Precios gasóleo'!$D:$F,3,FALSE)-1) ->  | EG22: =IF($C22<=EG$6,"",VLOOKUP($C22,'[1]Precios gasóleo'!$D:$F,3,FALSE)/VLOOKUP(EG$6,'[1]Precios gasóleo'!$D:$F,3,FALSE)-1) ->  | EH22: 2020-05-05
